{"text_format":"1","workbook":"xlsx","n_sheets":8,"sheets":["Nábytek a příslušenství","STOD_A+C","STOD_B","STOD_D","KVI_A","KVI_B","DNE","STAN"],"not_rendered":{"charts":0,"images":0,"macros":0,"external_links":0,"defined_names":7,"comments":0,"pivot_tables":0},"unopened":[],"bounds":{"document_bytes":16777216,"sheet_cells":100000,"rows_first":2000,"rows_last":500,"rows_between":2000,"halvings":0,"cell_chars":16384,"cell_head_chars":4096},"cells_cut":0,"cells_raw":0,"read":"whole","date_system":"1900"}

{"sheet":"Nábytek a příslušenství","index":0,"n_rows":100,"n_cols":6,"rows_kept":100,"cut":false,"hidden":false,"merged":[[11,6,11,7],[10,0,10,5],[0,0,0,5],[1,0,1,1],[1,2,1,5],[2,0,2,5],[3,0,3,1],[3,2,3,5],[4,0,4,1],[4,2,4,5],[5,0,5,1],[5,2,5,5],[6,0,6,1],[6,2,6,5],[7,0,7,1],[7,2,7,5],[99,0,99,5],[95,0,95,4],[96,0,96,5],[97,0,97,5],[98,0,98,5]]}
["Příloha č. 1 Výzvy:  Technická specifikace - Nábytek"]
["NÁZEV VEŘEJNÉ ZAKÁZKY: ",null,"„Transformace CSS Stod III. etapa – nábytek a příslušenství“"]
["Veřejná zakázka malého rozsahu na dodávky (dále také jen „VZ“) zadávaná mimo působnost zákona č. 134/2016 Sb., o zadávání veřejných zakázek (dále také jen „ZZVZ“)."]
[]
["DODAVATEL:",null,"DOPLNÍ DODAVATEL"]
["IČO/DIČ:",null,"DOPLNÍ DODAVATEL"]
["SÍDLO:",null,"DOPLNÍ DODAVATEL"]
["OSOBA OPRÁVNĚNÁ JEDNAT ZA DODAVATELE:",null,"DOPLNÍ DODAVATEL"]
[]
[]
["Stod - objekt  A + C"]
["Pořadové číslo položky","Položka - Specifikace položky (minimální požadované parametry zboží)",null,null,"Požadavky splněny   ANO/NE","Nabízené parametry zboží "]
["1.","Čalouněné křeslo ušák; Popis: Čalouněné křeslo ušák je tvořen z vlnonce, 2 cm kokosové vrstvy a 5 cm široké PUR pěny a čalouněná potahovou látkou v barvě šedé. Hmotnost křesla 23 kg. Doplňové rozměry křesla: hloubka 720 mm, výška sedu 470 mm, hloubka sedu","ks","12",null,"Dodavatel doplní popis a pametry nabízeného zboží"]
["2.","Předsíňová stěna s věšáky; Popis: Předsíňová stěna s kovovými háčky se dvěmi úchytkami a policí, kotvená do stěny včetně montážního materiálu. Korpus a police z MDF desky, barva světle hnědá, tl. 20 mm. Hrany opatřeny ABS hranou tl. 1,5 mm. Háček (5 ks) se dvěmi úchytkami kotvená na desku věšáku včetně kotvení. Materiál nerezová ocel.; Rozměry: věšák: 660 x 240 x 1520 mm (d x š x v), háček: 70 x 30 x 47 mm (d x š x v)","ks",2,null,"Dodavatel doplní popis a pametry nabízeného zboží"]
["3.","Nástěné zrcadlo do předsíně (rozměr 1000 x 900 mm); Popis: Nástěné pravoúhlé zrcadlo k montáži na stěnu včetně kotvení. Materiál sklo s bezpečnostní fólií se zabroušenými hranami.; Rozměry: 1000 x 900 mm (š x v)","ks",2,null,"Dodavatel doplní popis a pametry nabízeného zboží"]
["4.","Botník s variabilními policemi a lavicí; Popis: Botník s variabilními policemi a lavicí. Botník je členěn na 6 polic pro uložení bot. Materiál laminovaná MDF deska, barva světle hnědá. Dno i půda z desky tl. 25 mm, z přední strany ABS hrana tl. 2 mm. Ostatní pohlednové prvky opatřeny ABS hranou tl. 1 mm. Boky korpusu z desky tl. 25 mm. Záda z desky tl. 10 mm. Police z desky tl. 20 mm  s variabilním polohovatelností. Police a desky opatřeny hranou ABS tl. 2 mm. Dodávka včetvě rektifikačních nožiček. Sedák čalouněný potahovou látkou v barvě šedé. ; Rozměry: 1000 x 400 x 480 mm (d x š x v)","ks",2,null,"Dodavatel doplní popis a pametry nabízeného zboží"]
["5.","Vestavěná skříň policová plná s dveřmi rozdělenými na dvě části (výška 2000 mm); Popis: Skříň dvoudvéřová. Vybavená 5 ks variabilních polic. Materiál laminovaná MDF deska, barva světle hnědá. Dno i půda z desky tl. 25 mm, z přední strany ABS hrana tl. 2 mm. Ostatní pohlednové prvky opatřeny ABS hranou tl. 1 mm. Boky korpusu z desky tl. 18 mm. Záda z desky tl. 8 mm. Police z desky tl. 25 mm, nosnost 80 kg s variabilním polohovatelností. Police a desky opatřeny hranou ABS tl. 2 mm. Dodávka včetvě rektifikačních nožiček.; Rozměry: 1400 x 400 x 2000 mm (d x š x v)","ks",2,null,"Dodavatel doplní popis a pametry nabízeného zboží"]
["6.","Skříňka do koupelny (výška 700 mm); Popis: Skřínka se čtyřmi zásuvkami do koupleny a nožičkami. Materiál laminátová MDF deska, barva bílá. Dno i půda z desky tl. 25 mm, z přední strany ABS hrana tl. 2 mm. Ostatní pohlednové prvky opatřeny ABS hranou tl. 1 mm. Boky korpusu z desky tl. 18 mm. Záda z desky tl. 8 mm. Police z desky tl. 25 mm, nosnost 50 kg. Police a desky opatřeny hranou ABS tl. 2 mm. Dodávka včetvě kovových nožiček a úchytek k zásuvkám.; Rozměry: 400 x 400 x 700 mm (d x š x v)","ks",2,null,"Dodavatel doplní popis a pametry nabízeného zboží"]
["7.","Sklopné zrcadlo pro bezbariérové WC; Popis: Sklopné nerezové zrcadlo na toalety pro tělesně postižené včetně kotvení. Kotveno pomocí montážní lišty. Naklánění zrcadla je ovládané pomocí páky na stěně pod umyvadlem. Materiál sklo s bezpečnostní fólií se zabroušenými hranami a rám a páka z nerezy.; Rozměry: 600 x 400 mm (š x v)","ks",2,null,"Dodavatel doplní popis a pametry nabízeného zboží"]
["8.","Police do skladu (výška 2000 mm); Popis: Police do skladu s pěti policemi včetně montážního materiálu. Police jsou výškově přestavitelné v rastru 138 mm. Šedý policový regál je rychle smontovatelný bez spojovacího materiálu. Police se jednoduchým způsobem nasadí na sloupky. Možnost spojování do polí a řad vedle sebe i za sebou pro zvýšení celkové tuhosti. Konstrukce je povrchově upravena práškovým lakem šedé barvy. Nohy jsou vybaveny plastovými patkami pro ochranu podlahové krytiny. ; Rozměry: 2000 x 600 x 2000 mm (d x š x v)","ks",4,null,"Dodavatel doplní popis a pametry nabízeného zboží"]
["9.","Police do skladu tvaru \"L\" (výška 2000 mm); Popis: Police do skladu tvaru \"L\" s pěti police včetně montážního materiálu. Police jsou výškově přestavitelné v rastru 138 mm. Šedý policový regál je rychle smontovatelný bez spojovacího materiálu. Police se jednoduchým způsobem nasadí na sloupky. Možnost spojování do polí a řad vedle sebe i za sebou pro zvýšení celkové tuhosti. Konstrukce je povrchově upravena práškovým lakem šedé barvy. Nohy jsou vybaveny plastovými patkami pro ochranu podlahové krytiny.; Rozměry: 1810/1610 x 600 x 2000 mm (d x š x v)","ks",2,null,"Dodavatel doplní popis a pametry nabízeného zboží"]
["10.","Kovová garnyž na záclony; Popis: Kovová garnyž na záclony včetně montážního materiálu. Tyč garnyže o púrůměru 16 mm. Skládá se z galvanicky pokovené tyče, dvou koncovek, dvou konzol na zeď a žabky s kroužky.; Rozměry: nastavitelná délka 1450 – 1950 mm","ks",24,null,"Dodavatel doplní popis a pametry nabízeného zboží"]
["11.","Šatní skříň s policemi a tyčí uzamykatelná (výška 2000 mm); Popis: Skříň dvoudvéřová, dvoudílná - dělená na dvě části. 1/2 vybavená šatní tyčí a policí a 1/2 vybavená 5 ks variabilních polic. Materiál laminovaná MDF deska, barva světle hnědá. Dno i půda z desky tl. 25 mm, z přední strany ABS hrana tl. 2 mm. Ostatní pohledné prvky opatřeny ABS hranou tl. 1 mm. Boky korpusu z desky tl. 18 mm. Záda desky tl. 8 mm. Police z desky tl. 25 mm. Police a desky opatřeny hranou ABS tl. 2 mm.; Rozměry: 1700 x 600 x 2000 mm (d x š x v)","ks",2,null,"Dodavatel doplní popis a pametry nabízeného zboží"]
["12.","Nástěnná police s konzolemi; Popis: Nástěnná police s konzolemi kotvené do zdi včetně kotvení. Materiál laminátová MDF deska, barva světle hnědá. Police z desky tl. 25 mm, opatřena ABS hranou tl. 2 mm. Nosnost 80 kg. Konzole dřevěné v barvě světle hnědé.; Rozměry: 1000 x 300 x 20 mm (d x š x v)","ks",2,null,"Dodavatel doplní popis a pametry nabízeného zboží"]
[null,"Cena celkem bez DPH - Stod - objekt A + C"]
["Stod - objekt B"]
["13.","Sedací vak; Popis: Sedací dvouvrstvý vak, výplň z kuliček z polystyrenu, obsah náplně 365 l. Materiál potahu jednobarevný polyester a polyester s PVC zátěrem z rubové strany . Hmotnost 5,5 kg.Nosnost 120 kg.; Rozměry: 1050 x 950 x 750 mm (d x š x v) ; Všechen nábytek musí být proveden tak, aby splňoval požadavky pro užívání lidí s autismem. Tento nábytek musí splňovat požadavky na dostatečnou odolnost, jednoduchou udržovatelnost, vysokou odolnost vůči poškození.","ks",6,null,"Dodavatel doplní popis a pametry nabízeného zboží"]
["14.","Předsíňová stěna s věšáky; Popis: Předsíňová stěna s kovovými háčky se dvěmi úchytkami a policí, kotvená do stěny včetně montážního materiálu. Korpus a police z MDF desky, barva světle hnědá, tl. 20 mm. Hrany opatřeny ABS hranou tl. 1,5 mm. Háček (5 ks) se dvěmi úchytkami kotvená na desku věšáku včetně kotvení. Materiál nerezová ocel.; Rozměry: věšák: 660 x 240 x 1520 mm (d x š x v), háček: 70 x 30 x 47 mm (d x š x v) ; Všechen nábytek musí být proveden tak, aby splňoval požadavky pro užívání lidí s autismem. Tento nábytek musí splňovat požadavky na dostatečnou odolnost, jednoduchou udržovatelnost, vysokou odolnost vůči poškození, musí být dostatečně tuhý, stabilní a odolný proti nárazu, tak aby nedošlo k poškození nábytku ani k úrazu","ks",1,null,"Dodavatel doplní popis a pametry nabízeného zboží"]
["15.","Botník s variabilními policemi a lavicí; Popis: Botník s variabilními policemi a lavicí. Botník je členěn na 6 polic pro uložení bot. Materiál laminovaná MDF deska, barva světle hnědá. Dno i půda z desky tl. 25 mm, z přední strany ABS hrana tl. 2 mm. Ostatní pohlednové prvky opatřeny ABS hranou tl. 1 mm. Boky korpusu z desky tl. 25 mm. Záda z desky tl. 10 mm. Police z desky tl. 20 mm  s variabilním polohovatelností. Police a desky opatřeny hranou ABS tl. 2 mm. Dodávka včetvě rektifikačních nožiček. Sedák čalouněný potahovou látkou v barvě šedé. ; Rozměry: 1000 x 400 x 480 mm (d x š x v) ; Všechen nábytek musí být proveden tak, aby splňoval požadavky pro užívání lidí s autismem. Tento nábytek musí splňovat požadavky na dostatečnou odolnost, jednoduchou udržovatelnost, vysokou odolnost vůči poškození, musí být dostatečně tuhý, stabilní a odolný proti nárazu, tak aby nedošlo k poškození nábytku ani k úrazu","ks",1,null,"Dodavatel doplní popis a pametry nabízeného zboží"]
["16.","Vestavěná skříň policová plná s dveřmi rozdělenými na dvě části (výška 2000 mm); Popis: Skříň dvoudvéřová. Vybavená 5 ks variabilních polic. Materiál laminovaná MDF deska, barva světle hnědá. Dno i půda z desky tl. 25 mm, z přední strany ABS hrana tl. 2 mm. Ostatní pohlednové prvky opatřeny ABS hranou tl. 1 mm. Boky korpusu z desky tl. 18 mm. Záda z desky tl. 8 mm. Police z desky tl. 25 mm, nosnost 80 kg s variabilním polohovatelností. Police a desky opatřeny hranou ABS tl. 2 mm. Dodávka včetvě rektifikačních nožiček.; Rozměry: 1400 x 400 x 2000 mm (d x š x v) ; Všechen nábytek musí být proveden tak, aby splňoval požadavky pro užívání lidí s autismem. Tento nábytek musí splňovat požadavky na dostatečnou odolnost, jednoduchou udržovatelnost, vysokou odolnost vůči poškození, musí byýt dostatečně tuhý, stabilní a odolný proti nárazu, tak aby nedošlo k poškození nábytku ani k úrazu","ks",1,null,"Dodavatel doplní popis a pametry nabízeného zboží"]
["17.","Skříňka do koupelny (výška 700 mm); Popis: Skřínka se čtyřmi zásuvkami do koupleny a nožičkami. Materiál laminátová MDF deska, barva bílá. Dno i půda z desky tl. 25 mm, z přední strany ABS hrana tl. 2 mm. Ostatní pohlednové prvky opatřeny ABS hranou tl. 1 mm. Boky korpusu z desky tl. 18 mm. Záda z desky tl. 8 mm. Police z desky tl. 25 mm, nosnost 50 kg. Police a desky opatřeny hranou ABS tl. 2 mm. Dodávka včetvě kovových nožiček a úchytek k zásuvkám.; Rozměry: 400 x 400 x 700 mm (d x š x v) ; Všechen nábytek musí být proveden tak, aby splňoval požadavky pro užívání lidí s autismem. Tento nábytek musí splňovat požadavky na dostatečnou odolnost, jednoduchou udržovatelnost, vysokou odolnost vůči poškození, musí být dostatečně tuhý, stabilní a odolný proti nárazu, tak aby nedošlo k poškození nábytku ani k úrazu","ks",6,null,"Dodavatel doplní popis a pametry nabízeného zboží"]
["18.","Zabudované zrcadlo; Popis: Nerozbitné nástěné pravoúhlé zrcadlo na toalety k přilepení na stěnu. Materiál sklo s bezpečnostní fólií se zabroušenými hranami. Lepidlo určené pro lepení zrcadel.; Rozměry: 600 x 400 mm (š x v)","ks",6,null,"Dodavatel doplní popis a pametry nabízeného zboží"]
["19.","Celomasivní postel s matrací; Popis: Celomasivní postel z bukového dřeva i s matrací. Materiál bukové dřevo ošetřeno nezávadným lakem ve dvou vrstvách. Součástí postele je rošt, čelo hlavy, nohy a nosná konstrukce. Výška čela u hlavy 870 mm a výška čela u nohou 460 mm, nohy rozměru 55 x 55 mm, nosná konstrukce z masinu tl. 29 mm. Ortopedická matrace s kanálky pro zajištění dostatečného větrání s potahem se zipem. Výška matrace 200 mm. Matrace má vysokou tvarovou stálost a zónované jádro. Nosnot matrace 130 kg. ; Rozměry: rozměr postele: 2200 x 1000 mm (d x š), rozměr matrace: 2100 x 900 mm (d x š) ; Všechen nábytek musí být proveden tak, aby splňoval požadavky pro užívání lidí s autismem. Tento nábytek musí splňovat požadavky na dostatečnou odolnost, jednoduchou udržovatelnost, vysokou odolnost vůči poškození, musí být dostatečně tuhý, stabilní a odolný proti nárazu, tak aby nedošlo k poškození nábytku ani k úrazu","ks",6,null,"Dodavatel doplní popis a pametry nabízeného zboží"]
["20.","Šatní skříň plná s dveřmi rozdělenými na dvě části (výška 2000 mm); Popis: Skříň dvoudvéřová s nosnou ocelovou konstrukcí opláštěnou dubovými spárovkami. Vybavená 5 ks polic. Materiál dubová spárovka, ošetřeno nezávadným lakem ve dvou vrstvách. Dno, půda a boky z desky tl. 26 mm, záda z desky tl. 20 mm. Police z desky tl. 20 mm, nosnost 150 kg s pevnou výškou polic. Hrany polic a desek zaobleny r=3 mm. Nosná konstrukce z ocelového uzavřeného čtvercového průřezu o rozměru 10 x 10 mm, tl. stěny 1,0 mm. Ocelová konstrukce opatřena nátěrem v barvě světle hnědé. Kování musí být navrženo pro větší nosnost (cca 100 kg).  Dodávka včetvě rektifikačních nožiček. ; Rozměry: 1700 x 600 x 2000 mm (d x š x v) ; Všechen nábytek musí být proveden tak, aby splňoval požadavky pro užívání lidí s autismem. Tento nábytek musí splňovat požadavky na dostatečnou odolnost, jednoduchou udržovatelnost, vysokou odolnost vůči poškození, musí být dostatečně tuhý, stabilní a odolný proti nárazu, tak aby nedošlo k poškození nábytku ani k úrazu","ks",4,null,"Dodavatel doplní popis a pametry nabízeného zboží"]
["21.","Šatní skříň plná s dveřmi rozdělenými na dvě části (výška 2000 mm); Popis: Skříň dvoudvéřová s nosnou ocelovou konstrukcí opláštěnou dubovými spárovkami. Vybavená 5 ks polic. Materiál dubová spárovka, ošetřeno nezávadným lakem ve dvou vrstvách. Dno, půda a boky z desky tl. 26 mm, záda z desky tl. 20 mm. Police z desky tl. 20 mm, nosnost 150 kg s pevnou výškou polic. Hrany polic a desek zaobleny r=3 mm. Nosná konstrukce z ocelového uzavřeného čtvercového průřezu o rozměru 10 x 10 mm, tl. stěny 1,0 mm. Ocelová konstrukce opatřena nátěrem v barvě světle hnědé. Kování musí být navrženo pro větší nosnost (cca 100 kg).  Dodávka včetvě rektifikačních nožiček. ; Rozměry: 1200 x 600 x 2000 mm (d x š x v) ; Všechen nábytek musí být proveden tak, aby splňoval požadavky pro užívání lidí s autismem. Tento nábytek musí splňovat požadavky na dostatečnou odolnost, jednoduchou udržovatelnost, vysokou odolnost vůči poškození, musí být dostatečně tuhý, stabilní a odolný proti nárazu, tak aby nedošlo k poškození nábytku ani k úrazu","ks",2,null,"Dodavatel doplní popis a pametry nabízeného zboží"]
["22.","Nástěnná police s konzolemi; Popis: Nástěnná police s konzolemi kotvené do zdi včetně kotvení. Materiál laminátová MDF deska, barva světle hnědá. Police z desky tl. 25 mm, opatřena ABS hranou tl. 2 mm. Nosnost 80 kg. Konzole dřevěné v barvě světle hnědé.; Rozměry: 1000 x 300 x 20 mm (d x š x v) ;","ks",1,null,"Dodavatel doplní popis a pametry nabízeného zboží"]
[null,"Cena celkem bez DPH - Stod - domácnost B"]
["Stod - domácnost D"]
["23.","Předsíňová stěna s věšáky; Popis: Předsíňová stěna s kovovými háčky se dvěmi úchytkami a policí, kotvená do stěny včetně montážního materiálu. Korpus a police z MDF desky, barva světle hnědá, tl. 20 mm. Hrany opatřeny ABS hranou tl. 1,5 mm. Háček (5 ks) se dvěmi úchytkami kotvená na desku věšáku včetně kotvení. Materiál nerezová ocel.; Materiál:; Rozměry: věšák: 660 x 240 x 1520 mm (d x š x v), háček: 70 x 30 x 47 mm (d x š x v)","ks",1,null,"Dodavatel doplní popis a pametry nabízeného zboží"]
["24.","Police do skladu (výška 2000 mm); Popis: Police do skladu s pěti policemi včetně montážního materiálu. Police jsou výškově přestavitelné v rastru 138 mm. Šedý policový regál je rychle smontovatelný bez spojovacího materiálu. Police se jednoduchým způsobem nasadí na sloupky. Možnost spojování do polí a řad vedle sebe i za sebou pro zvýšení celkové tuhosti. Konstrukce je povrchově upravena práškovým lakem šedé barvy. Nohy jsou vybaveny plastovými patkami pro ochranu podlahové krytiny. ; Materiál:; Rozměry: 1400 x 300 x 2000 mm (d x š x v) ;","ks",1,null,"Dodavatel doplní popis a pametry nabízeného zboží"]
["25.","Police do skladu (výška 1300); Popis: Police do skladu se čtyřmi policemi včetně montážního materiálu. Police jsou výškově přestavitelné v rastru 138 mm. Šedý policový regál je rychle smontovatelný bez spojovacího materiálu. Police se jednoduchým způsobem nasadí na sloupky. Možnost spojování do polí a řad vedle sebe i za sebou pro zvýšení celkové tuhosti. Konstrukce je povrchově upravena práškovým lakem šedé barvy. Nohy jsou vybaveny plastovými patkami pro ochranu podlahové krytiny. ; Materiál:; Rozměry: 1300 x 300 x 1300 mm (d x š x v) ;","ks",2,null,"Dodavatel doplní popis a pametry nabízeného zboží"]
["26.","Police do archivu (výška 2000 mm); Popis: Police do skladu s pěti policemi včetně montážního materiálu. Police jsou výškově přestavitelné v rastru 138 mm. Šedý policový regál je rychle smontovatelný bez spojovacího materiálu. Police se jednoduchým způsobem nasadí na sloupky. Možnost spojování do polí a řad vedle sebe i za sebou pro zvýšení celkové tuhosti. Konstrukce je povrchově upravena práškovým lakem šedé barvy. Nohy jsou vybaveny plastovými patkami pro ochranu podlahové krytiny. ; Materiál:; Rozměry: 1300 x 600 x 2000 mm (d x š x v) ;","ks",1,null,"Dodavatel doplní popis a pametry nabízeného zboží"]
["27.","Police do archivu (výška 1700 mm); Popis: Police do skladu se čtyřmi policemi včetně montážního materiálu. Police jsou výškově přestavitelné v rastru 138 mm. Šedý policový regál je rychle smontovatelný bez spojovacího materiálu. Police se jednoduchým způsobem nasadí na sloupky. Možnost spojování do polí a řad vedle sebe i za sebou pro zvýšení celkové tuhosti. Konstrukce je povrchově upravena práškovým lakem šedé barvy. Nohy jsou vybaveny plastovými patkami pro ochranu podlahové krytiny. ; Materiál:; Rozměry: 1300 x 600 x 1700 mm (d x š x v) ;","ks",2,null,"Dodavatel doplní popis a pametry nabízeného zboží"]
["28.","Police do archivu (výška 900 mm); Popis: Police do skladu se dvemi policemi včetně montážního materiálu. Police jsou výškově přestavitelné v rastru 138 mm. Šedý policový regál je rychle smontovatelný bez spojovacího materiálu. Police se jednoduchým způsobem nasadí na sloupky. Možnost spojování do polí a řad vedle sebe i za sebou pro zvýšení celkové tuhosti. Konstrukce je povrchově upravena práškovým lakem šedé barvy. Nohy jsou vybaveny plastovými patkami pro ochranu podlahové krytiny. ; Materiál:; Rozměry: 1300 x 600 x 900 mm (d x š x v) ;","ks",2,null,"Dodavatel doplní popis a pametry nabízeného zboží"]
["29.","Konferenční stolek; Popis: Konferenční stolek bez zásuvek. Materiál laminátová MDF deska tl. 22 mm, barva světle hnědá, opatřená ABS hranou tl. 2 mm.; Rozměry: 700 x 700 x 500 mm (d x š x v)","ks",1,null,"Dodavatel doplní popis a pametry nabízeného zboží"]
["30.","Křeslo s polstrováním; Popis: Křeslo s polstrováním, čalouněné potahovou látkou v barvě šedé. Nosná konstrukce křesla je ze dřeva v kombinaci s potahovou látkou.; Rozměry: 600 x 590 x 770 mm (d x š x v)","ks",2,null,"Dodavatel doplní popis a pametry nabízeného zboží"]
[null,"Cena celkem bez DPH - Stod - objekt D"]
["Kvíčovice - objekt A + B"]
["31.","Čalouněné křeslo ušák; Popis: Čalouněné křeslo ušák je tvořen z vlnonce, 2 cm kokosové vrstvy a 5 cm široké PUR pěny a čalouněná potahovou látkou v barvě šedé. Hmotnost křesla 23 kg. Doplňové rozměry křesla: hloubka 720 mm, výška sedu 470 mm, hloubka sedu 520 mm, šířka sedu 520 mm a výška opěrka 670 mm.; Rozměry: 560 x 720 x 1080 mm (d x š x v)","ks",12,null,"Dodavatel doplní popis a pametry nabízeného zboží"]
["32.","Předsíňová stěna s věšáky; Popis: Předsíňová stěna s kovovými háčky se dvěmi úchytkami a policí, kotvená do stěny včetně montážního materiálu. Korpus a police z MDF desky, barva světle hnědá, tl. 20 mm. Hrany optařeny ABS hranou tl. 1,5 mm. Háček (5 ks) se dvěmi úchytkami kotvená na desku věšáku včetně kotvení. Materiál nerezová ocel.; Rozměry: věšák: 660 x 240 x 1520 mm (d x š x v), háček: 70 x 30 x 47 mm (d x š x v)","ks",2,null,"Dodavatel doplní popis a pametry nabízeného zboží"]
["33.","Nástěné zrcadlo do předsíně (rozměr 1000 x 900 mm); Popis: Nástěné pravoúhlé zrcadlo k montáži na stěnu včetně kotvení. Materiál sklo s bezpečnostní fólií se zabroušenými hranami.; Rozměry: 1000 x 900 mm (š x v)","ks",2,null,"Dodavatel doplní popis a pametry nabízeného zboží"]
["34.","Vestavěná skříň policová plná s dveřmi rozdělenými na dvě části (výška 2000 mm); Popis: Skříň dvoudvéřová. Vybavená 5 ks variabilních polic. Materiál laminovaná MDF deska, barva světle hnědá. Dno i půda z desky tl. 25 mm, z přední strany ABS hrana tl. 2 mm. Ostatní pohlednové prvky opatřeny ABS hranou tl. 1 mm. Boky korpusu z desky tl. 18 mm. Záda z desky tl. 8 mm. Police z desky tl. 25 mm, nosnost 80 kg s variabilním polohovatelností. Police a desky opatřeny hranou ABS tl. 2 mm. Dodávka včetvě rektifikačních nožiček.; Rozměry: 1400 x 400 x 2000 mm (d x š x v)","ks",2,null,"Dodavatel doplní popis a pametry nabízeného zboží"]
["35.","Psací stůl pro personál; Popis: Pracovní stůl obdélníkový bez zásuvek. Materiál laminátová MDF deska, barva světle hnědá. Deska tl. 18 mm. Deska opatřená ABS hranou tl. 2 mm. Nohy stolu hliníkové, povrchová úprava práškovým vypalovacím lakem v odstínu štříbrno šedá.; Rozměry: 1200 x 700 x 740 mm (d x š x v)","ks",2,null,"Dodavatel doplní popis a pametry nabízeného zboží"]
["36.","Zásuvkový díl uzamykatelný; Popis: Kancelářský kontejner volně stojící se čtyřmi zásuvkami uzamykatelný na plastových kolečkách. V čele horní zásuvky umístěný zámek, jednotlivé zásuvky opatřené kovovými úchytkami. Materiál laminátová MDF deska, barva světle hnědá. Deska tl. 18 mm. Deska opatřená ABS hranou tl. 2 mm. Kovové pojezdy zásuvek.; Rozměry: 600 x 420 x 550 mm (d x š x v)","ks",2,null,"Dodavatel doplní popis a pametry nabízeného zboží"]
["37.","Kancelářská židle otočná s kolečky; Popis: Ergonomická kancelářská židle otočná s výsokým opěrákem s kolečky. Výškově nastavitelný sedák, bederní opěrka a područky, samostatná síťovina na opěráku barva černá. Materál lakovaná ocel, plast. Hmotnost 17 kg, nosnost 120 kg.; Rozměry: 660/500 x 500 x 1000/1090 mm (d x š x v)","ks",2,null,"Dodavatel doplní popis a pametry nabízeného zboží"]
["38.","TV stolek s policemi; Popis: Televizní stolek s šesti policemi pod deskou. Materiál laminátová MDF deska, barva světle hnědá. Horní deska a nohy a police z desky tl. 20 mm. Horní deska opatřená ABS hranou tl. 2 mm, ostatní pohledové prvky opatřené ABS hranou tl. 1,5 mm. Záda z desky tl. 8 mm; Rozměry: 3700 x 400 x 400 mm (d x š x v)","ks",2,null,"Dodavatel doplní popis a pametry nabízeného zboží"]
["39.","Konferenční stolek; Popis: Obdelníkový konferenční stolek se čtyřmi nohami jednou otevřenou zásuvkou. Materiál laminátová MDF deska. Deska tl. 20 mm, opatřená ABS hranou tl. 2 mm, barva světle hnědá. Nohy stolku čtvercové ze dřeva, barva světle hnědá.; Rozměry: 1000 x 800 x 430 mm (d x š x v)","ks",2,null,"Dodavatel doplní popis a pametry nabízeného zboží"]
["40.","Skříňka do koupelny (výška 700 mm); Popis: Skřínka se čtyřmi zásuvkami do koupleny a nožičkami. Materiál laminátová MDF deska, barva bílá. Dno i půda z desky tl. 25 mm, z přední strany ABS hrana tl. 2 mm. Ostatní pohlednové prvky opatřeny ABS hranou tl. 1 mm. Boky korpusu z desky tl. 18 mm. Záda z desky tl. 8 mm. Police z desky tl. 25 mm, nosnost 50 kg. Police a desky opatřeny hranou ABS tl. 2 mm. Dodávka včetvě kovových nožiček a úchytek k zásuvkám.; Rozměry: 400 x 400 x 700 mm (d x š x v)","ks",2,null,"Dodavatel doplní popis a pametry nabízeného zboží"]
["41.","Sklopné zrcadlo pro bezbariérové WC; Popis: Sklopné nerezové zrcadlo na toalety pro tělesně postižené včetně kotvení. Kotveno pomocí montážní lišty. Naklánění zrcadla je ovládané pomocí páky na stěně pod umyvadlem. Materiál sklo s bezpečnostní fólií se zabroušenými hranami a rám a páka z nerezy.; Rozměry: 600 x 400 mm (š x v)","ks",2,null,"Dodavatel doplní popis a pametry nabízeného zboží"]
["42.","Police do skladu (výška 2000 mm); Popis: Police do skladu s pěti policemi včetně montážního materiálu. Police jsou výškově přestavitelné v rastru 138 mm. Šedý policový regál je rychle smontovatelný bez spojovacího materiálu. Police se jednoduchým způsobem nasadí na sloupky. Možnost spojování do polí a řad vedle sebe i za sebou pro zvýšení celkové tuhosti. Konstrukce je povrchově upravena práškovým lakem šedé barvy. Nohy jsou vybaveny plastovými patkami pro ochranu podlahové krytiny. ; Rozměry: 2000 x 600 x 2000 mm (d x š x v)","ks",4,null,"Dodavatel doplní popis a pametry nabízeného zboží"]
["43.","Police do skladu tvaru \"L\" (výška 2000 mm); Popis: Police do skladu tvaru \"L\" s pěti police včetně montážního materiálu. Police jsou výškově přestavitelné v rastru 138 mm. Šedý policový regál je rychle smontovatelný bez spojovacího materiálu. Police se jednoduchým způsobem nasadí na sloupky. Možnost spojování do polí a řad vedle sebe i za sebou pro zvýšení celkové tuhosti. Konstrukce je povrchově upravena práškovým lakem šedé barvy. Nohy jsou vybaveny plastovými patkami pro ochranu podlahové krytiny.; Rozměry: 1810/1610 x 600 x 2000 mm (d x š x v)","ks",2,null,"Dodavatel doplní popis a pametry nabízeného zboží"]
["44.","Kovová garnyž na záclony; Popis: Kovová garnyž na záclony včetně montážního materiálu. Tyč garnyže o púrůměru 16 mm. Skládá se z galvanicky pokovené tyče, dvou koncovek, dvou konzol na zeď a žabky s kroužky.; Rozměry: nastavitelná délka 1450 – 1950 mm","ks",24,null,"Dodavatel doplní popis a pametry nabízeného zboží"]
["45.","Nástěnná police s konzolemi; Popis: Nástěnná police s konzolemi kotvené do zdi včetně kotvení. Materiál laminátová MDF deska, barva světle hnědá. Police z desky tl. 25 mm, opatřena ABS hranou tl. 2 mm. Nosnost 80 kg. Konzole dřevěné v barvě světle hnědé.; Rozměry: 1000 x 300 x 20 mm (d x š x v) ;","ks",2,null,"Dodavatel doplní popis a pametry nabízeného zboží"]
[null,"Cena celkem bez DPH - Kvíčovice - objekt A + B"]
["Dnešice "]
["46.","Čalouněné křeslo ušák; Popis: Čalouněné křeslo ušák je tvořen z vlnonce, 2 cm kokosové vrstvy a 5 cm široké PUR pěny a čalouněná potahovou látkou v barvě šedé. Hmotnost křesla 23 kg. Doplňové rozměry křesla: hloubka 720 mm, výška sedu 470 mm, hloubka sedu 520 mm, šířka sedu 520 mm a výška opěrka 670 mm.; Materiál:; Rozměry: 560 x 720 x 1080 mm (d x š x v)","ks",6,null,"Dodavatel doplní popis a pametry nabízeného zboží"]
["47.","Předsíňová stěna s věšáky; Popis: Předsíňová stěna s kovovými háčky se dvěmi úchytkami a policí, kotvená do stěny včetně montážního materiálu. Korpus a police z MDF desky, barva světle hnědá, tl. 20 mm. Hrany optařeny ABS hranou tl. 1,5 mm. Háček (5 ks) se dvěmi úchytkami kotvená na desku věšáku včetně kotvení. Materiál nerezová ocel.; Materiál:; Rozměry: věšák: 660 x 240 x 1520 mm (d x š x v), háček: 70 x 30 x 47 mm (d x š x v)","ks",1,null,"Dodavatel doplní popis a pametry nabízeného zboží"]
["48.","Psací stůl pro personál; Popis: Pracovní stůl obdélníkový bez zásuvek. Materiál laminátová MDF deska, barva světle hnědá. Deska tl. 18 mm. Deska opatřená ABS hranou tl. 2 mm. Nohy stolu hliníkové, povrchová úprava práškovým vypalovacím lakem v odstínu štříbrno šedá.; Rozměry: 1200 x 700 x 740 mm (d x š x v)","ks",1,null,"Dodavatel doplní popis a pametry nabízeného zboží"]
["49.","Zásuvkový díl uzamykatelný; Popis: Kancelářský kontejner volně stojící se čtyřmi zásuvkami uzamykatelný na plastových kolečkách. V čele horní zásuvky umístěný zámek, jednotlivé zásuvky opatřené kovovými úchytkami. Materiál laminátová MDF deska, barva světle hnědá. Deska tl. 18 mm. Deska opatřená ABS hranou tl. 2 mm. Kovové pojezdy zásuvek.; Rozměry: 600 x 420 x 550 mm (d x š x v)","ks",1,null,"Dodavatel doplní popis a pametry nabízeného zboží"]
["50.","Kancelářská židle otočná s kolečky; Popis: Ergonomická kancelářská židle otočná s výsokým opěrákem s kolečky. Výškově nastavitelný sedák, bederní opěrka a područky, samostatná síťovina na opěráku barva černá. Materál lakovaná ocel, plast. Hmotnost 17 kg, nosnost 120 kg.; Rozměry: 660/500 x 500 x 1000/1090 mm (d x š x v)","ks",1,null,"Dodavatel doplní popis a pametry nabízeného zboží"]
["51.","Nástěné zrcadlo do předsíně (rozměr 1000 x 900 mm); Popis: Nástěné pravoúhlé zrcadlo k montáži na stěnu včetně kotvení. Materiál sklo s bezpečnostní fólií se zabroušenými hranami.; Materiál:; Rozměry: 1000 x 900 mm (š x v)","ks",1,null,"Dodavatel doplní popis a pametry nabízeného zboží"]
["52.","Vestavěná skříň policová plná s dveřmi rozdělenými na dvě části (výška 2000 mm); Popis: Skříň dvoudvéřová. Vybavená 5 ks variabilních polic. Materiál laminovaná MDF deska, barva světle hnědá. Dno i půda z desky tl. 25 mm, z přední strany ABS hrana tl. 2 mm. Ostatní pohlednové prvky opatřeny ABS hranou tl. 1 mm. Boky korpusu z desky tl. 18 mm. Záda z desky tl. 8 mm. Police z desky tl. 25 mm, nosnost 80 kg s variabilním polohovatelností. Police a desky opatřeny hranou ABS tl. 2 mm. Dodávka včetvě rektifikačních nožiček.; Materiál:; Rozměry: 1400 x 400 x 2000 mm (d x š x v)","ks",1,null,"Dodavatel doplní popis a pametry nabízeného zboží"]
["53.","Skříňka do koupelny (výška 700 mm); Popis: Skřínka se čtyřmi zásuvkami do koupleny a nožičkami. Materiál laminátová MDF deska, barva bílá. Dno i půda z desky tl. 25 mm, z přední strany ABS hrana tl. 2 mm. Ostatní pohlednové prvky opatřeny ABS hranou tl. 1 mm. Boky korpusu z desky tl. 18 mm. Záda z desky tl. 8 mm. Police z desky tl. 25 mm, nosnost 50 kg. Police a desky opatřeny hranou ABS tl. 2 mm. Dodávka včetvě kovových nožiček a úchytek k zásuvkám.; Materiál:; Rozměry: 400 x 400 x 700 mm (d x š x v)","ks",1,null,"Dodavatel doplní popis a pametry nabízeného zboží"]
["54.","Sklopné zrcadlo pro bezbariérové WC; Popis: Sklopné nerezové zrcadlo na toalety pro tělesně postižené včetně kotvení. Kotveno pomocí montážní lišty. Naklánění zrcadla je ovládané pomocí páky na stěně pod umyvadlem. Materiál sklo s bezpečnostní fólií se zabroušenými hranami a rám a páka z nerezy.; Materiál:; Rozměry: 600 x 400 mm (š x v)","ks",1,null,"Dodavatel doplní popis a pametry nabízeného zboží"]
["55.","Police do skladu (výška 2000 mm); Popis: Police do skladu s pěti policemi včetně montážního materiálu. Police jsou výškově přestavitelné v rastru 138 mm. Šedý policový regál je rychle smontovatelný bez spojovacího materiálu. Police se jednoduchým způsobem nasadí na sloupky. Možnost spojování do polí a řad vedle sebe i za sebou pro zvýšení celkové tuhosti. Konstrukce je povrchově upravena práškovým lakem šedé barvy. Nohy jsou vybaveny plastovými patkami pro ochranu podlahové krytiny. ; Materiál:; Rozměry: 2000 x 600 x 2000 mm (d x š x v) ;","ks",2,null,"Dodavatel doplní popis a pametry nabízeného zboží"]
["56.","Police do skladu tvaru \"L\" (výška 2000 mm); Popis: Police do skladu tvaru \"L\" s pěti police včetně montážního materiálu. Police jsou výškově přestavitelné v rastru 138 mm. Šedý policový regál je rychle smontovatelný bez spojovacího materiálu. Police se jednoduchým způsobem nasadí na sloupky. Možnost spojování do polí a řad vedle sebe i za sebou pro zvýšení celkové tuhosti. Konstrukce je povrchově upravena práškovým lakem šedé barvy. Nohy jsou vybaveny plastovými patkami pro ochranu podlahové krytiny.; Materiál:; Rozměry: 1810/1610 x 600 x 2000 mm (d x š x v)","ks",1,null,"Dodavatel doplní popis a pametry nabízeného zboží"]
["57.","Kovová garnyž na záclony; Popis: Kovová garnyž na záclony včetně montážního materiálu. Tyč garnyže o púrůměru 16 mm. Skládá se z galvanicky pokovené tyče, dvou koncovek, dvou konzol na zeď a žabky s kroužky.; Rozměry: nastavitelná délka 1450 – 1950 mm","ks",12,null,"Dodavatel doplní popis a pametry nabízeného zboží"]
["58.","Nástěnná police s konzolemi; Popis: Nástěnná police s konzolemi kotvené do zdi včetně kotvení. Materiál laminátová MDF deska, barva světle hnědá. Police z desky tl. 25 mm, opatřena ABS hranou tl. 2 mm. Nosnost 80 kg. Konzole dřevěné v barvě světle hnědé.; Materiál:; Rozměry: 1000 x 300 x 20 mm (d x š x v) ;","ks",1,null,"Dodavatel doplní popis a pametry nabízeného zboží"]
[null,"Cena celkem bez DPH - Dnešice"]
["Staňkov "]
["59.","Čalouněné křeslo ušák; Popis: Čalouněné křeslo ušák je tvořen z vlnonce, 2 cm kokosové vrstvy a 5 cm široké PUR pěny a čalouněná potahovou látkou v barvě šedé. Hmotnost křesla 23 kg. Doplňové rozměry křesla: hloubka 720 mm, výška sedu 470 mm, hloubka sedu 520 mm, šířka sedu 520 mm a výška opěrka 670 mm.; Rozměry: 560 x 720 x 1080 mm (d x š x v)","ks",5,null,"Dodavatel doplní popis a pametry nabízeného zboží"]
["60.","Konferenční stolek; Popis: Obdelníkový konferenční stolek se čtyřmi nohami jednou otevřenou zásuvkou. Materiál laminátová MDF deska. Deska tl. 20 mm, opatřená ABS hranou tl. 2 mm, barva světle hnědá. Nohy stolku čtvercové ze dřeva, barva hnědá.; Rozměry: 1000 x 800 x 430 mm (d x š x v)","ks",2,null,"Dodavatel doplní popis a pametry nabízeného zboží"]
["61.","Psací stůl pro personál; Popis: Pracovní stůl obdélníkový bez zásuvek. Materiál laminátová MDF deska, barva světle hnědá. Deska tl. 18 mm. Deska opatřená ABS hranou tl. 2 mm. Nohy stolu hliníkové, povrchová úprava práškovým vypalovacím lakem v odstínu štříbrno šedá.; Rozměry: 1200 x 700 x 740 mm (d x š x v)","ks",1,null,"Dodavatel doplní popis a pametry nabízeného zboží"]
["62.","Zásuvkový díl uzamykatelný; Popis: Kancelářský kontejner volně stojící se čtyřmi zásuvkami uzamykatelný na plastových kolečkách. V čele horní zásuvky umístěný zámek, jednotlivé zásuvky opatřené kovovými úchytkami. Materiál laminátová MDF deska, barva světle hnědá. Deska tl. 18 mm. Deska opatřená ABS hranou tl. 2 mm. Kovové pojezdy zásuvek.; Rozměry: 600 x 420 x 550 mm (d x š x v)","ks",1,null,"Dodavatel doplní popis a pametry nabízeného zboží"]
["63.","Kancelářská židle otočná s kolečky; Popis: Ergonomická kancelářská židle otočná s výsokým opěrákem s kolečky. Výškově nastavitelný sedák, bederní opěrka a područky, samostatná síťovina na opěráku barva černá. Materál lakovaná ocel, plast. Hmotnost 17 kg, nosnost 120 kg.; Rozměry: 660/500 x 500 x 1000/1090 mm (d x š x v)","ks",1,null,"Dodavatel doplní popis a pametry nabízeného zboží"]
["64.","TV stolek s policemi; Popis: Televizní stolek s šesti policemi pod deskou. Materiál laminátová MDF deska, barva hnědá. Horní deska a nohy a police z desky tl. 20 mm. Horní deska opatřená ABS hranou tl. 2 mm, ostatní pohledové prvky opatřené ABS hranou tl. 1,5 mm. Záda z desky tl. 8 mm; Rozměry: 2200 x 400 x 400 mm (d x š x v)","ks",2,null,"Dodavatel doplní popis a pametry nabízeného zboží"]
["65.","Předsíňová stěna s věšáky; Popis: Předsíňová stěna s kovovými háčky se dvěmi úchytkami a policí, kotvená do stěny včetně montážního materiálu. Korpus a police z MDF desky, barva světle hnědá, tl. 20 mm. Hrany opatřeny ABS hranou tl. 1,5 mm. Háček (5 ks) se dvěmi úchytkami kotvená na desku věšáku včetně kotvení. Materiál nerezová ocel.; Rozměry: věšák: 660 x 240 x 1520 mm (d x š x v), háček: 70 x 30 x 47 mm (d x š x v)","ks",2,null,"Dodavatel doplní popis a pametry nabízeného zboží"]
["66.","Nástěné zrcadlo do předsíně (rozměr 1000 x 900 mm); Popis: Nástěné pravoúhlé zrcadlo k montáži na stěnu včetně kotvení. Materiál sklo s bezpečnostní fólií se zabroušenými hranami.; Rozměry: 1000 x 900 mm (š x v)","ks",2,null,"Dodavatel doplní popis a pametry nabízeného zboží"]
["67.","Botník s variabilními policemi a lavicí; Popis: Botník s variabilními policemi a lavicí. Botník je členěn na 6 polic pro uložení bot. Materiál laminovaná MDF deska, barva světle hnědá. Dno i půda z desky tl. 25 mm, z přední strany ABS hrana tl. 2 mm. Ostatní pohlednové prvky opatřeny ABS hranou tl. 1 mm. Boky korpusu z desky tl. 25 mm. Záda z desky tl. 10 mm. Police z desky tl. 20 mm  s variabilním polohovatelností. Police a desky opatřeny hranou ABS tl. 2 mm. Dodávka včetvě rektifikačních nožiček. Sedák čalouněný potahvou látkou v barvě šedé. ; Rozměry: 1000 x 400 x 480 mm (d x š x v)","ks",3,null,"Dodavatel doplní popis a pametry nabízeného zboží"]
["68.","Vestavěná skříň policová plná s dveřmi rozdělenými na dvě části (výška 2000 mm); Popis: Skříň dvoudvéřová. Vybavená 5 ks variabilních polic. Materiál laminovaná MDF deska, barva světle hnědá. Dno i půda z desky tl. 25 mm, z přední strany ABS hrana tl. 2 mm. Ostatní pohlednové prvky opatřeny ABS hranou tl. 1 mm. Boky korpusu z desky tl. 18 mm. Záda z desky tl. 8 mm. Police z desky tl. 25 mm, nosnost 80 kg s variabilním polohovatelností. Police a desky opatřeny hranou ABS tl. 2 mm. Dodávka včetvě rektifikačních nožiček.; Rozměry: 6200 x 360 x 2515 mm (d x š x v)","ks",1,null,"Dodavatel doplní popis a pametry nabízeného zboží"]
["69.","Zrcadlo do koupelny (rozměr 600 x 900 mm); Popis: Nástěné pravoúhlé zrcadlo k montáži na stěnu včetně kotvení. Materiál sklo s bezpečnostní fólií se zabroušenými hranami.; Rozměry: Zrcadlo do koupelny (rozměr 600 x 900 mm)","ks",3,null,"Dodavatel doplní popis a pametry nabízeného zboží"]
["70.","Kovová garnyž na záclony; Popis: Roztažitelná kovová garnýž na záclony včetně montážního materiálu. Tyč garnýže o průměru min. 16 mm. Skládá se z galvanicky pokovené tyče, dvou koncovek, dvou konzol na zeď a žabky s kroužky.; Rozměry: nastavitelná délka 1550 – 2500 mm","ks",17,null,"Dodavatel doplní popis a pametry nabízeného zboží"]
["71.","Nástěnná police s konzolemi; Popis: Nástěnná police s konzolemi kotvené do zdi včetně kotvení. Materiál laminátová MDF deska, barva světle hnědá. Police z desky tl. 25 mm, opatřena ABS hranou tl. 2 mm. Nosnost 80 kg. Konzole dřevěné v barvě světle hnědé.; Rozměry: 1000 x 300 x 20 mm (d x š x v)","ks",1,null,"Dodavatel doplní popis a pametry nabízeného zboží"]
[null,"Cena celkem bez DPH - Staňkov"]
[]
["CENA CELKEM ZA VŠECHNY LOKALITY BEZ DPH",null,null,null,null,{"$f":"SUM(F25,F37,F47,F64,F79,F94)","v":0}]
[]
["Součástí dodávky předmětu plnění jsou následující činnosti: \n• Dodání předmětu plnění (potřebného zařízení a komponentů)\n• Doprava a vyložení na místo plnění určené zadavatelem\n• Odborná instalace, montáž,  sestavení.\n• Předání veškeré potřebné dokumentace k předmětu plnění v českém jazyce (veškeré technické dokumenty, záruční listy, certifikáty, montážní postupy, manuály, návody k obsluze a doporučení pro provoz zboží)\n• Zaškolení přebírající osoby v obsluze a údržbě předmětu plnění v potřebném rozsahu\n• Provedení praktického předvedení předmětu plnění a ukázka jeho funkčnosti v rámci předávacího a přejímacího řízení\n• Případná likvidace vzniklého odpadu\nPožadavky na záruční servis: \n• Záruka minimálně 24 měsíců. \n• Údaj o délce záruční doby doplní dodavatel do Krycího listu nabídky a do příslušných bodů Kupní smlouvy. Údaj o délce záruční doby musí být uveden v celých měsících. \n• Záruční doba začíná běžet ode dne protokolárního předání a převzetí zboží. Doba záruky se automaticky prodlužuje o počet dnů uplynulých od ohlášení závad do jejich odstranění. \n• Předání a převzetí případného vadného zboží bude probíhat v sídle zadavatele. \n• Záruční servis bude dodavatelem zajištěn v odborných servisech, „vadnou část“ zboží dodavatel protokolárně převezme do opravy po písemném odsouhlasení navrženého postupu osoby oprávněné ve věcech technických. \n• Garance servisního zásahu v době záručního servisu (tj. nástup na odstranění vad) v místě plnění nejpozději do 1 pracovního dne od okamžiku ohlášení závady (e-mailem, písemně). \n• Jednotlivé vady v záruční době musí být odstraněny nejpozději do 15 kalendářních dnů ode dne zahájení odstraňování vad, nedohodnou-li se osoby oprávněné ve věcech technických za smluvní strany písemně jinak. \n• Za záruční opravy není účtován materiál, práce servisního technika, cestovní či jiné náhrady.\n \nTabulka bude doplněna technickými listy nabízeného zboží (v českém jazyce) a obrazovou dokumentací (fotodokumentací) nabízeného zboží."]
["Svým podpisem stvrzuji, že výše uvedené údaje o nabízeném zboží jsou správné a závazné."]
["V DOPLNÍ DODAVATEL dne DOPLNÍ DODAVATEL 2020                 \n\n\nPODPIS DODAVATELE\n __________________________________\npodpis oprávněné osoby\n jméno, příjmení, funkce, označení dodavatele\nDOPLNÍ DODAVATEL\n"]

{"sheet":"STOD_A+C","index":1,"n_rows":103,"n_cols":10,"rows_kept":103,"cut":false,"hidden":true,"merged":[]}
["1AD.1.1","Architektonicko-stavební řešení","; Popis:","; Materiál:","; Rozměry:"]
["10_VB","Výrobky"]
["KP","Klempířské prvky","Sloupec1","Sloupec2","Sloupec3","Sloupec4","Sloupec5","Sloupec6","Sloupec7","Sloupec8"]
["1A.P1-1.01","Okenní parapet","Oplechování parapetu oken včetně doplňkového a montážního materiálu.","Ocelový pozinkovaný plech, tl. 0,6 mm, exteriérový nátěr v odstínu RAL 7016","r.š. 330 mm"," ; Další specifikace viz Kniha klempířských prvků",{"$f":"CONCATENATE(B4,$C$1,C4,$D$1,D4,$E$1,E4,F4)","v":"Okenní parapet; Popis:Oplechování parapetu oken včetně doplňkového a montážního materiálu.; Materiál:Ocelový pozinkovaný plech, tl. 0,6 mm, exteriérový nátěr v odstínu RAL 7016; Rozměry:r.š. 330 mm ; Další specifikace viz Kniha klempířských prvků"},"m",14.7,474]
["1A.P1-1.02","Oplechování atiky","Oplechování atiky, včetně doplňkového a montážního materiálu.","Ocelový pozinkovaný plech, tl. 0,6 mm, exteriérový nátěr v odstínu RAL 7016","r.š. 860 mm"," ; Další specifikace viz Kniha klempířských prvků","Oplechování atiky; Popis:Oplechování atiky, včetně doplňkového a montážního materiálu.; Materiál:Ocelový pozinkovaný plech, tl. 0,6 mm, exteriérový nátěr v odstínu RAL 7016; Rozměry:r.š. 860 mm ; Další specifikace viz Kniha klempířských prvků","m",13.7,1480]
["1A.P1-1.03","Oplechování atiky","Oplechování atiky, včetně doplňkového a montážního materiálu.","Ocelový pozinkovaný plech, tl. 0,6 mm, exteriérový nátěr v odstínu RAL 7016","r.š. 720 mm"," ; Další specifikace viz Kniha klempířských prvků","Oplechování atiky; Popis:Oplechování atiky, včetně doplňkového a montážního materiálu.; Materiál:Ocelový pozinkovaný plech, tl. 0,6 mm, exteriérový nátěr v odstínu RAL 7016; Rozměry:r.š. 720 mm ; Další specifikace viz Kniha klempířských prvků","m",14.1,1100]
["1A.P1-1.04","Boční oplechování","Boční oplechování, včetně doplňkového a montážního materiálu.","Ocelový pozinkovaný plech, tl. 0,6 mm, exteriérový nátěr v odstínu RAL 7016","r.š. 435 mm"," ; Další specifikace viz Kniha klempířských prvků","Boční oplechování; Popis:Boční oplechování, včetně doplňkového a montážního materiálu.; Materiál:Ocelový pozinkovaný plech, tl. 0,6 mm, exteriérový nátěr v odstínu RAL 7016; Rozměry:r.š. 435 mm ; Další specifikace viz Kniha klempířských prvků","m",5.5,860]
["1A.P1-1.05","Dešťový žlab","Dešťový žlab, včetně doplňkového a montážního materiálu.","Ocelový pozinkovaný plech, tl. 0,6 mm, exteriérový nátěr v odstínu RAL 7016","průměr 300 mm"," ; Další specifikace viz Kniha klempířských prvků","Dešťový žlab; Popis:Dešťový žlab, včetně doplňkového a montážního materiálu.; Materiál:Ocelový pozinkovaný plech, tl. 0,6 mm, exteriérový nátěr v odstínu RAL 7016; Rozměry:průměr 300 mm ; Další specifikace viz Kniha klempířských prvků","m",32.1,725]
["1A.P1-1.06","Dešťový svod","Dešťový svod, včetně doplňkového a montážního materiálu.","Ocelový pozinkovaný plech, tl. 0,6 mm, exteriérový nátěr v odstínu RAL 7016","průměr 120 mm"," ; Další specifikace viz Kniha klempířských prvků","Dešťový svod; Popis:Dešťový svod, včetně doplňkového a montážního materiálu.; Materiál:Ocelový pozinkovaný plech, tl. 0,6 mm, exteriérový nátěr v odstínu RAL 7016; Rozměry:průměr 120 mm ; Další specifikace viz Kniha klempířských prvků","m",14.1,919]
["KP","Zámečnické prvky"]
["1A.Z1-1.01","Drátěné poplastované pletivo","Oplocení z dratěného poplastovaného pletiva se sloupkami a obrubníkem.  Velikost ok pletiva 55 x 55 mm. Nosné sloupky z švorové trubky 48 mm o síle stěny 1,5 mm. Sloupky po 2,5 m, opěry plotu na začátku, na konci na každém rohu a po každých 25 m. Základová patka se provádí pod každým nosným sloupkem do nezámrzné hloubky, velikost pakty 300 x 300 mm. Obrubník je uložen do rýhy s maltovým ložem. Výška obrubníku je 200 mm, je částečně zapuštěn do terénu.","Poplastované plepletivo a sloupky, barva jehlová zeleň RAL 6005, obrubník: beton","výška 1,8 m"," ; Další specifikace viz Kniha zámečnických prvků",{"$f":"CONCATENATE(B11,$C$1,C11,$D$1,D11,$E$1,E11,F11)","v":"Drátěné poplastované pletivo; Popis:Oplocení z dratěného poplastovaného pletiva se sloupkami a obrubníkem.  Velikost ok pletiva 55 x 55 mm. Nosné sloupky z švorové trubky 48 mm o síle stěny 1,5 mm. Sloupky po 2,5 m, opěry plotu na začátku, na konci na každém rohu a po každých 25 m. Základová patka se provádí pod každým nosným sloupkem do nezámrzné hloubky, velikost pakty 300 x 300 mm. Obrubník je uložen do rýhy s maltovým ložem. Výška obrubníku je 200 mm, je částečně zapuštěn do terénu.; Materiál:Poplastované plepletivo a sloupky, barva jehlová zeleň RAL 6005, obrubník: beton; Rozměry:výška 1,8 m ; Další specifikace viz Kniha zámečnických prvků"},"m",170.7,1197]
["TP","Truhlářské prvky"]
["1A.T1-1.01","Oddělující lehká dřevěná příčka","Oddělující lehká dřevěná příčka, rošt ze smrkových doblovaných hranolů 40 x 40 mm spojené konstrukčními vruty se zápustnou hlavou, opláštěné laminátovou MDF deskou, vzor světlého dřeva s méně výraznou kresbou. Hranoly kotveny do stěny a stropu. Součástí příčky jsou uzamykatelné dveře o rozměru 1600 x 1970 mm, obložková polodrážková zárubeň materiál MDF, vložkový zámek + klika.","rošt: smrkové hranoly, opláštění a dveře: MDF deska, zámek a klika: broušený nerez","2500 x 60 x 2300 mm (d x hl x v)"," ; Další specifikace viz Kniha truhlářských prvků",{"$f":"CONCATENATE(B13,$C$1,C13,$D$1,D13,$E$1,E13,F13)","v":"Oddělující lehká dřevěná příčka; Popis:Oddělující lehká dřevěná příčka, rošt ze smrkových doblovaných hranolů 40 x 40 mm spojené konstrukčními vruty se zápustnou hlavou, opláštěné laminátovou MDF deskou, vzor světlého dřeva s méně výraznou kresbou. Hranoly kotveny do stěny a stropu. Součástí příčky jsou uzamykatelné dveře o rozměru 1600 x 1970 mm, obložková polodrážková zárubeň materiál MDF, vložkový zámek + klika.; Materiál:rošt: smrkové hranoly, opláštění a dveře: MDF deska, zámek a klika: broušený nerez; Rozměry:2500 x 60 x 2300 mm (d x hl x v) ; Další specifikace viz Kniha truhlářských prvků"},"ks",1,23000]
["1A.T1-1.02","Kuchyňská linka tvaru U","Kuchyňská linka tvaru U, sokl 80 mm, korpus z lamino desky tl. 18 mm, hrana z ABS tl. 2 mm. Horní i spodní skříňky plné, pracovní deska z laminátové desky tl. 38 mm, nerezový dřez s odkapávačem. Kování linky je kovové. Součástí kuchyňské linky je dřez s odkapávačem, varná deska se čtyřmi plotýnkami, trouba, lednička, mrazák a myčka. Spotřebiče energetiské třídy min. A přesně specifikovány vnitřního vybavení. Horní i spodní část je opatřená krycím panelem š. 50 mm.","Korpus z lamina, pracovní deska z laminátové desky","viz. obrazová příloha","  ; SPOTŘEBIČE OCENIT V KAPITOLE_Prvky vnitřního vybevení - Elektro a příslušenství ; Další specifikace viz Kniha truhlářských prvků",{"$f":"CONCATENATE(B14,$C$1,C14,$D$1,D14,$E$1,E14,F14)","v":"Kuchyňská linka tvaru U; Popis:Kuchyňská linka tvaru U, sokl 80 mm, korpus z lamino desky tl. 18 mm, hrana z ABS tl. 2 mm. Horní i spodní skříňky plné, pracovní deska z laminátové desky tl. 38 mm, nerezový dřez s odkapávačem. Kování linky je kovové. Součástí kuchyňské linky je dřez s odkapávačem, varná deska se čtyřmi plotýnkami, trouba, lednička, mrazák a myčka. Spotřebiče energetiské třídy min. A přesně specifikovány vnitřního vybavení. Horní i spodní část je opatřená krycím panelem š. 50 mm.; Materiál:Korpus z lamina, pracovní deska z laminátové desky; Rozměry:viz. obrazová příloha  ; SPOTŘEBIČE OCENIT V KAPITOLE_Prvky vnitřního vybevení - Elektro a příslušenství ; Další specifikace viz Kniha truhlářských prvků"},"ks",1,{"$f":"231600*0.9","v":208440}]
["OP","Ostatní prvky"]
["1A.X1-1.01","Venkovní rolety","Venkovní hliníková roleta pro regulaci přirozeného osvětlení a zachycení slunečních paprsků s bočními vodícími lištami. Horní ocelový válcovaný profil upravený pozinkování o rozměru 58 x 56 mm zakrytý krycím plechem. Lamely hliníkové o šířce 80 mm s navíjecími mechanismy, textilními žebříčky a vytahovacími páskami. Boční vodící lišty o rozměru 20 x 20 mm v barvě stříbrná elox. Ovládání elektrické.","hliník, barva stříbrný elox","1250x1750 mm (šxv)"," ; Další specifikace viz Kniha ostatních prvků",{"$f":"CONCATENATE(B16,$C$1,C16,$D$1,D16,$E$1,E16,F16)","v":"Venkovní rolety; Popis:Venkovní hliníková roleta pro regulaci přirozeného osvětlení a zachycení slunečních paprsků s bočními vodícími lištami. Horní ocelový válcovaný profil upravený pozinkování o rozměru 58 x 56 mm zakrytý krycím plechem. Lamely hliníkové o šířce 80 mm s navíjecími mechanismy, textilními žebříčky a vytahovacími páskami. Boční vodící lišty o rozměru 20 x 20 mm v barvě stříbrná elox. Ovládání elektrické.; Materiál:hliník, barva stříbrný elox; Rozměry:1250x1750 mm (šxv) ; Další specifikace viz Kniha ostatních prvků"},"ks",6,6125]
["1A.X1-1.02","Stahovací schody zateplené s požární odolností","Stahovací schody zateplené s protipožární vložkou (EW 15 DP3). Schody jsou opatřeny brzdícím mechanismem proti prudkému otevření. Víko je sendvočové složeno z dřevěného rámu vyplněný izolačním materiálem opláštěný pozinkovaným plechem. Pohledová čast je lakovaná v bílé barvě a kryta ochrannou fólií.","víko: dřevěný rám vyplněný izolantem opláštěný pozinkovaným plechem, pohledová část lakovaná, barva bílá, schody: kovové","600 x 800 mm (š x d)"," ; Další specifikace viz Kniha ostatních prvků",{"$f":"CONCATENATE(B17,$C$1,C17,$D$1,D17,$E$1,E17,F17)","v":"Stahovací schody zateplené s požární odolností; Popis:Stahovací schody zateplené s protipožární vložkou (EW 15 DP3). Schody jsou opatřeny brzdícím mechanismem proti prudkému otevření. Víko je sendvočové složeno z dřevěného rámu vyplněný izolačním materiálem opláštěný pozinkovaným plechem. Pohledová čast je lakovaná v bílé barvě a kryta ochrannou fólií.; Materiál:víko: dřevěný rám vyplněný izolantem opláštěný pozinkovaným plechem, pohledová část lakovaná, barva bílá, schody: kovové; Rozměry:600 x 800 mm (š x d) ; Další specifikace viz Kniha ostatních prvků"},"ks",1,{"$f":"14720*1.2","v":17664}]
["1A.X1-1.03","Oplocení z betonových štípaných tvarovek","Oplocení z betonových štípaných tvarovek se zvhledem přírodního lomového kamene s dutinami pro uložení výztuže. Základový pás se provádí v celé délce plotu do nezámrzné hloubky, pas je nutné podsypat štěrkovým ložem (frakce 8-16) o výšce 50 mm. Mezi základ a zdivo je vložena hydroizolace, která je vložena nad úroveň budoucího terénu.",null,"výška 1,8 mm"," ; Další specifikace viz Kniha ostatních prvků",{"$f":"CONCATENATE(B18,$C$1,C18,$D$1,D18,$E$1,E18,F18)","v":"Oplocení z betonových štípaných tvarovek; Popis:Oplocení z betonových štípaných tvarovek se zvhledem přírodního lomového kamene s dutinami pro uložení výztuže. Základový pás se provádí v celé délce plotu do nezámrzné hloubky, pas je nutné podsypat štěrkovým ložem (frakce 8-16) o výšce 50 mm. Mezi základ a zdivo je vložena hydroizolace, která je vložena nad úroveň budoucího terénu.; Materiál:; Rozměry:výška 1,8 mm ; Další specifikace viz Kniha ostatních prvků"},"m",98.5,5500]
["VV_N","Prvky vnitřního vybevení - Nábytek a příslušenství"]
["1A.VV_N_001","Čalouněné křeslo ušák","Čalouněné křeslo ušák je tvořen z vlnonce, 2 cm kokosové vrstvy a 5 cm široké PUR pěny a čalouněná potahovou látkou v barvě šedé. Hmotnost křesla 23 kg. Doplňové rozměry křesla: hloubka 720 mm, výška sedu 470 mm, hloubka sedu 520 mm, šířka sedu 520 mm a výška opěrka 670 mm.",null,"560 x 720 x 1080 mm (d x š x v)"," ; Další specifikace viz Kniha vnitřního vybavení - Kniha - prvků - Nábytek a příslušenství",{"$f":"CONCATENATE(B20,$C$1,C20,$E$1,E20,F20)","v":"Čalouněné křeslo ušák; Popis:Čalouněné křeslo ušák je tvořen z vlnonce, 2 cm kokosové vrstvy a 5 cm široké PUR pěny a čalouněná potahovou látkou v barvě šedé. Hmotnost křesla 23 kg. Doplňové rozměry křesla: hloubka 720 mm, výška sedu 470 mm, hloubka sedu 520 mm, šířka sedu 520 mm a výška opěrka 670 mm.; Rozměry:560 x 720 x 1080 mm (d x š x v) ; Další specifikace viz Kniha vnitřního vybavení - Kniha - prvků - Nábytek a příslušenství"},"ks",6,8736]
["1A.VV_N_002","Předsíňová stěna s věšáky","Předsíňová stěna s kovovými háčky se dvěmi úchytkami a policí, kotvená do stěny včetně montážního materiálu. Korpus a police z MDF desky, barva světle hnědá, tl. 20 mm. Hrany optařeny ABS hranou tl. 1,5 mm. Háček (5 ks) se dvěmi úchytkami kotvená na desku věšáku včetně kotvení. Materiál nerezová ocel.",null,"věšák: 660 x 240 x 1520 mm (d x š x v), háček: 70 x 30 x 47 mm (d x š x v)"," ; Další specifikace viz Kniha vnitřního vybavení - Kniha - prvků - Nábytek a příslušenství","Předsíňová stěna s věšáky; Popis:Předsíňová stěna s kovovými háčky se dvěmi úchytkami a policí, kotvená do stěny včetně montážního materiálu. Korpus a police z MDF desky, barva světle hnědá, tl. 20 mm. Hrany optařeny ABS hranou tl. 1,5 mm. Háček (5 ks) se dvěmi úchytkami kotvená na desku věšáku včetně kotvení. Materiál nerezová ocel.; Rozměry:věšák: 660 x 240 x 1520 mm (d x š x v), háček: 70 x 30 x 47 mm (d x š x v) ; Další specifikace viz Kniha vnitřního vybavení - Kniha - prvků - Nábytek a příslušenství","ks",1,{"$f":"1427*1.2","v":1712.3999999999999}]
["1A.VV_N_003","Nástěné zrcadlo do předsíně (rozměr 1000 x 900 mm)","Nástěné pravoúhlé zrcadlo k montáži na stěnu včetně kotvení. Materiál sklo s bezpečnostní fólií se zabroušenými hranami.",null,"1000 x 900 mm (š x v)"," ; Další specifikace viz Kniha vnitřního vybavení - Kniha - prvků - Nábytek a příslušenství","Nástěné zrcadlo do předsíně (rozměr 1000 x 900 mm); Popis:Nástěné pravoúhlé zrcadlo k montáži na stěnu včetně kotvení. Materiál sklo s bezpečnostní fólií se zabroušenými hranami.; Rozměry:1000 x 900 mm (š x v) ; Další specifikace viz Kniha vnitřního vybavení - Kniha - prvků - Nábytek a příslušenství","ks",1,{"$f":"1000*0.9*1.2","v":1080}]
["1A.VV_N_004","Botník s variabilními policemi a lavicí","Botník s variabilními policemi a lavicí. Botník je členěn na 12 polic pro uložení bot. Materiál laminovaná MDF deska, barva světle hnědá. Dno i půda z desky tl. 25 mm, z přední strany ABS hrana tl. 2 mm. Ostatní pohlednové prvky opatřeny ABS hranou tl. 1 mm. Boky korpusu z desky tl. 25 mm. Záda z desky tl. 10 mm. Police z desky tl. 20 mm  s variabilním polohovatelností. Police a desky opatřeny hranou ABS tl. 2 mm. Dodávka včetvě rektifikačních nožiček. Sedák čalouněný potahvou látkou v barvě šedé.",null,"1000 x 400 x 480 mm (d x š x v)"," ; Další specifikace viz Kniha vnitřního vybavení - Kniha - prvků - Nábytek a příslušenství","Botník s variabilními policemi a lavicí; Popis:Botník s variabilními policemi a lavicí. Botník je členěn na 12 polic pro uložení bot. Materiál laminovaná MDF deska, barva světle hnědá. Dno i půda z desky tl. 25 mm, z přední strany ABS hrana tl. 2 mm. Ostatní pohlednové prvky opatřeny ABS hranou tl. 1 mm. Boky korpusu z desky tl. 25 mm. Záda z desky tl. 10 mm. Police z desky tl. 20 mm  s variabilním polohovatelností. Police a desky opatřeny hranou ABS tl. 2 mm. Dodávka včetvě rektifikačních nožiček. Sedák čalouněný potahvou látkou v barvě šedé.; Rozměry:1000 x 400 x 480 mm (d x š x v) ; Další specifikace viz Kniha vnitřního vybavení - Kniha - prvků - Nábytek a příslušenství","ks",1,{"$f":"3090*1.2","v":3708}]
["1A.VV_N_005","Vestavěná skříň policová plná s dveřmi rozdělenými na dvě části (výška 2000 mm)","Skříň dvoudvéřová. Vybavená 5 ks variabilních polic. Materiál laminovaná MDF deska, barva světle hnědá. Dno i půda z desky tl. 25 mm, z přední strany ABS hrana tl. 2 mm. Ostatní pohlednové prvky opatřeny ABS hranou tl. 1 mm. Boky korpusu z desky tl. 18 mm. Záda z desky tl. 8 mm. Police z desky tl. 25 mm, nosnost 80 kg s variabilním polohovatelností. Police a desky opatřeny hranou ABS tl. 2 mm. Dodávka včetvě rektifikačních nožiček.",null,"1400 x 400 x 2000 mm (d x š x v)"," ; Další specifikace viz Kniha vnitřního vybavení - Kniha - prvků - Nábytek a příslušenství","Vestavěná skříň policová plná s dveřmi rozdělenými na dvě části (výška 2000 mm); Popis:Skříň dvoudvéřová. Vybavená 5 ks variabilních polic. Materiál laminovaná MDF deska, barva světle hnědá. Dno i půda z desky tl. 25 mm, z přední strany ABS hrana tl. 2 mm. Ostatní pohlednové prvky opatřeny ABS hranou tl. 1 mm. Boky korpusu z desky tl. 18 mm. Záda z desky tl. 8 mm. Police z desky tl. 25 mm, nosnost 80 kg s variabilním polohovatelností. Police a desky opatřeny hranou ABS tl. 2 mm. Dodávka včetvě rektifikačních nožiček.; Rozměry:1400 x 400 x 2000 mm (d x š x v) ; Další specifikace viz Kniha vnitřního vybavení - Kniha - prvků - Nábytek a příslušenství","ks",1,21000]
["1A.VV_N_006","Skříňka do koupelny (výška 700 mm)","Skřínka se čtyřmi zásuvkami do koupleny a nožičkami. Materiál laminátová MDF deska, barva bílá. Dno i půda z desky tl. 25 mm, z přední strany ABS hrana tl. 2 mm. Ostatní pohlednové prvky opatřeny ABS hranou tl. 1 mm. Boky korpusu z desky tl. 18 mm. Záda z desky tl. 8 mm. Police z desky tl. 25 mm, nosnost 50 kg. Police a desky opatřeny hranou ABS tl. 2 mm. Dodávka včetvě kovových nožiček a úchytek k zásuvkám.",null,"400 x 400 x 700 mm (d x š x v)"," ; Další specifikace viz Kniha vnitřního vybavení - Kniha - prvků - Nábytek a příslušenství","Skříňka do koupelny (výška 700 mm); Popis:Skřínka se čtyřmi zásuvkami do koupleny a nožičkami. Materiál laminátová MDF deska, barva bílá. Dno i půda z desky tl. 25 mm, z přední strany ABS hrana tl. 2 mm. Ostatní pohlednové prvky opatřeny ABS hranou tl. 1 mm. Boky korpusu z desky tl. 18 mm. Záda z desky tl. 8 mm. Police z desky tl. 25 mm, nosnost 50 kg. Police a desky opatřeny hranou ABS tl. 2 mm. Dodávka včetvě kovových nožiček a úchytek k zásuvkám.; Rozměry:400 x 400 x 700 mm (d x š x v) ; Další specifikace viz Kniha vnitřního vybavení - Kniha - prvků - Nábytek a příslušenství","ks",1,{"$f":"3990*1.2","v":4788}]
["1A.VV_N_007","Sklopné zrcadlo pro bezbariérové WC","Sklopné nerezové zrcadlo na toalety pro tělesně postižené včetně kotvení. Kotveno pomocí montážní lišty. Naklánění zrcadla je ovládané pomocí páky na stěně pod umyvadlem. Materiál sklo s bezpečnostní fólií se zabroušenými hranami a rám a páka z nerezy.",null,"600 x 400 mm (š x v)"," ; Další specifikace viz Kniha vnitřního vybavení - Kniha - prvků - Nábytek a příslušenství","Sklopné zrcadlo pro bezbariérové WC; Popis:Sklopné nerezové zrcadlo na toalety pro tělesně postižené včetně kotvení. Kotveno pomocí montážní lišty. Naklánění zrcadla je ovládané pomocí páky na stěně pod umyvadlem. Materiál sklo s bezpečnostní fólií se zabroušenými hranami a rám a páka z nerezy.; Rozměry:600 x 400 mm (š x v) ; Další specifikace viz Kniha vnitřního vybavení - Kniha - prvků - Nábytek a příslušenství","ks",1,3630]
["1A.VV_N_008","Sklopné sedátko do sprchy","Sklopné sedátko do sprchy včetně montážního materiálu. Nosná konstrukce z nerezové oceli, sedátkou z odolného plastu  jedohuše udržovatlené. Maximální nosnost 200 kg.",null,"440 x 470 mm (d x š)"," ; Další specifikace viz Kniha vnitřního vybavení - Kniha - prvků - Nábytek a příslušenství","Sklopné sedátko do sprchy; Popis:Sklopné sedátko do sprchy včetně montážního materiálu. Nosná konstrukce z nerezové oceli, sedátkou z odolného plastu  jedohuše udržovatlené. Maximální nosnost 200 kg.; Rozměry:440 x 470 mm (d x š) ; Další specifikace viz Kniha vnitřního vybavení - Kniha - prvků - Nábytek a příslušenství","ks",1,{"$f":"3567*1.2","v":4280.3999999999996}]
["1A.VV_N_009","Police do skladu (výška 2000 mm)","Police do skladu s pěti policemi včetně montážního materiálu. Police jsou výškově přestavitelné v rastru 138 mm. Šedý policový regál je rychle smontovatelný bez spojovacího materiálu. Police se jednoduchým způsobem nasadí na sloupky. Možnost spojování do polí a řad vedle sebe i za sebou pro zvýšení celkové tuhosti. Konstrukce je povrchově upravena práškovým lakem šedé barvy. Nohy jsou vybaveny plastovými patkami pro ochranu podlahové krytiny.",null,"2000 x 600 x 2000 mm (d x š x v)"," ; Další specifikace viz Kniha vnitřního vybavení - Kniha - prvků - Nábytek a příslušenství","Police do skladu (výška 2000 mm); Popis:Police do skladu s pěti policemi včetně montážního materiálu. Police jsou výškově přestavitelné v rastru 138 mm. Šedý policový regál je rychle smontovatelný bez spojovacího materiálu. Police se jednoduchým způsobem nasadí na sloupky. Možnost spojování do polí a řad vedle sebe i za sebou pro zvýšení celkové tuhosti. Konstrukce je povrchově upravena práškovým lakem šedé barvy. Nohy jsou vybaveny plastovými patkami pro ochranu podlahové krytiny.; Rozměry:2000 x 600 x 2000 mm (d x š x v) ; Další specifikace viz Kniha vnitřního vybavení - Kniha - prvků - Nábytek a příslušenství","ks",2,20000]
["1A.VV_N_010","Police do skladu tvaru \"L\" (výška 2000 mm)","Police do skladu tvaru \"L\" s pěti police včetně montážního materiálu. Police jsou výškově přestavitelné v rastru 138 mm. Šedý policový regál je rychle smontovatelný bez spojovacího materiálu. Police se jednoduchým způsobem nasadí na sloupky. Možnost spojování do polí a řad vedle sebe i za sebou pro zvýšení celkové tuhosti. Konstrukce je povrchově upravena práškovým lakem šedé barvy. Nohy jsou vybaveny plastovými patkami pro ochranu podlahové krytiny.",null,"1810/1610 x 600 x 2000 mm (d x š x v)"," ; Další specifikace viz Kniha vnitřního vybavení - Kniha - prvků - Nábytek a příslušenství","Police do skladu tvaru \"L\" (výška 2000 mm); Popis:Police do skladu tvaru \"L\" s pěti police včetně montážního materiálu. Police jsou výškově přestavitelné v rastru 138 mm. Šedý policový regál je rychle smontovatelný bez spojovacího materiálu. Police se jednoduchým způsobem nasadí na sloupky. Možnost spojování do polí a řad vedle sebe i za sebou pro zvýšení celkové tuhosti. Konstrukce je povrchově upravena práškovým lakem šedé barvy. Nohy jsou vybaveny plastovými patkami pro ochranu podlahové krytiny.; Rozměry:1810/1610 x 600 x 2000 mm (d x š x v) ; Další specifikace viz Kniha vnitřního vybavení - Kniha - prvků - Nábytek a příslušenství","ks",1,18100]
["1A.VV_N_011","Kovová garnyž na záclony (délka 1450 mm)","Kovová garnyž na záclony včetně montážního materiálu. Tyč garnyže o púrůměru 16 mm. Skládá se z galvanicky pokovený tyče, dvou koncovek, dvou konzol na zeď a žabky s kroužky.",null,"délka 1450 mm"," ; Další specifikace viz Kniha vnitřního vybavení - Kniha - prvků - Nábytek a příslušenství","Kovová garnyž na záclony (délka 1450 mm); Popis:Kovová garnyž na záclony včetně montážního materiálu. Tyč garnyže o púrůměru 16 mm. Skládá se z galvanicky pokovený tyče, dvou koncovek, dvou konzol na zeď a žabky s kroužky.; Rozměry:délka 1450 mm ; Další specifikace viz Kniha vnitřního vybavení - Kniha - prvků - Nábytek a příslušenství","ks",10,{"$f":"946*1.2","v":1135.2}]
["1A.VV_N_012","Kovová garnyž na záclony (délka 1950 mm)","Kovová garnyž na záclony včetně montážního materiálu. Tyč garnyže o púrůměru 16 mm. Skládá se z galvanicky pokovený tyče, dvou koncovek, dvou konzol na zeď a žabky s kroužky.",null,"délka 1950 mm"," ; Další specifikace viz Kniha vnitřního vybavení - Kniha - prvků - Nábytek a příslušenství","Kovová garnyž na záclony (délka 1950 mm); Popis:Kovová garnyž na záclony včetně montážního materiálu. Tyč garnyže o púrůměru 16 mm. Skládá se z galvanicky pokovený tyče, dvou koncovek, dvou konzol na zeď a žabky s kroužky.; Rozměry:délka 1950 mm ; Další specifikace viz Kniha vnitřního vybavení - Kniha - prvků - Nábytek a příslušenství","ks",2,{"$f":"1272*1.2","v":1526.3999999999999}]
["1A.VV_N_013","Sada kuchyňského nádobí","Sada kuchyňského nádobí obsahuje hrnec o průměru 16 cm s obsahem 2,1 l, hrnec o průměru 20 cm s obsahem 3,6 l, hrnec o průměru 24 cm s obsahem 5,7 l, keramická pánev, pekáč, tři nože, nůž na pečivo, čtyři vařečky, dvě naběračky, cedník, dvě škrabky, tři prkénka na maso, pečivo, zelenivu a ovoce, struhadlo, dvanáct hlubokých talířů, mělkých, dezertních a misek, tři mísy, dvanáct skleniček a hrnků, dvě sady příborů.",null," - - -"," ; Další specifikace viz Kniha vnitřního vybavení - Kniha - prvků - Nábytek a příslušenství","Sada kuchyňského nádobí; Popis:Sada kuchyňského nádobí obsahuje hrnec o průměru 16 cm s obsahem 2,1 l, hrnec o průměru 20 cm s obsahem 3,6 l, hrnec o průměru 24 cm s obsahem 5,7 l, keramická pánev, pekáč, tři nože, nůž na pečivo, čtyři vařečky, dvě naběračky, cedník, dvě škrabky, tři prkénka na maso, pečivo, zelenivu a ovoce, struhadlo, dvanáct hlubokých talířů, mělkých, dezertních a misek, tři mísy, dvanáct skleniček a hrnků, dvě sady příborů.; Rozměry: - - - ; Další specifikace viz Kniha vnitřního vybavení - Kniha - prvků - Nábytek a příslušenství","ks",1,13000]
["1A.VV_N_014","Termoport","Termoport pro uskladnění pokrmů určených pro přepravu. Termoport je nevyhřívaný, čelní plnění s nasazovacími dvířky. Uzavírání pomocí záklopných uzávěrů zapuštěných do čelních stěnkorpusu, vnitřní prostor umožňuje uložení 12 párů vylisovaných drážek se svislou roztečí 39 mm k zasouvání gastro nádob, praktických držák popisovacích karet a ergonomická madla s neklouzavými plastovými úchyty.  Materiál polypropylen, polyamid a chromniklová ocel. Hmotnost 14 kg.",null,"630 x 425 x 660 mm"," ; Další specifikace viz Kniha vnitřního vybavení - Kniha - prvků - Nábytek a příslušenství","Termoport; Popis:Termoport pro uskladnění pokrmů určených pro přepravu. Termoport je nevyhřívaný, čelní plnění s nasazovacími dvířky. Uzavírání pomocí záklopných uzávěrů zapuštěných do čelních stěnkorpusu, vnitřní prostor umožňuje uložení 12 párů vylisovaných drážek se svislou roztečí 39 mm k zasouvání gastro nádob, praktických držák popisovacích karet a ergonomická madla s neklouzavými plastovými úchyty.  Materiál polypropylen, polyamid a chromniklová ocel. Hmotnost 14 kg.; Rozměry:630 x 425 x 660 mm ; Další specifikace viz Kniha vnitřního vybavení - Kniha - prvků - Nábytek a příslušenství","ks",2,{"$f":"16081","v":16081}]
["1A.VV_N_015","Psací stůl pro personál","Pracovní stůl obdélníkový bez zásuvek. Materiál laminátová MDF deska, barva světle hnědá. Deska tl. 18 mm. Deska opatřená ABS hranou tl. 2 mm. Nohy stolu hliníkové, povrchová úprava práškovým vypalovacím lakem v odstínu štříbrno šedá.",null,"1200 x 700 x 740 mm (d x š x v)"," ; Další specifikace viz Kniha vnitřního vybavení - Kniha - prvků - Nábytek a příslušenství","Psací stůl pro personál; Popis:Pracovní stůl obdélníkový bez zásuvek. Materiál laminátová MDF deska, barva světle hnědá. Deska tl. 18 mm. Deska opatřená ABS hranou tl. 2 mm. Nohy stolu hliníkové, povrchová úprava práškovým vypalovacím lakem v odstínu štříbrno šedá.; Rozměry:1200 x 700 x 740 mm (d x š x v) ; Další specifikace viz Kniha vnitřního vybavení - Kniha - prvků - Nábytek a příslušenství","ks",1,5220]
["1A.VV_N_016","Zásuvkový díl uzamykatelný","Kancelářský kontejner volně stojící se čtyřmi zásuvkami uzamykatelný na plastových kolečkách. V čele horní zásuvky umístěný zámek, jednotlivé zásuvky opatřené kovovými úchytkami. Materiál laminátová MDF deska, barva světle hnědá. Deska tl. 18 mm. Deska opatřená ABS hranou tl. 2 mm. Kovové pojezdy zásuvek.",null,"600 x 420 x 550 mm (d x š x v)"," ; Další specifikace viz Kniha vnitřního vybavení - Kniha - prvků - Nábytek a příslušenství","Zásuvkový díl uzamykatelný; Popis:Kancelářský kontejner volně stojící se čtyřmi zásuvkami uzamykatelný na plastových kolečkách. V čele horní zásuvky umístěný zámek, jednotlivé zásuvky opatřené kovovými úchytkami. Materiál laminátová MDF deska, barva světle hnědá. Deska tl. 18 mm. Deska opatřená ABS hranou tl. 2 mm. Kovové pojezdy zásuvek.; Rozměry:600 x 420 x 550 mm (d x š x v) ; Další specifikace viz Kniha vnitřního vybavení - Kniha - prvků - Nábytek a příslušenství","ks",1,5070]
["1A.VV_N_017","Nastavitelný držák na počítač pod stůl","Nastavitelný držák na počítač pod stůl včetně montážního materiálu. Materiál ocel se stříbrným lakem. Nosnost do 4,5 kg.",null,"135 - 250 x 300 - 458 mm (š x v)"," ; Další specifikace viz Kniha vnitřního vybavení - Kniha - prvků - Nábytek a příslušenství","Nastavitelný držák na počítač pod stůl; Popis:Nastavitelný držák na počítač pod stůl včetně montážního materiálu. Materiál ocel se stříbrným lakem. Nosnost do 4,5 kg.; Rozměry:135 - 250 x 300 - 458 mm (š x v) ; Další specifikace viz Kniha vnitřního vybavení - Kniha - prvků - Nábytek a příslušenství","ks",1,1203]
["1A.VV_N_018","Kancelářská židle otočná s kolečky","Ergonomická kancelářská židle otočná s výsokým opěrákem s kolečky. Výškově nastavitelný sedák, bederní opěrka a područky, samostatná síťovina na opěráku barva černá. Materál lakovaná ocel, plast. Hmotnost 17 kg, nosnost 120 kg.",null,"660/500 x 500 x 1000/1090 mm (d x š x v)"," ; Další specifikace viz Kniha vnitřního vybavení - Kniha - prvků - Nábytek a příslušenství","Kancelářská židle otočná s kolečky; Popis:Ergonomická kancelářská židle otočná s výsokým opěrákem s kolečky. Výškově nastavitelný sedák, bederní opěrka a područky, samostatná síťovina na opěráku barva černá. Materál lakovaná ocel, plast. Hmotnost 17 kg, nosnost 120 kg.; Rozměry:660/500 x 500 x 1000/1090 mm (d x š x v) ; Další specifikace viz Kniha vnitřního vybavení - Kniha - prvků - Nábytek a příslušenství","ks",1,{"$f":"3900","v":3900}]
["1A.VV_N_019","Šatní skříň s policemi a tyčí uzamykatelná (výška 2000 mm)","Skříň dvoudvéřová, dvoudílná - dělená na dvě části. 1/2 vybavená šatní tyčí a policí a 1/2 vybavená 5 ks variabilních polic. Materiál laminovaná MDF deska, barva světle hnědá. Dno i půda z desky tl. 25 mm, z přední strany ABS hrana tl. 2 mm. Ostatní pohledné prvky opatřeny ABS hranou tl. 1 mm. Boky korpusu z desky tl. 18 mm. Záda desky tl. 8 mm. Police z desky tl. 25 mm. Police a desky opatřeny hranou ABS tl. 2 mm.",null,"1700 x 600 x 2000 mm (d x š x v)"," ; Další specifikace viz Kniha vnitřního vybavení - Kniha - prvků - Nábytek a příslušenství","Šatní skříň s policemi a tyčí uzamykatelná (výška 2000 mm); Popis:Skříň dvoudvéřová, dvoudílná - dělená na dvě části. 1/2 vybavená šatní tyčí a policí a 1/2 vybavená 5 ks variabilních polic. Materiál laminovaná MDF deska, barva světle hnědá. Dno i půda z desky tl. 25 mm, z přední strany ABS hrana tl. 2 mm. Ostatní pohledné prvky opatřeny ABS hranou tl. 1 mm. Boky korpusu z desky tl. 18 mm. Záda desky tl. 8 mm. Police z desky tl. 25 mm. Police a desky opatřeny hranou ABS tl. 2 mm.; Rozměry:1700 x 600 x 2000 mm (d x š x v) ; Další specifikace viz Kniha vnitřního vybavení - Kniha - prvků - Nábytek a příslušenství","ks",1,25500]
["1A.VV_N_020","Nástěnná police s konzolemi","Nástěnná police s konzolemi kotvené do zdi včetně kotvení. Materiál laminátová MDF deska, barva světle hnědá. Police z desky tl. 25 mm, opatřena ABS hranou tl. 2 mm. Nosnost 80 kg. Konzole dřevěné v barvě světle hnědé.",null,"1000 x 300 x 20 mm (d x š x v)"," ; Další specifikace viz Kniha vnitřního vybavení - Kniha - prvků - Nábytek a příslušenství","Nástěnná police s konzolemi; Popis:Nástěnná police s konzolemi kotvené do zdi včetně kotvení. Materiál laminátová MDF deska, barva světle hnědá. Police z desky tl. 25 mm, opatřena ABS hranou tl. 2 mm. Nosnost 80 kg. Konzole dřevěné v barvě světle hnědé.; Rozměry:1000 x 300 x 20 mm (d x š x v) ; Další specifikace viz Kniha vnitřního vybavení - Kniha - prvků - Nábytek a příslušenství","ks",1,{"$f":"530*1.2","v":636}]
["1A.VV_N_021","Sklopná vana","Nastavitelná vana s digitálním panelem, kontrolou teploty vody, desinfekčním programem a perličkovými tryskami. Technické parametry vnitřní délka 1850 mm, vnitřní šířka 550 mm, hloubka 420 mm, nosnost 160 kg, vzduchová masáž, 12 trysek, napájení 230 V.",null,"2090 x 820 x 635 - 1035 mm (d x š x v)"," ; Další specifikace viz Kniha vnitřního vybavení - Kniha - prvků - Nábytek a příslušenství","Sklopná vana; Popis:Nastavitelná vana s digitálním panelem, kontrolou teploty vody, desinfekčním programem a perličkovými tryskami. Technické parametry vnitřní délka 1850 mm, vnitřní šířka 550 mm, hloubka 420 mm, nosnost 160 kg, vzduchová masáž, 12 trysek, napájení 230 V.; Rozměry:2090 x 820 x 635 - 1035 mm (d x š x v) ; Další specifikace viz Kniha vnitřního vybavení - Kniha - prvků - Nábytek a příslušenství","ks",1,200000]
["1A.VV_N_022","Sklopná madla k WC","Sklopná madla k WC včetně montážníh materiálu. Madla jsou z nerezi. Nosnost 120 kg.",null,"délka madla 813 mm"," ; Další specifikace viz Kniha vnitřního vybavení - Kniha - prvků - Nábytek a příslušenství","Sklopná madla k WC; Popis:Sklopná madla k WC včetně montážníh materiálu. Madla jsou z nerezi. Nosnost 120 kg.; Rozměry:délka madla 813 mm ; Další specifikace viz Kniha vnitřního vybavení - Kniha - prvků - Nábytek a příslušenství","ks",2,{"$f":"2488","v":2488}]
["1A.VV_N_023","Trezor pro personál","Trezor s elektronickým zámkem. Materiál ocel, korpus 1,5 mm, dveře 4 mm, povrchová úprava práškovaným lakem v barvě šedé. Možné upevnit na zeď. Provoz trezeru je za pomoci 4 běžných baterií (1,5 V).",null,"350 x 250 x 250 mm (d x š x v)"," ; Další specifikace viz Kniha vnitřního vybavení - Kniha - prvků - Nábytek a příslušenství","Trezor pro personál; Popis:Trezor s elektronickým zámkem. Materiál ocel, korpus 1,5 mm, dveře 4 mm, povrchová úprava práškovaným lakem v barvě šedé. Možné upevnit na zeď. Provoz trezeru je za pomoci 4 běžných baterií (1,5 V).; Rozměry:350 x 250 x 250 mm (d x š x v) ; Další specifikace viz Kniha vnitřního vybavení - Kniha - prvků - Nábytek a příslušenství","ks",1,{"$f":"1259","v":1259}]
["VV_E","Prvky vnitřního vybevení - Elektro a příslušenství"]
["1A.VV_E_001","Myčka vestavěná","Kapacita myčky 13 sad nádobí, 2 úložné koše, spotřeba vody 11 l, AQUA STOP proti přetečení, 2 ostřikovací ramena, 4 programy: Eco, Intenzivní, Normální, Oplachování, mycí teploty: 40-70°C, energetická třída A+, účinnost mytí A, účinnost sušení A, hlučnost 49 dB(A), spotřeba energie: 1,04 kWh.",null,"595 x 570 x 820 mm"," ; Další specifikace viz Kniha vnitřního vybavení - Kniha - prvků - Elektro a příslušenství",{"$f":"CONCATENATE(B44,$C$1,C44,$E$1,E44,F44)","v":"Myčka vestavěná; Popis:Kapacita myčky 13 sad nádobí, 2 úložné koše, spotřeba vody 11 l, AQUA STOP proti přetečení, 2 ostřikovací ramena, 4 programy: Eco, Intenzivní, Normální, Oplachování, mycí teploty: 40-70°C, energetická třída A+, účinnost mytí A, účinnost sušení A, hlučnost 49 dB(A), spotřeba energie: 1,04 kWh.; Rozměry:595 x 570 x 820 mm ; Další specifikace viz Kniha vnitřního vybavení - Kniha - prvků - Elektro a příslušenství"},"ks",1,15000]
["1A.VV_E_002","Varná deska vestavěná","Sklokeramická varná deska, 4 highlight varné zóny, dotykové ovládání, 9 stupňů výkonu, kontrolky provozu a zbytkového tepla, dětská pojistka, bez rámečku - rovné hrany.",null,"590 x 520 x 46 mm"," ; Další specifikace viz Kniha vnitřního vybavení - Kniha - prvků - Elektro a příslušenství","Varná deska vestavěná; Popis:Sklokeramická varná deska, 4 highlight varné zóny, dotykové ovládání, 9 stupňů výkonu, kontrolky provozu a zbytkového tepla, dětská pojistka, bez rámečku - rovné hrany.; Rozměry:590 x 520 x 46 mm ; Další specifikace viz Kniha vnitřního vybavení - Kniha - prvků - Elektro a příslušenství","ks",1,12000]
["1A.VV_E_003","Sušička na 8 kg prádla","Sušička, min. 8kg prádla, kondenzační s tepelným čerpadlem, min. třída A, invertorový motor.",null,"600 x 600 x 900 mm"," ; Další specifikace viz Kniha vnitřního vybavení - Kniha - prvků - Elektro a příslušenství","Sušička na 8 kg prádla; Popis:Sušička, min. 8kg prádla, kondenzační s tepelným čerpadlem, min. třída A, invertorový motor.; Rozměry:600 x 600 x 900 mm ; Další specifikace viz Kniha vnitřního vybavení - Kniha - prvků - Elektro a příslušenství","ks",1,15000]
["1A.VV_E_004","Kuchyňský robot","Robot s celokovovým tělem a kovovými převody, planetární systém hnětení, míchání a šlehání zaručuje bezezbytkové promíchání obsahu mísy, příslušenství: míchací metla, šlehací balónová metla, hnětací hák, mlýnek na maso se dvěma mlecími disky - hrubý 8mm a jemný 3mm, nástavec na plnění uzenářských produktů, kráječ a struhadlo se 3 vyměnitelnými nástavci pro hrubé, jemné a plátkové strouhání, kapacita pro přípravu až 1,5 kg těsta, šlehání až 8 vaječných bílků, nerezová mísa o objemu 4,5 l s dvěma madly, 8 rychlostí, regulace rychlosti otáček, bajonetový systém uchycení nástavců umožňuje rychlé sestavení i výměnu, odnímatelná mísa a příslušenství pro snadné mytí i v myčce, výkyvné rameno pro snadnou manipulaci a pohodlnější výměnu nástavců, aretační pojistka v horní poloze výkyvného ramene, protiskluzové nožky, zabraňující pohybu robotu při používání, tepelná pojistka proti přehřátí.",null,"270 x 350 x 360 mm"," ; Další specifikace viz Kniha vnitřního vybavení - Kniha - prvků - Elektro a příslušenství","Kuchyňský robot; Popis:Robot s celokovovým tělem a kovovými převody, planetární systém hnětení, míchání a šlehání zaručuje bezezbytkové promíchání obsahu mísy, příslušenství: míchací metla, šlehací balónová metla, hnětací hák, mlýnek na maso se dvěma mlecími disky - hrubý 8mm a jemný 3mm, nástavec na plnění uzenářských produktů, kráječ a struhadlo se 3 vyměnitelnými nástavci pro hrubé, jemné a plátkové strouhání, kapacita pro přípravu až 1,5 kg těsta, šlehání až 8 vaječných bílků, nerezová mísa o objemu 4,5 l s dvěma madly, 8 rychlostí, regulace rychlosti otáček, bajonetový systém uchycení nástavců umožňuje rychlé sestavení i výměnu, odnímatelná mísa a příslušenství pro snadné mytí i v myčce, výkyvné rameno pro snadnou manipulaci a pohodlnější výměnu nástavců, aretační pojistka v horní poloze výkyvného ramene, protiskluzové nožky, zabraňující pohybu robotu při používání, tepelná pojistka proti přehřátí.; Rozměry:270 x 350 x 360 mm ; Další specifikace viz Kniha vnitřního vybavení - Kniha - prvků - Elektro a příslušenství","ks",1,4990]
["1A.VV_E_005","Vestavěná trouba","Multifunkční horkovzdušná elektrická trouba objem 60l. Samostatná trouba s pravým horkým vzduchem v energetické třídě A, funkce rozmrazování, displej s digitálním časovačem - nastavení minutky, denního času, konce pečení a doby pečení, možnost péci na 2 úrovních najednou, uvnitř trouby vysoce lesklý smalt pro snadné čištění, nerezové provedení.",null,"594 x 540 x 589 mm"," ; Další specifikace viz Kniha vnitřního vybavení - Kniha - prvků - Elektro a příslušenství","Vestavěná trouba; Popis:Multifunkční horkovzdušná elektrická trouba objem 60l. Samostatná trouba s pravým horkým vzduchem v energetické třídě A, funkce rozmrazování, displej s digitálním časovačem - nastavení minutky, denního času, konce pečení a doby pečení, možnost péci na 2 úrovních najednou, uvnitř trouby vysoce lesklý smalt pro snadné čištění, nerezové provedení.; Rozměry:594 x 540 x 589 mm ; Další specifikace viz Kniha vnitřního vybavení - Kniha - prvků - Elektro a příslušenství","ks",1,13000]
["1A.VV_E_006","Elektronicky polohovatelná postel","Elektricky ovládané lůžko s dřevěným obložením, 4 dílnou ložnou plochou, postranicemi, zabraňující pádu z lůžka, výškové nastavení (od 38 do 86 cm). Nastavení výšky lůžka a náklonu jednotlivých dílů ložné plochy se provádí pomocí ovladače. Pasivní (pěnovou) antidekubitní matraci – působí preventivně proti vzniku dekubitů (proleženin). Je vyrobená z polyuretanové pěny se sníženou hořlavostí. Jádro je profilované s Flex-efektem pro dobré rozložení váhy pacienta. Má vyztužené okraje. Snímatelný potah vyrobený vysoko frekvenčním svařováním. Aktivní matraci – pro prevenci proleženin 2. stupně. Aktivní antidekubitní matrace se používaná v kombinaci s běžnou matrací. Interval výměny vzduchu 10 min. Nastavitelný tlak v matraci podle váhy pacienta, volba dynamického/statického režimu, signalizace nízkého tlaku. CPR ventil, zvukový alarm výpadku napájení. Hrazdu a rukojeť. Nosnost do 160 kg.",null,"103 x 207 x 40-80 mm"," ; Další specifikace viz Kniha vnitřního vybavení - Kniha - prvků - Elektro a příslušenství","Elektronicky polohovatelná postel; Popis:Elektricky ovládané lůžko s dřevěným obložením, 4 dílnou ložnou plochou, postranicemi, zabraňující pádu z lůžka, výškové nastavení (od 38 do 86 cm). Nastavení výšky lůžka a náklonu jednotlivých dílů ložné plochy se provádí pomocí ovladače. Pasivní (pěnovou) antidekubitní matraci – působí preventivně proti vzniku dekubitů (proleženin). Je vyrobená z polyuretanové pěny se sníženou hořlavostí. Jádro je profilované s Flex-efektem pro dobré rozložení váhy pacienta. Má vyztužené okraje. Snímatelný potah vyrobený vysoko frekvenčním svařováním. Aktivní matraci – pro prevenci proleženin 2. stupně. Aktivní antidekubitní matrace se používaná v kombinaci s běžnou matrací. Interval výměny vzduchu 10 min. Nastavitelný tlak v matraci podle váhy pacienta, volba dynamického/statického režimu, signalizace nízkého tlaku. CPR ventil, zvukový alarm výpadku napájení. Hrazdu a rukojeť. Nosnost do 160 kg.; Rozměry:103 x 207 x 40-80 mm ; Další specifikace viz Kniha vnitřního vybavení - Kniha - prvků - Elektro a příslušenství","ks",2,35000]
["1A.VV_E_007","Notebook","Notebook, 15,4 “ LCD, 8 GB RAM, 500 GB HDD, procesor i3 a vyšší, Windows 10 Pro, MS Office 2016 Home and Bussines CZ.",null," - - -"," ; Další specifikace viz Kniha vnitřního vybavení - Kniha - prvků - Elektro a příslušenství","Notebook; Popis:Notebook, 15,4 “ LCD, 8 GB RAM, 500 GB HDD, procesor i3 a vyšší, Windows 10 Pro, MS Office 2016 Home and Bussines CZ.; Rozměry: - - - ; Další specifikace viz Kniha vnitřního vybavení - Kniha - prvků - Elektro a příslušenství","ks",1,33590]
["1A.VV_E_008","Tiskárna na A4","Malá tiskárna - Funkce: černobílý laserový tisk, kopírování, skenování, fax, Formát: A4, rozlišení tisku: 1200dpi, ovládání: dotykový barevný grafický displej, velikost paměti: 256 MB, rychlost tisku: 38 Str./min., doba tisku první strany: 5,7s, oboustranný tisk: automatický , vstupní zásobník: 250 listů, víceúčelový zásobník: 100 listů, výstupní zásobník: 150 listů, gramáž média: 60 – 175 g/m2, rozlišení kopírování: 600x600dpi, zoom kopírování: 25 – 400%, rozlišení skenování: 1200dpi, podavač skeneru: oboustranný 50 listů, oboustranné jednoprůchodové skenování fumkce skeneru: skenování do e-mailu, do síťové složky, do USB, připojení: USB 2.0, Ethernet 10/100/1000T, hostitelský USB port, jazyky tiskárny: PCL 5, HP PCL 6, emulace Postscript úrovně 3, přímý tisk PDF (v1.7), URF, PCLM, PWG.",null," - - -"," ; Další specifikace viz Kniha vnitřního vybavení - Kniha - prvků - Elektro a příslušenství","Tiskárna na A4; Popis:Malá tiskárna - Funkce: černobílý laserový tisk, kopírování, skenování, fax, Formát: A4, rozlišení tisku: 1200dpi, ovládání: dotykový barevný grafický displej, velikost paměti: 256 MB, rychlost tisku: 38 Str./min., doba tisku první strany: 5,7s, oboustranný tisk: automatický , vstupní zásobník: 250 listů, víceúčelový zásobník: 100 listů, výstupní zásobník: 150 listů, gramáž média: 60 – 175 g/m2, rozlišení kopírování: 600x600dpi, zoom kopírování: 25 – 400%, rozlišení skenování: 1200dpi, podavač skeneru: oboustranný 50 listů, oboustranné jednoprůchodové skenování fumkce skeneru: skenování do e-mailu, do síťové složky, do USB, připojení: USB 2.0, Ethernet 10/100/1000T, hostitelský USB port, jazyky tiskárny: PCL 5, HP PCL 6, emulace Postscript úrovně 3, přímý tisk PDF (v1.7), URF, PCLM, PWG.; Rozměry: - - - ; Další specifikace viz Kniha vnitřního vybavení - Kniha - prvků - Elektro a příslušenství","ks",1,5000]
["VV_VEN","Prvky vnitřního vybevení - Venkovní vybavení"]
["1A.VV_VEN_001","Venkovní pergola k sezení vybavená židlemi a stlem","Venkovní dřevěná pergola k sezení vybavená šesti židlemi a stolem. Kovový stůl a židle s opěrkou a područkami. Sloupky pergoly jsou průřezu 120 x 120 mm, vzdálenost sloupků je 2,0 m, pod každým sloupkem je proveden betonový základ s patkou sloupku z galvanického zinku, základy jsou provedeny v nezámrzné hloubce. Trvar střechy je sedlový, krokve průžezu 60 x 140 mm, podélné prvky průřezu 100 x 140 mm. Na střeše je provedeno bednění a laťování se skládanou betonovou střešní krytinou. V přístřešku je podlaha z betonové dlažby. Betonová dlažba je uložena na kladecí vrstu tl. 40 mm - kamenná drť 4-8mm, podkladní nosnou vrstvu tl. 150 mm - kamená drť 8-16 mm a zemní pláň. Klempířské prvky jsou provedeny z pozinkovaného plechu.",null,"5000 x 5000 x 3300 mm (d x š x v)"," ; Další specifikace viz Kniha vnitřního vybavení - Kniha - prvků - Venkovní vybavení",{"$f":"CONCATENATE(B53,$C$1,C53,$E$1,E53,F53)","v":"Venkovní pergola k sezení vybavená židlemi a stlem; Popis:Venkovní dřevěná pergola k sezení vybavená šesti židlemi a stolem. Kovový stůl a židle s opěrkou a područkami. Sloupky pergoly jsou průřezu 120 x 120 mm, vzdálenost sloupků je 2,0 m, pod každým sloupkem je proveden betonový základ s patkou sloupku z galvanického zinku, základy jsou provedeny v nezámrzné hloubce. Trvar střechy je sedlový, krokve průžezu 60 x 140 mm, podélné prvky průřezu 100 x 140 mm. Na střeše je provedeno bednění a laťování se skládanou betonovou střešní krytinou. V přístřešku je podlaha z betonové dlažby. Betonová dlažba je uložena na kladecí vrstu tl. 40 mm - kamenná drť 4-8mm, podkladní nosnou vrstvu tl. 150 mm - kamená drť 8-16 mm a zemní pláň. Klempířské prvky jsou provedeny z pozinkovaného plechu.; Rozměry:5000 x 5000 x 3300 mm (d x š x v) ; Další specifikace viz Kniha vnitřního vybavení - Kniha - prvků - Venkovní vybavení"},"ks",1,55000]
["1A.VV_VEN_002","Zahradní domek","Zhradní domek je určený k uskladnění zhradního nábytku a nářadí. Zahradní domek je proveden na základvou desku (štěrk tl. 150 mm a beton tl. 15 mm). Zahradní domek je proveden ze sloupků o průřezu 120 x 120 mm (sloupky jsou kotveny k základvé desce za pomocí pataky sloupku z galvanického zinku) a opláštěné smrkovými palubkami tl. 28 mm. Trvar střechy je sedlový, krokve průžezu 60 x 140 mm, podélné prvky průřezu 100 x 140 mm. Na střeše je provedeno bednění a laťování se skládanou betonovou střešní krytinou. Podlaha betonová. Klempířské prvky jsou provedeny z pozinkovaného plechu.",null,"4000 x 3000 x 2400 mm (d x š x v)"," ; Další specifikace viz Kniha vnitřního vybavení - Kniha - prvků - Venkovní vybavení",{"$f":"CONCATENATE(B54,$C$1,C54,$E$1,E54,F54)","v":"Zahradní domek; Popis:Zhradní domek je určený k uskladnění zhradního nábytku a nářadí. Zahradní domek je proveden na základvou desku (štěrk tl. 150 mm a beton tl. 15 mm). Zahradní domek je proveden ze sloupků o průřezu 120 x 120 mm (sloupky jsou kotveny k základvé desce za pomocí pataky sloupku z galvanického zinku) a opláštěné smrkovými palubkami tl. 28 mm. Trvar střechy je sedlový, krokve průžezu 60 x 140 mm, podélné prvky průřezu 100 x 140 mm. Na střeše je provedeno bednění a laťování se skládanou betonovou střešní krytinou. Podlaha betonová. Klempířské prvky jsou provedeny z pozinkovaného plechu.; Rozměry:4000 x 3000 x 2400 mm (d x š x v) ; Další specifikace viz Kniha vnitřního vybavení - Kniha - prvků - Venkovní vybavení"},"ks",1,27800]
["1A.VV_VEN_003","Benzínová travní sekačka","Benzínová travní sekačka se skládá z 4-traktního benzínového motoru, ocelového nože a koše o objemu 45l. Technické parametry: výška zdvihu 25-65 mm, průměr kol 7/10\", rychlost 0,9 m/s, materiál kov.",null," - - -"," ; Další specifikace viz Kniha vnitřního vybavení - Kniha - prvků - Venkovní vybavení",{"$f":"CONCATENATE(B55,$C$1,C55,$E$1,E55,F55)","v":"Benzínová travní sekačka; Popis:Benzínová travní sekačka se skládá z 4-traktního benzínového motoru, ocelového nože a koše o objemu 45l. Technické parametry: výška zdvihu 25-65 mm, průměr kol 7/10\", rychlost 0,9 m/s, materiál kov.; Rozměry: - - - ; Další specifikace viz Kniha vnitřního vybavení - Kniha - prvků - Venkovní vybavení"},"ks",1,5290]
["1CD.1.1","Architektonicko-stavební řešení","; Popis:","; Materiál:","; Rozměry:"]
["10_VB","Výrobky"]
["KP","Klempířské prvky"]
["1C.P1-1.01","Okenní parapet","Oplechování parapetu oken včetně doplňkového a montážního materiálu.","Ocelový pozinkovaný plech, tl. 0,6 mm, exteriérový nátěr v odstínu RAL 7016","r.š. 330 mm"," ; Další specifikace viz Kniha klempířských prvků",{"$f":"CONCATENATE(B59,$C$1,C59,$D$1,D59,$E$1,E59,F59)","v":"Okenní parapet; Popis:Oplechování parapetu oken včetně doplňkového a montážního materiálu.; Materiál:Ocelový pozinkovaný plech, tl. 0,6 mm, exteriérový nátěr v odstínu RAL 7016; Rozměry:r.š. 330 mm ; Další specifikace viz Kniha klempířských prvků"},"m",14.7,474]
["1C.P1-1.02","Oplechování atiky","Oplechování atiky, včetně doplňkového a montážního materiálu.","Ocelový pozinkovaný plech, tl. 0,6 mm, exteriérový nátěr v odstínu RAL 7016","r.š. 860 mm"," ; Další specifikace viz Kniha klempířských prvků","Oplechování atiky; Popis:Oplechování atiky, včetně doplňkového a montážního materiálu.; Materiál:Ocelový pozinkovaný plech, tl. 0,6 mm, exteriérový nátěr v odstínu RAL 7016; Rozměry:r.š. 860 mm ; Další specifikace viz Kniha klempířských prvků","m",13.7,1480]
["1C.P1-1.03","Oplechování atiky","Oplechování atiky, včetně doplňkového a montážního materiálu.","Ocelový pozinkovaný plech, tl. 0,6 mm, exteriérový nátěr v odstínu RAL 7016","r.š. 720 mm"," ; Další specifikace viz Kniha klempířských prvků","Oplechování atiky; Popis:Oplechování atiky, včetně doplňkového a montážního materiálu.; Materiál:Ocelový pozinkovaný plech, tl. 0,6 mm, exteriérový nátěr v odstínu RAL 7016; Rozměry:r.š. 720 mm ; Další specifikace viz Kniha klempířských prvků","m",14.1,1100]
["1C.P1-1.04","Boční oplechování","Boční oplechování, včetně doplňkového a montážního materiálu.","Ocelový pozinkovaný plech, tl. 0,6 mm, exteriérový nátěr v odstínu RAL 7016","r.š. 435 mm"," ; Další specifikace viz Kniha klempířských prvků","Boční oplechování; Popis:Boční oplechování, včetně doplňkového a montážního materiálu.; Materiál:Ocelový pozinkovaný plech, tl. 0,6 mm, exteriérový nátěr v odstínu RAL 7016; Rozměry:r.š. 435 mm ; Další specifikace viz Kniha klempířských prvků","m",5.5,860]
["1C.P1-1.05","Dešťový žlab","Dešťový žlab, včetně doplňkového a montážního materiálu.","Ocelový pozinkovaný plech, tl. 0,6 mm, exteriérový nátěr v odstínu RAL 7016","průměr 300 mm"," ; Další specifikace viz Kniha klempířských prvků","Dešťový žlab; Popis:Dešťový žlab, včetně doplňkového a montážního materiálu.; Materiál:Ocelový pozinkovaný plech, tl. 0,6 mm, exteriérový nátěr v odstínu RAL 7016; Rozměry:průměr 300 mm ; Další specifikace viz Kniha klempířských prvků","m",32.1,725]
["1C.P1-1.06","Dešťový svod","Dešťový svod, včetně doplňkového a montážního materiálu.","Ocelový pozinkovaný plech, tl. 0,6 mm, exteriérový nátěr v odstínu RAL 7016","průměr 120 mm"," ; Další specifikace viz Kniha klempířských prvků","Dešťový svod; Popis:Dešťový svod, včetně doplňkového a montážního materiálu.; Materiál:Ocelový pozinkovaný plech, tl. 0,6 mm, exteriérový nátěr v odstínu RAL 7016; Rozměry:průměr 120 mm ; Další specifikace viz Kniha klempířských prvků","m",14.1,919]
["TP","Truhlářské prvky"]
["1C.T1-1.01","Oddělující lehká dřevěná příčka","Oddělující lehká dřevěná příčka, rošt ze smrkových doblovaných hranolů 40 x 40 mm spojené konstrukčními vruty se zápustnou hlavou, opláštěné laminátovou MDF deskou, vzor světlého dřeva s méně výraznou kresbou. Hranoly kotveny do stěny a stropu. Součástí příčky jsou uzamykatelné dveře o rozměru 1600 x 1970 mm, obložková polodrážková zárubeň materiál MDF, vložkový zámek + klika.","rošt: smrkové hranoly, opláštění a dveře: MDF deska, zámek a klika: broušený nerez","2500 x 60 x 2300 mm (d x hl x v)"," ; Další specifikace viz Kniha truhlářských prvků",{"$f":"CONCATENATE(B66,$C$1,C66,$D$1,D66,$E$1,E66,F66)","v":"Oddělující lehká dřevěná příčka; Popis:Oddělující lehká dřevěná příčka, rošt ze smrkových doblovaných hranolů 40 x 40 mm spojené konstrukčními vruty se zápustnou hlavou, opláštěné laminátovou MDF deskou, vzor světlého dřeva s méně výraznou kresbou. Hranoly kotveny do stěny a stropu. Součástí příčky jsou uzamykatelné dveře o rozměru 1600 x 1970 mm, obložková polodrážková zárubeň materiál MDF, vložkový zámek + klika.; Materiál:rošt: smrkové hranoly, opláštění a dveře: MDF deska, zámek a klika: broušený nerez; Rozměry:2500 x 60 x 2300 mm (d x hl x v) ; Další specifikace viz Kniha truhlářských prvků"},"ks",1,23000]
["1C.T1-1.02","Kuchyňská linka tvaru U","Kuchyňská linka tvaru U, sokl 80 mm, korpus z lamino desky tl. 18 mm, hrana z ABS tl. 2 mm. Horní i spodní skříňky plné, pracovní deska z laminátové desky tl. 38 mm, nerezový dřez s odkapávačem. Kování linky je kovové. Součástí kuchyňské linky je dřez s odkapávačem, varná deska se čtyřmi plotýnkami, trouba, lednička, mrazák a myčka. Spotřebiče energetiské třídy min. A přesně specifikovány vnitřního vybavení. Horní i spodní část je opatřená krycím panelem š. 50 mm.","Korpus z lamina, pracovní deska z laminátové desky","viz. obrazová příloha","  ; SPOTŘEBIČE OCENIT V KAPITOLE_Prvky vnitřního vybevení - Elektro a příslušenství ; Další specifikace viz Kniha truhlářských prvků",{"$f":"CONCATENATE(B67,$C$1,C67,$D$1,D67,$E$1,E67,F67)","v":"Kuchyňská linka tvaru U; Popis:Kuchyňská linka tvaru U, sokl 80 mm, korpus z lamino desky tl. 18 mm, hrana z ABS tl. 2 mm. Horní i spodní skříňky plné, pracovní deska z laminátové desky tl. 38 mm, nerezový dřez s odkapávačem. Kování linky je kovové. Součástí kuchyňské linky je dřez s odkapávačem, varná deska se čtyřmi plotýnkami, trouba, lednička, mrazák a myčka. Spotřebiče energetiské třídy min. A přesně specifikovány vnitřního vybavení. Horní i spodní část je opatřená krycím panelem š. 50 mm.; Materiál:Korpus z lamina, pracovní deska z laminátové desky; Rozměry:viz. obrazová příloha  ; SPOTŘEBIČE OCENIT V KAPITOLE_Prvky vnitřního vybevení - Elektro a příslušenství ; Další specifikace viz Kniha truhlářských prvků"},"ks",1,{"$f":"231600*0.9","v":208440}]
["OP","Ostatní prvky"]
["1C.X1-1.01","Venkovní rolety","Venkovní hliníková roleta pro regulaci přirozeného osvětlení a zachycení slunečních paprsků s bočními vodícími lištami. Horní ocelový válcovaný profil upravený pozinkování o rozměru 58 x 56 mm zakrytý krycím plechem. Lamely hliníkové o šířce 80 mm s navíjecími mechanismy, textilními žebříčky a vytahovacími páskami. Boční vodící lišty o rozměru 20 x 20 mm v barvě stříbrná elox. Ovládání elektrické.","hliník, barva stříbrný elox","1250x1750 mm (šxv)"," ; Další specifikace viz Kniha ostatních prvků",{"$f":"CONCATENATE(B69,$C$1,C69,$D$1,D69,$E$1,E69,F69)","v":"Venkovní rolety; Popis:Venkovní hliníková roleta pro regulaci přirozeného osvětlení a zachycení slunečních paprsků s bočními vodícími lištami. Horní ocelový válcovaný profil upravený pozinkování o rozměru 58 x 56 mm zakrytý krycím plechem. Lamely hliníkové o šířce 80 mm s navíjecími mechanismy, textilními žebříčky a vytahovacími páskami. Boční vodící lišty o rozměru 20 x 20 mm v barvě stříbrná elox. Ovládání elektrické.; Materiál:hliník, barva stříbrný elox; Rozměry:1250x1750 mm (šxv) ; Další specifikace viz Kniha ostatních prvků"},"ks",6,6125]
["1C.X1-1.02","Stahovací schody zateplené s požární odolností","Stahovací schody zateplené s protipožární vložkou (EW 15 DP3). Schody jsou opatřeny brzdícím mechanismem proti prudkému otevření. Víko je sendvočové složeno z dřevěného rámu vyplněný izolačním materiálem opláštěný pozinkovaným plechem. Pohledová čast je lakovaná v bílé barvě a kryta ochrannou fólií.","víko: dřevěný rám vyplněný izolantem opláštěný pozinkovaným plechem, pohledová část lakovaná, barva bílá, schody: kovové","600 x 800 mm (š x d)"," ; Další specifikace viz Kniha ostatních prvků",{"$f":"CONCATENATE(B70,$C$1,C70,$D$1,D70,$E$1,E70,F70)","v":"Stahovací schody zateplené s požární odolností; Popis:Stahovací schody zateplené s protipožární vložkou (EW 15 DP3). Schody jsou opatřeny brzdícím mechanismem proti prudkému otevření. Víko je sendvočové složeno z dřevěného rámu vyplněný izolačním materiálem opláštěný pozinkovaným plechem. Pohledová čast je lakovaná v bílé barvě a kryta ochrannou fólií.; Materiál:víko: dřevěný rám vyplněný izolantem opláštěný pozinkovaným plechem, pohledová část lakovaná, barva bílá, schody: kovové; Rozměry:600 x 800 mm (š x d) ; Další specifikace viz Kniha ostatních prvků"},"ks",1,{"$f":"14720*1.2","v":17664}]
["VV_N","Prvky vnitřního vybevení - Nábytek a příslušenství"]
["1C.VV_N_001","Čalouněné křeslo ušák","Čalouněné křeslo ušák je tvořen z vlnonce, 2 cm kokosové vrstvy a 5 cm široké PUR pěny a čalouněná potahovou látkou v barvě šedé. Hmotnost křesla 23 kg. Doplňové rozměry křesla: hloubka 720 mm, výška sedu 470 mm, hloubka sedu 520 mm, šířka sedu 520 mm a výška opěrka 670 mm.",null,"560 x 720 x 1080 mm (d x š x v)"," ; Další specifikace viz Kniha vnitřního vybavení - Kniha - prvků - Nábytek a příslušenství",{"$f":"CONCATENATE(B72,$C$1,C72,$E$1,E72,F72)","v":"Čalouněné křeslo ušák; Popis:Čalouněné křeslo ušák je tvořen z vlnonce, 2 cm kokosové vrstvy a 5 cm široké PUR pěny a čalouněná potahovou látkou v barvě šedé. Hmotnost křesla 23 kg. Doplňové rozměry křesla: hloubka 720 mm, výška sedu 470 mm, hloubka sedu 520 mm, šířka sedu 520 mm a výška opěrka 670 mm.; Rozměry:560 x 720 x 1080 mm (d x š x v) ; Další specifikace viz Kniha vnitřního vybavení - Kniha - prvků - Nábytek a příslušenství"},"ks",6,8736]
["1C.VV_N_002","Předsíňová stěna s věšáky","Předsíňová stěna s kovovými háčky se dvěmi úchytkami a policí, kotvená do stěny včetně montážního materiálu. Korpus a police z MDF desky, barva světle hnědá, tl. 20 mm. Hrany optařeny ABS hranou tl. 1,5 mm. Háček (5 ks) se dvěmi úchytkami kotvená na desku věšáku včetně kotvení. Materiál nerezová ocel.",null,"věšák: 660 x 240 x 1520 mm (d x š x v), háček: 70 x 30 x 47 mm (d x š x v)"," ; Další specifikace viz Kniha vnitřního vybavení - Kniha - prvků - Nábytek a příslušenství","Předsíňová stěna s věšáky; Popis:Předsíňová stěna s kovovými háčky se dvěmi úchytkami a policí, kotvená do stěny včetně montážního materiálu. Korpus a police z MDF desky, barva světle hnědá, tl. 20 mm. Hrany optařeny ABS hranou tl. 1,5 mm. Háček (5 ks) se dvěmi úchytkami kotvená na desku věšáku včetně kotvení. Materiál nerezová ocel.; Rozměry:věšák: 660 x 240 x 1520 mm (d x š x v), háček: 70 x 30 x 47 mm (d x š x v) ; Další specifikace viz Kniha vnitřního vybavení - Kniha - prvků - Nábytek a příslušenství","ks",1,{"$f":"1427*1.2","v":1712.3999999999999}]
["1C.VV_N_003","Nástěné zrcadlo do předsíně (rozměr 1000 x 900 mm)","Nástěné pravoúhlé zrcadlo k montáži na stěnu včetně kotvení. Materiál sklo s bezpečnostní fólií se zabroušenými hranami.",null,"1000 x 900 mm (š x v)"," ; Další specifikace viz Kniha vnitřního vybavení - Kniha - prvků - Nábytek a příslušenství","Nástěné zrcadlo do předsíně (rozměr 1000 x 900 mm); Popis:Nástěné pravoúhlé zrcadlo k montáži na stěnu včetně kotvení. Materiál sklo s bezpečnostní fólií se zabroušenými hranami.; Rozměry:1000 x 900 mm (š x v) ; Další specifikace viz Kniha vnitřního vybavení - Kniha - prvků - Nábytek a příslušenství","ks",1,{"$f":"1000*0.9*1.2","v":1080}]
["1C.VV_N_004","Botník s variabilními policemi a lavicí","Botník s variabilními policemi a lavicí. Botník je členěn na 12 polic pro uložení bot. Materiál laminovaná MDF deska, barva světle hnědá. Dno i půda z desky tl. 25 mm, z přední strany ABS hrana tl. 2 mm. Ostatní pohlednové prvky opatřeny ABS hranou tl. 1 mm. Boky korpusu z desky tl. 25 mm. Záda z desky tl. 10 mm. Police z desky tl. 20 mm  s variabilním polohovatelností. Police a desky opatřeny hranou ABS tl. 2 mm. Dodávka včetvě rektifikačních nožiček. Sedák čalouněný potahvou látkou v barvě šedé.",null,"1000 x 400 x 480 mm (d x š x v)"," ; Další specifikace viz Kniha vnitřního vybavení - Kniha - prvků - Nábytek a příslušenství","Botník s variabilními policemi a lavicí; Popis:Botník s variabilními policemi a lavicí. Botník je členěn na 12 polic pro uložení bot. Materiál laminovaná MDF deska, barva světle hnědá. Dno i půda z desky tl. 25 mm, z přední strany ABS hrana tl. 2 mm. Ostatní pohlednové prvky opatřeny ABS hranou tl. 1 mm. Boky korpusu z desky tl. 25 mm. Záda z desky tl. 10 mm. Police z desky tl. 20 mm  s variabilním polohovatelností. Police a desky opatřeny hranou ABS tl. 2 mm. Dodávka včetvě rektifikačních nožiček. Sedák čalouněný potahvou látkou v barvě šedé.; Rozměry:1000 x 400 x 480 mm (d x š x v) ; Další specifikace viz Kniha vnitřního vybavení - Kniha - prvků - Nábytek a příslušenství","ks",1,{"$f":"3090*1.2","v":3708}]
["1C.VV_N_005","Vestavěná skříň policová plná s dveřmi rozdělenými na dvě části (výška 2000 mm)","Skříň dvoudvéřová. Vybavená 5 ks variabilních polic. Materiál laminovaná MDF deska, barva světle hnědá. Dno i půda z desky tl. 25 mm, z přední strany ABS hrana tl. 2 mm. Ostatní pohlednové prvky opatřeny ABS hranou tl. 1 mm. Boky korpusu z desky tl. 18 mm. Záda z desky tl. 8 mm. Police z desky tl. 25 mm, nosnost 80 kg s variabilním polohovatelností. Police a desky opatřeny hranou ABS tl. 2 mm. Dodávka včetvě rektifikačních nožiček.",null,"1400 x 400 x 2000 mm (d x š x v)"," ; Další specifikace viz Kniha vnitřního vybavení - Kniha - prvků - Nábytek a příslušenství","Vestavěná skříň policová plná s dveřmi rozdělenými na dvě části (výška 2000 mm); Popis:Skříň dvoudvéřová. Vybavená 5 ks variabilních polic. Materiál laminovaná MDF deska, barva světle hnědá. Dno i půda z desky tl. 25 mm, z přední strany ABS hrana tl. 2 mm. Ostatní pohlednové prvky opatřeny ABS hranou tl. 1 mm. Boky korpusu z desky tl. 18 mm. Záda z desky tl. 8 mm. Police z desky tl. 25 mm, nosnost 80 kg s variabilním polohovatelností. Police a desky opatřeny hranou ABS tl. 2 mm. Dodávka včetvě rektifikačních nožiček.; Rozměry:1400 x 400 x 2000 mm (d x š x v) ; Další specifikace viz Kniha vnitřního vybavení - Kniha - prvků - Nábytek a příslušenství","ks",1,21000]
["1C.VV_N_006","Skříňka do koupelny (výška 700 mm)","Skřínka se čtyřmi zásuvkami do koupleny a nožičkami. Materiál laminátová MDF deska, barva bílá. Dno i půda z desky tl. 25 mm, z přední strany ABS hrana tl. 2 mm. Ostatní pohlednové prvky opatřeny ABS hranou tl. 1 mm. Boky korpusu z desky tl. 18 mm. Záda z desky tl. 8 mm. Police z desky tl. 25 mm, nosnost 50 kg. Police a desky opatřeny hranou ABS tl. 2 mm. Dodávka včetvě kovových nožiček a úchytek k zásuvkám.",null,"400 x 400 x 700 mm (d x š x v)"," ; Další specifikace viz Kniha vnitřního vybavení - Kniha - prvků - Nábytek a příslušenství","Skříňka do koupelny (výška 700 mm); Popis:Skřínka se čtyřmi zásuvkami do koupleny a nožičkami. Materiál laminátová MDF deska, barva bílá. Dno i půda z desky tl. 25 mm, z přední strany ABS hrana tl. 2 mm. Ostatní pohlednové prvky opatřeny ABS hranou tl. 1 mm. Boky korpusu z desky tl. 18 mm. Záda z desky tl. 8 mm. Police z desky tl. 25 mm, nosnost 50 kg. Police a desky opatřeny hranou ABS tl. 2 mm. Dodávka včetvě kovových nožiček a úchytek k zásuvkám.; Rozměry:400 x 400 x 700 mm (d x š x v) ; Další specifikace viz Kniha vnitřního vybavení - Kniha - prvků - Nábytek a příslušenství","ks",1,{"$f":"3990*1.2","v":4788}]
["1C.VV_N_007","Sklopné zrcadlo pro bezbariérové WC","Sklopné nerezové zrcadlo na toalety pro tělesně postižené včetně kotvení. Kotveno pomocí montážní lišty. Naklánění zrcadla je ovládané pomocí páky na stěně pod umyvadlem. Materiál sklo s bezpečnostní fólií se zabroušenými hranami a rám a páka z nerezy.",null,"600 x 400 mm (š x v)"," ; Další specifikace viz Kniha vnitřního vybavení - Kniha - prvků - Nábytek a příslušenství","Sklopné zrcadlo pro bezbariérové WC; Popis:Sklopné nerezové zrcadlo na toalety pro tělesně postižené včetně kotvení. Kotveno pomocí montážní lišty. Naklánění zrcadla je ovládané pomocí páky na stěně pod umyvadlem. Materiál sklo s bezpečnostní fólií se zabroušenými hranami a rám a páka z nerezy.; Rozměry:600 x 400 mm (š x v) ; Další specifikace viz Kniha vnitřního vybavení - Kniha - prvků - Nábytek a příslušenství","ks",1,3630]
["1C.VV_N_008","Sklopné sedátko do sprchy","Sklopné sedátko do sprchy včetně montážního materiálu. Nosná konstrukce z nerezové oceli, sedátkou z odolného plastu  jedohuše udržovatlené. Maximální nosnost 200 kg.",null,"440 x 470 mm (d x š)"," ; Další specifikace viz Kniha vnitřního vybavení - Kniha - prvků - Nábytek a příslušenství","Sklopné sedátko do sprchy; Popis:Sklopné sedátko do sprchy včetně montážního materiálu. Nosná konstrukce z nerezové oceli, sedátkou z odolného plastu  jedohuše udržovatlené. Maximální nosnost 200 kg.; Rozměry:440 x 470 mm (d x š) ; Další specifikace viz Kniha vnitřního vybavení - Kniha - prvků - Nábytek a příslušenství","ks",1,{"$f":"3567*1.2","v":4280.3999999999996}]
["1C.VV_N_009","Police do skladu (výška 2000 mm)","Police do skladu s pěti policemi včetně montážního materiálu. Police jsou výškově přestavitelné v rastru 138 mm. Šedý policový regál je rychle smontovatelný bez spojovacího materiálu. Police se jednoduchým způsobem nasadí na sloupky. Možnost spojování do polí a řad vedle sebe i za sebou pro zvýšení celkové tuhosti. Konstrukce je povrchově upravena práškovým lakem šedé barvy. Nohy jsou vybaveny plastovými patkami pro ochranu podlahové krytiny.",null,"2000 x 600 x 2000 mm (d x š x v)"," ; Další specifikace viz Kniha vnitřního vybavení - Kniha - prvků - Nábytek a příslušenství","Police do skladu (výška 2000 mm); Popis:Police do skladu s pěti policemi včetně montážního materiálu. Police jsou výškově přestavitelné v rastru 138 mm. Šedý policový regál je rychle smontovatelný bez spojovacího materiálu. Police se jednoduchým způsobem nasadí na sloupky. Možnost spojování do polí a řad vedle sebe i za sebou pro zvýšení celkové tuhosti. Konstrukce je povrchově upravena práškovým lakem šedé barvy. Nohy jsou vybaveny plastovými patkami pro ochranu podlahové krytiny.; Rozměry:2000 x 600 x 2000 mm (d x š x v) ; Další specifikace viz Kniha vnitřního vybavení - Kniha - prvků - Nábytek a příslušenství","ks",2,20000]
["1C.VV_N_010","Police do skladu tvaru \"L\" (výška 2000 mm)","Police do skladu tvaru \"L\" s pěti police včetně montážního materiálu. Police jsou výškově přestavitelné v rastru 138 mm. Šedý policový regál je rychle smontovatelný bez spojovacího materiálu. Police se jednoduchým způsobem nasadí na sloupky. Možnost spojování do polí a řad vedle sebe i za sebou pro zvýšení celkové tuhosti. Konstrukce je povrchově upravena práškovým lakem šedé barvy. Nohy jsou vybaveny plastovými patkami pro ochranu podlahové krytiny.",null,"1810/1610 x 600 x 2000 mm (d x š x v)"," ; Další specifikace viz Kniha vnitřního vybavení - Kniha - prvků - Nábytek a příslušenství","Police do skladu tvaru \"L\" (výška 2000 mm); Popis:Police do skladu tvaru \"L\" s pěti police včetně montážního materiálu. Police jsou výškově přestavitelné v rastru 138 mm. Šedý policový regál je rychle smontovatelný bez spojovacího materiálu. Police se jednoduchým způsobem nasadí na sloupky. Možnost spojování do polí a řad vedle sebe i za sebou pro zvýšení celkové tuhosti. Konstrukce je povrchově upravena práškovým lakem šedé barvy. Nohy jsou vybaveny plastovými patkami pro ochranu podlahové krytiny.; Rozměry:1810/1610 x 600 x 2000 mm (d x š x v) ; Další specifikace viz Kniha vnitřního vybavení - Kniha - prvků - Nábytek a příslušenství","ks",1,18100]
["1C.VV_N_011","Kovová garnyž na záclony (délka 1450 mm)","Kovová garnyž na záclony včetně montážního materiálu. Tyč garnyže o púrůměru 16 mm. Skládá se z galvanicky pokovený tyče, dvou koncovek, dvou konzol na zeď a žabky s kroužky.",null,"délka 1450 mm"," ; Další specifikace viz Kniha vnitřního vybavení - Kniha - prvků - Nábytek a příslušenství","Kovová garnyž na záclony (délka 1450 mm); Popis:Kovová garnyž na záclony včetně montážního materiálu. Tyč garnyže o púrůměru 16 mm. Skládá se z galvanicky pokovený tyče, dvou koncovek, dvou konzol na zeď a žabky s kroužky.; Rozměry:délka 1450 mm ; Další specifikace viz Kniha vnitřního vybavení - Kniha - prvků - Nábytek a příslušenství","ks",10,{"$f":"946*1.2","v":1135.2}]
["1C.VV_N_012","Kovová garnyž na záclony (délka 1950 mm)","Kovová garnyž na záclony včetně montážního materiálu. Tyč garnyže o púrůměru 16 mm. Skládá se z galvanicky pokovený tyče, dvou koncovek, dvou konzol na zeď a žabky s kroužky.",null,"délka 1950 mm"," ; Další specifikace viz Kniha vnitřního vybavení - Kniha - prvků - Nábytek a příslušenství","Kovová garnyž na záclony (délka 1950 mm); Popis:Kovová garnyž na záclony včetně montážního materiálu. Tyč garnyže o púrůměru 16 mm. Skládá se z galvanicky pokovený tyče, dvou koncovek, dvou konzol na zeď a žabky s kroužky.; Rozměry:délka 1950 mm ; Další specifikace viz Kniha vnitřního vybavení - Kniha - prvků - Nábytek a příslušenství","ks",2,{"$f":"1272*1.2","v":1526.3999999999999}]
["1C.VV_N_013","Sada kuchyňského nádobí","Sada kuchyňského nádobí obsahuje hrnec o průměru 16 cm s obsahem 2,1 l, hrnec o průměru 20 cm s obsahem 3,6 l, hrnec o průměru 24 cm s obsahem 5,7 l, keramická pánev, pekáč, tři nože, nůž na pečivo, čtyři vařečky, dvě naběračky, cedník, dvě škrabky, tři prkénka na maso, pečivo, zelenivu a ovoce, struhadlo, dvanáct hlubokých talířů, mělkých, dezertních a misek, tři mísy, dvanáct skleniček a hrnků, dvě sady příborů.",null," - - -"," ; Další specifikace viz Kniha vnitřního vybavení - Kniha - prvků - Nábytek a příslušenství","Sada kuchyňského nádobí; Popis:Sada kuchyňského nádobí obsahuje hrnec o průměru 16 cm s obsahem 2,1 l, hrnec o průměru 20 cm s obsahem 3,6 l, hrnec o průměru 24 cm s obsahem 5,7 l, keramická pánev, pekáč, tři nože, nůž na pečivo, čtyři vařečky, dvě naběračky, cedník, dvě škrabky, tři prkénka na maso, pečivo, zelenivu a ovoce, struhadlo, dvanáct hlubokých talířů, mělkých, dezertních a misek, tři mísy, dvanáct skleniček a hrnků, dvě sady příborů.; Rozměry: - - - ; Další specifikace viz Kniha vnitřního vybavení - Kniha - prvků - Nábytek a příslušenství","ks",1,13000]
["1C.VV_N_014","Termoport","Termoport pro uskladnění pokrmů určených pro přepravu. Termoport je nevyhřívaný, čelní plnění s nasazovacími dvířky. Uzavírání pomocí záklopných uzávěrů zapuštěných do čelních stěnkorpusu, vnitřní prostor umožňuje uložení 12 párů vylisovaných drážek se svislou roztečí 39 mm k zasouvání gastro nádob, praktických držák popisovacích karet a ergonomická madla s neklouzavými plastovými úchyty.  Materiál polypropylen, polyamid a chromniklová ocel. Hmotnost 14 kg.",null,"630 x 425 x 660 mm"," ; Další specifikace viz Kniha vnitřního vybavení - Kniha - prvků - Nábytek a příslušenství","Termoport; Popis:Termoport pro uskladnění pokrmů určených pro přepravu. Termoport je nevyhřívaný, čelní plnění s nasazovacími dvířky. Uzavírání pomocí záklopných uzávěrů zapuštěných do čelních stěnkorpusu, vnitřní prostor umožňuje uložení 12 párů vylisovaných drážek se svislou roztečí 39 mm k zasouvání gastro nádob, praktických držák popisovacích karet a ergonomická madla s neklouzavými plastovými úchyty.  Materiál polypropylen, polyamid a chromniklová ocel. Hmotnost 14 kg.; Rozměry:630 x 425 x 660 mm ; Další specifikace viz Kniha vnitřního vybavení - Kniha - prvků - Nábytek a příslušenství","ks",1,{"$f":"16081","v":16081}]
["1C.VV_N_015","Psací stůl pro personál","Pracovní stůl obdélníkový bez zásuvek. Materiál laminátová MDF deska, barva světle hnědá. Deska tl. 18 mm. Deska opatřená ABS hranou tl. 2 mm. Nohy stolu hliníkové, povrchová úprava práškovým vypalovacím lakem v odstínu štříbrno šedá.",null,"1200 x 700 x 740 mm (d x š x v)"," ; Další specifikace viz Kniha vnitřního vybavení - Kniha - prvků - Nábytek a příslušenství","Psací stůl pro personál; Popis:Pracovní stůl obdélníkový bez zásuvek. Materiál laminátová MDF deska, barva světle hnědá. Deska tl. 18 mm. Deska opatřená ABS hranou tl. 2 mm. Nohy stolu hliníkové, povrchová úprava práškovým vypalovacím lakem v odstínu štříbrno šedá.; Rozměry:1200 x 700 x 740 mm (d x š x v) ; Další specifikace viz Kniha vnitřního vybavení - Kniha - prvků - Nábytek a příslušenství","ks",1,5220]
["1C.VV_N_016","Zásuvkový díl uzamykatelný","Kancelářský kontejner volně stojící se čtyřmi zásuvkami uzamykatelný na plastových kolečkách. V čele horní zásuvky umístěný zámek, jednotlivé zásuvky opatřené kovovými úchytkami. Materiál laminátová MDF deska, barva světle hnědá. Deska tl. 18 mm. Deska opatřená ABS hranou tl. 2 mm. Kovové pojezdy zásuvek.",null,"600 x 420 x 550 mm (d x š x v)"," ; Další specifikace viz Kniha vnitřního vybavení - Kniha - prvků - Nábytek a příslušenství","Zásuvkový díl uzamykatelný; Popis:Kancelářský kontejner volně stojící se čtyřmi zásuvkami uzamykatelný na plastových kolečkách. V čele horní zásuvky umístěný zámek, jednotlivé zásuvky opatřené kovovými úchytkami. Materiál laminátová MDF deska, barva světle hnědá. Deska tl. 18 mm. Deska opatřená ABS hranou tl. 2 mm. Kovové pojezdy zásuvek.; Rozměry:600 x 420 x 550 mm (d x š x v) ; Další specifikace viz Kniha vnitřního vybavení - Kniha - prvků - Nábytek a příslušenství","ks",1,5070]
["1C.VV_N_017","Nastavitelný držák na počítač pod stůl","Nastavitelný držák na počítač pod stůl včetně montážního materiálu. Materiál ocel se stříbrným lakem. Nosnost do 4,5 kg.",null,"135 - 250 x 300 - 458 mm (š x v)"," ; Další specifikace viz Kniha vnitřního vybavení - Kniha - prvků - Nábytek a příslušenství","Nastavitelný držák na počítač pod stůl; Popis:Nastavitelný držák na počítač pod stůl včetně montážního materiálu. Materiál ocel se stříbrným lakem. Nosnost do 4,5 kg.; Rozměry:135 - 250 x 300 - 458 mm (š x v) ; Další specifikace viz Kniha vnitřního vybavení - Kniha - prvků - Nábytek a příslušenství","ks",1,1203]
["1C.VV_N_018","Kancelářská židle otočná s kolečky","Ergonomická kancelářská židle otočná s výsokým opěrákem s kolečky. Výškově nastavitelný sedák, bederní opěrka a područky, samostatná síťovina na opěráku barva černá. Materál lakovaná ocel, plast. Hmotnost 17 kg, nosnost 120 kg.",null,"660/500 x 500 x 1000/1090 mm (d x š x v)"," ; Další specifikace viz Kniha vnitřního vybavení - Kniha - prvků - Nábytek a příslušenství","Kancelářská židle otočná s kolečky; Popis:Ergonomická kancelářská židle otočná s výsokým opěrákem s kolečky. Výškově nastavitelný sedák, bederní opěrka a područky, samostatná síťovina na opěráku barva černá. Materál lakovaná ocel, plast. Hmotnost 17 kg, nosnost 120 kg.; Rozměry:660/500 x 500 x 1000/1090 mm (d x š x v) ; Další specifikace viz Kniha vnitřního vybavení - Kniha - prvků - Nábytek a příslušenství","ks",1,{"$f":"3900","v":3900}]
["1C.VV_N_019","Šatní skříň s policemi a tyčí uzamykatelná (výška 2000 mm)","Skříň dvoudvéřová, dvoudílná - dělená na dvě části. 1/2 vybavená šatní tyčí a policí a 1/2 vybavená 5 ks variabilních polic. Materiál laminovaná MDF deska, barva světle hnědá. Dno i půda z desky tl. 25 mm, z přední strany ABS hrana tl. 2 mm. Ostatní pohledné prvky opatřeny ABS hranou tl. 1 mm. Boky korpusu z desky tl. 18 mm. Záda desky tl. 8 mm. Police z desky tl. 25 mm. Police a desky opatřeny hranou ABS tl. 2 mm.",null,"1700 x 600 x 2000 mm (d x š x v)"," ; Další specifikace viz Kniha vnitřního vybavení - Kniha - prvků - Nábytek a příslušenství","Šatní skříň s policemi a tyčí uzamykatelná (výška 2000 mm); Popis:Skříň dvoudvéřová, dvoudílná - dělená na dvě části. 1/2 vybavená šatní tyčí a policí a 1/2 vybavená 5 ks variabilních polic. Materiál laminovaná MDF deska, barva světle hnědá. Dno i půda z desky tl. 25 mm, z přední strany ABS hrana tl. 2 mm. Ostatní pohledné prvky opatřeny ABS hranou tl. 1 mm. Boky korpusu z desky tl. 18 mm. Záda desky tl. 8 mm. Police z desky tl. 25 mm. Police a desky opatřeny hranou ABS tl. 2 mm.; Rozměry:1700 x 600 x 2000 mm (d x š x v) ; Další specifikace viz Kniha vnitřního vybavení - Kniha - prvků - Nábytek a příslušenství","ks",1,25500]
["1C.VV_N_020","Nástěnná police s konzolemi","Nástěnná police s konzolemi kotvené do zdi včetně kotvení. Materiál laminátová MDF deska, barva světle hnědá. Police z desky tl. 25 mm, opatřena ABS hranou tl. 2 mm. Nosnost 80 kg. Konzole dřevěné v barvě světle hnědé.",null,"1000 x 300 x 20 mm (d x š x v)"," ; Další specifikace viz Kniha vnitřního vybavení - Kniha - prvků - Nábytek a příslušenství","Nástěnná police s konzolemi; Popis:Nástěnná police s konzolemi kotvené do zdi včetně kotvení. Materiál laminátová MDF deska, barva světle hnědá. Police z desky tl. 25 mm, opatřena ABS hranou tl. 2 mm. Nosnost 80 kg. Konzole dřevěné v barvě světle hnědé.; Rozměry:1000 x 300 x 20 mm (d x š x v) ; Další specifikace viz Kniha vnitřního vybavení - Kniha - prvků - Nábytek a příslušenství","ks",1,{"$f":"530*1.2","v":636}]
["1C.VV_N_021","Sklopná vana","Nastavitelná vana s digitálním panelem, kontrolou teploty vody, desinfekčním programem a perličkovými tryskami. Technické parametry vnitřní délka 1850 mm, vnitřní šířka 550 mm, hloubka 420 mm, nosnost 160 kg, vzduchová masáž, 12 trysek, napájení 230 V.",null,"2090 x 820 x 635 - 1035 mm (d x š x v)"," ; Další specifikace viz Kniha vnitřního vybavení - Kniha - prvků - Nábytek a příslušenství","Sklopná vana; Popis:Nastavitelná vana s digitálním panelem, kontrolou teploty vody, desinfekčním programem a perličkovými tryskami. Technické parametry vnitřní délka 1850 mm, vnitřní šířka 550 mm, hloubka 420 mm, nosnost 160 kg, vzduchová masáž, 12 trysek, napájení 230 V.; Rozměry:2090 x 820 x 635 - 1035 mm (d x š x v) ; Další specifikace viz Kniha vnitřního vybavení - Kniha - prvků - Nábytek a příslušenství","ks",1,200000]
["1C.VV_N_022","Sklopná madla k WC","Sklopná madla k WC včetně montážníh materiálu. Madla jsou z nerezi. Nosnost 120 kg.",null,"délka madla 813 mm"," ; Další specifikace viz Kniha vnitřního vybavení - Kniha - prvků - Nábytek a příslušenství","Sklopná madla k WC; Popis:Sklopná madla k WC včetně montážníh materiálu. Madla jsou z nerezi. Nosnost 120 kg.; Rozměry:délka madla 813 mm ; Další specifikace viz Kniha vnitřního vybavení - Kniha - prvků - Nábytek a příslušenství","ks",2,{"$f":"2488","v":2488}]
["1C.VV_N_023","Trezor pro personál","Trezor s elektronickým zámkem. Materiál ocel, korpus 1,5 mm, dveře 4 mm, povrchová úprava práškovaným lakem v barvě šedé. Možné upevnit na zeď. Provoz trezeru je za pomoci 4 běžných baterií (1,5 V).",null,"350 x 250 x 250 mm (d x š x v)"," ; Další specifikace viz Kniha vnitřního vybavení - Kniha - prvků - Nábytek a příslušenství","Trezor pro personál; Popis:Trezor s elektronickým zámkem. Materiál ocel, korpus 1,5 mm, dveře 4 mm, povrchová úprava práškovaným lakem v barvě šedé. Možné upevnit na zeď. Provoz trezeru je za pomoci 4 běžných baterií (1,5 V).; Rozměry:350 x 250 x 250 mm (d x š x v) ; Další specifikace viz Kniha vnitřního vybavení - Kniha - prvků - Nábytek a příslušenství","ks",1,{"$f":"1259","v":1259}]
["VV_E","Prvky vnitřního vybevení - Elektro a příslušenství"]
["1C.VV_E_001","Myčka vestavěná","Kapacita myčky 13 sad nádobí, 2 úložné koše, spotřeba vody 11 l, AQUA STOP proti přetečení, 2 ostřikovací ramena, 4 programy: Eco, Intenzivní, Normální, Oplachování, mycí teploty: 40-70°C, energetická třída A+, účinnost mytí A, účinnost sušení A, hlučnost 49 dB(A), spotřeba energie: 1,04 kWh.",null,"595 x 570 x 820 mm"," ; Další specifikace viz Kniha vnitřního vybavení - Kniha - prvků - Elektro a příslušenství",{"$f":"CONCATENATE(B96,$C$1,C96,$E$1,E96,F96)","v":"Myčka vestavěná; Popis:Kapacita myčky 13 sad nádobí, 2 úložné koše, spotřeba vody 11 l, AQUA STOP proti přetečení, 2 ostřikovací ramena, 4 programy: Eco, Intenzivní, Normální, Oplachování, mycí teploty: 40-70°C, energetická třída A+, účinnost mytí A, účinnost sušení A, hlučnost 49 dB(A), spotřeba energie: 1,04 kWh.; Rozměry:595 x 570 x 820 mm ; Další specifikace viz Kniha vnitřního vybavení - Kniha - prvků - Elektro a příslušenství"},"ks",1,15000]
["1C.VV_E_002","Varná deska vestavěná","Sklokeramická varná deska, 4 highlight varné zóny, dotykové ovládání, 9 stupňů výkonu, kontrolky provozu a zbytkového tepla, dětská pojistka, bez rámečku - rovné hrany.",null,"590 x 520 x 46 mm"," ; Další specifikace viz Kniha vnitřního vybavení - Kniha - prvků - Elektro a příslušenství","Varná deska vestavěná; Popis:Sklokeramická varná deska, 4 highlight varné zóny, dotykové ovládání, 9 stupňů výkonu, kontrolky provozu a zbytkového tepla, dětská pojistka, bez rámečku - rovné hrany.; Rozměry:590 x 520 x 46 mm ; Další specifikace viz Kniha vnitřního vybavení - Kniha - prvků - Elektro a příslušenství","ks",1,12000]
["1C.VV_E_003","Sušička na 8 kg prádla","Sušička, min. 8kg prádla, kondenzační s tepelným čerpadlem, min. třída A, invertorový motor.",null,"600 x 600 x 900 mm"," ; Další specifikace viz Kniha vnitřního vybavení - Kniha - prvků - Elektro a příslušenství","Sušička na 8 kg prádla; Popis:Sušička, min. 8kg prádla, kondenzační s tepelným čerpadlem, min. třída A, invertorový motor.; Rozměry:600 x 600 x 900 mm ; Další specifikace viz Kniha vnitřního vybavení - Kniha - prvků - Elektro a příslušenství","ks",1,15000]
["1C.VV_E_004","Kuchyňský robot","Robot s celokovovým tělem a kovovými převody, planetární systém hnětení, míchání a šlehání zaručuje bezezbytkové promíchání obsahu mísy, příslušenství: míchací metla, šlehací balónová metla, hnětací hák, mlýnek na maso se dvěma mlecími disky - hrubý 8mm a jemný 3mm, nástavec na plnění uzenářských produktů, kráječ a struhadlo se 3 vyměnitelnými nástavci pro hrubé, jemné a plátkové strouhání, kapacita pro přípravu až 1,5 kg těsta, šlehání až 8 vaječných bílků, nerezová mísa o objemu 4,5 l s dvěma madly, 8 rychlostí, regulace rychlosti otáček, bajonetový systém uchycení nástavců umožňuje rychlé sestavení i výměnu, odnímatelná mísa a příslušenství pro snadné mytí i v myčce, výkyvné rameno pro snadnou manipulaci a pohodlnější výměnu nástavců, aretační pojistka v horní poloze výkyvného ramene, protiskluzové nožky, zabraňující pohybu robotu při používání, tepelná pojistka proti přehřátí.",null,"270 x 350 x 360 mm"," ; Další specifikace viz Kniha vnitřního vybavení - Kniha - prvků - Elektro a příslušenství","Kuchyňský robot; Popis:Robot s celokovovým tělem a kovovými převody, planetární systém hnětení, míchání a šlehání zaručuje bezezbytkové promíchání obsahu mísy, příslušenství: míchací metla, šlehací balónová metla, hnětací hák, mlýnek na maso se dvěma mlecími disky - hrubý 8mm a jemný 3mm, nástavec na plnění uzenářských produktů, kráječ a struhadlo se 3 vyměnitelnými nástavci pro hrubé, jemné a plátkové strouhání, kapacita pro přípravu až 1,5 kg těsta, šlehání až 8 vaječných bílků, nerezová mísa o objemu 4,5 l s dvěma madly, 8 rychlostí, regulace rychlosti otáček, bajonetový systém uchycení nástavců umožňuje rychlé sestavení i výměnu, odnímatelná mísa a příslušenství pro snadné mytí i v myčce, výkyvné rameno pro snadnou manipulaci a pohodlnější výměnu nástavců, aretační pojistka v horní poloze výkyvného ramene, protiskluzové nožky, zabraňující pohybu robotu při používání, tepelná pojistka proti přehřátí.; Rozměry:270 x 350 x 360 mm ; Další specifikace viz Kniha vnitřního vybavení - Kniha - prvků - Elektro a příslušenství","ks",1,4990]
["1C.VV_E_005","Vestavěná trouba","Multifunkční horkovzdušná elektrická trouba objem 60l. Samostatná trouba s pravým horkým vzduchem v energetické třídě A, funkce rozmrazování, displej s digitálním časovačem - nastavení minutky, denního času, konce pečení a doby pečení, možnost péci na 2 úrovních najednou, uvnitř trouby vysoce lesklý smalt pro snadné čištění, nerezové provedení.",null,"594 x 540 x 589 mm"," ; Další specifikace viz Kniha vnitřního vybavení - Kniha - prvků - Elektro a příslušenství","Vestavěná trouba; Popis:Multifunkční horkovzdušná elektrická trouba objem 60l. Samostatná trouba s pravým horkým vzduchem v energetické třídě A, funkce rozmrazování, displej s digitálním časovačem - nastavení minutky, denního času, konce pečení a doby pečení, možnost péci na 2 úrovních najednou, uvnitř trouby vysoce lesklý smalt pro snadné čištění, nerezové provedení.; Rozměry:594 x 540 x 589 mm ; Další specifikace viz Kniha vnitřního vybavení - Kniha - prvků - Elektro a příslušenství","ks",1,13000]
["1C.VV_E_006","Elektronicky polohovatelná postel","Elektricky ovládané lůžko s dřevěným obložením, 4 dílnou ložnou plochou, postranicemi, zabraňující pádu z lůžka, výškové nastavení (od 38 do 86 cm). Nastavení výšky lůžka a náklonu jednotlivých dílů ložné plochy se provádí pomocí ovladače. Pasivní (pěnovou) antidekubitní matraci – působí preventivně proti vzniku dekubitů (proleženin). Je vyrobená z polyuretanové pěny se sníženou hořlavostí. Jádro je profilované s Flex-efektem pro dobré rozložení váhy pacienta. Má vyztužené okraje. Snímatelný potah vyrobený vysoko frekvenčním svařováním. Aktivní matraci – pro prevenci proleženin 2. stupně. Aktivní antidekubitní matrace se používaná v kombinaci s běžnou matrací. Interval výměny vzduchu 10 min. Nastavitelný tlak v matraci podle váhy pacienta, volba dynamického/statického režimu, signalizace nízkého tlaku. CPR ventil, zvukový alarm výpadku napájení. Hrazdu a rukojeť. Nosnost do 160 kg.",null,"103 x 207 x 40-80 mm"," ; Další specifikace viz Kniha vnitřního vybavení - Kniha - prvků - Elektro a příslušenství","Elektronicky polohovatelná postel; Popis:Elektricky ovládané lůžko s dřevěným obložením, 4 dílnou ložnou plochou, postranicemi, zabraňující pádu z lůžka, výškové nastavení (od 38 do 86 cm). Nastavení výšky lůžka a náklonu jednotlivých dílů ložné plochy se provádí pomocí ovladače. Pasivní (pěnovou) antidekubitní matraci – působí preventivně proti vzniku dekubitů (proleženin). Je vyrobená z polyuretanové pěny se sníženou hořlavostí. Jádro je profilované s Flex-efektem pro dobré rozložení váhy pacienta. Má vyztužené okraje. Snímatelný potah vyrobený vysoko frekvenčním svařováním. Aktivní matraci – pro prevenci proleženin 2. stupně. Aktivní antidekubitní matrace se používaná v kombinaci s běžnou matrací. Interval výměny vzduchu 10 min. Nastavitelný tlak v matraci podle váhy pacienta, volba dynamického/statického režimu, signalizace nízkého tlaku. CPR ventil, zvukový alarm výpadku napájení. Hrazdu a rukojeť. Nosnost do 160 kg.; Rozměry:103 x 207 x 40-80 mm ; Další specifikace viz Kniha vnitřního vybavení - Kniha - prvků - Elektro a příslušenství","ks",1,35000]
["1C.VV_E_007","Notebook","Notebook, 15,4 “ LCD, 8 GB RAM, 500 GB HDD, procesor i3 a vyšší, Windows 10 Pro, MS Office 2016 Home and Bussines CZ.",null," - - -"," ; Další specifikace viz Kniha vnitřního vybavení - Kniha - prvků - Elektro a příslušenství","Notebook; Popis:Notebook, 15,4 “ LCD, 8 GB RAM, 500 GB HDD, procesor i3 a vyšší, Windows 10 Pro, MS Office 2016 Home and Bussines CZ.; Rozměry: - - - ; Další specifikace viz Kniha vnitřního vybavení - Kniha - prvků - Elektro a příslušenství","ks",1,33590]
["1C.VV_E_008","Tiskárna na A4","Malá tiskárna - Funkce: černobílý laserový tisk, kopírování, skenování, fax, Formát: A4, rozlišení tisku: 1200dpi, ovládání: dotykový barevný grafický displej, velikost paměti: 256 MB, rychlost tisku: 38 Str./min., doba tisku první strany: 5,7s, oboustranný tisk: automatický , vstupní zásobník: 250 listů, víceúčelový zásobník: 100 listů, výstupní zásobník: 150 listů, gramáž média: 60 – 175 g/m2, rozlišení kopírování: 600x600dpi, zoom kopírování: 25 – 400%, rozlišení skenování: 1200dpi, podavač skeneru: oboustranný 50 listů, oboustranné jednoprůchodové skenování fumkce skeneru: skenování do e-mailu, do síťové složky, do USB, připojení: USB 2.0, Ethernet 10/100/1000T, hostitelský USB port, jazyky tiskárny: PCL 5, HP PCL 6, emulace Postscript úrovně 3, přímý tisk PDF (v1.7), URF, PCLM, PWG.",null," - - -"," ; Další specifikace viz Kniha vnitřního vybavení - Kniha - prvků - Elektro a příslušenství","Tiskárna na A4; Popis:Malá tiskárna - Funkce: černobílý laserový tisk, kopírování, skenování, fax, Formát: A4, rozlišení tisku: 1200dpi, ovládání: dotykový barevný grafický displej, velikost paměti: 256 MB, rychlost tisku: 38 Str./min., doba tisku první strany: 5,7s, oboustranný tisk: automatický , vstupní zásobník: 250 listů, víceúčelový zásobník: 100 listů, výstupní zásobník: 150 listů, gramáž média: 60 – 175 g/m2, rozlišení kopírování: 600x600dpi, zoom kopírování: 25 – 400%, rozlišení skenování: 1200dpi, podavač skeneru: oboustranný 50 listů, oboustranné jednoprůchodové skenování fumkce skeneru: skenování do e-mailu, do síťové složky, do USB, připojení: USB 2.0, Ethernet 10/100/1000T, hostitelský USB port, jazyky tiskárny: PCL 5, HP PCL 6, emulace Postscript úrovně 3, přímý tisk PDF (v1.7), URF, PCLM, PWG.; Rozměry: - - - ; Další specifikace viz Kniha vnitřního vybavení - Kniha - prvků - Elektro a příslušenství","ks",1,5000]

{"sheet":"STOD_B","index":2,"n_rows":54,"n_cols":10,"rows_kept":54,"cut":false,"hidden":true,"merged":[]}
["1BD.1.1","Architektonicko-stavební řešení","; Popis:","; Materiál:","; Rozměry:"]
["10_VB","Výrobky"]
["KP","Klempířské prvky","Sloupec1","Sloupec2","Sloupec3","Sloupec4","Sloupec5","Sloupec6","Sloupec7","Sloupec8"]
["1B.P1-1.01","Okenní parapet","Oplechování parapetu oken včetně doplňkového a montážního materiálu.","Ocelový pozinkovaný plech, tl. 0,6 mm, exteriérový nátěr v odstínu RAL 7016","r.š. 330 mm"," ; Další specifikace viz Kniha klempířských prvků",{"$f":"CONCATENATE(B4,$C$1,C4,$D$1,D4,$E$1,E4,F4)","v":"Okenní parapet; Popis:Oplechování parapetu oken včetně doplňkového a montážního materiálu.; Materiál:Ocelový pozinkovaný plech, tl. 0,6 mm, exteriérový nátěr v odstínu RAL 7016; Rozměry:r.š. 330 mm ; Další specifikace viz Kniha klempířských prvků"},"m",14.7,474]
["1B.P1-1.02","Oplechování atiky","Oplechování atiky, včetně doplňkového a montážního materiálu.","Ocelový pozinkovaný plech, tl. 0,6 mm, exteriérový nátěr v odstínu RAL 7016","r.š. 860 mm"," ; Další specifikace viz Kniha klempířských prvků","Oplechování atiky; Popis:Oplechování atiky, včetně doplňkového a montážního materiálu.; Materiál:Ocelový pozinkovaný plech, tl. 0,6 mm, exteriérový nátěr v odstínu RAL 7016; Rozměry:r.š. 860 mm ; Další specifikace viz Kniha klempířských prvků","m",13.7,1480]
["1B.P1-1.03","Oplechování atiky","Oplechování atiky, včetně doplňkového a montážního materiálu.","Ocelový pozinkovaný plech, tl. 0,6 mm, exteriérový nátěr v odstínu RAL 7016","r.š. 720 mm"," ; Další specifikace viz Kniha klempířských prvků","Oplechování atiky; Popis:Oplechování atiky, včetně doplňkového a montážního materiálu.; Materiál:Ocelový pozinkovaný plech, tl. 0,6 mm, exteriérový nátěr v odstínu RAL 7016; Rozměry:r.š. 720 mm ; Další specifikace viz Kniha klempířských prvků","m",14.1,1100]
["1B.P1-1.04","Boční oplechování","Boční oplechování, včetně doplňkového a montážního materiálu.","Ocelový pozinkovaný plech, tl. 0,6 mm, exteriérový nátěr v odstínu RAL 7016","r.š. 435 mm"," ; Další specifikace viz Kniha klempířských prvků","Boční oplechování; Popis:Boční oplechování, včetně doplňkového a montážního materiálu.; Materiál:Ocelový pozinkovaný plech, tl. 0,6 mm, exteriérový nátěr v odstínu RAL 7016; Rozměry:r.š. 435 mm ; Další specifikace viz Kniha klempířských prvků","m",5.5,860]
["1B.P1-1.05","Dešťový žlab","Dešťový žlab, včetně doplňkového a montážního materiálu.","Ocelový pozinkovaný plech, tl. 0,6 mm, exteriérový nátěr v odstínu RAL 7016","průměr 300 mm"," ; Další specifikace viz Kniha klempířských prvků","Dešťový žlab; Popis:Dešťový žlab, včetně doplňkového a montážního materiálu.; Materiál:Ocelový pozinkovaný plech, tl. 0,6 mm, exteriérový nátěr v odstínu RAL 7016; Rozměry:průměr 300 mm ; Další specifikace viz Kniha klempířských prvků","m",32.1,725]
["1B.P1-1.06","Dešťový svod","Dešťový svod, včetně doplňkového a montážního materiálu.","Ocelový pozinkovaný plech, tl. 0,6 mm, exteriérový nátěr v odstínu RAL 7016","průměr 120 mm"," ; Další specifikace viz Kniha klempířských prvků","Dešťový svod; Popis:Dešťový svod, včetně doplňkového a montážního materiálu.; Materiál:Ocelový pozinkovaný plech, tl. 0,6 mm, exteriérový nátěr v odstínu RAL 7016; Rozměry:průměr 120 mm ; Další specifikace viz Kniha klempířských prvků","m",14.1,919]
["KP","Zámečnické prvky"]
["1B.Z1-1.01","Drátěné poplastované pletivo","Oplocení z dratěného poplastovaného pletiva se sloupkami, obrubníkem a brankou. Branka opatřena kováním klika koule se samozavíračem a generální vložkovým klíčem. Velikost ok pletiva 55 x 55 mm. Nosné sloupky z švorové trubky 48 mm o síle stěny 1,5 mm. Sloupky po 2,5 m, opěry plotu na začátku, na konci na každém rohu a po každých 25 m. Základová patka se provádí pod každým nosným sloupkem do nezámrzné hloubky, velikost pakty 300 x 300 mm. Obrubník je uložen do rýhy s maltovým ložem. Výška obrubníku je 200 mm, je částečně zapuštěn do terénu.","Poplastované plepletivo a sloupky a branka, barva jehlová zeleň RAL 6005, obrubník: beton","výška 1,8 m"," ; Další specifikace viz Kniha zámečnických prvků",{"$f":"CONCATENATE(B11,$C$1,C11,$D$1,D11,$E$1,E11,F11)","v":"Drátěné poplastované pletivo; Popis:Oplocení z dratěného poplastovaného pletiva se sloupkami, obrubníkem a brankou. Branka opatřena kováním klika koule se samozavíračem a generální vložkovým klíčem. Velikost ok pletiva 55 x 55 mm. Nosné sloupky z švorové trubky 48 mm o síle stěny 1,5 mm. Sloupky po 2,5 m, opěry plotu na začátku, na konci na každém rohu a po každých 25 m. Základová patka se provádí pod každým nosným sloupkem do nezámrzné hloubky, velikost pakty 300 x 300 mm. Obrubník je uložen do rýhy s maltovým ložem. Výška obrubníku je 200 mm, je částečně zapuštěn do terénu.; Materiál:Poplastované plepletivo a sloupky a branka, barva jehlová zeleň RAL 6005, obrubník: beton; Rozměry:výška 1,8 m ; Další specifikace viz Kniha zámečnických prvků"},"m",52.5,1297]
["TP","Truhlářské prvky"]
["1B.T1-1.01","Oddělující lehká dřevěná příčka","Oddělující lehká dřevěná příčka, rošt ze smrkových doblovaných hranolů 40 x 40 mm spojené konstrukčními vruty se zápustnou hlavou, opláštěné laminátovou MDF deskou, vzor světlého dřeva s méně výraznou kresbou. Hranoly kotveny do stěny a stropu. Součástí příčky jsou uzamykatelné dveře o rozměru 1600 x 1970 mm, obložková polodrážková zárubeň materiál MDF, vložkový zámek + klika.","rošt: smrkové hranoly, opláštění a dveře: MDF deska, zámek a klika: broušený nerez","2500 x 60 x 2300 mm (d x hl x v)"," ; Všechen nábytek musí být proveden tak, aby splňoval požadavky pro užívání lidí s autismem. Tento nábytek musí splňovat požadavky na dostatečnou odolnost, jednoduchou udržovatelnost, vysokou odolnost vůči poškození, musí byýt dostatečně tuhý, stabilní a odolný proti nárazu, tak aby nedošlo k poškození nábytku ani k úrazu; Další specifikace viz Kniha truhlářských prvků",{"$f":"CONCATENATE(B13,$C$1,C13,$D$1,D13,$E$1,E13,F13)","v":"Oddělující lehká dřevěná příčka; Popis:Oddělující lehká dřevěná příčka, rošt ze smrkových doblovaných hranolů 40 x 40 mm spojené konstrukčními vruty se zápustnou hlavou, opláštěné laminátovou MDF deskou, vzor světlého dřeva s méně výraznou kresbou. Hranoly kotveny do stěny a stropu. Součástí příčky jsou uzamykatelné dveře o rozměru 1600 x 1970 mm, obložková polodrážková zárubeň materiál MDF, vložkový zámek + klika.; Materiál:rošt: smrkové hranoly, opláštění a dveře: MDF deska, zámek a klika: broušený nerez; Rozměry:2500 x 60 x 2300 mm (d x hl x v) ; Všechen nábytek musí být proveden tak, aby splňoval požadavky pro užívání lidí s autismem. Tento nábytek musí splňovat požadavky na dostatečnou odolnost, jednoduchou udržovatelnost, vysokou odolnost vůči poškození, musí byýt dostatečně tuhý, stabilní a odolný proti nárazu, tak aby nedošlo k poškození nábytku ani k úrazu; Další specifikace viz Kniha truhlářských prvků"},"ks",1,{"$f":"23000*1.2","v":27600}]
["1B.T1-1.02","Kuchyňská linka tvaru U","Kuchyňská linka tvaru U, sokl 80 mm, korpus z lamino desky tl. 18 mm, hrana z ABS tl. 2 mm. Horní i spodní skříňky plné, pracovní deska z laminátové desky tl. 38 mm, nerezový dřez s odkapávačem. Kování linky je kovové. Součástí kuchyňské linky je dřez s odkapávačem, varná deska se čtyřmi plotýnkami, trouba, lednička, mrazák a myčka. Spotřebiče energetiské třídy min. A přesně specifikovány vnitřního vybavení. Horní i spodní část je opatřená krycím panelem š. 50 mm.","Korpus z lamina, pracovní deska z laminátové desky","viz. obrazová příloha","  ; SPOTŘEBIČE OCENIT V KAPITOLE_Prvky vnitřního vybevení - Elektro a příslušenství  ; Všechen nábytek musí být proveden tak, aby splňoval požadavky pro užívání lidí s autismem. Tento nábytek musí splňovat požadavky na dostatečnou odolnost, jednoduchou udržovatelnost, vysokou odolnost vůči poškození, musí byýt dostatečně tuhý, stabilní a odolný proti nárazu, tak aby nedošlo k poškození nábytku ani k úrazu; Další specifikace viz Kniha truhlářských prvků",{"$f":"CONCATENATE(B14,$C$1,C14,$D$1,D14,$E$1,E14,F14)","v":"Kuchyňská linka tvaru U; Popis:Kuchyňská linka tvaru U, sokl 80 mm, korpus z lamino desky tl. 18 mm, hrana z ABS tl. 2 mm. Horní i spodní skříňky plné, pracovní deska z laminátové desky tl. 38 mm, nerezový dřez s odkapávačem. Kování linky je kovové. Součástí kuchyňské linky je dřez s odkapávačem, varná deska se čtyřmi plotýnkami, trouba, lednička, mrazák a myčka. Spotřebiče energetiské třídy min. A přesně specifikovány vnitřního vybavení. Horní i spodní část je opatřená krycím panelem š. 50 mm.; Materiál:Korpus z lamina, pracovní deska z laminátové desky; Rozměry:viz. obrazová příloha  ; SPOTŘEBIČE OCENIT V KAPITOLE_Prvky vnitřního vybevení - Elektro a příslušenství  ; Všechen nábytek musí být proveden tak, aby splňoval požadavky pro užívání lidí s autismem. Tento nábytek musí splňovat požadavky na dostatečnou odolnost, jednoduchou udržovatelnost, vysokou odolnost vůči poškození, musí byýt dostatečně tuhý, stabilní a odolný proti nárazu, tak aby nedošlo k poškození nábytku ani k úrazu; Další specifikace viz Kniha truhlářských prvků"},"ks",1,{"$f":"231600*1.2*0.9","v":250128}]
["OP","Ostatní prvky"]
["1B.X1-1.01","Venkovní rolety","Venkovní hliníková roleta pro regulaci přirozeného osvětlení a zachycení slunečních paprsků s bočními vodícími lištami. Horní ocelový válcovaný profil upravený pozinkování o rozměru 58 x 56 mm zakrytý krycím plechem. Lamely hliníkové o šířce 80 mm s navíjecími mechanismy, textilními žebříčky a vytahovacími páskami. Boční vodící lišty o rozměru 20 x 20 mm v barvě stříbrná elox. Ovládání elektrické.","hliník, barva stříbrný elox","1250x1750 mm (šxv)"," ; Další specifikace viz Kniha ostatních prvků",{"$f":"CONCATENATE(B16,$C$1,C16,$D$1,D16,$E$1,E16,F16)","v":"Venkovní rolety; Popis:Venkovní hliníková roleta pro regulaci přirozeného osvětlení a zachycení slunečních paprsků s bočními vodícími lištami. Horní ocelový válcovaný profil upravený pozinkování o rozměru 58 x 56 mm zakrytý krycím plechem. Lamely hliníkové o šířce 80 mm s navíjecími mechanismy, textilními žebříčky a vytahovacími páskami. Boční vodící lišty o rozměru 20 x 20 mm v barvě stříbrná elox. Ovládání elektrické.; Materiál:hliník, barva stříbrný elox; Rozměry:1250x1750 mm (šxv) ; Další specifikace viz Kniha ostatních prvků"},"ks",6,6125]
["1B.X1-1.02","Stahovací schody zateplené s požární odolností","Stahovací schody zateplené s protipožární vložkou (EW 15 DP3). Schody jsou opatřeny brzdícím mechanismem proti prudkému otevření. Víko je sendvočové složeno z dřevěného rámu vyplněný izolačním materiálem opláštěný pozinkovaným plechem. Pohledová čast je lakovaná v bílé barvě a kryta ochrannou fólií.","víko: dřevěný rám vyplněný izolantem opláštěný pozinkovaným plechem, pohledová část lakovaná, barva bílá, schody: kovové","600 x 800 mm (š x d)"," ; Další specifikace viz Kniha ostatních prvků",{"$f":"CONCATENATE(B17,$C$1,C17,$D$1,D17,$E$1,E17,F17)","v":"Stahovací schody zateplené s požární odolností; Popis:Stahovací schody zateplené s protipožární vložkou (EW 15 DP3). Schody jsou opatřeny brzdícím mechanismem proti prudkému otevření. Víko je sendvočové složeno z dřevěného rámu vyplněný izolačním materiálem opláštěný pozinkovaným plechem. Pohledová čast je lakovaná v bílé barvě a kryta ochrannou fólií.; Materiál:víko: dřevěný rám vyplněný izolantem opláštěný pozinkovaným plechem, pohledová část lakovaná, barva bílá, schody: kovové; Rozměry:600 x 800 mm (š x d) ; Další specifikace viz Kniha ostatních prvků"},"ks",1,{"$f":"14720*1.2","v":17664}]
["VV_N","Prvky vnitřního vybevení - Nábytek a příslušenství"]
["1B.VV_N_001","Sedací vak","Sedací dvouvrstvý vak, výplň z kuliček z polystyrenu, obsah náplně 365 l. Materiál potahu jednobarevný polyester a polyester s PVC zátěrem z rubové strany . Hmotnost 5,5 kg.Nosnost 120 kg.",null,"1050 x 950 x 750 mm (d x š x v)"," ; Všechen nábytek musí být proveden tak, aby splňoval požadavky pro užívání lidí s autismem. Tento nábytek musí splňovat požadavky na dostatečnou odolnost, jednoduchou udržovatelnost, vysokou odolnost vůči poškození, musí byýt dostatečně tuhý, stabilní a odolný proti nárazu, tak aby nedošlo k poškození nábytku ani k úrazu; Další specifikace viz Kniha vnitřního vybavení - Kniha - prvků - Nábytek a příslušenství",{"$f":"CONCATENATE(B19,$C$1,C19,$E$1,E19,F19)","v":"Sedací vak; Popis:Sedací dvouvrstvý vak, výplň z kuliček z polystyrenu, obsah náplně 365 l. Materiál potahu jednobarevný polyester a polyester s PVC zátěrem z rubové strany . Hmotnost 5,5 kg.Nosnost 120 kg.; Rozměry:1050 x 950 x 750 mm (d x š x v) ; Všechen nábytek musí být proveden tak, aby splňoval požadavky pro užívání lidí s autismem. Tento nábytek musí splňovat požadavky na dostatečnou odolnost, jednoduchou udržovatelnost, vysokou odolnost vůči poškození, musí byýt dostatečně tuhý, stabilní a odolný proti nárazu, tak aby nedošlo k poškození nábytku ani k úrazu; Další specifikace viz Kniha vnitřního vybavení - Kniha - prvků - Nábytek a příslušenství"},"ks",6,3690]
["1B.VV_N_002","Předsíňová stěna s věšáky","Předsíňová stěna s kovovými háčky se dvěmi úchytkami a policí, kotvená do stěny včetně montážního materiálu. Korpus a police z MDF desky, barva světle hnědá, tl. 20 mm. Hrany optařeny ABS hranou tl. 1,5 mm. Háček (5 ks) se dvěmi úchytkami kotvená na desku věšáku včetně kotvení. Materiál nerezová ocel.",null,"věšák: 660 x 240 x 1520 mm (d x š x v), háček: 70 x 30 x 47 mm (d x š x v)"," ; Všechen nábytek musí být proveden tak, aby splňoval požadavky pro užívání lidí s autismem. Tento nábytek musí splňovat požadavky na dostatečnou odolnost, jednoduchou udržovatelnost, vysokou odolnost vůči poškození, musí byýt dostatečně tuhý, stabilní a odolný proti nárazu, tak aby nedošlo k poškození nábytku ani k úrazu; Další specifikace viz Kniha vnitřního vybavení - Kniha - prvků - Nábytek a příslušenství","Předsíňová stěna s věšáky; Popis:Předsíňová stěna s kovovými háčky se dvěmi úchytkami a policí, kotvená do stěny včetně montážního materiálu. Korpus a police z MDF desky, barva světle hnědá, tl. 20 mm. Hrany optařeny ABS hranou tl. 1,5 mm. Háček (5 ks) se dvěmi úchytkami kotvená na desku věšáku včetně kotvení. Materiál nerezová ocel.; Rozměry:věšák: 660 x 240 x 1520 mm (d x š x v), háček: 70 x 30 x 47 mm (d x š x v) ; Všechen nábytek musí být proveden tak, aby splňoval požadavky pro užívání lidí s autismem. Tento nábytek musí splňovat požadavky na dostatečnou odolnost, jednoduchou udržovatelnost, vysokou odolnost vůči poškození, musí byýt dostatečně tuhý, stabilní a odolný proti nárazu, tak aby nedošlo k poškození nábytku ani k úrazu; Další specifikace viz Kniha vnitřního vybavení - Kniha - prvků - Nábytek a příslušenství","ks",1,{"$f":"1427*1.2*1.3","v":2226.12}]
["1B.VV_N_003","Botník s variabilními policemi a lavicí","Botník s variabilními policemi a lavicí. Botník je členěn na 12 polic pro uložení bot. Materiál laminovaná MDF deska, barva světle hnědá. Dno i půda z desky tl. 25 mm, z přední strany ABS hrana tl. 2 mm. Ostatní pohlednové prvky opatřeny ABS hranou tl. 1 mm. Boky korpusu z desky tl. 25 mm. Záda z desky tl. 10 mm. Police z desky tl. 20 mm  s variabilním polohovatelností. Police a desky opatřeny hranou ABS tl. 2 mm. Dodávka včetvě rektifikačních nožiček. Sedák čalouněný potahvou látkou v barvě šedé.",null,"1000 x 400 x 480 mm (d x š x v)"," ; Všechen nábytek musí být proveden tak, aby splňoval požadavky pro užívání lidí s autismem. Tento nábytek musí splňovat požadavky na dostatečnou odolnost, jednoduchou udržovatelnost, vysokou odolnost vůči poškození, musí byýt dostatečně tuhý, stabilní a odolný proti nárazu, tak aby nedošlo k poškození nábytku ani k úrazu; Další specifikace viz Kniha vnitřního vybavení - Kniha - prvků - Nábytek a příslušenství","Botník s variabilními policemi a lavicí; Popis:Botník s variabilními policemi a lavicí. Botník je členěn na 12 polic pro uložení bot. Materiál laminovaná MDF deska, barva světle hnědá. Dno i půda z desky tl. 25 mm, z přední strany ABS hrana tl. 2 mm. Ostatní pohlednové prvky opatřeny ABS hranou tl. 1 mm. Boky korpusu z desky tl. 25 mm. Záda z desky tl. 10 mm. Police z desky tl. 20 mm  s variabilním polohovatelností. Police a desky opatřeny hranou ABS tl. 2 mm. Dodávka včetvě rektifikačních nožiček. Sedák čalouněný potahvou látkou v barvě šedé.; Rozměry:1000 x 400 x 480 mm (d x š x v) ; Všechen nábytek musí být proveden tak, aby splňoval požadavky pro užívání lidí s autismem. Tento nábytek musí splňovat požadavky na dostatečnou odolnost, jednoduchou udržovatelnost, vysokou odolnost vůči poškození, musí byýt dostatečně tuhý, stabilní a odolný proti nárazu, tak aby nedošlo k poškození nábytku ani k úrazu; Další specifikace viz Kniha vnitřního vybavení - Kniha - prvků - Nábytek a příslušenství","ks",1,{"$f":"3090*1.2*1.3","v":4820.4000000000005}]
["1B.VV_N_004","Vestavěná skříň policová plná s dveřmi rozdělenými na dvě části (výška 2000 mm)","Skříň dvoudvéřová. Vybavená 5 ks variabilních polic. Materiál laminovaná MDF deska, barva světle hnědá. Dno i půda z desky tl. 25 mm, z přední strany ABS hrana tl. 2 mm. Ostatní pohlednové prvky opatřeny ABS hranou tl. 1 mm. Boky korpusu z desky tl. 18 mm. Záda z desky tl. 8 mm. Police z desky tl. 25 mm, nosnost 80 kg s variabilním polohovatelností. Police a desky opatřeny hranou ABS tl. 2 mm. Dodávka včetvě rektifikačních nožiček.",null,"1400 x 400 x 2000 mm (d x š x v)"," ; Všechen nábytek musí být proveden tak, aby splňoval požadavky pro užívání lidí s autismem. Tento nábytek musí splňovat požadavky na dostatečnou odolnost, jednoduchou udržovatelnost, vysokou odolnost vůči poškození, musí byýt dostatečně tuhý, stabilní a odolný proti nárazu, tak aby nedošlo k poškození nábytku ani k úrazu; Další specifikace viz Kniha vnitřního vybavení - Kniha - prvků - Nábytek a příslušenství","Vestavěná skříň policová plná s dveřmi rozdělenými na dvě části (výška 2000 mm); Popis:Skříň dvoudvéřová. Vybavená 5 ks variabilních polic. Materiál laminovaná MDF deska, barva světle hnědá. Dno i půda z desky tl. 25 mm, z přední strany ABS hrana tl. 2 mm. Ostatní pohlednové prvky opatřeny ABS hranou tl. 1 mm. Boky korpusu z desky tl. 18 mm. Záda z desky tl. 8 mm. Police z desky tl. 25 mm, nosnost 80 kg s variabilním polohovatelností. Police a desky opatřeny hranou ABS tl. 2 mm. Dodávka včetvě rektifikačních nožiček.; Rozměry:1400 x 400 x 2000 mm (d x š x v) ; Všechen nábytek musí být proveden tak, aby splňoval požadavky pro užívání lidí s autismem. Tento nábytek musí splňovat požadavky na dostatečnou odolnost, jednoduchou udržovatelnost, vysokou odolnost vůči poškození, musí byýt dostatečně tuhý, stabilní a odolný proti nárazu, tak aby nedošlo k poškození nábytku ani k úrazu; Další specifikace viz Kniha vnitřního vybavení - Kniha - prvků - Nábytek a příslušenství","ks",1,{"$f":"21000*1.3","v":27300}]
["1B.VV_N_005","Skříňka do koupelny (výška 700 mm)","Skřínka se čtyřmi zásuvkami do koupleny a nožičkami. Materiál laminátová MDF deska, barva bílá. Dno i půda z desky tl. 25 mm, z přední strany ABS hrana tl. 2 mm. Ostatní pohlednové prvky opatřeny ABS hranou tl. 1 mm. Boky korpusu z desky tl. 18 mm. Záda z desky tl. 8 mm. Police z desky tl. 25 mm, nosnost 50 kg. Police a desky opatřeny hranou ABS tl. 2 mm. Dodávka včetvě kovových nožiček a úchytek k zásuvkám.",null,"400 x 400 x 700 mm (d x š x v)"," ; Všechen nábytek musí být proveden tak, aby splňoval požadavky pro užívání lidí s autismem. Tento nábytek musí splňovat požadavky na dostatečnou odolnost, jednoduchou udržovatelnost, vysokou odolnost vůči poškození, musí byýt dostatečně tuhý, stabilní a odolný proti nárazu, tak aby nedošlo k poškození nábytku ani k úrazu; Další specifikace viz Kniha vnitřního vybavení - Kniha - prvků - Nábytek a příslušenství","Skříňka do koupelny (výška 700 mm); Popis:Skřínka se čtyřmi zásuvkami do koupleny a nožičkami. Materiál laminátová MDF deska, barva bílá. Dno i půda z desky tl. 25 mm, z přední strany ABS hrana tl. 2 mm. Ostatní pohlednové prvky opatřeny ABS hranou tl. 1 mm. Boky korpusu z desky tl. 18 mm. Záda z desky tl. 8 mm. Police z desky tl. 25 mm, nosnost 50 kg. Police a desky opatřeny hranou ABS tl. 2 mm. Dodávka včetvě kovových nožiček a úchytek k zásuvkám.; Rozměry:400 x 400 x 700 mm (d x š x v) ; Všechen nábytek musí být proveden tak, aby splňoval požadavky pro užívání lidí s autismem. Tento nábytek musí splňovat požadavky na dostatečnou odolnost, jednoduchou udržovatelnost, vysokou odolnost vůči poškození, musí byýt dostatečně tuhý, stabilní a odolný proti nárazu, tak aby nedošlo k poškození nábytku ani k úrazu; Další specifikace viz Kniha vnitřního vybavení - Kniha - prvků - Nábytek a příslušenství","ks",1,{"$f":"3990*1.2*1.3","v":6224.4000000000005}]
["1B.VV_N_006","Zabudované zrcadlo","Nástěné pravoúhlé zrcadlo na toalety k přilepení na stěnu. Materiál sklo s bezpečnostní fólií se zabroušenými hranami. Lepidlo určené pro lepení zrcadel.",null,"600 x 400 mm (š x v)",null,"Zabudované zrcadlo; Popis:Nástěné pravoúhlé zrcadlo na toalety k přilepení na stěnu. Materiál sklo s bezpečnostní fólií se zabroušenými hranami. Lepidlo určené pro lepení zrcadel.; Rozměry:600 x 400 mm (š x v)","ks",1,750]
["1B.VV_N_007","Sklopné sedátko do sprchy s madlem","Sklopné sedátko do sprchy včetně montážního materiálu. Nosná konstrukce z nerezové oceli, sedátkou z odolného plastu  jedohuše udržovatlené. Maximální nosnost 200 kg.",null,"440 x 470 mm (d x š)"," ; Všechen nábytek musí být proveden tak, aby splňoval požadavky pro užívání lidí s autismem. Tento nábytek musí splňovat požadavky na dostatečnou odolnost, jednoduchou udržovatelnost, vysokou odolnost vůči poškození, musí byýt dostatečně tuhý, stabilní a odolný proti nárazu, tak aby nedošlo k poškození nábytku ani k úrazu; Další specifikace viz Kniha vnitřního vybavení - Kniha - prvků - Nábytek a příslušenství","Sklopné sedátko do sprchy s madlem; Popis:Sklopné sedátko do sprchy včetně montážního materiálu. Nosná konstrukce z nerezové oceli, sedátkou z odolného plastu  jedohuše udržovatlené. Maximální nosnost 200 kg.; Rozměry:440 x 470 mm (d x š) ; Všechen nábytek musí být proveden tak, aby splňoval požadavky pro užívání lidí s autismem. Tento nábytek musí splňovat požadavky na dostatečnou odolnost, jednoduchou udržovatelnost, vysokou odolnost vůči poškození, musí byýt dostatečně tuhý, stabilní a odolný proti nárazu, tak aby nedošlo k poškození nábytku ani k úrazu; Další specifikace viz Kniha vnitřního vybavení - Kniha - prvků - Nábytek a příslušenství","ks",1,{"$f":"3567*1.2","v":4280.3999999999996}]
["1B.VV_N_008","Police do skladu (výška 2000 mm)","Police do skladu s pěti policemi včetně montážního materiálu. Police jsou výškově přestavitelné v rastru 138 mm. Šedý policový regál je rychle smontovatelný bez spojovacího materiálu. Police se jednoduchým způsobem nasadí na sloupky. Možnost spojování do polí a řad vedle sebe i za sebou pro zvýšení celkové tuhosti. Konstrukce je povrchově upravena práškovým lakem šedé barvy. Nohy jsou vybaveny plastovými patkami pro ochranu podlahové krytiny.",null,"2000 x 600 x 2000 mm (d x š x v)"," ; Všechen nábytek musí být proveden tak, aby splňoval požadavky pro užívání lidí s autismem. Tento nábytek musí splňovat požadavky na dostatečnou odolnost, jednoduchou udržovatelnost, vysokou odolnost vůči poškození, musí byýt dostatečně tuhý, stabilní a odolný proti nárazu, tak aby nedošlo k poškození nábytku ani k úrazu; Další specifikace viz Kniha vnitřního vybavení - Kniha - prvků - Nábytek a příslušenství","Police do skladu (výška 2000 mm); Popis:Police do skladu s pěti policemi včetně montážního materiálu. Police jsou výškově přestavitelné v rastru 138 mm. Šedý policový regál je rychle smontovatelný bez spojovacího materiálu. Police se jednoduchým způsobem nasadí na sloupky. Možnost spojování do polí a řad vedle sebe i za sebou pro zvýšení celkové tuhosti. Konstrukce je povrchově upravena práškovým lakem šedé barvy. Nohy jsou vybaveny plastovými patkami pro ochranu podlahové krytiny.; Rozměry:2000 x 600 x 2000 mm (d x š x v) ; Všechen nábytek musí být proveden tak, aby splňoval požadavky pro užívání lidí s autismem. Tento nábytek musí splňovat požadavky na dostatečnou odolnost, jednoduchou udržovatelnost, vysokou odolnost vůči poškození, musí byýt dostatečně tuhý, stabilní a odolný proti nárazu, tak aby nedošlo k poškození nábytku ani k úrazu; Další specifikace viz Kniha vnitřního vybavení - Kniha - prvků - Nábytek a příslušenství","ks",2,20000]
["1B.VV_N_009","Police do skladu tvaru \"L\" (výška 2000 mm)","Police do skladu tvaru \"L\" s pěti police včetně montážního materiálu. Police jsou výškově přestavitelné v rastru 138 mm. Šedý policový regál je rychle smontovatelný bez spojovacího materiálu. Police se jednoduchým způsobem nasadí na sloupky. Možnost spojování do polí a řad vedle sebe i za sebou pro zvýšení celkové tuhosti. Konstrukce je povrchově upravena práškovým lakem šedé barvy. Nohy jsou vybaveny plastovými patkami pro ochranu podlahové krytiny.",null,"1810/1610 x 600 x 2000 mm (d x š x v)"," ; Všechen nábytek musí být proveden tak, aby splňoval požadavky pro užívání lidí s autismem. Tento nábytek musí splňovat požadavky na dostatečnou odolnost, jednoduchou udržovatelnost, vysokou odolnost vůči poškození, musí byýt dostatečně tuhý, stabilní a odolný proti nárazu, tak aby nedošlo k poškození nábytku ani k úrazu; Další specifikace viz Kniha vnitřního vybavení - Kniha - prvků - Nábytek a příslušenství","Police do skladu tvaru \"L\" (výška 2000 mm); Popis:Police do skladu tvaru \"L\" s pěti police včetně montážního materiálu. Police jsou výškově přestavitelné v rastru 138 mm. Šedý policový regál je rychle smontovatelný bez spojovacího materiálu. Police se jednoduchým způsobem nasadí na sloupky. Možnost spojování do polí a řad vedle sebe i za sebou pro zvýšení celkové tuhosti. Konstrukce je povrchově upravena práškovým lakem šedé barvy. Nohy jsou vybaveny plastovými patkami pro ochranu podlahové krytiny.; Rozměry:1810/1610 x 600 x 2000 mm (d x š x v) ; Všechen nábytek musí být proveden tak, aby splňoval požadavky pro užívání lidí s autismem. Tento nábytek musí splňovat požadavky na dostatečnou odolnost, jednoduchou udržovatelnost, vysokou odolnost vůči poškození, musí byýt dostatečně tuhý, stabilní a odolný proti nárazu, tak aby nedošlo k poškození nábytku ani k úrazu; Další specifikace viz Kniha vnitřního vybavení - Kniha - prvků - Nábytek a příslušenství","ks",1,18100]
["1B.VV_N_010","Celomasivní postel s matrací","Celomasivní poslet z bukového dřeva i s matrací. Materiál bukové dřevo ošetřeno nezávadným lakem ve dvou vrstvách. Součástí postele je rošt, čelo hlavy, nohy a nosná konstrukce. Výška čela u hlavy 870 mm a výška čela u nohou 460 mm, nohy rozměru 55 x 55 mm, nosná konstrukce z masinu tl. 29 mm. Ortopedická matrace s kanálky pro zajištění dostatečného větrání s potahem se zipem. Výška matrace 200 mm. Matrace má vyskou tvarvou stálost a zónované jádro. Nosnot matrace 130 kg.",null,"rozměr postele: 2200 x 1000 mm (d x š), rozměr madrace: 2100 x 900 mm (d x š)"," ; Všechen nábytek musí být proveden tak, aby splňoval požadavky pro užívání lidí s autismem. Tento nábytek musí splňovat požadavky na dostatečnou odolnost, jednoduchou udržovatelnost, vysokou odolnost vůči poškození, musí byýt dostatečně tuhý, stabilní a odolný proti nárazu, tak aby nedošlo k poškození nábytku ani k úrazu; Další specifikace viz Kniha vnitřního vybavení - Kniha - prvků - Nábytek a příslušenství","Celomasivní postel s matrací; Popis:Celomasivní poslet z bukového dřeva i s matrací. Materiál bukové dřevo ošetřeno nezávadným lakem ve dvou vrstvách. Součástí postele je rošt, čelo hlavy, nohy a nosná konstrukce. Výška čela u hlavy 870 mm a výška čela u nohou 460 mm, nohy rozměru 55 x 55 mm, nosná konstrukce z masinu tl. 29 mm. Ortopedická matrace s kanálky pro zajištění dostatečného větrání s potahem se zipem. Výška matrace 200 mm. Matrace má vyskou tvarvou stálost a zónované jádro. Nosnot matrace 130 kg.; Rozměry:rozměr postele: 2200 x 1000 mm (d x š), rozměr madrace: 2100 x 900 mm (d x š) ; Všechen nábytek musí být proveden tak, aby splňoval požadavky pro užívání lidí s autismem. Tento nábytek musí splňovat požadavky na dostatečnou odolnost, jednoduchou udržovatelnost, vysokou odolnost vůči poškození, musí byýt dostatečně tuhý, stabilní a odolný proti nárazu, tak aby nedošlo k poškození nábytku ani k úrazu; Další specifikace viz Kniha vnitřního vybavení - Kniha - prvků - Nábytek a příslušenství","ks",6,25000]
["1B.VV_N_011","Šatní skříň plná s dveřmi rozdělenými na dvě části (výška 2000 mm)","Skříň dvoudvéřová s nosnou ocelovou konstrukcí opláštěnou dubovými spárovkami. Vybavená 5 ks polic. Materiál dubová spárovka, ošetřeno nezávadným lakem ve dvou vrstvách. Dno, půda a boky z desky tl. 26 mm, záda z desky tl. 20 mm. Police z desky tl. 20 mm, nosnost 150 kg s pevnou výškou polic. Hrany polic a desek zaobleny r=3 mm. Nosná konstrukce z ocelového uzavřeného čtvercového průřezu o rozměru 10 x 10 mm, tl. stěny 1,0 mm. Ocelová konstrukce opatřena nátěrem v barvě světle hnědé. Kování musí být navrženo pro větší nosnost (cca 100 kg).  Dodávka včetvě rektifikačních nožiček.",null,"1700 x 600 x 2000 mm (d x š x v)"," ; Všechen nábytek musí být proveden tak, aby splňoval požadavky pro užívání lidí s autismem. Tento nábytek musí splňovat požadavky na dostatečnou odolnost, jednoduchou udržovatelnost, vysokou odolnost vůči poškození, musí byýt dostatečně tuhý, stabilní a odolný proti nárazu, tak aby nedošlo k poškození nábytku ani k úrazu; Další specifikace viz Kniha vnitřního vybavení - Kniha - prvků - Nábytek a příslušenství","Šatní skříň plná s dveřmi rozdělenými na dvě části (výška 2000 mm); Popis:Skříň dvoudvéřová s nosnou ocelovou konstrukcí opláštěnou dubovými spárovkami. Vybavená 5 ks polic. Materiál dubová spárovka, ošetřeno nezávadným lakem ve dvou vrstvách. Dno, půda a boky z desky tl. 26 mm, záda z desky tl. 20 mm. Police z desky tl. 20 mm, nosnost 150 kg s pevnou výškou polic. Hrany polic a desek zaobleny r=3 mm. Nosná konstrukce z ocelového uzavřeného čtvercového průřezu o rozměru 10 x 10 mm, tl. stěny 1,0 mm. Ocelová konstrukce opatřena nátěrem v barvě světle hnědé. Kování musí být navrženo pro větší nosnost (cca 100 kg).  Dodávka včetvě rektifikačních nožiček.; Rozměry:1700 x 600 x 2000 mm (d x š x v) ; Všechen nábytek musí být proveden tak, aby splňoval požadavky pro užívání lidí s autismem. Tento nábytek musí splňovat požadavky na dostatečnou odolnost, jednoduchou udržovatelnost, vysokou odolnost vůči poškození, musí byýt dostatečně tuhý, stabilní a odolný proti nárazu, tak aby nedošlo k poškození nábytku ani k úrazu; Další specifikace viz Kniha vnitřního vybavení - Kniha - prvků - Nábytek a příslušenství","ks",3,{"$f":"25500*1.3","v":33150}]
["1B.VV_N_012","Šatní skříň plná s dveřmi rozdělenými na dvě části (výška 2000 mm)","Skříň dvoudvéřová s nosnou ocelovou konstrukcí opláštěnou dubovými spárovkami. Vybavená 5 ks polic. Materiál dubová spárovka, ošetřeno nezávadným lakem ve dvou vrstvách. Dno, půda a boky z desky tl. 26 mm, záda z desky tl. 20 mm. Police z desky tl. 20 mm, nosnost 150 kg s pevnou výškou polic. Hrany polic a desek zaobleny r=3 mm. Nosná konstrukce z ocelového uzavřeného čtvercového průřezu o rozměru 10 x 10 mm, tl. stěny 1,0 mm. Ocelová konstrukce opatřena nátěrem v barvě světle hnědé. Kování musí být navrženo pro větší nosnost (cca 100 kg).  Dodávka včetvě rektifikačních nožiček.",null,"1200 x 600 x 2000 mm (d x š x v)"," ; Všechen nábytek musí být proveden tak, aby splňoval požadavky pro užívání lidí s autismem. Tento nábytek musí splňovat požadavky na dostatečnou odolnost, jednoduchou udržovatelnost, vysokou odolnost vůči poškození, musí byýt dostatečně tuhý, stabilní a odolný proti nárazu, tak aby nedošlo k poškození nábytku ani k úrazu; Další specifikace viz Kniha vnitřního vybavení - Kniha - prvků - Nábytek a příslušenství","Šatní skříň plná s dveřmi rozdělenými na dvě části (výška 2000 mm); Popis:Skříň dvoudvéřová s nosnou ocelovou konstrukcí opláštěnou dubovými spárovkami. Vybavená 5 ks polic. Materiál dubová spárovka, ošetřeno nezávadným lakem ve dvou vrstvách. Dno, půda a boky z desky tl. 26 mm, záda z desky tl. 20 mm. Police z desky tl. 20 mm, nosnost 150 kg s pevnou výškou polic. Hrany polic a desek zaobleny r=3 mm. Nosná konstrukce z ocelového uzavřeného čtvercového průřezu o rozměru 10 x 10 mm, tl. stěny 1,0 mm. Ocelová konstrukce opatřena nátěrem v barvě světle hnědé. Kování musí být navrženo pro větší nosnost (cca 100 kg).  Dodávka včetvě rektifikačních nožiček.; Rozměry:1200 x 600 x 2000 mm (d x š x v) ; Všechen nábytek musí být proveden tak, aby splňoval požadavky pro užívání lidí s autismem. Tento nábytek musí splňovat požadavky na dostatečnou odolnost, jednoduchou udržovatelnost, vysokou odolnost vůči poškození, musí byýt dostatečně tuhý, stabilní a odolný proti nárazu, tak aby nedošlo k poškození nábytku ani k úrazu; Další specifikace viz Kniha vnitřního vybavení - Kniha - prvků - Nábytek a příslušenství","ks",3,{"$f":"25500/1.7*1.2*1.3","v":23400}]
["1B.VV_N_017","Sada kuchyňského nádobí","Sada kuchyňského nádobí obsahuje hrnec o průměru 16 cm s obsahem 2,1 l, hrnec o průměru 20 cm s obsahem 3,6 l, hrnec o průměru 24 cm s obsahem 5,7 l, keramická pánev, pekáč, tři nože, nůž na pečivo, čtyři vařečky, dvě naběračky, cedník, dvě škrabky, tři prkénka na maso, pečivo, zelenivu a ovoce, struhadlo, dvanáct hlubokých talířů, mělkých, dezertních a misek, tři mísy, dvanáct skleniček a hrnků, dvě sady příborů.",null," - - -"," ; Všechen nábytek musí být proveden tak, aby splňoval požadavky pro užívání lidí s autismem. Tento nábytek musí splňovat požadavky na dostatečnou odolnost, jednoduchou udržovatelnost, vysokou odolnost vůči poškození, musí byýt dostatečně tuhý, stabilní a odolný proti nárazu, tak aby nedošlo k poškození nábytku ani k úrazu; Další specifikace viz Kniha vnitřního vybavení - Kniha - prvků - Nábytek a příslušenství","Sada kuchyňského nádobí; Popis:Sada kuchyňského nádobí obsahuje hrnec o průměru 16 cm s obsahem 2,1 l, hrnec o průměru 20 cm s obsahem 3,6 l, hrnec o průměru 24 cm s obsahem 5,7 l, keramická pánev, pekáč, tři nože, nůž na pečivo, čtyři vařečky, dvě naběračky, cedník, dvě škrabky, tři prkénka na maso, pečivo, zelenivu a ovoce, struhadlo, dvanáct hlubokých talířů, mělkých, dezertních a misek, tři mísy, dvanáct skleniček a hrnků, dvě sady příborů.; Rozměry: - - - ; Všechen nábytek musí být proveden tak, aby splňoval požadavky pro užívání lidí s autismem. Tento nábytek musí splňovat požadavky na dostatečnou odolnost, jednoduchou udržovatelnost, vysokou odolnost vůči poškození, musí byýt dostatečně tuhý, stabilní a odolný proti nárazu, tak aby nedošlo k poškození nábytku ani k úrazu; Další specifikace viz Kniha vnitřního vybavení - Kniha - prvků - Nábytek a příslušenství","ks",1,15000]
["1B.VV_N_018","Termoport","Termoport pro uskladnění pokrmů určených pro přepravu. Termoport je nevyhřívaný, čelní plnění s nasazovacími dvířky. Uzavírání pomocí záklopných uzávěrů zapuštěných do čelních stěnkorpusu, vnitřní prostor umožňuje uložení 12 párů vylisovaných drážek se svislou roztečí 39 mm k zasouvání gastro nádob, praktických držák popisovacích karet a ergonomická madla s neklouzavými plastovými úchyty.  Materiál polypropylen, polyamid a chromniklová ocel. Hmotnost 14 kg.",null,"630 x 425 x 660 mm"," ; Všechen nábytek musí být proveden tak, aby splňoval požadavky pro užívání lidí s autismem. Tento nábytek musí splňovat požadavky na dostatečnou odolnost, jednoduchou udržovatelnost, vysokou odolnost vůči poškození, musí byýt dostatečně tuhý, stabilní a odolný proti nárazu, tak aby nedošlo k poškození nábytku ani k úrazu; Další specifikace viz Kniha vnitřního vybavení - Kniha - prvků - Nábytek a příslušenství","Termoport; Popis:Termoport pro uskladnění pokrmů určených pro přepravu. Termoport je nevyhřívaný, čelní plnění s nasazovacími dvířky. Uzavírání pomocí záklopných uzávěrů zapuštěných do čelních stěnkorpusu, vnitřní prostor umožňuje uložení 12 párů vylisovaných drážek se svislou roztečí 39 mm k zasouvání gastro nádob, praktických držák popisovacích karet a ergonomická madla s neklouzavými plastovými úchyty.  Materiál polypropylen, polyamid a chromniklová ocel. Hmotnost 14 kg.; Rozměry:630 x 425 x 660 mm ; Všechen nábytek musí být proveden tak, aby splňoval požadavky pro užívání lidí s autismem. Tento nábytek musí splňovat požadavky na dostatečnou odolnost, jednoduchou udržovatelnost, vysokou odolnost vůči poškození, musí byýt dostatečně tuhý, stabilní a odolný proti nárazu, tak aby nedošlo k poškození nábytku ani k úrazu; Další specifikace viz Kniha vnitřního vybavení - Kniha - prvků - Nábytek a příslušenství","ks",1,{"$f":"16081","v":16081}]
["1B.VV_N_021","Sklopná vana","Nastavitelná vana s digitálním panelem, kontrolou teploty vody, desinfekčním programem a perličkovými tryskami. Technické parametry vnitřní délka 1850 mm, vnitřní šířka 550 mm, hloubka 420 mm, nosnost 160 kg, vzduchová masáž, 12 trysek, napájení 230 V.",null,"2090 x 820 x 635 - 1035 mm (d x š x v)"," ; Všechen nábytek musí být proveden tak, aby splňoval požadavky pro užívání lidí s autismem. Tento nábytek musí splňovat požadavky na dostatečnou odolnost, jednoduchou udržovatelnost, vysokou odolnost vůči poškození, musí byýt dostatečně tuhý, stabilní a odolný proti nárazu, tak aby nedošlo k poškození nábytku ani k úrazu; Další specifikace viz Kniha vnitřního vybavení - Kniha - prvků - Nábytek a příslušenství","Sklopná vana; Popis:Nastavitelná vana s digitálním panelem, kontrolou teploty vody, desinfekčním programem a perličkovými tryskami. Technické parametry vnitřní délka 1850 mm, vnitřní šířka 550 mm, hloubka 420 mm, nosnost 160 kg, vzduchová masáž, 12 trysek, napájení 230 V.; Rozměry:2090 x 820 x 635 - 1035 mm (d x š x v) ; Všechen nábytek musí být proveden tak, aby splňoval požadavky pro užívání lidí s autismem. Tento nábytek musí splňovat požadavky na dostatečnou odolnost, jednoduchou udržovatelnost, vysokou odolnost vůči poškození, musí byýt dostatečně tuhý, stabilní a odolný proti nárazu, tak aby nedošlo k poškození nábytku ani k úrazu; Další specifikace viz Kniha vnitřního vybavení - Kniha - prvků - Nábytek a příslušenství","ks",1,200000]
["1B.VV_N_022","Sklopná madla k WC","Sklopná madla k WC včetně montážníh materiálu. Madla jsou z nerezi. Nosnost 120 kg.",null,"délka madla 813 mm"," ; Všechen nábytek musí být proveden tak, aby splňoval požadavky pro užívání lidí s autismem. Tento nábytek musí splňovat požadavky na dostatečnou odolnost, jednoduchou udržovatelnost, vysokou odolnost vůči poškození, musí byýt dostatečně tuhý, stabilní a odolný proti nárazu, tak aby nedošlo k poškození nábytku ani k úrazu; Další specifikace viz Kniha vnitřního vybavení - Kniha - prvků - Nábytek a příslušenství","Sklopná madla k WC; Popis:Sklopná madla k WC včetně montážníh materiálu. Madla jsou z nerezi. Nosnost 120 kg.; Rozměry:délka madla 813 mm ; Všechen nábytek musí být proveden tak, aby splňoval požadavky pro užívání lidí s autismem. Tento nábytek musí splňovat požadavky na dostatečnou odolnost, jednoduchou udržovatelnost, vysokou odolnost vůči poškození, musí byýt dostatečně tuhý, stabilní a odolný proti nárazu, tak aby nedošlo k poškození nábytku ani k úrazu; Další specifikace viz Kniha vnitřního vybavení - Kniha - prvků - Nábytek a příslušenství","ks",2,{"$f":"2488","v":2488}]
["1B.VV_N_023","Psací stůl pro personál","Pracovní stůl obdélníkový bez zásuvek. Materiál laminátová MDF deska, barva světle hnědá. Deska tl. 18 mm. Deska opatřená ABS hranou tl. 2 mm. Nohy stolu hliníkové, povrchová úprava práškovým vypalovacím lakem v odstínu štříbrno šedá.",null,"1200 x 700 x 740 mm (d x š x v)"," ; Všechen nábytek musí být proveden tak, aby splňoval požadavky pro užívání lidí s autismem. Tento nábytek musí splňovat požadavky na dostatečnou odolnost, jednoduchou udržovatelnost, vysokou odolnost vůči poškození, musí byýt dostatečně tuhý, stabilní a odolný proti nárazu, tak aby nedošlo k poškození nábytku ani k úrazu; Další specifikace viz Kniha vnitřního vybavení - Kniha - prvků - Nábytek a příslušenství","Psací stůl pro personál; Popis:Pracovní stůl obdélníkový bez zásuvek. Materiál laminátová MDF deska, barva světle hnědá. Deska tl. 18 mm. Deska opatřená ABS hranou tl. 2 mm. Nohy stolu hliníkové, povrchová úprava práškovým vypalovacím lakem v odstínu štříbrno šedá.; Rozměry:1200 x 700 x 740 mm (d x š x v) ; Všechen nábytek musí být proveden tak, aby splňoval požadavky pro užívání lidí s autismem. Tento nábytek musí splňovat požadavky na dostatečnou odolnost, jednoduchou udržovatelnost, vysokou odolnost vůči poškození, musí byýt dostatečně tuhý, stabilní a odolný proti nárazu, tak aby nedošlo k poškození nábytku ani k úrazu; Další specifikace viz Kniha vnitřního vybavení - Kniha - prvků - Nábytek a příslušenství","ks",1,5220]
["1B.VV_N_024","Zásuvkový díl uzamykatelný","Kancelářský kontejner volně stojící se čtyřmi zásuvkami uzamykatelný na plastových kolečkách. V čele horní zásuvky umístěný zámek, jednotlivé zásuvky opatřené kovovými úchytkami. Materiál laminátová MDF deska, barva světle hnědá. Deska tl. 18 mm. Deska opatřená ABS hranou tl. 2 mm. Kovové pojezdy zásuvek.",null,"600 x 420 x 550 mm (d x š x v)"," ; Všechen nábytek musí být proveden tak, aby splňoval požadavky pro užívání lidí s autismem. Tento nábytek musí splňovat požadavky na dostatečnou odolnost, jednoduchou udržovatelnost, vysokou odolnost vůči poškození, musí byýt dostatečně tuhý, stabilní a odolný proti nárazu, tak aby nedošlo k poškození nábytku ani k úrazu; Další specifikace viz Kniha vnitřního vybavení - Kniha - prvků - Nábytek a příslušenství","Zásuvkový díl uzamykatelný; Popis:Kancelářský kontejner volně stojící se čtyřmi zásuvkami uzamykatelný na plastových kolečkách. V čele horní zásuvky umístěný zámek, jednotlivé zásuvky opatřené kovovými úchytkami. Materiál laminátová MDF deska, barva světle hnědá. Deska tl. 18 mm. Deska opatřená ABS hranou tl. 2 mm. Kovové pojezdy zásuvek.; Rozměry:600 x 420 x 550 mm (d x š x v) ; Všechen nábytek musí být proveden tak, aby splňoval požadavky pro užívání lidí s autismem. Tento nábytek musí splňovat požadavky na dostatečnou odolnost, jednoduchou udržovatelnost, vysokou odolnost vůči poškození, musí byýt dostatečně tuhý, stabilní a odolný proti nárazu, tak aby nedošlo k poškození nábytku ani k úrazu; Další specifikace viz Kniha vnitřního vybavení - Kniha - prvků - Nábytek a příslušenství","ks",1,5070]
["1B.VV_N_025","Nastavitelný držák na počítač pod stůl","Nastavitelný držák na počítač pod stůl včetně montážního materiálu. Materiál ocel se stříbrným lakem. Nosnost do 4,5 kg.",null,"135 - 250 x 300 - 458 mm (š x v)"," ; Všechen nábytek musí být proveden tak, aby splňoval požadavky pro užívání lidí s autismem. Tento nábytek musí splňovat požadavky na dostatečnou odolnost, jednoduchou udržovatelnost, vysokou odolnost vůči poškození, musí byýt dostatečně tuhý, stabilní a odolný proti nárazu, tak aby nedošlo k poškození nábytku ani k úrazu; Další specifikace viz Kniha vnitřního vybavení - Kniha - prvků - Nábytek a příslušenství","Nastavitelný držák na počítač pod stůl; Popis:Nastavitelný držák na počítač pod stůl včetně montážního materiálu. Materiál ocel se stříbrným lakem. Nosnost do 4,5 kg.; Rozměry:135 - 250 x 300 - 458 mm (š x v) ; Všechen nábytek musí být proveden tak, aby splňoval požadavky pro užívání lidí s autismem. Tento nábytek musí splňovat požadavky na dostatečnou odolnost, jednoduchou udržovatelnost, vysokou odolnost vůči poškození, musí byýt dostatečně tuhý, stabilní a odolný proti nárazu, tak aby nedošlo k poškození nábytku ani k úrazu; Další specifikace viz Kniha vnitřního vybavení - Kniha - prvků - Nábytek a příslušenství","ks",1,1203]
["1B.VV_N_026","Kancelářská židle otočná s kolečky","Ergonomická kancelářská židle otočná s výsokým opěrákem s kolečky. Výškově nastavitelný sedák, bederní opěrka a područky, samostatná síťovina na opěráku barva černá. Materál lakovaná ocel, plast. Hmotnost 17 kg, nosnost 120 kg.",null,"660/500 x 500 x 1000/1090 mm (d x š x v)"," ; Všechen nábytek musí být proveden tak, aby splňoval požadavky pro užívání lidí s autismem. Tento nábytek musí splňovat požadavky na dostatečnou odolnost, jednoduchou udržovatelnost, vysokou odolnost vůči poškození, musí byýt dostatečně tuhý, stabilní a odolný proti nárazu, tak aby nedošlo k poškození nábytku ani k úrazu; Další specifikace viz Kniha vnitřního vybavení - Kniha - prvků - Nábytek a příslušenství","Kancelářská židle otočná s kolečky; Popis:Ergonomická kancelářská židle otočná s výsokým opěrákem s kolečky. Výškově nastavitelný sedák, bederní opěrka a područky, samostatná síťovina na opěráku barva černá. Materál lakovaná ocel, plast. Hmotnost 17 kg, nosnost 120 kg.; Rozměry:660/500 x 500 x 1000/1090 mm (d x š x v) ; Všechen nábytek musí být proveden tak, aby splňoval požadavky pro užívání lidí s autismem. Tento nábytek musí splňovat požadavky na dostatečnou odolnost, jednoduchou udržovatelnost, vysokou odolnost vůči poškození, musí byýt dostatečně tuhý, stabilní a odolný proti nárazu, tak aby nedošlo k poškození nábytku ani k úrazu; Další specifikace viz Kniha vnitřního vybavení - Kniha - prvků - Nábytek a příslušenství","ks",1,{"$f":"3900","v":3900}]
["1B.VV_N_027","Šatní skříň s policemi a tyčí uzamykatelná (výška 2000 mm)","Skříň dvoudvéřová, dvoudílná - dělená na dvě části. 1/2 vybavená šatní tyčí a policí a 1/2 vybavená 5 ks variabilních polic. Materiál laminovaná MDF deska, barva světle hnědá. Dno i půda z desky tl. 25 mm, z přední strany ABS hrana tl. 2 mm. Ostatní pohledné prvky opatřeny ABS hranou tl. 1 mm. Boky korpusu z desky tl. 18 mm. Záda desky tl. 8 mm. Police z desky tl. 25 mm. Police a desky opatřeny hranou ABS tl. 2 mm.",null,"1700 x 600 x 2000 mm (d x š x v)"," ; Další specifikace viz Kniha vnitřního vybavení - Kniha - prvků - Nábytek a příslušenství","Šatní skříň s policemi a tyčí uzamykatelná (výška 2000 mm); Popis:Skříň dvoudvéřová, dvoudílná - dělená na dvě části. 1/2 vybavená šatní tyčí a policí a 1/2 vybavená 5 ks variabilních polic. Materiál laminovaná MDF deska, barva světle hnědá. Dno i půda z desky tl. 25 mm, z přední strany ABS hrana tl. 2 mm. Ostatní pohledné prvky opatřeny ABS hranou tl. 1 mm. Boky korpusu z desky tl. 18 mm. Záda desky tl. 8 mm. Police z desky tl. 25 mm. Police a desky opatřeny hranou ABS tl. 2 mm.; Rozměry:1700 x 600 x 2000 mm (d x š x v) ; Další specifikace viz Kniha vnitřního vybavení - Kniha - prvků - Nábytek a příslušenství","ks",1,25500]
["1B.VV_N_028","Nástěnná police s konzolemi","Nástěnná police s konzolemi kotvené do zdi včetně kotvení. Materiál laminátová MDF deska, barva světle hnědá. Police z desky tl. 25 mm, opatřena ABS hranou tl. 2 mm. Nosnost 80 kg. Konzole dřevěné v barvě světle hnědé.",null,"1000 x 300 x 20 mm (d x š x v)"," ; Všechen nábytek musí být proveden tak, aby splňoval požadavky pro užívání lidí s autismem. Tento nábytek musí splňovat požadavky na dostatečnou odolnost, jednoduchou udržovatelnost, vysokou odolnost vůči poškození, musí byýt dostatečně tuhý, stabilní a odolný proti nárazu, tak aby nedošlo k poškození nábytku ani k úrazu; Další specifikace viz Kniha vnitřního vybavení - Kniha - prvků - Nábytek a příslušenství","Nástěnná police s konzolemi; Popis:Nástěnná police s konzolemi kotvené do zdi včetně kotvení. Materiál laminátová MDF deska, barva světle hnědá. Police z desky tl. 25 mm, opatřena ABS hranou tl. 2 mm. Nosnost 80 kg. Konzole dřevěné v barvě světle hnědé.; Rozměry:1000 x 300 x 20 mm (d x š x v) ; Všechen nábytek musí být proveden tak, aby splňoval požadavky pro užívání lidí s autismem. Tento nábytek musí splňovat požadavky na dostatečnou odolnost, jednoduchou udržovatelnost, vysokou odolnost vůči poškození, musí byýt dostatečně tuhý, stabilní a odolný proti nárazu, tak aby nedošlo k poškození nábytku ani k úrazu; Další specifikace viz Kniha vnitřního vybavení - Kniha - prvků - Nábytek a příslušenství","ks",1,{"$f":"530*1.2","v":636}]
["1B.VV_N_031","Trezor pro personál","Trezor s elektronickým zámkem. Materiál ocel, korpus 1,5 mm, dveře 4 mm, povrchová úprava práškovaným lakem v barvě šedé. Možné upevnit na zeď. Provoz trezeru je za pomoci 4 běžných baterií (1,5 V).",null,"350 x 250 x 250 mm (d x š x v)"," ; Všechen nábytek musí být proveden tak, aby splňoval požadavky pro užívání lidí s autismem. Tento nábytek musí splňovat požadavky na dostatečnou odolnost, jednoduchou udržovatelnost, vysokou odolnost vůči poškození, musí byýt dostatečně tuhý, stabilní a odolný proti nárazu, tak aby nedošlo k poškození nábytku ani k úrazu; Další specifikace viz Kniha vnitřního vybavení - Kniha - prvků - Nábytek a příslušenství","Trezor pro personál; Popis:Trezor s elektronickým zámkem. Materiál ocel, korpus 1,5 mm, dveře 4 mm, povrchová úprava práškovaným lakem v barvě šedé. Možné upevnit na zeď. Provoz trezeru je za pomoci 4 běžných baterií (1,5 V).; Rozměry:350 x 250 x 250 mm (d x š x v) ; Všechen nábytek musí být proveden tak, aby splňoval požadavky pro užívání lidí s autismem. Tento nábytek musí splňovat požadavky na dostatečnou odolnost, jednoduchou udržovatelnost, vysokou odolnost vůči poškození, musí byýt dostatečně tuhý, stabilní a odolný proti nárazu, tak aby nedošlo k poškození nábytku ani k úrazu; Další specifikace viz Kniha vnitřního vybavení - Kniha - prvků - Nábytek a příslušenství","ks",1,{"$f":"1259","v":1259}]
["1B.VV_N_034","Hák s karabinou pro zavěšení houpacího pytle","Hák s karabinou pro zavěšení sezení včetně montážního materiálu. Materiál ocel, povrchová úprava bílý galvanický zinek. Nosnost 200 kg",null,"délka 280 mm"," ; Všechen nábytek musí být proveden tak, aby splňoval požadavky pro užívání lidí s autismem. Tento nábytek musí splňovat požadavky na dostatečnou odolnost, jednoduchou udržovatelnost, vysokou odolnost vůči poškození, musí byýt dostatečně tuhý, stabilní a odolný proti nárazu, tak aby nedošlo k poškození nábytku ani k úrazu; Další specifikace viz Kniha vnitřního vybavení - Kniha - prvků - Nábytek a příslušenství","Hák s karabinou pro zavěšení houpacího pytle; Popis:Hák s karabinou pro zavěšení sezení včetně montážního materiálu. Materiál ocel, povrchová úprava bílý galvanický zinek. Nosnost 200 kg; Rozměry:délka 280 mm ; Všechen nábytek musí být proveden tak, aby splňoval požadavky pro užívání lidí s autismem. Tento nábytek musí splňovat požadavky na dostatečnou odolnost, jednoduchou udržovatelnost, vysokou odolnost vůči poškození, musí byýt dostatečně tuhý, stabilní a odolný proti nárazu, tak aby nedošlo k poškození nábytku ani k úrazu; Další specifikace viz Kniha vnitřního vybavení - Kniha - prvků - Nábytek a příslušenství","ks",7,550]
["VV_E","Prvky vnitřního vybevení - Elektro a příslušenství"]
["1B.VV_E_001","Myčka vestavěná","Kapacita myčky 13 sad nádobí, 2 úložné koše, spotřeba vody 11 l, AQUA STOP proti přetečení, 2 ostřikovací ramena, 4 programy: Eco, Intenzivní, Normální, Oplachování, mycí teploty: 40-70°C, energetická třída A+, účinnost mytí A, účinnost sušení A, hlučnost 49 dB(A), spotřeba energie: 1,04 kWh.",null,"595 x 570 x 820 mm"," ; Všechen nábytek musí být proveden tak, aby splňoval požadavky pro užívání lidí s autismem. Tento nábytek musí splňovat požadavky na dostatečnou odolnost, jednoduchou udržovatelnost, vysokou odolnost vůči poškození, musí byýt dostatečně tuhý, stabilní a odolný proti nárazu, tak aby nedošlo k poškození nábytku ani k úrazu; ; Další specifikace viz Kniha vnitřního vybavení - Kniha - prvků - Elektro a příslušenství",{"$f":"CONCATENATE(B44,$C$1,C44,$E$1,E44,F44)","v":"Myčka vestavěná; Popis:Kapacita myčky 13 sad nádobí, 2 úložné koše, spotřeba vody 11 l, AQUA STOP proti přetečení, 2 ostřikovací ramena, 4 programy: Eco, Intenzivní, Normální, Oplachování, mycí teploty: 40-70°C, energetická třída A+, účinnost mytí A, účinnost sušení A, hlučnost 49 dB(A), spotřeba energie: 1,04 kWh.; Rozměry:595 x 570 x 820 mm ; Všechen nábytek musí být proveden tak, aby splňoval požadavky pro užívání lidí s autismem. Tento nábytek musí splňovat požadavky na dostatečnou odolnost, jednoduchou udržovatelnost, vysokou odolnost vůči poškození, musí byýt dostatečně tuhý, stabilní a odolný proti nárazu, tak aby nedošlo k poškození nábytku ani k úrazu; ; Další specifikace viz Kniha vnitřního vybavení - Kniha - prvků - Elektro a příslušenství"},"ks",1,15000]
["1B.VV_E_002","Varná deska vestavěná","Sklokeramická varná deska, 4 highlight varné zóny, dotykové ovládání, 9 stupňů výkonu, kontrolky provozu a zbytkového tepla, dětská pojistka, bez rámečku - rovné hrany.",null,"590 x 520 x 46 mm"," ; Všechen nábytek musí být proveden tak, aby splňoval požadavky pro užívání lidí s autismem. Tento nábytek musí splňovat požadavky na dostatečnou odolnost, jednoduchou udržovatelnost, vysokou odolnost vůči poškození, musí byýt dostatečně tuhý, stabilní a odolný proti nárazu, tak aby nedošlo k poškození nábytku ani k úrazu; ; Další specifikace viz Kniha vnitřního vybavení - Kniha - prvků - Elektro a příslušenství","Varná deska vestavěná; Popis:Sklokeramická varná deska, 4 highlight varné zóny, dotykové ovládání, 9 stupňů výkonu, kontrolky provozu a zbytkového tepla, dětská pojistka, bez rámečku - rovné hrany.; Rozměry:590 x 520 x 46 mm ; Všechen nábytek musí být proveden tak, aby splňoval požadavky pro užívání lidí s autismem. Tento nábytek musí splňovat požadavky na dostatečnou odolnost, jednoduchou udržovatelnost, vysokou odolnost vůči poškození, musí byýt dostatečně tuhý, stabilní a odolný proti nárazu, tak aby nedošlo k poškození nábytku ani k úrazu; ; Další specifikace viz Kniha vnitřního vybavení - Kniha - prvků - Elektro a příslušenství","ks",1,12000]
["1B.VV_E_003","Sušička na 8 kg prádla","Sušička, min. 8kg prádla, kondenzační s tepelným čerpadlem, min. třída A, invertorový motor.",null,"600 x 600 x 900 mm"," ; Všechen nábytek musí být proveden tak, aby splňoval požadavky pro užívání lidí s autismem. Tento nábytek musí splňovat požadavky na dostatečnou odolnost, jednoduchou udržovatelnost, vysokou odolnost vůči poškození, musí byýt dostatečně tuhý, stabilní a odolný proti nárazu, tak aby nedošlo k poškození nábytku ani k úrazu; ; Další specifikace viz Kniha vnitřního vybavení - Kniha - prvků - Elektro a příslušenství","Sušička na 8 kg prádla; Popis:Sušička, min. 8kg prádla, kondenzační s tepelným čerpadlem, min. třída A, invertorový motor.; Rozměry:600 x 600 x 900 mm ; Všechen nábytek musí být proveden tak, aby splňoval požadavky pro užívání lidí s autismem. Tento nábytek musí splňovat požadavky na dostatečnou odolnost, jednoduchou udržovatelnost, vysokou odolnost vůči poškození, musí byýt dostatečně tuhý, stabilní a odolný proti nárazu, tak aby nedošlo k poškození nábytku ani k úrazu; ; Další specifikace viz Kniha vnitřního vybavení - Kniha - prvků - Elektro a příslušenství","ks",1,15000]
["1B.VV_E_004","Kuchyňský robot","Robot s celokovovým tělem a kovovými převody, planetární systém hnětení, míchání a šlehání zaručuje bezezbytkové promíchání obsahu mísy, příslušenství: míchací metla, šlehací balónová metla, hnětací hák, mlýnek na maso se dvěma mlecími disky - hrubý 8mm a jemný 3mm, nástavec na plnění uzenářských produktů, kráječ a struhadlo se 3 vyměnitelnými nástavci pro hrubé, jemné a plátkové strouhání, kapacita pro přípravu až 1,5 kg těsta, šlehání až 8 vaječných bílků, nerezová mísa o objemu 4,5 l s dvěma madly, 8 rychlostí, regulace rychlosti otáček, bajonetový systém uchycení nástavců umožňuje rychlé sestavení i výměnu, odnímatelná mísa a příslušenství pro snadné mytí i v myčce, výkyvné rameno pro snadnou manipulaci a pohodlnější výměnu nástavců, aretační pojistka v horní poloze výkyvného ramene, protiskluzové nožky, zabraňující pohybu robotu při používání, tepelná pojistka proti přehřátí.",null,"270 x 350 x 360 mm"," ; Všechen nábytek musí být proveden tak, aby splňoval požadavky pro užívání lidí s autismem. Tento nábytek musí splňovat požadavky na dostatečnou odolnost, jednoduchou udržovatelnost, vysokou odolnost vůči poškození, musí byýt dostatečně tuhý, stabilní a odolný proti nárazu, tak aby nedošlo k poškození nábytku ani k úrazu; ; Další specifikace viz Kniha vnitřního vybavení - Kniha - prvků - Elektro a příslušenství","Kuchyňský robot; Popis:Robot s celokovovým tělem a kovovými převody, planetární systém hnětení, míchání a šlehání zaručuje bezezbytkové promíchání obsahu mísy, příslušenství: míchací metla, šlehací balónová metla, hnětací hák, mlýnek na maso se dvěma mlecími disky - hrubý 8mm a jemný 3mm, nástavec na plnění uzenářských produktů, kráječ a struhadlo se 3 vyměnitelnými nástavci pro hrubé, jemné a plátkové strouhání, kapacita pro přípravu až 1,5 kg těsta, šlehání až 8 vaječných bílků, nerezová mísa o objemu 4,5 l s dvěma madly, 8 rychlostí, regulace rychlosti otáček, bajonetový systém uchycení nástavců umožňuje rychlé sestavení i výměnu, odnímatelná mísa a příslušenství pro snadné mytí i v myčce, výkyvné rameno pro snadnou manipulaci a pohodlnější výměnu nástavců, aretační pojistka v horní poloze výkyvného ramene, protiskluzové nožky, zabraňující pohybu robotu při používání, tepelná pojistka proti přehřátí.; Rozměry:270 x 350 x 360 mm ; Všechen nábytek musí být proveden tak, aby splňoval požadavky pro užívání lidí s autismem. Tento nábytek musí splňovat požadavky na dostatečnou odolnost, jednoduchou udržovatelnost, vysokou odolnost vůči poškození, musí byýt dostatečně tuhý, stabilní a odolný proti nárazu, tak aby nedošlo k poškození nábytku ani k úrazu; ; Další specifikace viz Kniha vnitřního vybavení - Kniha - prvků - Elektro a příslušenství","ks",1,4990]
["1B.VV_E_005","Vestavěná trouba","Multifunkční horkovzdušná elektrická trouba objem 60l. Samostatná trouba s pravým horkým vzduchem v energetické třídě A, funkce rozmrazování, displej s digitálním časovačem - nastavení minutky, denního času, konce pečení a doby pečení, možnost péci na 2 úrovních najednou, uvnitř trouby vysoce lesklý smalt pro snadné čištění, nerezové provedení.",null,"594 x 540 x 589 mm"," ; Všechen nábytek musí být proveden tak, aby splňoval požadavky pro užívání lidí s autismem. Tento nábytek musí splňovat požadavky na dostatečnou odolnost, jednoduchou udržovatelnost, vysokou odolnost vůči poškození, musí byýt dostatečně tuhý, stabilní a odolný proti nárazu, tak aby nedošlo k poškození nábytku ani k úrazu; ; Další specifikace viz Kniha vnitřního vybavení - Kniha - prvků - Elektro a příslušenství","Vestavěná trouba; Popis:Multifunkční horkovzdušná elektrická trouba objem 60l. Samostatná trouba s pravým horkým vzduchem v energetické třídě A, funkce rozmrazování, displej s digitálním časovačem - nastavení minutky, denního času, konce pečení a doby pečení, možnost péci na 2 úrovních najednou, uvnitř trouby vysoce lesklý smalt pro snadné čištění, nerezové provedení.; Rozměry:594 x 540 x 589 mm ; Všechen nábytek musí být proveden tak, aby splňoval požadavky pro užívání lidí s autismem. Tento nábytek musí splňovat požadavky na dostatečnou odolnost, jednoduchou udržovatelnost, vysokou odolnost vůči poškození, musí byýt dostatečně tuhý, stabilní a odolný proti nárazu, tak aby nedošlo k poškození nábytku ani k úrazu; ; Další specifikace viz Kniha vnitřního vybavení - Kniha - prvků - Elektro a příslušenství","ks",1,13000]
["1B.VV_E_006","Chladnička s mrazákem","Volně stojící kombinovaná chladnička s mrazničkou dole, energetická třída A++, objem chladničky 112 l, objem mrazničky 48 l, klimatická třída ST, N, LED osvětlení, automatické odmrazování chladničky, manuální odmrazování mrazničky, LED osvětlení, možnost otočení otevírání dveří, 2 nastavitelné nožičky.",null,"566 x 500 x 1430 mm (d x š x v)"," ; Všechen nábytek musí být proveden tak, aby splňoval požadavky pro užívání lidí s autismem. Tento nábytek musí splňovat požadavky na dostatečnou odolnost, jednoduchou udržovatelnost, vysokou odolnost vůči poškození, musí byýt dostatečně tuhý, stabilní a odolný proti nárazu, tak aby nedošlo k poškození nábytku ani k úrazu; ; Další specifikace viz Kniha vnitřního vybavení - Kniha - prvků - Elektro a příslušenství","Chladnička s mrazákem; Popis:Volně stojící kombinovaná chladnička s mrazničkou dole, energetická třída A++, objem chladničky 112 l, objem mrazničky 48 l, klimatická třída ST, N, LED osvětlení, automatické odmrazování chladničky, manuální odmrazování mrazničky, LED osvětlení, možnost otočení otevírání dveří, 2 nastavitelné nožičky.; Rozměry:566 x 500 x 1430 mm (d x š x v) ; Všechen nábytek musí být proveden tak, aby splňoval požadavky pro užívání lidí s autismem. Tento nábytek musí splňovat požadavky na dostatečnou odolnost, jednoduchou udržovatelnost, vysokou odolnost vůči poškození, musí byýt dostatečně tuhý, stabilní a odolný proti nárazu, tak aby nedošlo k poškození nábytku ani k úrazu; ; Další specifikace viz Kniha vnitřního vybavení - Kniha - prvků - Elektro a příslušenství","ks",1,15000]
["1B.VV_E_007","Notebook","Notebook, 15,4 “ LCD, 8 GB RAM, 500 GB HDD, procesor i3 a vyšší, Windows 10 Pro, MS Office 2016 Home and Bussines CZ.",null," - - -"," ; Všechen nábytek musí být proveden tak, aby splňoval požadavky pro užívání lidí s autismem. Tento nábytek musí splňovat požadavky na dostatečnou odolnost, jednoduchou udržovatelnost, vysokou odolnost vůči poškození, musí byýt dostatečně tuhý, stabilní a odolný proti nárazu, tak aby nedošlo k poškození nábytku ani k úrazu; ; Další specifikace viz Kniha vnitřního vybavení - Kniha - prvků - Elektro a příslušenství","Notebook; Popis:Notebook, 15,4 “ LCD, 8 GB RAM, 500 GB HDD, procesor i3 a vyšší, Windows 10 Pro, MS Office 2016 Home and Bussines CZ.; Rozměry: - - - ; Všechen nábytek musí být proveden tak, aby splňoval požadavky pro užívání lidí s autismem. Tento nábytek musí splňovat požadavky na dostatečnou odolnost, jednoduchou udržovatelnost, vysokou odolnost vůči poškození, musí byýt dostatečně tuhý, stabilní a odolný proti nárazu, tak aby nedošlo k poškození nábytku ani k úrazu; ; Další specifikace viz Kniha vnitřního vybavení - Kniha - prvků - Elektro a příslušenství","ks",1,33590]
["1B.VV_E_008","Tiskárna na A4","Malá tiskárna - Funkce: černobílý laserový tisk, kopírování, skenování, fax, Formát: A4, rozlišení tisku: 1200dpi, ovládání: dotykový barevný grafický displej, velikost paměti: 256 MB, rychlost tisku: 38 Str./min., doba tisku první strany: 5,7s, oboustranný tisk: automatický , vstupní zásobník: 250 listů, víceúčelový zásobník: 100 listů, výstupní zásobník: 150 listů, gramáž média: 60 – 175 g/m2, rozlišení kopírování: 600x600dpi, zoom kopírování: 25 – 400%, rozlišení skenování: 1200dpi, podavač skeneru: oboustranný 50 listů, oboustranné jednoprůchodové skenování fumkce skeneru: skenování do e-mailu, do síťové složky, do USB, připojení: USB 2.0, Ethernet 10/100/1000T, hostitelský USB port, jazyky tiskárny: PCL 5, HP PCL 6, emulace Postscript úrovně 3, přímý tisk PDF (v1.7), URF, PCLM, PWG.",null," - - -"," ; Všechen nábytek musí být proveden tak, aby splňoval požadavky pro užívání lidí s autismem. Tento nábytek musí splňovat požadavky na dostatečnou odolnost, jednoduchou udržovatelnost, vysokou odolnost vůči poškození, musí byýt dostatečně tuhý, stabilní a odolný proti nárazu, tak aby nedošlo k poškození nábytku ani k úrazu; ; Další specifikace viz Kniha vnitřního vybavení - Kniha - prvků - Elektro a příslušenství","Tiskárna na A4; Popis:Malá tiskárna - Funkce: černobílý laserový tisk, kopírování, skenování, fax, Formát: A4, rozlišení tisku: 1200dpi, ovládání: dotykový barevný grafický displej, velikost paměti: 256 MB, rychlost tisku: 38 Str./min., doba tisku první strany: 5,7s, oboustranný tisk: automatický , vstupní zásobník: 250 listů, víceúčelový zásobník: 100 listů, výstupní zásobník: 150 listů, gramáž média: 60 – 175 g/m2, rozlišení kopírování: 600x600dpi, zoom kopírování: 25 – 400%, rozlišení skenování: 1200dpi, podavač skeneru: oboustranný 50 listů, oboustranné jednoprůchodové skenování fumkce skeneru: skenování do e-mailu, do síťové složky, do USB, připojení: USB 2.0, Ethernet 10/100/1000T, hostitelský USB port, jazyky tiskárny: PCL 5, HP PCL 6, emulace Postscript úrovně 3, přímý tisk PDF (v1.7), URF, PCLM, PWG.; Rozměry: - - - ; Všechen nábytek musí být proveden tak, aby splňoval požadavky pro užívání lidí s autismem. Tento nábytek musí splňovat požadavky na dostatečnou odolnost, jednoduchou udržovatelnost, vysokou odolnost vůči poškození, musí byýt dostatečně tuhý, stabilní a odolný proti nárazu, tak aby nedošlo k poškození nábytku ani k úrazu; ; Další specifikace viz Kniha vnitřního vybavení - Kniha - prvků - Elektro a příslušenství","ks",1,5000]
["VV_VEN","Prvky vnitřního vybevení - Venkovní vybavení"]
["1B.VV_VEN_001","Venkovní pergola k sezení vybavená židlemi a stlem","Venkovní dřevěná pergola k sezení vybavená šesti židlemi a stolem. Kovový stůl a židle s opěrkou a područkami. Sloupky pergoly jsou průřezu 120 x 120 mm, vzdálenost sloupků je 2,0 m, pod každým sloupkem je proveden betonový základ s patkou sloupku z galvanického zinku, základy jsou provedeny v nezámrzné hloubce. Trvar střechy je sedlový, krokve průžezu 60 x 140 mm, podélné prvky průřezu 100 x 140 mm. Na střeše je provedeno bednění a laťování se skládanou betonovou střešní krytinou. V přístřešku je podlaha z betonové dlažby. Betonová dlažba je uložena na kladecí vrstu tl. 40 mm - kamenná drť 4-8mm, podkladní nosnou vrstvu tl. 150 mm - kamená drť 8-16 mm a zemní pláň. Klempířské prvky jsou provedeny z pozinkovaného plechu.",null,"5000 x 5000 x 3300 mm (d x š x v)"," ; Všechen nábytek musí být proveden tak, aby splňoval požadavky pro užívání lidí s autismem. Tento nábytek musí splňovat požadavky na dostatečnou odolnost, jednoduchou udržovatelnost, vysokou odolnost vůči poškození, musí byýt dostatečně tuhý, stabilní a odolný proti nárazu, tak aby nedošlo k poškození nábytku ani k úrazu; Další specifikace viz Kniha vnitřního vybavení - Kniha - prvků - Venkovní vybavení",{"$f":"CONCATENATE(B53,$C$1,C53,$E$1,E53,F53)","v":"Venkovní pergola k sezení vybavená židlemi a stlem; Popis:Venkovní dřevěná pergola k sezení vybavená šesti židlemi a stolem. Kovový stůl a židle s opěrkou a područkami. Sloupky pergoly jsou průřezu 120 x 120 mm, vzdálenost sloupků je 2,0 m, pod každým sloupkem je proveden betonový základ s patkou sloupku z galvanického zinku, základy jsou provedeny v nezámrzné hloubce. Trvar střechy je sedlový, krokve průžezu 60 x 140 mm, podélné prvky průřezu 100 x 140 mm. Na střeše je provedeno bednění a laťování se skládanou betonovou střešní krytinou. V přístřešku je podlaha z betonové dlažby. Betonová dlažba je uložena na kladecí vrstu tl. 40 mm - kamenná drť 4-8mm, podkladní nosnou vrstvu tl. 150 mm - kamená drť 8-16 mm a zemní pláň. Klempířské prvky jsou provedeny z pozinkovaného plechu.; Rozměry:5000 x 5000 x 3300 mm (d x š x v) ; Všechen nábytek musí být proveden tak, aby splňoval požadavky pro užívání lidí s autismem. Tento nábytek musí splňovat požadavky na dostatečnou odolnost, jednoduchou udržovatelnost, vysokou odolnost vůči poškození, musí byýt dostatečně tuhý, stabilní a odolný proti nárazu, tak aby nedošlo k poškození nábytku ani k úrazu; Další specifikace viz Kniha vnitřního vybavení - Kniha - prvků - Venkovní vybavení"},"ks",1,55000]
["1B.VV_VEN_002","Zapuštěná venkovní trampolína","Venkovní trampolína je zapuštěná do země, okolo trampolíny jsou ochranné desky s ochrannou sítí. Rám trampolíny z pozinkované oceli. Obsahuje 84 odpružených pružin. Nosnost 160 kg. Trampolína je osazena na betonovou základovou desku v hloubce 880 mm. Skákací plocha je 2350 x 2350 mm.",null,"3000 x 3000 x 880 mm (d x š x v)"," ; Všechen nábytek musí být proveden tak, aby splňoval požadavky pro užívání lidí s autismem. Tento nábytek musí splňovat požadavky na dostatečnou odolnost, jednoduchou udržovatelnost, vysokou odolnost vůči poškození, musí byýt dostatečně tuhý, stabilní a odolný proti nárazu, tak aby nedošlo k poškození nábytku ani k úrazu; Další specifikace viz Kniha vnitřního vybavení - Kniha - prvků - Venkovní vybavení",{"$f":"CONCATENATE(B54,$C$1,C54,$E$1,E54,F54)","v":"Zapuštěná venkovní trampolína; Popis:Venkovní trampolína je zapuštěná do země, okolo trampolíny jsou ochranné desky s ochrannou sítí. Rám trampolíny z pozinkované oceli. Obsahuje 84 odpružených pružin. Nosnost 160 kg. Trampolína je osazena na betonovou základovou desku v hloubce 880 mm. Skákací plocha je 2350 x 2350 mm.; Rozměry:3000 x 3000 x 880 mm (d x š x v) ; Všechen nábytek musí být proveden tak, aby splňoval požadavky pro užívání lidí s autismem. Tento nábytek musí splňovat požadavky na dostatečnou odolnost, jednoduchou udržovatelnost, vysokou odolnost vůči poškození, musí byýt dostatečně tuhý, stabilní a odolný proti nárazu, tak aby nedošlo k poškození nábytku ani k úrazu; Další specifikace viz Kniha vnitřního vybavení - Kniha - prvků - Venkovní vybavení"},"ks",1,15300]

{"sheet":"STOD_D","index":3,"n_rows":37,"n_cols":10,"rows_kept":37,"cut":false,"hidden":true,"merged":[]}
["1DD.1.1","Architektonicko-stavební řešení","; Popis:","; Materiál:","; Rozměry:"]
["10_VB","Výrobky"]
["KP","Klempířské prvky","Sloupec1","Sloupec2","Sloupec3","Sloupec4","Sloupec5","Sloupec6","Sloupec7","Sloupec8"]
["1D.P1-1.01","Okenní parapet","Oplechování parapetu oken včetně doplňkového a montážního materiálu.","Ocelový pozinkovaný plech, tl. 0,6 mm, exteriérový nátěr v odstínu RAL 7016","r.š. 330 mm"," ; Další specifikace viz Kniha klempířských prvků",{"$f":"CONCATENATE(B4,$C$1,C4,$D$1,D4,$E$1,E4,F4)","v":"Okenní parapet; Popis:Oplechování parapetu oken včetně doplňkového a montážního materiálu.; Materiál:Ocelový pozinkovaný plech, tl. 0,6 mm, exteriérový nátěr v odstínu RAL 7016; Rozměry:r.š. 330 mm ; Další specifikace viz Kniha klempířských prvků"},"m",14.5,474]
["1D.P1-1.02","Oplechování atiky","Oplechování atiky, včetně doplňkového a montážního materiálu.","Ocelový pozinkovaný plech, tl. 0,6 mm, exteriérový nátěr v odstínu RAL 7016","r.š. 720 mm"," ; Další specifikace viz Kniha klempířských prvků","Oplechování atiky; Popis:Oplechování atiky, včetně doplňkového a montážního materiálu.; Materiál:Ocelový pozinkovaný plech, tl. 0,6 mm, exteriérový nátěr v odstínu RAL 7016; Rozměry:r.š. 720 mm ; Další specifikace viz Kniha klempířských prvků","m",10.1,1100]
["1D.P1-1.03","Oplechování atiky","Oplechování atiky, včetně doplňkového a montážního materiálu.","Ocelový pozinkovaný plech, tl. 0,6 mm, exteriérový nátěr v odstínu RAL 7016","r.š. 720 mm"," ; Další specifikace viz Kniha klempířských prvků","Oplechování atiky; Popis:Oplechování atiky, včetně doplňkového a montážního materiálu.; Materiál:Ocelový pozinkovaný plech, tl. 0,6 mm, exteriérový nátěr v odstínu RAL 7016; Rozměry:r.š. 720 mm ; Další specifikace viz Kniha klempířských prvků","m",12.21,1100]
["1D.P1-1.04","Boční oplechování","Boční oplechování, včetně doplňkového a montážního materiálu.","Ocelový pozinkovaný plech, tl. 0,6 mm, exteriérový nátěr v odstínu RAL 7016","r.š. 435 mm"," ; Další specifikace viz Kniha klempířských prvků","Boční oplechování; Popis:Boční oplechování, včetně doplňkového a montážního materiálu.; Materiál:Ocelový pozinkovaný plech, tl. 0,6 mm, exteriérový nátěr v odstínu RAL 7016; Rozměry:r.š. 435 mm ; Další specifikace viz Kniha klempířských prvků","m",5.5,860]
["1D.P1-1.05","Dešťový žlab","Dešťový žlab, včetně doplňkového a montážního materiálu.","Ocelový pozinkovaný plech, tl. 0,6 mm, exteriérový nátěr v odstínu RAL 7016","průměr 300 mm"," ; Další specifikace viz Kniha klempířských prvků","Dešťový žlab; Popis:Dešťový žlab, včetně doplňkového a montážního materiálu.; Materiál:Ocelový pozinkovaný plech, tl. 0,6 mm, exteriérový nátěr v odstínu RAL 7016; Rozměry:průměr 300 mm ; Další specifikace viz Kniha klempířských prvků","m",31,725]
["1D.P1-1.06","Dešťový svod","Dešťový svod, včetně doplňkového a montážního materiálu.","Ocelový pozinkovaný plech, tl. 0,6 mm, exteriérový nátěr v odstínu RAL 7016","průměr 120 mm"," ; Další specifikace viz Kniha klempířských prvků","Dešťový svod; Popis:Dešťový svod, včetně doplňkového a montážního materiálu.; Materiál:Ocelový pozinkovaný plech, tl. 0,6 mm, exteriérový nátěr v odstínu RAL 7016; Rozměry:průměr 120 mm ; Další specifikace viz Kniha klempířských prvků","m",16.37,919]
["KP","Zámečnické prvky"]
["1D.Z1-1.01","Kovové zábradlí a madlo ke schodišti","Sloupkové zábradlí s výplní zábradlí a madlo kotveno do konstrukce schodiště. Madlo 50 x 40 m, vodorovný profil 20 x 20 mm a svislé sloupky 15 x 15 mm. Madlo kotveno do stěny. Materiál nerezová ocel, povrchová úprava kartáčovaná nerez.","Nerezová ocel, povrchová úprava kartáčovaná nerez","výška 900 mm"," ; Další specifikace viz Kniha zámečnických prvků",{"$f":"CONCATENATE(B11,$C$1,C11,$D$1,D11,$E$1,E11,F11)","v":"Kovové zábradlí a madlo ke schodišti; Popis:Sloupkové zábradlí s výplní zábradlí a madlo kotveno do konstrukce schodiště. Madlo 50 x 40 m, vodorovný profil 20 x 20 mm a svislé sloupky 15 x 15 mm. Madlo kotveno do stěny. Materiál nerezová ocel, povrchová úprava kartáčovaná nerez.; Materiál:Nerezová ocel, povrchová úprava kartáčovaná nerez; Rozměry:výška 900 mm ; Další specifikace viz Kniha zámečnických prvků"},"m",5.8,2260]
["TP","Truhlářské prvky"]
["1D.T1-1.01","Kuchyňská linka","Kuchyňská linka, sokl 80 mm, korpus z lamino desky tl. 18 mm, hrana z ABS tl. 2 mm. Spodní skříňky plné, pracovní deska z laminátové desky tl. 38 mm, nerezový dřez s odkapávačem. Kování linky je kovové. Součástí kuchyňské linky je dřez s odkapávačem a spotřebiče energetické třídy min. A přesně specifikovány v Knize vnitřního vybavení. Kuchyňská linka je opatřená krycím panelem š. 50 mm.","Korpus z lamina, pracovní deska z laminátové desky","viz. obrazová příloha","  ; SPOTŘEBIČE OCENIT V KAPITOLE_Prvky vnitřního vybevení - Elektro a příslušenství ; Další specifikace viz Kniha truhlářských prvků",{"$f":"CONCATENATE(B13,$C$1,C13,$D$1,D13,$E$1,E13,F13)","v":"Kuchyňská linka; Popis:Kuchyňská linka, sokl 80 mm, korpus z lamino desky tl. 18 mm, hrana z ABS tl. 2 mm. Spodní skříňky plné, pracovní deska z laminátové desky tl. 38 mm, nerezový dřez s odkapávačem. Kování linky je kovové. Součástí kuchyňské linky je dřez s odkapávačem a spotřebiče energetické třídy min. A přesně specifikovány v Knize vnitřního vybavení. Kuchyňská linka je opatřená krycím panelem š. 50 mm.; Materiál:Korpus z lamina, pracovní deska z laminátové desky; Rozměry:viz. obrazová příloha  ; SPOTŘEBIČE OCENIT V KAPITOLE_Prvky vnitřního vybevení - Elektro a příslušenství ; Další specifikace viz Kniha truhlářských prvků"},"ks",1,46475]
["1D.T1-1.02","Kuchyňská linka","Kuchyňská linka, sokl 80 mm, korpus z lamino desky tl. 18 mm, hrana z ABS tl. 2 mm. Spodní skříňky plné, pracovní deska z laminátové desky tl. 38 mm, nerezový dřez s odkapávačem. Kování linky je kovové. Součástí kuchyňské linky je dřez s odkapávačem a spotřebiče energetické třídy min. A přesně specifikovány v Knize vnitřního vybavení. Kuchyňská linka je opatřená krycím panelem š. 50 mm.","Korpus z lamina, pracovní deska z laminátové desky","viz. obrazová příloha","  ; SPOTŘEBIČE OCENIT V KAPITOLE_Prvky vnitřního vybevení - Elektro a příslušenství ; Další specifikace viz Kniha truhlářských prvků","Kuchyňská linka; Popis:Kuchyňská linka, sokl 80 mm, korpus z lamino desky tl. 18 mm, hrana z ABS tl. 2 mm. Spodní skříňky plné, pracovní deska z laminátové desky tl. 38 mm, nerezový dřez s odkapávačem. Kování linky je kovové. Součástí kuchyňské linky je dřez s odkapávačem a spotřebiče energetické třídy min. A přesně specifikovány v Knize vnitřního vybavení. Kuchyňská linka je opatřená krycím panelem š. 50 mm.; Materiál:Korpus z lamina, pracovní deska z laminátové desky; Rozměry:viz. obrazová příloha  ; SPOTŘEBIČE OCENIT V KAPITOLE_Prvky vnitřního vybevení - Elektro a příslušenství ; Další specifikace viz Kniha truhlářských prvků","ks",1,46475]
["1D.T1-1.03","Lehká příčka na bázi dřeva","Dřevotřísková laminátová deska na bázi dřeva tl. 30 mm, součástí příčky je dveřní křídlo o rozměru 700 x 1970 mm. Veškeré doplňky jsou nerezové, podpěrné nohy ve výšce 100 mm nad podlahou (celková výška včetně nožiček), nerezové panty 3 ks na jedno křídlo, stěny a příčky navzájem spojeny hliníkovými eloxovanými \"U\" profily, horní ztužující hrana 40 x 40 mm - hliníková s povrchvou úpravou elox. Doplňky: nerezový pant, podpěrné nohy výškově nastavitelné, dveřní zamykání, hliníkový profil, nerezový úchyt a horní ztužující hrazda.","Laminátová dřevotřísková deska, veškeré doplňky nerezové","1860 x 30 x 2000 mm, 930 x 30 x 2000 mm (d x š x v)","; Další specifikace viz Kniha truhlářských prvků","Lehká příčka na bázi dřeva; Popis:Dřevotřísková laminátová deska na bázi dřeva tl. 30 mm, součástí příčky je dveřní křídlo o rozměru 700 x 1970 mm. Veškeré doplňky jsou nerezové, podpěrné nohy ve výšce 100 mm nad podlahou (celková výška včetně nožiček), nerezové panty 3 ks na jedno křídlo, stěny a příčky navzájem spojeny hliníkovými eloxovanými \"U\" profily, horní ztužující hrana 40 x 40 mm - hliníková s povrchvou úpravou elox. Doplňky: nerezový pant, podpěrné nohy výškově nastavitelné, dveřní zamykání, hliníkový profil, nerezový úchyt a horní ztužující hrazda.; Materiál:Laminátová dřevotřísková deska, veškeré doplňky nerezové; Rozměry:1860 x 30 x 2000 mm, 930 x 30 x 2000 mm (d x š x v); Další specifikace viz Kniha truhlářských prvků","ks",1,22320]
["1D.T1-1.04","Lehká příčka na bázi dřeva","Dřevotřísková laminátová deska na bázi dřeva tl. 30 mm, součástí příčky je dveřní křídlo o rozměru 700 x 1970 mm. Veškeré doplňky jsou nerezové, podpěrné nohy ve výšce 100 mm nad podlahou (celková výška včetně nožiček), nerezové panty 3 ks na jedno křídlo, stěny a příčky navzájem spojeny hliníkovými eloxovanými \"U\" profily, horní ztužující hrana 40 x 40 mm - hliníková s povrchvou úpravou elox. Doplňky: nerezový pant, podpěrné nohy výškově nastavitelné, dveřní zamykání, hliníkový profil, nerezový úchyt a horní ztužující hrazda.","Laminátová dřevotřísková deska, veškeré doplňky nerezové","1720 x 30 x 2000 mm (d x š x v)","; Další specifikace viz Kniha truhlářských prvků","Lehká příčka na bázi dřeva; Popis:Dřevotřísková laminátová deska na bázi dřeva tl. 30 mm, součástí příčky je dveřní křídlo o rozměru 700 x 1970 mm. Veškeré doplňky jsou nerezové, podpěrné nohy ve výšce 100 mm nad podlahou (celková výška včetně nožiček), nerezové panty 3 ks na jedno křídlo, stěny a příčky navzájem spojeny hliníkovými eloxovanými \"U\" profily, horní ztužující hrana 40 x 40 mm - hliníková s povrchvou úpravou elox. Doplňky: nerezový pant, podpěrné nohy výškově nastavitelné, dveřní zamykání, hliníkový profil, nerezový úchyt a horní ztužující hrazda.; Materiál:Laminátová dřevotřísková deska, veškeré doplňky nerezové; Rozměry:1720 x 30 x 2000 mm (d x š x v); Další specifikace viz Kniha truhlářských prvků","ks",1,13760]
["1D.T1-1.05","Lehká příčka na bázi dřeva","Dřevotřísková laminátová deska na bázi dřeva tl. 30 mm, součástí příčky jsou dvě dveřní křídla o rozměru 700 x 1970 mm. Veškeré doplňky jsou nerezové, podpěrné nohy ve výšce 100 mm nad podlahou (celková výška včetně nožiček), nerezové panty 3 ks na jedno křídlo, stěny a příčky navzájem spojeny hliníkovými eloxovanými \"U\" profily, horní ztužující hrana 40 x 40 mm - hliníková s povrchvou úpravou elox. Doplňky: nerezový pant, podpěrné nohy výškově nastavitelné, dveřní zamykání, hliníkový profil, nerezový úchyt a horní ztužující hrazda.","Laminátová dřevotřísková deska, veškeré doplňky nerezové","1830 x 30 x 2000 mm, 1520 x 30 x 2000 mm (d x š x v)","; Další specifikace viz Kniha truhlářských prvků","Lehká příčka na bázi dřeva; Popis:Dřevotřísková laminátová deska na bázi dřeva tl. 30 mm, součástí příčky jsou dvě dveřní křídla o rozměru 700 x 1970 mm. Veškeré doplňky jsou nerezové, podpěrné nohy ve výšce 100 mm nad podlahou (celková výška včetně nožiček), nerezové panty 3 ks na jedno křídlo, stěny a příčky navzájem spojeny hliníkovými eloxovanými \"U\" profily, horní ztužující hrana 40 x 40 mm - hliníková s povrchvou úpravou elox. Doplňky: nerezový pant, podpěrné nohy výškově nastavitelné, dveřní zamykání, hliníkový profil, nerezový úchyt a horní ztužující hrazda.; Materiál:Laminátová dřevotřísková deska, veškeré doplňky nerezové; Rozměry:1830 x 30 x 2000 mm, 1520 x 30 x 2000 mm (d x š x v); Další specifikace viz Kniha truhlářských prvků","ks",1,26800]
["1D.T1-1.06","Lehká příčka na bázi dřeva","Dřevotřísková laminátová deska na bázi dřeva tl. 30 mm, součástí příčky je dveřní křídlo o rozměru 700 x 1970 mm. Veškeré doplňky jsou nerezové, podpěrné nohy ve výšce 100 mm nad podlahou (celková výška včetně nožiček), nerezové panty 3 ks na jedno křídlo, stěny a příčky navzájem spojeny hliníkovými eloxovanými \"U\" profily, horní ztužující hrana 40 x 40 mm - hliníková s povrchvou úpravou elox. Doplňky: nerezový pant, podpěrné nohy výškově nastavitelné, dveřní zamykání, hliníkový profil, nerezový úchyt a horní ztužující hrazda.","Laminátová dřevotřísková deska, veškeré doplňky nerezové","1270 x 30 x 2000 mm (d x š x v)","; Další specifikace viz Kniha truhlářských prvků","Lehká příčka na bázi dřeva; Popis:Dřevotřísková laminátová deska na bázi dřeva tl. 30 mm, součástí příčky je dveřní křídlo o rozměru 700 x 1970 mm. Veškeré doplňky jsou nerezové, podpěrné nohy ve výšce 100 mm nad podlahou (celková výška včetně nožiček), nerezové panty 3 ks na jedno křídlo, stěny a příčky navzájem spojeny hliníkovými eloxovanými \"U\" profily, horní ztužující hrana 40 x 40 mm - hliníková s povrchvou úpravou elox. Doplňky: nerezový pant, podpěrné nohy výškově nastavitelné, dveřní zamykání, hliníkový profil, nerezový úchyt a horní ztužující hrazda.; Materiál:Laminátová dřevotřísková deska, veškeré doplňky nerezové; Rozměry:1270 x 30 x 2000 mm (d x š x v); Další specifikace viz Kniha truhlářských prvků","ks",1,10160]
["OP","Ostatní prvky"]
["1D.OP-1.01","Sprchový závěs z PVC","Sprchový závěs z PVC v bílé barvě s texturou, kroužky a tyčí. Závěs je zevěšen na tyč za pomoci plastových kroužků. Závěs nepropouští vodu a je možné ho prát na 40°C.","Záves a kroužky: PVC, tyč: chrom","1400 x 2860 mm (d x v)\n1400 x 2860 mm (d x v)\n"," ; Další specifikace viz Kniha ostatních prvků",{"$f":"CONCATENATE(B20,$C$1,C20,$D$1,D20,$E$1,E20,F20)","v":"Sprchový závěs z PVC; Popis:Sprchový závěs z PVC v bílé barvě s texturou, kroužky a tyčí. Závěs je zevěšen na tyč za pomoci plastových kroužků. Závěs nepropouští vodu a je možné ho prát na 40°C.; Materiál:Záves a kroužky: PVC, tyč: chrom; Rozměry:1400 x 2860 mm (d x v)\n1400 x 2860 mm (d x v)\n ; Další specifikace viz Kniha ostatních prvků"},"ks",1,1000]
["1D.OP-1.02","Venkovní rolety","Venkovní hliníková roleta pro regulaci přirozeného osvětlení a zachycení slunečních paprsků s bočními vodícími lištami. Horní ocelový válcovaný profil upravený pozinkování o rozměru 58 x 56 mm zakrytý krycím plechem. Lamely hliníkové o šířce 80 mm s navíjecími mechanismy, textilními žebříčky a vytahovacími páskami. Boční vodící lišty o rozměru 20 x 20 mm v barvě stříbrná elox. Ovládání elektrické.","hliník, barva stříbrný elox","1250x1500 mm (šxv)"," ; Další specifikace viz Kniha ostatních prvků",{"$f":"CONCATENATE(B21,$C$1,C21,$D$1,D21,$E$1,E21,F21)","v":"Venkovní rolety; Popis:Venkovní hliníková roleta pro regulaci přirozeného osvětlení a zachycení slunečních paprsků s bočními vodícími lištami. Horní ocelový válcovaný profil upravený pozinkování o rozměru 58 x 56 mm zakrytý krycím plechem. Lamely hliníkové o šířce 80 mm s navíjecími mechanismy, textilními žebříčky a vytahovacími páskami. Boční vodící lišty o rozměru 20 x 20 mm v barvě stříbrná elox. Ovládání elektrické.; Materiál:hliník, barva stříbrný elox; Rozměry:1250x1500 mm (šxv) ; Další specifikace viz Kniha ostatních prvků"},"ks",8,5250]
["1D.OP-1.03","Vnitřní stínící roleta střešních oken","Vnitřní stínící rolety. Vložena do rámu okna s krycími lištami. Ovládání je za pomocí pružinového pohonu navíjení látky. Roletu možno nastvait v libovolné výšce","látka v barvě šedé","900x1650 mm (šxv)"," ; Další specifikace viz Kniha ostatních prvků",{"$f":"CONCATENATE(B22,$C$1,C22,$D$1,D22,$E$1,E22,F22)","v":"Vnitřní stínící roleta střešních oken; Popis:Vnitřní stínící rolety. Vložena do rámu okna s krycími lištami. Ovládání je za pomocí pružinového pohonu navíjení látky. Roletu možno nastvait v libovolné výšce; Materiál:látka v barvě šedé; Rozměry:900x1650 mm (šxv) ; Další specifikace viz Kniha ostatních prvků"},"ks",6,2970]
["VV_N","Prvky vnitřního vybevení - Nábytek a příslušenství"]
["1D.VV_N_001","Předsíňová stěna s věšáky","Předsíňová stěna s kovovými háčky se dvěmi úchytkami a policí, kotvená do stěny včetně montážního materiálu. Korpus a police z MDF desky, barva světle hnědá, tl. 20 mm. Hrany optařeny ABS hranou tl. 1,5 mm. Háček (5 ks) se dvěmi úchytkami kotvená na desku věšáku včetně kotvení. Materiál nerezová ocel.",null,"věšák: 660 x 240 x 1520 mm (d x š x v), háček: 70 x 30 x 47 mm (d x š x v)"," ; Další specifikace viz Kniha vnitřního vybavení - Kniha - prvků - Nábytek a příslušenství",{"$f":"CONCATENATE(B24,$C$1,C24,$D$1,D24,$E$1,E24,F24)","v":"Předsíňová stěna s věšáky; Popis:Předsíňová stěna s kovovými háčky se dvěmi úchytkami a policí, kotvená do stěny včetně montážního materiálu. Korpus a police z MDF desky, barva světle hnědá, tl. 20 mm. Hrany optařeny ABS hranou tl. 1,5 mm. Háček (5 ks) se dvěmi úchytkami kotvená na desku věšáku včetně kotvení. Materiál nerezová ocel.; Materiál:; Rozměry:věšák: 660 x 240 x 1520 mm (d x š x v), háček: 70 x 30 x 47 mm (d x š x v) ; Další specifikace viz Kniha vnitřního vybavení - Kniha - prvků - Nábytek a příslušenství"},"ks",1,1712.4]
["1D.VV_N_002","Police do skladu (výška 2000 mm)","Police do skladu s pěti policemi včetně montážního materiálu. Police jsou výškově přestavitelné v rastru 138 mm. Šedý policový regál je rychle smontovatelný bez spojovacího materiálu. Police se jednoduchým způsobem nasadí na sloupky. Možnost spojování do polí a řad vedle sebe i za sebou pro zvýšení celkové tuhosti. Konstrukce je povrchově upravena práškovým lakem šedé barvy. Nohy jsou vybaveny plastovými patkami pro ochranu podlahové krytiny.",null,"1400 x 300 x 2000 mm (d x š x v)"," ; Další specifikace viz Kniha vnitřního vybavení - Kniha - prvků - Nábytek a příslušenství","Police do skladu (výška 2000 mm); Popis:Police do skladu s pěti policemi včetně montážního materiálu. Police jsou výškově přestavitelné v rastru 138 mm. Šedý policový regál je rychle smontovatelný bez spojovacího materiálu. Police se jednoduchým způsobem nasadí na sloupky. Možnost spojování do polí a řad vedle sebe i za sebou pro zvýšení celkové tuhosti. Konstrukce je povrchově upravena práškovým lakem šedé barvy. Nohy jsou vybaveny plastovými patkami pro ochranu podlahové krytiny.; Materiál:; Rozměry:1400 x 300 x 2000 mm (d x š x v) ; Další specifikace viz Kniha vnitřního vybavení - Kniha - prvků - Nábytek a příslušenství","ks",1,{"$f":"2500*1.4*2","v":7000}]
["1D.VV_N_003","Police do skladu (výška 1300)","Police do skladu se čtyřmi policemi včetně montážního materiálu. Police jsou výškově přestavitelné v rastru 138 mm. Šedý policový regál je rychle smontovatelný bez spojovacího materiálu. Police se jednoduchým způsobem nasadí na sloupky. Možnost spojování do polí a řad vedle sebe i za sebou pro zvýšení celkové tuhosti. Konstrukce je povrchově upravena práškovým lakem šedé barvy. Nohy jsou vybaveny plastovými patkami pro ochranu podlahové krytiny.",null,"1300 x 1300 x 300 mm (d x š x v)"," ; Další specifikace viz Kniha vnitřního vybavení - Kniha - prvků - Nábytek a příslušenství","Police do skladu (výška 1300); Popis:Police do skladu se čtyřmi policemi včetně montážního materiálu. Police jsou výškově přestavitelné v rastru 138 mm. Šedý policový regál je rychle smontovatelný bez spojovacího materiálu. Police se jednoduchým způsobem nasadí na sloupky. Možnost spojování do polí a řad vedle sebe i za sebou pro zvýšení celkové tuhosti. Konstrukce je povrchově upravena práškovým lakem šedé barvy. Nohy jsou vybaveny plastovými patkami pro ochranu podlahové krytiny.; Materiál:; Rozměry:1300 x 1300 x 300 mm (d x š x v) ; Další specifikace viz Kniha vnitřního vybavení - Kniha - prvků - Nábytek a příslušenství","ks",2,{"$f":"2500*1.3*1.3","v":4225}]
["1D.VV_N_004","Police do archivu (výška 2000 mm)","Police do skladu s pěti policemi včetně montážního materiálu. Police jsou výškově přestavitelné v rastru 138 mm. Šedý policový regál je rychle smontovatelný bez spojovacího materiálu. Police se jednoduchým způsobem nasadí na sloupky. Možnost spojování do polí a řad vedle sebe i za sebou pro zvýšení celkové tuhosti. Konstrukce je povrchově upravena práškovým lakem šedé barvy. Nohy jsou vybaveny plastovými patkami pro ochranu podlahové krytiny.",null,"1300 x 600 x 2000 mm (d x š x v)"," ; Další specifikace viz Kniha vnitřního vybavení - Kniha - prvků - Nábytek a příslušenství","Police do archivu (výška 2000 mm); Popis:Police do skladu s pěti policemi včetně montážního materiálu. Police jsou výškově přestavitelné v rastru 138 mm. Šedý policový regál je rychle smontovatelný bez spojovacího materiálu. Police se jednoduchým způsobem nasadí na sloupky. Možnost spojování do polí a řad vedle sebe i za sebou pro zvýšení celkové tuhosti. Konstrukce je povrchově upravena práškovým lakem šedé barvy. Nohy jsou vybaveny plastovými patkami pro ochranu podlahové krytiny.; Materiál:; Rozměry:1300 x 600 x 2000 mm (d x š x v) ; Další specifikace viz Kniha vnitřního vybavení - Kniha - prvků - Nábytek a příslušenství","ks",1,{"$f":"5000*1.3*2","v":13000}]
["1D.VV_N_005","Police do archivu (výška 1700 mm)","Police do skladu se čtyřmi policemi včetně montážního materiálu. Police jsou výškově přestavitelné v rastru 138 mm. Šedý policový regál je rychle smontovatelný bez spojovacího materiálu. Police se jednoduchým způsobem nasadí na sloupky. Možnost spojování do polí a řad vedle sebe i za sebou pro zvýšení celkové tuhosti. Konstrukce je povrchově upravena práškovým lakem šedé barvy. Nohy jsou vybaveny plastovými patkami pro ochranu podlahové krytiny.",null,"1300 x 600 x 1700 mm (d x š x v)"," ; Další specifikace viz Kniha vnitřního vybavení - Kniha - prvků - Nábytek a příslušenství","Police do archivu (výška 1700 mm); Popis:Police do skladu se čtyřmi policemi včetně montážního materiálu. Police jsou výškově přestavitelné v rastru 138 mm. Šedý policový regál je rychle smontovatelný bez spojovacího materiálu. Police se jednoduchým způsobem nasadí na sloupky. Možnost spojování do polí a řad vedle sebe i za sebou pro zvýšení celkové tuhosti. Konstrukce je povrchově upravena práškovým lakem šedé barvy. Nohy jsou vybaveny plastovými patkami pro ochranu podlahové krytiny.; Materiál:; Rozměry:1300 x 600 x 1700 mm (d x š x v) ; Další specifikace viz Kniha vnitřního vybavení - Kniha - prvků - Nábytek a příslušenství","ks",2,{"$f":"5000*1.3*1.7","v":11050}]
["1D.VV_N_006","Police do archivu (výška 900 mm)","Police do skladu se dvemi policemi včetně montážního materiálu. Police jsou výškově přestavitelné v rastru 138 mm. Šedý policový regál je rychle smontovatelný bez spojovacího materiálu. Police se jednoduchým způsobem nasadí na sloupky. Možnost spojování do polí a řad vedle sebe i za sebou pro zvýšení celkové tuhosti. Konstrukce je povrchově upravena práškovým lakem šedé barvy. Nohy jsou vybaveny plastovými patkami pro ochranu podlahové krytiny.",null,"1300 x 600 x 900 mm (d x š x v)"," ; Další specifikace viz Kniha vnitřního vybavení - Kniha - prvků - Nábytek a příslušenství","Police do archivu (výška 900 mm); Popis:Police do skladu se dvemi policemi včetně montážního materiálu. Police jsou výškově přestavitelné v rastru 138 mm. Šedý policový regál je rychle smontovatelný bez spojovacího materiálu. Police se jednoduchým způsobem nasadí na sloupky. Možnost spojování do polí a řad vedle sebe i za sebou pro zvýšení celkové tuhosti. Konstrukce je povrchově upravena práškovým lakem šedé barvy. Nohy jsou vybaveny plastovými patkami pro ochranu podlahové krytiny.; Materiál:; Rozměry:1300 x 600 x 900 mm (d x š x v) ; Další specifikace viz Kniha vnitřního vybavení - Kniha - prvků - Nábytek a příslušenství","ks",2,{"$f":"5000*1.3*0.9","v":5850}]
["1D.VV_N_007","Konferenční stolek kulatý s jednou nohou","Konferenční stolek s jednou nenastavitelnou nohou bez zásuvek. Materiál laminátová MDF deska tl. 22 mm, barva světle hnědá, opatřená ABS hranou tl. 2 mm. Noha stolu ocelová v barvě šedé.",null,"700 x 700 x 500 mm (d x š x v)"," ; Další specifikace viz Kniha vnitřního vybavení - Kniha - prvků - Nábytek a příslušenství","Konferenční stolek kulatý s jednou nohou; Popis:Konferenční stolek s jednou nenastavitelnou nohou bez zásuvek. Materiál laminátová MDF deska tl. 22 mm, barva světle hnědá, opatřená ABS hranou tl. 2 mm. Noha stolu ocelová v barvě šedé.; Materiál:; Rozměry:700 x 700 x 500 mm (d x š x v) ; Další specifikace viz Kniha vnitřního vybavení - Kniha - prvků - Nábytek a příslušenství","ks",2,1500]
["1D.VV_N_008","Křeslo s polstrováním","Křeslo s polstrování s kolečeky, čalouněná potahovou látkou v barvě šedé. Nosná konstrukce křesla je ze dřeva v kombinaci s potahovou látkou.",null,"600 x 590 x 770 mm (d x š x v)"," ; Další specifikace viz Kniha vnitřního vybavení - Kniha - prvků - Nábytek a příslušenství","Křeslo s polstrováním; Popis:Křeslo s polstrování s kolečeky, čalouněná potahovou látkou v barvě šedé. Nosná konstrukce křesla je ze dřeva v kombinaci s potahovou látkou.; Materiál:; Rozměry:600 x 590 x 770 mm (d x š x v) ; Další specifikace viz Kniha vnitřního vybavení - Kniha - prvků - Nábytek a příslušenství","ks",4,7800]
["1D.VV_N_011","Madla k WC","Pevné a sklopné madlo k WC včetně montážníh materiálu. Madla jsou z nerezi. Nosnost 120 kg.",null,"délka madla 813 mm"," ; Další specifikace viz Kniha vnitřního vybavení - Kniha - prvků - Nábytek a příslušenství","Madla k WC; Popis:Pevné a sklopné madlo k WC včetně montážníh materiálu. Madla jsou z nerezi. Nosnost 120 kg.; Materiál:; Rozměry:délka madla 813 mm ; Další specifikace viz Kniha vnitřního vybavení - Kniha - prvků - Nábytek a příslušenství","ks",1,{"$f":"2488","v":2488}]
["1D.VV_N_012","Trezor velký","Trezor s elektronickým zámkem. Materiál ocel, korpus 1,5 mm, dveře 4 mm, povrchová úprava práškovaným lakem v barvě šedé. Možné upevnit na zeď. Provoz trezeru je za pomoci 4 běžných baterií (1,5 V).",null,"500 x 450 x 700 mm (d x š x v)"," ; Další specifikace viz Kniha vnitřního vybavení - Kniha - prvků - Nábytek a příslušenství","Trezor velký; Popis:Trezor s elektronickým zámkem. Materiál ocel, korpus 1,5 mm, dveře 4 mm, povrchová úprava práškovaným lakem v barvě šedé. Možné upevnit na zeď. Provoz trezeru je za pomoci 4 běžných baterií (1,5 V).; Materiál:; Rozměry:500 x 450 x 700 mm (d x š x v) ; Další specifikace viz Kniha vnitřního vybavení - Kniha - prvků - Nábytek a příslušenství","ks",1,9200]
["1D.VV_N_013","Trezor malý","Trezor s elektronickým zámkem. Materiál ocel, korpus 1,5 mm, dveře 4 mm, povrchová úprava práškovaným lakem v barvě šedé. Možné upevnit na zeď. Provoz trezeru je za pomoci 4 běžných baterií (1,5 V).",null,"450 x 350 x 350 mm (d x š x v)"," ; Další specifikace viz Kniha vnitřního vybavení - Kniha - prvků - Nábytek a příslušenství","Trezor malý; Popis:Trezor s elektronickým zámkem. Materiál ocel, korpus 1,5 mm, dveře 4 mm, povrchová úprava práškovaným lakem v barvě šedé. Možné upevnit na zeď. Provoz trezeru je za pomoci 4 běžných baterií (1,5 V).; Materiál:; Rozměry:450 x 350 x 350 mm (d x š x v) ; Další specifikace viz Kniha vnitřního vybavení - Kniha - prvků - Nábytek a příslušenství","ks",1,3200]
["VV_E","Prvky vnitřního vybevení - Elektro a příslušenství"]
["1D.VV_E_001","Velkoformátová televize","Televize SMART LED, 190cm, ULED technologie, 4K Ultra HD 3840x2160, HDR Plus, PCI 2400(120Hz), DVB-T2/S2/C, H.265/HEVC, Vidaa U2 OS, 4x HDMI, 3x USB, CI+, LAN, DLNA, Wifi, MHL, HbbTV(2.0), web prohlížeč, PVR nahrávání, Timeshift, Local Dimming, UHD upscaling, Anyview Cast, Anyview Stream, hotelový mód,DBX Total Sonics, VESA, repro 30W, B",null,null," ; Další specifikace viz Kniha vnitřního vybavení - Kniha - prvků - Elektro a příslušenství",{"$f":"CONCATENATE(B36,$C$1,C36,$D$1,D36,$E$1,E36,F36)","v":"Velkoformátová televize; Popis:Televize SMART LED, 190cm, ULED technologie, 4K Ultra HD 3840x2160, HDR Plus, PCI 2400(120Hz), DVB-T2/S2/C, H.265/HEVC, Vidaa U2 OS, 4x HDMI, 3x USB, CI+, LAN, DLNA, Wifi, MHL, HbbTV(2.0), web prohlížeč, PVR nahrávání, Timeshift, Local Dimming, UHD upscaling, Anyview Cast, Anyview Stream, hotelový mód,DBX Total Sonics, VESA, repro 30W, B; Materiál:; Rozměry: ; Další specifikace viz Kniha vnitřního vybavení - Kniha - prvků - Elektro a příslušenství"},"ks",1,107000]
["1D.VV_E_002","Notebook","Notebook, 15,4 “ LCD, 8 GB RAM, 500 GB HDD, procesor i3 a vyšší, Windows 10 Pro, MS Office 2016 Home and Bussines CZ.",null," - - -"," ; Další specifikace viz Kniha vnitřního vybavení - Kniha - prvků - Elektro a příslušenství",{"$f":"CONCATENATE(B37,$C$1,C37,$D$1,D37,$E$1,E37,F37)","v":"Notebook; Popis:Notebook, 15,4 “ LCD, 8 GB RAM, 500 GB HDD, procesor i3 a vyšší, Windows 10 Pro, MS Office 2016 Home and Bussines CZ.; Materiál:; Rozměry: - - - ; Další specifikace viz Kniha vnitřního vybavení - Kniha - prvků - Elektro a příslušenství"},"ks",2,33590]

{"sheet":"KVI_A","index":4,"n_rows":48,"n_cols":10,"rows_kept":48,"cut":false,"hidden":true,"merged":[]}
["2AD.1.1","Architektonicko-stavební řešení","; Popis:","; Materiál:","; Rozměry:"]
["10_VB","Výrobky"]
["KP","Klempířské prvky","Sloupec1","Sloupec2","Sloupec3","Sloupec4","Sloupec5","Sloupec6","Sloupec7","Sloupec8"]
["P1-1.01","Okenní parapet","Oplechování parapetu oken včetně doplňkového a montážního materiálu.","Ocelový pozinkovaný plech, tl. 0,6 mm, exteriérový nátěr v odstínu RAL 7016","r.š. 330 mm"," ; Další specifikace viz Kniha klempířských prvků",{"$f":"CONCATENATE(B4,$C$1,C4,$D$1,D4,$E$1,E4,F4)","v":"Okenní parapet; Popis:Oplechování parapetu oken včetně doplňkového a montážního materiálu.; Materiál:Ocelový pozinkovaný plech, tl. 0,6 mm, exteriérový nátěr v odstínu RAL 7016; Rozměry:r.š. 330 mm ; Další specifikace viz Kniha klempířských prvků"},"m",14.7,474]
["P1-1.02","Oplechování atiky","Oplechování atiky, včetně doplňkového a montážního materiálu.","Ocelový pozinkovaný plech, tl. 0,6 mm, exteriérový nátěr v odstínu RAL 7016","r.š. 860 mm"," ; Další specifikace viz Kniha klempířských prvků","Oplechování atiky; Popis:Oplechování atiky, včetně doplňkového a montážního materiálu.; Materiál:Ocelový pozinkovaný plech, tl. 0,6 mm, exteriérový nátěr v odstínu RAL 7016; Rozměry:r.š. 860 mm ; Další specifikace viz Kniha klempířských prvků","m",13.7,1480]
["P1-1.03","Oplechování atiky","Oplechování atiky, včetně doplňkového a montážního materiálu.","Ocelový pozinkovaný plech, tl. 0,6 mm, exteriérový nátěr v odstínu RAL 7016","r.š. 720 mm"," ; Další specifikace viz Kniha klempířských prvků","Oplechování atiky; Popis:Oplechování atiky, včetně doplňkového a montážního materiálu.; Materiál:Ocelový pozinkovaný plech, tl. 0,6 mm, exteriérový nátěr v odstínu RAL 7016; Rozměry:r.š. 720 mm ; Další specifikace viz Kniha klempířských prvků","m",14.1,1100]
["P1-1.04","Boční oplechování","Boční oplechování, včetně doplňkového a montážního materiálu.","Ocelový pozinkovaný plech, tl. 0,6 mm, exteriérový nátěr v odstínu RAL 7016","r.š. 435 mm"," ; Další specifikace viz Kniha klempířských prvků","Boční oplechování; Popis:Boční oplechování, včetně doplňkového a montážního materiálu.; Materiál:Ocelový pozinkovaný plech, tl. 0,6 mm, exteriérový nátěr v odstínu RAL 7016; Rozměry:r.š. 435 mm ; Další specifikace viz Kniha klempířských prvků","m",5.5,860]
["P1-1.05","Dešťový žlab","Dešťový žlab, včetně doplňkového a montážního materiálu.","Ocelový pozinkovaný plech, tl. 0,6 mm, exteriérový nátěr v odstínu RAL 7016","průměr 300 mm"," ; Další specifikace viz Kniha klempířských prvků","Dešťový žlab; Popis:Dešťový žlab, včetně doplňkového a montážního materiálu.; Materiál:Ocelový pozinkovaný plech, tl. 0,6 mm, exteriérový nátěr v odstínu RAL 7016; Rozměry:průměr 300 mm ; Další specifikace viz Kniha klempířských prvků","m",32.1,725]
["P1-1.06","Dešťový svod","Dešťový svod, včetně doplňkového a montážního materiálu.","Ocelový pozinkovaný plech, tl. 0,6 mm, exteriérový nátěr v odstínu RAL 7016","průměr 120 mm"," ; Další specifikace viz Kniha klempířských prvků","Dešťový svod; Popis:Dešťový svod, včetně doplňkového a montážního materiálu.; Materiál:Ocelový pozinkovaný plech, tl. 0,6 mm, exteriérový nátěr v odstínu RAL 7016; Rozměry:průměr 120 mm ; Další specifikace viz Kniha klempířských prvků","m",14.1,919]
["KP","Zámečnické prvky"]
["Z1-1.01","Drátěné poplastované pletivo","Oplocení z dratěného poplastovaného pletiva se sloupkami a obrubníkem. Velikost ok pletiva 55 x 55 mm. Nosné sloupky z švorové trubky 48 mm o síle stěny 1,5 mm. Sloupky po 2,5 m, opěry plotu na začátku, na konci na každém rohu a po každých 25 m. Základová patka se provádí pod každým nosným sloupkem do nezámrzné hloubky, velikost pakty 300 x 300 mm. Obrubník je uložen do rýhy s maltovým ložem. Výška obrubníku je 200 mm, je částečně zapuštěn do terénu.","Poplastované plepletivo a sloupky, barva jehlová zeleň RAL 6005, obrubník: beton","výška 1,8 m"," ; Další specifikace viz Kniha zámečnických prvků",{"$f":"CONCATENATE(B11,$C$1,C11,$D$1,D11,$E$1,E11,F11)","v":"Drátěné poplastované pletivo; Popis:Oplocení z dratěného poplastovaného pletiva se sloupkami a obrubníkem. Velikost ok pletiva 55 x 55 mm. Nosné sloupky z švorové trubky 48 mm o síle stěny 1,5 mm. Sloupky po 2,5 m, opěry plotu na začátku, na konci na každém rohu a po každých 25 m. Základová patka se provádí pod každým nosným sloupkem do nezámrzné hloubky, velikost pakty 300 x 300 mm. Obrubník je uložen do rýhy s maltovým ložem. Výška obrubníku je 200 mm, je částečně zapuštěn do terénu.; Materiál:Poplastované plepletivo a sloupky, barva jehlová zeleň RAL 6005, obrubník: beton; Rozměry:výška 1,8 m ; Další specifikace viz Kniha zámečnických prvků"},"m",210.2,1197]
["TP","Truhlářské prvky"]
["T1-1.01","Oddělující lehká dřevěná příčka","Oddělující lehká dřevěná příčka, rošt ze smrkových doblovaných hranolů 40 x 40 mm spojené konstrukčními vruty se zápustnou hlavou, opláštěné laminátovou MDF deskou, vzor světlého dřeva s méně výraznou kresbou. Hranoly kotveny do stěny a stropu. Součástí příčky jsou uzamykatelné dveře o rozměru 1600 x 1970 mm, obložková polodrážková zárubeň materiál MDF, vložkový zámek + klika.","rošt: smrkové hranoly, opláštění a dveře: MDF deska, zámek a klika: broušený nerez","2500 x 60 x 2300 mm (d x hl x v)"," ; Další specifikace viz Kniha truhlářských prvků",{"$f":"CONCATENATE(B13,$C$1,C13,$D$1,D13,$E$1,E13,F13)","v":"Oddělující lehká dřevěná příčka; Popis:Oddělující lehká dřevěná příčka, rošt ze smrkových doblovaných hranolů 40 x 40 mm spojené konstrukčními vruty se zápustnou hlavou, opláštěné laminátovou MDF deskou, vzor světlého dřeva s méně výraznou kresbou. Hranoly kotveny do stěny a stropu. Součástí příčky jsou uzamykatelné dveře o rozměru 1600 x 1970 mm, obložková polodrážková zárubeň materiál MDF, vložkový zámek + klika.; Materiál:rošt: smrkové hranoly, opláštění a dveře: MDF deska, zámek a klika: broušený nerez; Rozměry:2500 x 60 x 2300 mm (d x hl x v) ; Další specifikace viz Kniha truhlářských prvků"},"ks",1,23000]
["T1-1.02","Kuchyňská linka tvaru U","Kuchyňská linka tvaru U, sokl 80 mm, korpus z lamino desky tl. 18 mm, hrana z ABS tl. 2 mm. Horní i spodní skříňky plné, pracovní deska z laminátové desky tl. 38 mm, nerezový dřez s odkapávačem. Kování linky je kovové. Součástí kuchyňské linky je dřez s odkapávačem, varná deska se čtyřmi plotýnkami, trouba, lednička, mrazák a myčka. Spotřebiče energetiské třídy min. A přesně specifikovány vnitřního vybavení. Horní i spodní část je opatřená krycím panelem š. 50 mm.","Korpus z lamina, pracovní deska z laminátové desky","viz. obrazová příloha","  ; SPOTŘEBIČE OCENIT V KAPITOLE_Prvky vnitřního vybevení - Elektro a příslušenství ; Další specifikace viz Kniha truhlářských prvků",{"$f":"CONCATENATE(B14,$C$1,C14,$D$1,D14,$E$1,E14,F14)","v":"Kuchyňská linka tvaru U; Popis:Kuchyňská linka tvaru U, sokl 80 mm, korpus z lamino desky tl. 18 mm, hrana z ABS tl. 2 mm. Horní i spodní skříňky plné, pracovní deska z laminátové desky tl. 38 mm, nerezový dřez s odkapávačem. Kování linky je kovové. Součástí kuchyňské linky je dřez s odkapávačem, varná deska se čtyřmi plotýnkami, trouba, lednička, mrazák a myčka. Spotřebiče energetiské třídy min. A přesně specifikovány vnitřního vybavení. Horní i spodní část je opatřená krycím panelem š. 50 mm.; Materiál:Korpus z lamina, pracovní deska z laminátové desky; Rozměry:viz. obrazová příloha  ; SPOTŘEBIČE OCENIT V KAPITOLE_Prvky vnitřního vybevení - Elektro a příslušenství ; Další specifikace viz Kniha truhlářských prvků"},"ks",1,231600]
["OP","Ostatní prvky"]
["X1-1.01","Venkovní rolety","Venkovní hliníková roleta pro regulaci přirozeného osvětlení a zachycení slunečních paprsků s bočními vodícími lištami. Horní ocelový válcovaný profil upravený pozinkování o rozměru 58 x 56 mm zakrytý krycím plechem. Lamely hliníkové o šířce 80 mm s navíjecími mechanismy, textilními žebříčky a vytahovacími páskami. Boční vodící lišty o rozměru 20 x 20 mm v barvě stříbrná elox. Ovládání elektrické.","hliník, barva stříbrný elox","1250x1750 mm (šxv)"," ; Další specifikace viz Kniha ostatních prvků",{"$f":"CONCATENATE(B16,$C$1,C16,$D$1,D16,$E$1,E16,F16)","v":"Venkovní rolety; Popis:Venkovní hliníková roleta pro regulaci přirozeného osvětlení a zachycení slunečních paprsků s bočními vodícími lištami. Horní ocelový válcovaný profil upravený pozinkování o rozměru 58 x 56 mm zakrytý krycím plechem. Lamely hliníkové o šířce 80 mm s navíjecími mechanismy, textilními žebříčky a vytahovacími páskami. Boční vodící lišty o rozměru 20 x 20 mm v barvě stříbrná elox. Ovládání elektrické.; Materiál:hliník, barva stříbrný elox; Rozměry:1250x1750 mm (šxv) ; Další specifikace viz Kniha ostatních prvků"},"ks",6,6125]
["X1-1.02","Stahovací schody zateplené s požární odolností","Stahovací schody zateplené s protipožární vložkou (EW 15 DP3). Schody jsou opatřeny brzdícím mechanismem proti prudkému otevření. Víko je sendvočové složeno z dřevěného rámu vyplněný izolačním materiálem opláštěný pozinkovaným plechem. Pohledová čast je lakovaná v bílé barvě a kryta ochrannou fólií.","víko: dřevěný rám vyplněný izolantem opláštěný pozinkovaným plechem, pohledová část lakovaná, barva bílá, schody: kovové","600 x 800 mm (š x d)"," ; Další specifikace viz Kniha ostatních prvků",{"$f":"CONCATENATE(B17,$C$1,C17,$D$1,D17,$E$1,E17,F17)","v":"Stahovací schody zateplené s požární odolností; Popis:Stahovací schody zateplené s protipožární vložkou (EW 15 DP3). Schody jsou opatřeny brzdícím mechanismem proti prudkému otevření. Víko je sendvočové složeno z dřevěného rámu vyplněný izolačním materiálem opláštěný pozinkovaným plechem. Pohledová čast je lakovaná v bílé barvě a kryta ochrannou fólií.; Materiál:víko: dřevěný rám vyplněný izolantem opláštěný pozinkovaným plechem, pohledová část lakovaná, barva bílá, schody: kovové; Rozměry:600 x 800 mm (š x d) ; Další specifikace viz Kniha ostatních prvků"},"ks",1,{"$f":"14720*1.2","v":17664}]
["VV_N","Prvky vnitřního vybevení - Nábytek a příslušenství"]
["2A.VV_N_001","Čalouněné křeslo ušák","Čalouněné křeslo ušák je tvořen z vlnonce, 2 cm kokosové vrstvy a 5 cm široké PUR pěny a čalouněná potahovou látkou v barvě šedé. Hmotnost křesla 23 kg. Doplňové rozměry křesla: hloubka 720 mm, výška sedu 470 mm, hloubka sedu 520 mm, šířka sedu 520 mm a výška opěrka 670 mm.",null,"560 x 720 x 1080 mm (d x š x v)"," ; Další specifikace viz Kniha vnitřního vybavení - Kniha - prvků - Nábytek a příslušenství",{"$f":"CONCATENATE(B19,$C$1,C19,$E$1,E19,F19)","v":"Čalouněné křeslo ušák; Popis:Čalouněné křeslo ušák je tvořen z vlnonce, 2 cm kokosové vrstvy a 5 cm široké PUR pěny a čalouněná potahovou látkou v barvě šedé. Hmotnost křesla 23 kg. Doplňové rozměry křesla: hloubka 720 mm, výška sedu 470 mm, hloubka sedu 520 mm, šířka sedu 520 mm a výška opěrka 670 mm.; Rozměry:560 x 720 x 1080 mm (d x š x v) ; Další specifikace viz Kniha vnitřního vybavení - Kniha - prvků - Nábytek a příslušenství"},"ks",6,8736]
["2A.VV_N_002","Předsíňová stěna s věšáky","Předsíňová stěna s kovovými háčky se dvěmi úchytkami a policí, kotvená do stěny včetně montážního materiálu. Korpus a police z MDF desky, barva světle hnědá, tl. 20 mm. Hrany optařeny ABS hranou tl. 1,5 mm. Háček (5 ks) se dvěmi úchytkami kotvená na desku věšáku včetně kotvení. Materiál nerezová ocel.",null,"věšák: 660 x 240 x 1520 mm (d x š x v), háček: 70 x 30 x 47 mm (d x š x v)"," ; Další specifikace viz Kniha vnitřního vybavení - Kniha - prvků - Nábytek a příslušenství","Předsíňová stěna s věšáky; Popis:Předsíňová stěna s kovovými háčky se dvěmi úchytkami a policí, kotvená do stěny včetně montážního materiálu. Korpus a police z MDF desky, barva světle hnědá, tl. 20 mm. Hrany optařeny ABS hranou tl. 1,5 mm. Háček (5 ks) se dvěmi úchytkami kotvená na desku věšáku včetně kotvení. Materiál nerezová ocel.; Rozměry:věšák: 660 x 240 x 1520 mm (d x š x v), háček: 70 x 30 x 47 mm (d x š x v) ; Další specifikace viz Kniha vnitřního vybavení - Kniha - prvků - Nábytek a příslušenství","ks",1,{"$f":"1427*1.2","v":1712.3999999999999}]
["2A.VV_N_003","Nástěné zrcadlo do předsíně (rozměr 1000 x 900 mm)","Nástěné pravoúhlé zrcadlo k montáži na stěnu včetně kotvení. Materiál sklo s bezpečnostní fólií se zabroušenými hranami.",null,"1000 x 900 mm (š x v)"," ; Další specifikace viz Kniha vnitřního vybavení - Kniha - prvků - Nábytek a příslušenství","Nástěné zrcadlo do předsíně (rozměr 1000 x 900 mm); Popis:Nástěné pravoúhlé zrcadlo k montáži na stěnu včetně kotvení. Materiál sklo s bezpečnostní fólií se zabroušenými hranami.; Rozměry:1000 x 900 mm (š x v) ; Další specifikace viz Kniha vnitřního vybavení - Kniha - prvků - Nábytek a příslušenství","ks",1,{"$f":"1000*0.9*1.2","v":1080}]
["2A.VV_N_004","Vestavěná skříň policová plná s dveřmi rozdělenými na dvě části (výška 2000 mm)","Skříň dvoudvéřová. Vybavená 5 ks variabilních polic. Materiál laminovaná MDF deska, barva světle hnědá. Dno i půda z desky tl. 25 mm, z přední strany ABS hrana tl. 2 mm. Ostatní pohlednové prvky opatřeny ABS hranou tl. 1 mm. Boky korpusu z desky tl. 18 mm. Záda z desky tl. 8 mm. Police z desky tl. 25 mm, nosnost 80 kg s variabilním polohovatelností. Police a desky opatřeny hranou ABS tl. 2 mm. Dodávka včetvě rektifikačních nožiček.",null,"1400 x 400 x 2000 mm (d x š x v)"," ; Další specifikace viz Kniha vnitřního vybavení - Kniha - prvků - Nábytek a příslušenství","Vestavěná skříň policová plná s dveřmi rozdělenými na dvě části (výška 2000 mm); Popis:Skříň dvoudvéřová. Vybavená 5 ks variabilních polic. Materiál laminovaná MDF deska, barva světle hnědá. Dno i půda z desky tl. 25 mm, z přední strany ABS hrana tl. 2 mm. Ostatní pohlednové prvky opatřeny ABS hranou tl. 1 mm. Boky korpusu z desky tl. 18 mm. Záda z desky tl. 8 mm. Police z desky tl. 25 mm, nosnost 80 kg s variabilním polohovatelností. Police a desky opatřeny hranou ABS tl. 2 mm. Dodávka včetvě rektifikačních nožiček.; Rozměry:1400 x 400 x 2000 mm (d x š x v) ; Další specifikace viz Kniha vnitřního vybavení - Kniha - prvků - Nábytek a příslušenství","ks",1,21000]
["2A.VV_N_005","TV stolek s policemi","Televizní stolek s šesti policemi pod deskou. Materiál laminátová MDF deska, barva světle hnědá. Horní deska a nohy a police z desky tl. 20 mm. Horní deska opatřená ABS hranou tl. 2 mm, ostatní pohledové prvky opatřené ABS hranou tl. 1,5 mm. Záda z desky tl. 8 mm",null,"3700 x 400 x 400 mm (d x š x v)"," ; Další specifikace viz Kniha vnitřního vybavení - Kniha - prvků - Nábytek a příslušenství","TV stolek s policemi; Popis:Televizní stolek s šesti policemi pod deskou. Materiál laminátová MDF deska, barva světle hnědá. Horní deska a nohy a police z desky tl. 20 mm. Horní deska opatřená ABS hranou tl. 2 mm, ostatní pohledové prvky opatřené ABS hranou tl. 1,5 mm. Záda z desky tl. 8 mm; Rozměry:3700 x 400 x 400 mm (d x š x v) ; Další specifikace viz Kniha vnitřního vybavení - Kniha - prvků - Nábytek a příslušenství","ks",1,4300]
["2A.VV_N_006","Konferenční stolek","Obdelníkový konferenční stolek se čtyřmi nohami jednou otevřenou zásuvkou. Materiál laminátová MDF deska. Deska tl. 20 mm, opatřená ABS hranou tl. 2 mm, barva světle hnědá. Nohy stolku čtvercové ze dřeva, barva světle hnědá.",null,"1000 x 800 x 430 mm (d x š x v)"," ; Další specifikace viz Kniha vnitřního vybavení - Kniha - prvků - Nábytek a příslušenství","Konferenční stolek; Popis:Obdelníkový konferenční stolek se čtyřmi nohami jednou otevřenou zásuvkou. Materiál laminátová MDF deska. Deska tl. 20 mm, opatřená ABS hranou tl. 2 mm, barva světle hnědá. Nohy stolku čtvercové ze dřeva, barva světle hnědá.; Rozměry:1000 x 800 x 430 mm (d x š x v) ; Další specifikace viz Kniha vnitřního vybavení - Kniha - prvků - Nábytek a příslušenství","ks",1,3500]
["2A.VV_N_007","Skříňka do koupelny (výška 700 mm)","Skřínka se čtyřmi zásuvkami do koupleny a nožičkami. Materiál laminátová MDF deska, barva bílá. Dno i půda z desky tl. 25 mm, z přední strany ABS hrana tl. 2 mm. Ostatní pohlednové prvky opatřeny ABS hranou tl. 1 mm. Boky korpusu z desky tl. 18 mm. Záda z desky tl. 8 mm. Police z desky tl. 25 mm, nosnost 50 kg. Police a desky opatřeny hranou ABS tl. 2 mm. Dodávka včetvě kovových nožiček a úchytek k zásuvkám.",null,"400 x 400 x 700 mm (d x š x v)"," ; Další specifikace viz Kniha vnitřního vybavení - Kniha - prvků - Nábytek a příslušenství","Skříňka do koupelny (výška 700 mm); Popis:Skřínka se čtyřmi zásuvkami do koupleny a nožičkami. Materiál laminátová MDF deska, barva bílá. Dno i půda z desky tl. 25 mm, z přední strany ABS hrana tl. 2 mm. Ostatní pohlednové prvky opatřeny ABS hranou tl. 1 mm. Boky korpusu z desky tl. 18 mm. Záda z desky tl. 8 mm. Police z desky tl. 25 mm, nosnost 50 kg. Police a desky opatřeny hranou ABS tl. 2 mm. Dodávka včetvě kovových nožiček a úchytek k zásuvkám.; Rozměry:400 x 400 x 700 mm (d x š x v) ; Další specifikace viz Kniha vnitřního vybavení - Kniha - prvků - Nábytek a příslušenství","ks",1,{"$f":"3990*1.2","v":4788}]
["2A.VV_N_008","Sklopné zrcadlo pro bezbariérové WC","Sklopné nerezové zrcadlo na toalety pro tělesně postižené včetně kotvení. Kotveno pomocí montážní lišty. Naklánění zrcadla je ovládané pomocí páky na stěně pod umyvadlem. Materiál sklo s bezpečnostní fólií se zabroušenými hranami a rám a páka z nerezy.",null,"600 x 400 mm (š x v)"," ; Další specifikace viz Kniha vnitřního vybavení - Kniha - prvků - Nábytek a příslušenství","Sklopné zrcadlo pro bezbariérové WC; Popis:Sklopné nerezové zrcadlo na toalety pro tělesně postižené včetně kotvení. Kotveno pomocí montážní lišty. Naklánění zrcadla je ovládané pomocí páky na stěně pod umyvadlem. Materiál sklo s bezpečnostní fólií se zabroušenými hranami a rám a páka z nerezy.; Rozměry:600 x 400 mm (š x v) ; Další specifikace viz Kniha vnitřního vybavení - Kniha - prvků - Nábytek a příslušenství","ks",1,3630]
["2A.VV_N_009","Sklopné sedátko do sprchy","Sklopné sedátko do sprchy včetně montážního materiálu. Nosná konstrukce z nerezové oceli, sedátkou z odolného plastu  jedohuše udržovatlené. Maximální nosnost 200 kg.",null,"440 x 470 mm (d x š)"," ; Další specifikace viz Kniha vnitřního vybavení - Kniha - prvků - Nábytek a příslušenství","Sklopné sedátko do sprchy; Popis:Sklopné sedátko do sprchy včetně montážního materiálu. Nosná konstrukce z nerezové oceli, sedátkou z odolného plastu  jedohuše udržovatlené. Maximální nosnost 200 kg.; Rozměry:440 x 470 mm (d x š) ; Další specifikace viz Kniha vnitřního vybavení - Kniha - prvků - Nábytek a příslušenství","ks",1,{"$f":"3567*1.2","v":4280.3999999999996}]
["2A.VV_N_010","Police do skladu (výška 2000 mm)","Police do skladu s pěti policemi včetně montážního materiálu. Police jsou výškově přestavitelné v rastru 138 mm. Šedý policový regál je rychle smontovatelný bez spojovacího materiálu. Police se jednoduchým způsobem nasadí na sloupky. Možnost spojování do polí a řad vedle sebe i za sebou pro zvýšení celkové tuhosti. Konstrukce je povrchově upravena práškovým lakem šedé barvy. Nohy jsou vybaveny plastovými patkami pro ochranu podlahové krytiny.",null,"2000 x 600 x 2000 mm (d x š x v)"," ; Další specifikace viz Kniha vnitřního vybavení - Kniha - prvků - Nábytek a příslušenství","Police do skladu (výška 2000 mm); Popis:Police do skladu s pěti policemi včetně montážního materiálu. Police jsou výškově přestavitelné v rastru 138 mm. Šedý policový regál je rychle smontovatelný bez spojovacího materiálu. Police se jednoduchým způsobem nasadí na sloupky. Možnost spojování do polí a řad vedle sebe i za sebou pro zvýšení celkové tuhosti. Konstrukce je povrchově upravena práškovým lakem šedé barvy. Nohy jsou vybaveny plastovými patkami pro ochranu podlahové krytiny.; Rozměry:2000 x 600 x 2000 mm (d x š x v) ; Další specifikace viz Kniha vnitřního vybavení - Kniha - prvků - Nábytek a příslušenství","ks",2,20000]
["2A.VV_N_011","Police do skladu tvaru \"L\" (výška 2000 mm)","Police do skladu tvaru \"L\" s pěti police včetně montážního materiálu. Police jsou výškově přestavitelné v rastru 138 mm. Šedý policový regál je rychle smontovatelný bez spojovacího materiálu. Police se jednoduchým způsobem nasadí na sloupky. Možnost spojování do polí a řad vedle sebe i za sebou pro zvýšení celkové tuhosti. Konstrukce je povrchově upravena práškovým lakem šedé barvy. Nohy jsou vybaveny plastovými patkami pro ochranu podlahové krytiny.",null,"1810/1610 x 600 x 2000 mm (d x š x v)"," ; Další specifikace viz Kniha vnitřního vybavení - Kniha - prvků - Nábytek a příslušenství","Police do skladu tvaru \"L\" (výška 2000 mm); Popis:Police do skladu tvaru \"L\" s pěti police včetně montážního materiálu. Police jsou výškově přestavitelné v rastru 138 mm. Šedý policový regál je rychle smontovatelný bez spojovacího materiálu. Police se jednoduchým způsobem nasadí na sloupky. Možnost spojování do polí a řad vedle sebe i za sebou pro zvýšení celkové tuhosti. Konstrukce je povrchově upravena práškovým lakem šedé barvy. Nohy jsou vybaveny plastovými patkami pro ochranu podlahové krytiny.; Rozměry:1810/1610 x 600 x 2000 mm (d x š x v) ; Další specifikace viz Kniha vnitřního vybavení - Kniha - prvků - Nábytek a příslušenství","ks",1,18100]
["2A.VV_N_012","Kovová garnyž na záclony (délka 1450 mm)","Kovová garnyž na záclony včetně montážního materiálu. Tyč garnyže o púrůměru 16 mm. Skládá se z galvanicky pokovený tyče, dvou koncovek, dvou konzol na zeď a žabky s kroužky.",null,"délka 1450 mm"," ; Další specifikace viz Kniha vnitřního vybavení - Kniha - prvků - Nábytek a příslušenství","Kovová garnyž na záclony (délka 1450 mm); Popis:Kovová garnyž na záclony včetně montážního materiálu. Tyč garnyže o púrůměru 16 mm. Skládá se z galvanicky pokovený tyče, dvou koncovek, dvou konzol na zeď a žabky s kroužky.; Rozměry:délka 1450 mm ; Další specifikace viz Kniha vnitřního vybavení - Kniha - prvků - Nábytek a příslušenství","ks",10,{"$f":"946*1.2","v":1135.2}]
["2A.VV_N_013","Kovová garnyž na záclony (délka 1950 mm)","Kovová garnyž na záclony včetně montážního materiálu. Tyč garnyže o púrůměru 16 mm. Skládá se z galvanicky pokovený tyče, dvou koncovek, dvou konzol na zeď a žabky s kroužky.",null,"délka 1950 mm"," ; Další specifikace viz Kniha vnitřního vybavení - Kniha - prvků - Nábytek a příslušenství","Kovová garnyž na záclony (délka 1950 mm); Popis:Kovová garnyž na záclony včetně montážního materiálu. Tyč garnyže o púrůměru 16 mm. Skládá se z galvanicky pokovený tyče, dvou koncovek, dvou konzol na zeď a žabky s kroužky.; Rozměry:délka 1950 mm ; Další specifikace viz Kniha vnitřního vybavení - Kniha - prvků - Nábytek a příslušenství","ks",2,{"$f":"1272*1.2","v":1526.3999999999999}]
["2A.VV_N_014","Termoport","Termoport pro uskladnění pokrmů určených pro přepravu. Termoport je nevyhřívaný, čelní plnění s nasazovacími dvířky. Uzavírání pomocí záklopných uzávěrů zapuštěných do čelních stěnkorpusu, vnitřní prostor umožňuje uložení 12 párů vylisovaných drážek se svislou roztečí 39 mm k zasouvání gastro nádob, praktických držák popisovacích karet a ergonomická madla s neklouzavými plastovými úchyty.  Materiál polypropylen, polyamid a chromniklová ocel. Hmotnost 14 kg.",null,"630 x 425 x 660 mm"," ; Další specifikace viz Kniha vnitřního vybavení - Kniha - prvků - Nábytek a příslušenství","Termoport; Popis:Termoport pro uskladnění pokrmů určených pro přepravu. Termoport je nevyhřívaný, čelní plnění s nasazovacími dvířky. Uzavírání pomocí záklopných uzávěrů zapuštěných do čelních stěnkorpusu, vnitřní prostor umožňuje uložení 12 párů vylisovaných drážek se svislou roztečí 39 mm k zasouvání gastro nádob, praktických držák popisovacích karet a ergonomická madla s neklouzavými plastovými úchyty.  Materiál polypropylen, polyamid a chromniklová ocel. Hmotnost 14 kg.; Rozměry:630 x 425 x 660 mm ; Další specifikace viz Kniha vnitřního vybavení - Kniha - prvků - Nábytek a příslušenství","ks",1,{"$f":"16081","v":16081}]
["2A.VV_N_015","Nástěnná police s konzolemi","Nástěnná police s konzolemi kotvené do zdi včetně kotvení. Materiál laminátová MDF deska, barva světle hnědá. Police z desky tl. 25 mm, opatřena ABS hranou tl. 2 mm. Nosnost 80 kg. Konzole dřevěné v barvě světle hnědé.",null,"1000 x 300 x 20 mm (d x š x v)"," ; Další specifikace viz Kniha vnitřního vybavení - Kniha - prvků - Nábytek a příslušenství","Nástěnná police s konzolemi; Popis:Nástěnná police s konzolemi kotvené do zdi včetně kotvení. Materiál laminátová MDF deska, barva světle hnědá. Police z desky tl. 25 mm, opatřena ABS hranou tl. 2 mm. Nosnost 80 kg. Konzole dřevěné v barvě světle hnědé.; Rozměry:1000 x 300 x 20 mm (d x š x v) ; Další specifikace viz Kniha vnitřního vybavení - Kniha - prvků - Nábytek a příslušenství","ks",1,{"$f":"530*1.2","v":636}]
["2A.VV_N_016","Sklopná madla k WC","Sklopná madla k WC včetně montážníh materiálu. Madla jsou z nerezi. Nosnost 120 kg.",null,"délka madla 813 mm"," ; Další specifikace viz Kniha vnitřního vybavení - Kniha - prvků - Nábytek a příslušenství","Sklopná madla k WC; Popis:Sklopná madla k WC včetně montážníh materiálu. Madla jsou z nerezi. Nosnost 120 kg.; Rozměry:délka madla 813 mm ; Další specifikace viz Kniha vnitřního vybavení - Kniha - prvků - Nábytek a příslušenství","ks",2,{"$f":"2488","v":2488}]
["2A.VV_N_017","Trezor pro personál","Trezor s elektronickým zámkem. Materiál ocel, korpus 1,5 mm, dveře 4 mm, povrchová úprava práškovaným lakem v barvě šedé. Možné upevnit na zeď. Provoz trezeru je za pomoci 4 běžných baterií (1,5 V).",null,"350 x 250 x 250 mm (d x š x v)"," ; Další specifikace viz Kniha vnitřního vybavení - Kniha - prvků - Nábytek a příslušenství","Trezor pro personál; Popis:Trezor s elektronickým zámkem. Materiál ocel, korpus 1,5 mm, dveře 4 mm, povrchová úprava práškovaným lakem v barvě šedé. Možné upevnit na zeď. Provoz trezeru je za pomoci 4 běžných baterií (1,5 V).; Rozměry:350 x 250 x 250 mm (d x š x v) ; Další specifikace viz Kniha vnitřního vybavení - Kniha - prvků - Nábytek a příslušenství","ks",1,{"$f":"1259","v":1259}]
["VV_E","Prvky vnitřního vybevení - Elektro a příslušenství"]
["2A.VV_E_001","Myčka vestavěná","Kapacita myčky 13 sad nádobí, 2 úložné koše, spotřeba vody 11 l, AQUA STOP proti přetečení, 2 ostřikovací ramena, 4 programy: Eco, Intenzivní, Normální, Oplachování, mycí teploty: 40-70°C, energetická třída A+, účinnost mytí A, účinnost sušení A, hlučnost 49 dB(A), spotřeba energie: 1,04 kWh.",null,"595 x 570 x 820 mm"," ; Další specifikace viz Kniha vnitřního vybavení - Kniha - prvků - Elektro a příslušenství",{"$f":"CONCATENATE(B37,$C$1,C37,$E$1,E37,F37)","v":"Myčka vestavěná; Popis:Kapacita myčky 13 sad nádobí, 2 úložné koše, spotřeba vody 11 l, AQUA STOP proti přetečení, 2 ostřikovací ramena, 4 programy: Eco, Intenzivní, Normální, Oplachování, mycí teploty: 40-70°C, energetická třída A+, účinnost mytí A, účinnost sušení A, hlučnost 49 dB(A), spotřeba energie: 1,04 kWh.; Rozměry:595 x 570 x 820 mm ; Další specifikace viz Kniha vnitřního vybavení - Kniha - prvků - Elektro a příslušenství"},"ks",1,15000]
["2A.VV_E_002","Varná deska vestavěná","Sklokeramická varná deska, 4 highlight varné zóny, dotykové ovládání, 9 stupňů výkonu, kontrolky provozu a zbytkového tepla, dětská pojistka, bez rámečku - rovné hrany.",null,"590 x 520 x 46 mm"," ; Další specifikace viz Kniha vnitřního vybavení - Kniha - prvků - Elektro a příslušenství","Varná deska vestavěná; Popis:Sklokeramická varná deska, 4 highlight varné zóny, dotykové ovládání, 9 stupňů výkonu, kontrolky provozu a zbytkového tepla, dětská pojistka, bez rámečku - rovné hrany.; Rozměry:590 x 520 x 46 mm ; Další specifikace viz Kniha vnitřního vybavení - Kniha - prvků - Elektro a příslušenství","ks",1,12000]
["2A.VV_E_003","TV","Chytrá televize s operačním systémem, pevné síťové připojení (min 1x RJ45), DLNA klient pro přehrávání streamů ze serveru, obrazovka LCD s LED podsvícením, velikost min 42, rozlišení FullHD (1920 x 1080 bodů), Hotelový režim, televizní tuner pro příjem pozemního vysílání DVBT a DVBT2 certifikovaný pro ČR. Kompatabilní s držákem VESA.",null," - - -"," ; Další specifikace viz Kniha vnitřního vybavení - Kniha - prvků - Elektro a příslušenství","TV; Popis:Chytrá televize s operačním systémem, pevné síťové připojení (min 1x RJ45), DLNA klient pro přehrávání streamů ze serveru, obrazovka LCD s LED podsvícením, velikost min 42, rozlišení FullHD (1920 x 1080 bodů), Hotelový režim, televizní tuner pro příjem pozemního vysílání DVBT a DVBT2 certifikovaný pro ČR. Kompatabilní s držákem VESA.; Rozměry: - - - ; Další specifikace viz Kniha vnitřního vybavení - Kniha - prvků - Elektro a příslušenství","ks",1,15000]
["2A.VV_E_004","Varná konvice","Standardní varná konvice, objem 1,7 l, vyjímatelný a omyvatelný filtr pro zachycení nečistot a usazenin, uskladnění síťového kabelu v podstavci, topné dno z nerezové oceli se zakrytou topnou spirálou,snadné otevírání víka stisknutím tlačítka v horní části rukojeti, bezpečnostní zajištění víčka v uzavřené poloze, trojnásobné bezpečnostní jištění: - Ochrana proti přehřátí při zapnutí bez vody , a Automatické vypnutí při sejmutí z podstavce - Automatické vypnutí po dosažení bodu varu Středový 360° konektor, přepínač zapnuto/vypnuto s podsvětlením.",null," - - -"," ; Další specifikace viz Kniha vnitřního vybavení - Kniha - prvků - Elektro a příslušenství","Varná konvice; Popis:Standardní varná konvice, objem 1,7 l, vyjímatelný a omyvatelný filtr pro zachycení nečistot a usazenin, uskladnění síťového kabelu v podstavci, topné dno z nerezové oceli se zakrytou topnou spirálou,snadné otevírání víka stisknutím tlačítka v horní části rukojeti, bezpečnostní zajištění víčka v uzavřené poloze, trojnásobné bezpečnostní jištění: - Ochrana proti přehřátí při zapnutí bez vody , a Automatické vypnutí při sejmutí z podstavce - Automatické vypnutí po dosažení bodu varu Středový 360° konektor, přepínač zapnuto/vypnuto s podsvětlením.; Rozměry: - - - ; Další specifikace viz Kniha vnitřního vybavení - Kniha - prvků - Elektro a příslušenství","ks",1,640]
["2A.VV_E_005","Vestavěná trouba","Multifunkční horkovzdušná elektrická trouba objem 60l. Samostatná trouba s pravým horkým vzduchem v energetické třídě A, funkce rozmrazování, displej s digitálním časovačem - nastavení minutky, denního času, konce pečení a doby pečení, možnost péci na 2 úrovních najednou, uvnitř trouby vysoce lesklý smalt pro snadné čištění, nerezové provedení.",null,"594 x 540 x 589 mm"," ; Další specifikace viz Kniha vnitřního vybavení - Kniha - prvků - Elektro a příslušenství","Vestavěná trouba; Popis:Multifunkční horkovzdušná elektrická trouba objem 60l. Samostatná trouba s pravým horkým vzduchem v energetické třídě A, funkce rozmrazování, displej s digitálním časovačem - nastavení minutky, denního času, konce pečení a doby pečení, možnost péci na 2 úrovních najednou, uvnitř trouby vysoce lesklý smalt pro snadné čištění, nerezové provedení.; Rozměry:594 x 540 x 589 mm ; Další specifikace viz Kniha vnitřního vybavení - Kniha - prvků - Elektro a příslušenství","ks",1,13000]
["2A.VV_E_006","Tyčový mixér","Tyčový mixér k mixování, drcení, míchání. Tyčový mixér z nerezové oceli, 5 rychlostních stupňů. Příkon: 700 W/230 V. Celková délka mixéru: 410 mm. Hmotnost: 1,05 kg. Součástí: 1 metla, 1 nádoba (800 ml), 2 speciální nádoby s mixovacími noži (500 ml + 1250 ml), 1 víko pro obě nádoby, 2 protiskluzové podložky, 1 nástěnný držák.",null," - - -"," ; Další specifikace viz Kniha vnitřního vybavení - Kniha - prvků - Elektro a příslušenství","Tyčový mixér; Popis:Tyčový mixér k mixování, drcení, míchání. Tyčový mixér z nerezové oceli, 5 rychlostních stupňů. Příkon: 700 W/230 V. Celková délka mixéru: 410 mm. Hmotnost: 1,05 kg. Součástí: 1 metla, 1 nádoba (800 ml), 2 speciální nádoby s mixovacími noži (500 ml + 1250 ml), 1 víko pro obě nádoby, 2 protiskluzové podložky, 1 nástěnný držák.; Rozměry: - - - ; Další specifikace viz Kniha vnitřního vybavení - Kniha - prvků - Elektro a příslušenství","ks",1,1700]
["2A.VV_E_007","Notebook","Notebook, 15,4 “ LCD, 8 GB RAM, 500 GB HDD, procesor i3 a vyšší, Windows 10 Pro, MS Office 2016 Home and Bussines CZ.",null," - - -"," ; Další specifikace viz Kniha vnitřního vybavení - Kniha - prvků - Elektro a příslušenství","Notebook; Popis:Notebook, 15,4 “ LCD, 8 GB RAM, 500 GB HDD, procesor i3 a vyšší, Windows 10 Pro, MS Office 2016 Home and Bussines CZ.; Rozměry: - - - ; Další specifikace viz Kniha vnitřního vybavení - Kniha - prvků - Elektro a příslušenství","ks",1,33590]
["2A.VV_E_008","Tiskárna na A4","Malá tiskárna - Funkce: černobílý laserový tisk, kopírování, skenování, fax, Formát: A4, rozlišení tisku: 1200dpi, ovládání: dotykový barevný grafický displej, velikost paměti: 256 MB, rychlost tisku: 38 Str./min., doba tisku první strany: 5,7s, oboustranný tisk: automatický , vstupní zásobník: 250 listů, víceúčelový zásobník: 100 listů, výstupní zásobník: 150 listů, gramáž média: 60 – 175 g/m2, rozlišení kopírování: 600x600dpi, zoom kopírování: 25 – 400%, rozlišení skenování: 1200dpi, podavač skeneru: oboustranný 50 listů, oboustranné jednoprůchodové skenování fumkce skeneru: skenování do e-mailu, do síťové složky, do USB, připojení: USB 2.0, Ethernet 10/100/1000T, hostitelský USB port, jazyky tiskárny: PCL 5, HP PCL 6, emulace Postscript úrovně 3, přímý tisk PDF (v1.7), URF, PCLM, PWG.",null," - - -"," ; Další specifikace viz Kniha vnitřního vybavení - Kniha - prvků - Elektro a příslušenství","Tiskárna na A4; Popis:Malá tiskárna - Funkce: černobílý laserový tisk, kopírování, skenování, fax, Formát: A4, rozlišení tisku: 1200dpi, ovládání: dotykový barevný grafický displej, velikost paměti: 256 MB, rychlost tisku: 38 Str./min., doba tisku první strany: 5,7s, oboustranný tisk: automatický , vstupní zásobník: 250 listů, víceúčelový zásobník: 100 listů, výstupní zásobník: 150 listů, gramáž média: 60 – 175 g/m2, rozlišení kopírování: 600x600dpi, zoom kopírování: 25 – 400%, rozlišení skenování: 1200dpi, podavač skeneru: oboustranný 50 listů, oboustranné jednoprůchodové skenování fumkce skeneru: skenování do e-mailu, do síťové složky, do USB, připojení: USB 2.0, Ethernet 10/100/1000T, hostitelský USB port, jazyky tiskárny: PCL 5, HP PCL 6, emulace Postscript úrovně 3, přímý tisk PDF (v1.7), URF, PCLM, PWG.; Rozměry: - - - ; Další specifikace viz Kniha vnitřního vybavení - Kniha - prvků - Elektro a příslušenství","ks",1,5000]
["VV_VEN","Prvky vnitřního vybevení - Venkovní vybavení"]
["2A.VV_VEN_001","Venkovní pergola k sezení vybavená židlemi a stlem","Venkovní dřevěná pergola k sezení vybavená šesti židlemi a stolem. Kovový stůl a židle s opěrkou a područkami. Sloupky pergoly jsou průřezu 120 x 120 mm, vzdálenost sloupků je 2,0 m, pod každým sloupkem je proveden betonový základ s patkou sloupku z galvanického zinku, základy jsou provedeny v nezámrzné hloubce. Trvar střechy je sedlový, krokve průžezu 60 x 140 mm, podélné prvky průřezu 100 x 140 mm. Na střeše je provedeno bednění a laťování se skládanou betonovou střešní krytinou. V přístřešku je podlaha z betonové dlažby. Betonová dlažba je uložena na kladecí vrstu tl. 40 mm - kamenná drť 4-8mm, podkladní nosnou vrstvu tl. 150 mm - kamená drť 8-16 mm a zemní pláň. Klempířské prvky jsou provedeny z pozinkovaného plechu.",null,"5000 x 5000 x 3300 mm (d x š x v)"," ; Další specifikace viz Kniha vnitřního vybavení - Kniha - prvků - Venkovní vybavení",{"$f":"CONCATENATE(B46,$C$1,C46,$E$1,E46,F46)","v":"Venkovní pergola k sezení vybavená židlemi a stlem; Popis:Venkovní dřevěná pergola k sezení vybavená šesti židlemi a stolem. Kovový stůl a židle s opěrkou a područkami. Sloupky pergoly jsou průřezu 120 x 120 mm, vzdálenost sloupků je 2,0 m, pod každým sloupkem je proveden betonový základ s patkou sloupku z galvanického zinku, základy jsou provedeny v nezámrzné hloubce. Trvar střechy je sedlový, krokve průžezu 60 x 140 mm, podélné prvky průřezu 100 x 140 mm. Na střeše je provedeno bednění a laťování se skládanou betonovou střešní krytinou. V přístřešku je podlaha z betonové dlažby. Betonová dlažba je uložena na kladecí vrstu tl. 40 mm - kamenná drť 4-8mm, podkladní nosnou vrstvu tl. 150 mm - kamená drť 8-16 mm a zemní pláň. Klempířské prvky jsou provedeny z pozinkovaného plechu.; Rozměry:5000 x 5000 x 3300 mm (d x š x v) ; Další specifikace viz Kniha vnitřního vybavení - Kniha - prvků - Venkovní vybavení"},"ks",1,55000]
["2A.VV_VEN_002","Zahradní domek","Zhradní domek je určený k uskladnění zhradního nábytku a nářadí. Zahradní domek je proveden na základvou desku (štěrk tl. 150 mm a beton tl. 15 mm). Zahradní domek je proveden ze sloupků o průřezu 120 x 120 mm (sloupky jsou kotveny k základvé desce za pomocí pataky sloupku z galvanického zinku) a opláštěné smrkovými palubkami tl. 28 mm. Trvar střechy je sedlový, krokve průžezu 60 x 140 mm, podélné prvky průřezu 100 x 140 mm. Na střeše je provedeno bednění a laťování se skládanou betonovou střešní krytinou. Podlaha betonová. Klempířské prvky jsou provedeny z pozinkovaného plechu.",null,"4000 x 3000 x 2400 mm (d x š x v)"," ; Další specifikace viz Kniha vnitřního vybavení - Kniha - prvků - Venkovní vybavení",{"$f":"CONCATENATE(B47,$C$1,C47,$E$1,E47,F47)","v":"Zahradní domek; Popis:Zhradní domek je určený k uskladnění zhradního nábytku a nářadí. Zahradní domek je proveden na základvou desku (štěrk tl. 150 mm a beton tl. 15 mm). Zahradní domek je proveden ze sloupků o průřezu 120 x 120 mm (sloupky jsou kotveny k základvé desce za pomocí pataky sloupku z galvanického zinku) a opláštěné smrkovými palubkami tl. 28 mm. Trvar střechy je sedlový, krokve průžezu 60 x 140 mm, podélné prvky průřezu 100 x 140 mm. Na střeše je provedeno bednění a laťování se skládanou betonovou střešní krytinou. Podlaha betonová. Klempířské prvky jsou provedeny z pozinkovaného plechu.; Rozměry:4000 x 3000 x 2400 mm (d x š x v) ; Další specifikace viz Kniha vnitřního vybavení - Kniha - prvků - Venkovní vybavení"},"ks",1,27800]
["2A.VV_VEN_003","Benzínová travní sekačka","Benzínová travní sekačka se skládá z 4-traktního benzínového motoru, ocelového nože a koše o objemu 45l. Technické parametry: výška zdvihu 25-65 mm, průměr kol 7/10\", rychlost 0,9 m/s, materiál kov.",null," - - -"," ; Další specifikace viz Kniha vnitřního vybavení - Kniha - prvků - Venkovní vybavení",{"$f":"CONCATENATE(B48,$C$1,C48,$E$1,E48,F48)","v":"Benzínová travní sekačka; Popis:Benzínová travní sekačka se skládá z 4-traktního benzínového motoru, ocelového nože a koše o objemu 45l. Technické parametry: výška zdvihu 25-65 mm, průměr kol 7/10\", rychlost 0,9 m/s, materiál kov.; Rozměry: - - - ; Další specifikace viz Kniha vnitřního vybavení - Kniha - prvků - Venkovní vybavení"},"ks",1,5290]

{"sheet":"KVI_B","index":5,"n_rows":42,"n_cols":10,"rows_kept":42,"cut":false,"hidden":true,"merged":[]}
["2BD.1.1","Architektonicko-stavební řešení","; Popis:","; Materiál:","; Rozměry:"]
["10_VB","Výrobky"]
["KP","Klempířské prvky","Sloupec1","Sloupec2","Sloupec3","Sloupec4","Sloupec5","Sloupec6","Sloupec7","Sloupec8"]
["P1-1.01","Okenní parapet","Oplechování parapetu oken včetně doplňkového a montážního materiálu.","Ocelový pozinkovaný plech, tl. 0,6 mm, exteriérový nátěr v odstínu RAL 7016","r.š. 330 mm"," ; Další specifikace viz Kniha klempířských prvků",{"$f":"CONCATENATE(B4,$C$1,C4,$D$1,D4,$E$1,E4,F4)","v":"Okenní parapet; Popis:Oplechování parapetu oken včetně doplňkového a montážního materiálu.; Materiál:Ocelový pozinkovaný plech, tl. 0,6 mm, exteriérový nátěr v odstínu RAL 7016; Rozměry:r.š. 330 mm ; Další specifikace viz Kniha klempířských prvků"},"m",14.7,474]
["P1-1.02","Oplechování atiky","Oplechování atiky, včetně doplňkového a montážního materiálu.","Ocelový pozinkovaný plech, tl. 0,6 mm, exteriérový nátěr v odstínu RAL 7016","r.š. 860 mm"," ; Další specifikace viz Kniha klempířských prvků","Oplechování atiky; Popis:Oplechování atiky, včetně doplňkového a montážního materiálu.; Materiál:Ocelový pozinkovaný plech, tl. 0,6 mm, exteriérový nátěr v odstínu RAL 7016; Rozměry:r.š. 860 mm ; Další specifikace viz Kniha klempířských prvků","m",13.7,1480]
["P1-1.03","Oplechování atiky","Oplechování atiky, včetně doplňkového a montážního materiálu.","Ocelový pozinkovaný plech, tl. 0,6 mm, exteriérový nátěr v odstínu RAL 7016","r.š. 720 mm"," ; Další specifikace viz Kniha klempířských prvků","Oplechování atiky; Popis:Oplechování atiky, včetně doplňkového a montážního materiálu.; Materiál:Ocelový pozinkovaný plech, tl. 0,6 mm, exteriérový nátěr v odstínu RAL 7016; Rozměry:r.š. 720 mm ; Další specifikace viz Kniha klempířských prvků","m",14.1,1100]
["P1-1.04","Boční oplechování","Boční oplechování, včetně doplňkového a montážního materiálu.","Ocelový pozinkovaný plech, tl. 0,6 mm, exteriérový nátěr v odstínu RAL 7016","r.š. 435 mm"," ; Další specifikace viz Kniha klempířských prvků","Boční oplechování; Popis:Boční oplechování, včetně doplňkového a montážního materiálu.; Materiál:Ocelový pozinkovaný plech, tl. 0,6 mm, exteriérový nátěr v odstínu RAL 7016; Rozměry:r.š. 435 mm ; Další specifikace viz Kniha klempířských prvků","m",5.5,860]
["P1-1.05","Dešťový žlab","Dešťový žlab, včetně doplňkového a montážního materiálu.","Ocelový pozinkovaný plech, tl. 0,6 mm, exteriérový nátěr v odstínu RAL 7016","průměr 300 mm"," ; Další specifikace viz Kniha klempířských prvků","Dešťový žlab; Popis:Dešťový žlab, včetně doplňkového a montážního materiálu.; Materiál:Ocelový pozinkovaný plech, tl. 0,6 mm, exteriérový nátěr v odstínu RAL 7016; Rozměry:průměr 300 mm ; Další specifikace viz Kniha klempířských prvků","m",32.1,725]
["P1-1.06","Dešťový svod","Dešťový svod, včetně doplňkového a montážního materiálu.","Ocelový pozinkovaný plech, tl. 0,6 mm, exteriérový nátěr v odstínu RAL 7016","průměr 120 mm"," ; Další specifikace viz Kniha klempířských prvků","Dešťový svod; Popis:Dešťový svod, včetně doplňkového a montážního materiálu.; Materiál:Ocelový pozinkovaný plech, tl. 0,6 mm, exteriérový nátěr v odstínu RAL 7016; Rozměry:průměr 120 mm ; Další specifikace viz Kniha klempířských prvků","m",14.1,919]
["TP","Truhlářské prvky"]
["T1-1.01","Oddělující lehká dřevěná příčka","Oddělující lehká dřevěná příčka, rošt ze smrkových doblovaných hranolů 40 x 40 mm spojené konstrukčními vruty se zápustnou hlavou, opláštěné laminátovou MDF deskou, vzor světlého dřeva s méně výraznou kresbou. Hranoly kotveny do stěny a stropu. Součástí příčky jsou uzamykatelné dveře o rozměru 1600 x 1970 mm, obložková polodrážková zárubeň materiál MDF, vložkový zámek + klika.","rošt: smrkové hranoly, opláštění a dveře: MDF deska, zámek a klika: broušený nerez","2500 x 60 x 2300 mm (d x hl x v)"," ; Další specifikace viz Kniha truhlářských prvků",{"$f":"CONCATENATE(B11,$C$1,C11,$D$1,D11,$E$1,E11,F11)","v":"Oddělující lehká dřevěná příčka; Popis:Oddělující lehká dřevěná příčka, rošt ze smrkových doblovaných hranolů 40 x 40 mm spojené konstrukčními vruty se zápustnou hlavou, opláštěné laminátovou MDF deskou, vzor světlého dřeva s méně výraznou kresbou. Hranoly kotveny do stěny a stropu. Součástí příčky jsou uzamykatelné dveře o rozměru 1600 x 1970 mm, obložková polodrážková zárubeň materiál MDF, vložkový zámek + klika.; Materiál:rošt: smrkové hranoly, opláštění a dveře: MDF deska, zámek a klika: broušený nerez; Rozměry:2500 x 60 x 2300 mm (d x hl x v) ; Další specifikace viz Kniha truhlářských prvků"},"ks",1,23000]
["T1-1.02","Kuchyňská linka tvaru U","Kuchyňská linka tvaru U, sokl 80 mm, korpus z lamino desky tl. 18 mm, hrana z ABS tl. 2 mm. Horní i spodní skříňky plné, pracovní deska z laminátové desky tl. 38 mm, nerezový dřez s odkapávačem. Kování linky je kovové. Součástí kuchyňské linky je dřez s odkapávačem, varná deska se čtyřmi plotýnkami, trouba, lednička, mrazák a myčka. Spotřebiče energetiské třídy min. A přesně specifikovány vnitřního vybavení. Horní i spodní část je opatřená krycím panelem š. 50 mm.","Korpus z lamina, pracovní deska z laminátové desky","viz. obrazová příloha","  ; SPOTŘEBIČE OCENIT V KAPITOLE_Prvky vnitřního vybevení - Elektro a příslušenství ; Další specifikace viz Kniha truhlářských prvků",{"$f":"CONCATENATE(B12,$C$1,C12,$D$1,D12,$E$1,E12,F12)","v":"Kuchyňská linka tvaru U; Popis:Kuchyňská linka tvaru U, sokl 80 mm, korpus z lamino desky tl. 18 mm, hrana z ABS tl. 2 mm. Horní i spodní skříňky plné, pracovní deska z laminátové desky tl. 38 mm, nerezový dřez s odkapávačem. Kování linky je kovové. Součástí kuchyňské linky je dřez s odkapávačem, varná deska se čtyřmi plotýnkami, trouba, lednička, mrazák a myčka. Spotřebiče energetiské třídy min. A přesně specifikovány vnitřního vybavení. Horní i spodní část je opatřená krycím panelem š. 50 mm.; Materiál:Korpus z lamina, pracovní deska z laminátové desky; Rozměry:viz. obrazová příloha  ; SPOTŘEBIČE OCENIT V KAPITOLE_Prvky vnitřního vybevení - Elektro a příslušenství ; Další specifikace viz Kniha truhlářských prvků"},"ks",1,231600]
["OP","Ostatní prvky"]
["X1-1.01","Venkovní rolety","Venkovní hliníková roleta pro regulaci přirozeného osvětlení a zachycení slunečních paprsků s bočními vodícími lištami. Horní ocelový válcovaný profil upravený pozinkování o rozměru 58 x 56 mm zakrytý krycím plechem. Lamely hliníkové o šířce 80 mm s navíjecími mechanismy, textilními žebříčky a vytahovacími páskami. Boční vodící lišty o rozměru 20 x 20 mm v barvě stříbrná elox. Ovládání elektrické.","hliník, barva stříbrný elox","1250x1750 mm (šxv)"," ; Další specifikace viz Kniha ostatních prvků",{"$f":"CONCATENATE(B14,$C$1,C14,$D$1,D14,$E$1,E14,F14)","v":"Venkovní rolety; Popis:Venkovní hliníková roleta pro regulaci přirozeného osvětlení a zachycení slunečních paprsků s bočními vodícími lištami. Horní ocelový válcovaný profil upravený pozinkování o rozměru 58 x 56 mm zakrytý krycím plechem. Lamely hliníkové o šířce 80 mm s navíjecími mechanismy, textilními žebříčky a vytahovacími páskami. Boční vodící lišty o rozměru 20 x 20 mm v barvě stříbrná elox. Ovládání elektrické.; Materiál:hliník, barva stříbrný elox; Rozměry:1250x1750 mm (šxv) ; Další specifikace viz Kniha ostatních prvků"},"ks",6,6125]
["X1-1.02","Stahovací schody zateplené s požární odolností","Stahovací schody zateplené s protipožární vložkou (EW 15 DP3). Schody jsou opatřeny brzdícím mechanismem proti prudkému otevření. Víko je sendvočové složeno z dřevěného rámu vyplněný izolačním materiálem opláštěný pozinkovaným plechem. Pohledová čast je lakovaná v bílé barvě a kryta ochrannou fólií.","víko: dřevěný rám vyplněný izolantem opláštěný pozinkovaným plechem, pohledová část lakovaná, barva bílá, schody: kovové","600 x 800 mm (š x d)"," ; Další specifikace viz Kniha ostatních prvků",{"$f":"CONCATENATE(B15,$C$1,C15,$D$1,D15,$E$1,E15,F15)","v":"Stahovací schody zateplené s požární odolností; Popis:Stahovací schody zateplené s protipožární vložkou (EW 15 DP3). Schody jsou opatřeny brzdícím mechanismem proti prudkému otevření. Víko je sendvočové složeno z dřevěného rámu vyplněný izolačním materiálem opláštěný pozinkovaným plechem. Pohledová čast je lakovaná v bílé barvě a kryta ochrannou fólií.; Materiál:víko: dřevěný rám vyplněný izolantem opláštěný pozinkovaným plechem, pohledová část lakovaná, barva bílá, schody: kovové; Rozměry:600 x 800 mm (š x d) ; Další specifikace viz Kniha ostatních prvků"},"ks",1,{"$f":"14720*1.2","v":17664}]
["VV_N","Prvky vnitřního vybevení - Nábytek a příslušenství"]
["2B.VV_N_001","Čalouněné křeslo ušák","Čalouněné křeslo ušák je tvořen z vlnonce, 2 cm kokosové vrstvy a 5 cm široké PUR pěny a čalouněná potahovou látkou v barvě šedé. Hmotnost křesla 23 kg. Doplňové rozměry křesla: hloubka 720 mm, výška sedu 470 mm, hloubka sedu 520 mm, šířka sedu 520 mm a výška opěrka 670 mm.",null,"560 x 720 x 1080 mm (d x š x v)"," ; Další specifikace viz Kniha vnitřního vybavení - Kniha - prvků - Nábytek a příslušenství",{"$f":"CONCATENATE(B17,$C$1,C17,$D$1,D17,$E$1,E17,F17)","v":"Čalouněné křeslo ušák; Popis:Čalouněné křeslo ušák je tvořen z vlnonce, 2 cm kokosové vrstvy a 5 cm široké PUR pěny a čalouněná potahovou látkou v barvě šedé. Hmotnost křesla 23 kg. Doplňové rozměry křesla: hloubka 720 mm, výška sedu 470 mm, hloubka sedu 520 mm, šířka sedu 520 mm a výška opěrka 670 mm.; Materiál:; Rozměry:560 x 720 x 1080 mm (d x š x v) ; Další specifikace viz Kniha vnitřního vybavení - Kniha - prvků - Nábytek a příslušenství"},"ks",6,8736]
["2B.VV_N_002","Předsíňová stěna s věšáky","Předsíňová stěna s kovovými háčky se dvěmi úchytkami a policí, kotvená do stěny včetně montážního materiálu. Korpus a police z MDF desky, barva světle hnědá, tl. 20 mm. Hrany optařeny ABS hranou tl. 1,5 mm. Háček (5 ks) se dvěmi úchytkami kotvená na desku věšáku včetně kotvení. Materiál nerezová ocel.",null,"věšák: 660 x 240 x 1520 mm (d x š x v), háček: 70 x 30 x 47 mm (d x š x v)"," ; Další specifikace viz Kniha vnitřního vybavení - Kniha - prvků - Nábytek a příslušenství","Předsíňová stěna s věšáky; Popis:Předsíňová stěna s kovovými háčky se dvěmi úchytkami a policí, kotvená do stěny včetně montážního materiálu. Korpus a police z MDF desky, barva světle hnědá, tl. 20 mm. Hrany optařeny ABS hranou tl. 1,5 mm. Háček (5 ks) se dvěmi úchytkami kotvená na desku věšáku včetně kotvení. Materiál nerezová ocel.; Materiál:; Rozměry:věšák: 660 x 240 x 1520 mm (d x š x v), háček: 70 x 30 x 47 mm (d x š x v) ; Další specifikace viz Kniha vnitřního vybavení - Kniha - prvků - Nábytek a příslušenství","ks",1,{"$f":"1427*1.2","v":1712.3999999999999}]
["2B.VV_N_003","Nástěné zrcadlo do předsíně (rozměr 1000 x 900 mm)","Nástěné pravoúhlé zrcadlo k montáži na stěnu včetně kotvení. Materiál sklo s bezpečnostní fólií se zabroušenými hranami.",null,"1000 x 900 mm (š x v)"," ; Další specifikace viz Kniha vnitřního vybavení - Kniha - prvků - Nábytek a příslušenství","Nástěné zrcadlo do předsíně (rozměr 1000 x 900 mm); Popis:Nástěné pravoúhlé zrcadlo k montáži na stěnu včetně kotvení. Materiál sklo s bezpečnostní fólií se zabroušenými hranami.; Materiál:; Rozměry:1000 x 900 mm (š x v) ; Další specifikace viz Kniha vnitřního vybavení - Kniha - prvků - Nábytek a příslušenství","ks",1,{"$f":"1000*0.9*1.2","v":1080}]
["2B.VV_N_004","Vestavěná skříň policová plná s dveřmi rozdělenými na dvě části (výška 2000 mm)","Skříň dvoudvéřová. Vybavená 5 ks variabilních polic. Materiál laminovaná MDF deska, barva světle hnědá. Dno i půda z desky tl. 25 mm, z přední strany ABS hrana tl. 2 mm. Ostatní pohlednové prvky opatřeny ABS hranou tl. 1 mm. Boky korpusu z desky tl. 18 mm. Záda z desky tl. 8 mm. Police z desky tl. 25 mm, nosnost 80 kg s variabilním polohovatelností. Police a desky opatřeny hranou ABS tl. 2 mm. Dodávka včetvě rektifikačních nožiček.",null,"1400 x 400 x 2000 mm (d x š x v)"," ; Další specifikace viz Kniha vnitřního vybavení - Kniha - prvků - Nábytek a příslušenství","Vestavěná skříň policová plná s dveřmi rozdělenými na dvě části (výška 2000 mm); Popis:Skříň dvoudvéřová. Vybavená 5 ks variabilních polic. Materiál laminovaná MDF deska, barva světle hnědá. Dno i půda z desky tl. 25 mm, z přední strany ABS hrana tl. 2 mm. Ostatní pohlednové prvky opatřeny ABS hranou tl. 1 mm. Boky korpusu z desky tl. 18 mm. Záda z desky tl. 8 mm. Police z desky tl. 25 mm, nosnost 80 kg s variabilním polohovatelností. Police a desky opatřeny hranou ABS tl. 2 mm. Dodávka včetvě rektifikačních nožiček.; Materiál:; Rozměry:1400 x 400 x 2000 mm (d x š x v) ; Další specifikace viz Kniha vnitřního vybavení - Kniha - prvků - Nábytek a příslušenství","ks",1,21000]
["2B.VV_N_005","TV stolek s policemi","Televizní stolek s šesti policemi pod deskou. Materiál laminátová MDF deska, barva světle hnědá. Horní deska a nohy a police z desky tl. 20 mm. Horní deska opatřená ABS hranou tl. 2 mm, ostatní pohledové prvky opatřené ABS hranou tl. 1,5 mm. Záda z desky tl. 8 mm",null,"3700 x 400 x 400 mm (d x š x v)"," ; Další specifikace viz Kniha vnitřního vybavení - Kniha - prvků - Nábytek a příslušenství","TV stolek s policemi; Popis:Televizní stolek s šesti policemi pod deskou. Materiál laminátová MDF deska, barva světle hnědá. Horní deska a nohy a police z desky tl. 20 mm. Horní deska opatřená ABS hranou tl. 2 mm, ostatní pohledové prvky opatřené ABS hranou tl. 1,5 mm. Záda z desky tl. 8 mm; Materiál:; Rozměry:3700 x 400 x 400 mm (d x š x v) ; Další specifikace viz Kniha vnitřního vybavení - Kniha - prvků - Nábytek a příslušenství","ks",1,4300]
["2B.VV_N_006","Konferenční stolek","Obdelníkový konferenční stolek se čtyřmi nohami jednou otevřenou zásuvkou. Materiál laminátová MDF deska. Deska tl. 20 mm, opatřená ABS hranou tl. 2 mm, barva světle hnědá. Nohy stolku čtvercové ze dřeva, barva světle hnědá.",null,"1000 x 800 x 430 mm (d x š x v)"," ; Další specifikace viz Kniha vnitřního vybavení - Kniha - prvků - Nábytek a příslušenství","Konferenční stolek; Popis:Obdelníkový konferenční stolek se čtyřmi nohami jednou otevřenou zásuvkou. Materiál laminátová MDF deska. Deska tl. 20 mm, opatřená ABS hranou tl. 2 mm, barva světle hnědá. Nohy stolku čtvercové ze dřeva, barva světle hnědá.; Materiál:; Rozměry:1000 x 800 x 430 mm (d x š x v) ; Další specifikace viz Kniha vnitřního vybavení - Kniha - prvků - Nábytek a příslušenství","ks",1,3500]
["2B.VV_N_007","Skříňka do koupelny (výška 700 mm)","Skřínka se čtyřmi zásuvkami do koupleny a nožičkami. Materiál laminátová MDF deska, barva bílá. Dno i půda z desky tl. 25 mm, z přední strany ABS hrana tl. 2 mm. Ostatní pohlednové prvky opatřeny ABS hranou tl. 1 mm. Boky korpusu z desky tl. 18 mm. Záda z desky tl. 8 mm. Police z desky tl. 25 mm, nosnost 50 kg. Police a desky opatřeny hranou ABS tl. 2 mm. Dodávka včetvě kovových nožiček a úchytek k zásuvkám.",null,"400 x 400 x 700 mm (d x š x v)"," ; Další specifikace viz Kniha vnitřního vybavení - Kniha - prvků - Nábytek a příslušenství","Skříňka do koupelny (výška 700 mm); Popis:Skřínka se čtyřmi zásuvkami do koupleny a nožičkami. Materiál laminátová MDF deska, barva bílá. Dno i půda z desky tl. 25 mm, z přední strany ABS hrana tl. 2 mm. Ostatní pohlednové prvky opatřeny ABS hranou tl. 1 mm. Boky korpusu z desky tl. 18 mm. Záda z desky tl. 8 mm. Police z desky tl. 25 mm, nosnost 50 kg. Police a desky opatřeny hranou ABS tl. 2 mm. Dodávka včetvě kovových nožiček a úchytek k zásuvkám.; Materiál:; Rozměry:400 x 400 x 700 mm (d x š x v) ; Další specifikace viz Kniha vnitřního vybavení - Kniha - prvků - Nábytek a příslušenství","ks",1,{"$f":"3990*1.2","v":4788}]
["2B.VV_N_008","Sklopné zrcadlo pro bezbariérové WC","Sklopné nerezové zrcadlo na toalety pro tělesně postižené včetně kotvení. Kotveno pomocí montážní lišty. Naklánění zrcadla je ovládané pomocí páky na stěně pod umyvadlem. Materiál sklo s bezpečnostní fólií se zabroušenými hranami a rám a páka z nerezy.",null,"600 x 400 mm (š x v)"," ; Další specifikace viz Kniha vnitřního vybavení - Kniha - prvků - Nábytek a příslušenství","Sklopné zrcadlo pro bezbariérové WC; Popis:Sklopné nerezové zrcadlo na toalety pro tělesně postižené včetně kotvení. Kotveno pomocí montážní lišty. Naklánění zrcadla je ovládané pomocí páky na stěně pod umyvadlem. Materiál sklo s bezpečnostní fólií se zabroušenými hranami a rám a páka z nerezy.; Materiál:; Rozměry:600 x 400 mm (š x v) ; Další specifikace viz Kniha vnitřního vybavení - Kniha - prvků - Nábytek a příslušenství","ks",1,3630]
["2B.VV_N_009","Sklopné sedátko do sprchy","Sklopné sedátko do sprchy včetně montážního materiálu. Nosná konstrukce z nerezové oceli, sedátkou z odolného plastu  jedohuše udržovatlené. Maximální nosnost 200 kg.",null,"440 x 470 mm (d x š)"," ; Další specifikace viz Kniha vnitřního vybavení - Kniha - prvků - Nábytek a příslušenství","Sklopné sedátko do sprchy; Popis:Sklopné sedátko do sprchy včetně montážního materiálu. Nosná konstrukce z nerezové oceli, sedátkou z odolného plastu  jedohuše udržovatlené. Maximální nosnost 200 kg.; Materiál:; Rozměry:440 x 470 mm (d x š) ; Další specifikace viz Kniha vnitřního vybavení - Kniha - prvků - Nábytek a příslušenství","ks",1,{"$f":"3567*1.2","v":4280.3999999999996}]
["2B.VV_N_010","Police do skladu (výška 2000 mm)","Police do skladu s pěti policemi včetně montážního materiálu. Police jsou výškově přestavitelné v rastru 138 mm. Šedý policový regál je rychle smontovatelný bez spojovacího materiálu. Police se jednoduchým způsobem nasadí na sloupky. Možnost spojování do polí a řad vedle sebe i za sebou pro zvýšení celkové tuhosti. Konstrukce je povrchově upravena práškovým lakem šedé barvy. Nohy jsou vybaveny plastovými patkami pro ochranu podlahové krytiny.",null,"2000 x 600 x 2000 mm (d x š x v)"," ; Další specifikace viz Kniha vnitřního vybavení - Kniha - prvků - Nábytek a příslušenství","Police do skladu (výška 2000 mm); Popis:Police do skladu s pěti policemi včetně montážního materiálu. Police jsou výškově přestavitelné v rastru 138 mm. Šedý policový regál je rychle smontovatelný bez spojovacího materiálu. Police se jednoduchým způsobem nasadí na sloupky. Možnost spojování do polí a řad vedle sebe i za sebou pro zvýšení celkové tuhosti. Konstrukce je povrchově upravena práškovým lakem šedé barvy. Nohy jsou vybaveny plastovými patkami pro ochranu podlahové krytiny.; Materiál:; Rozměry:2000 x 600 x 2000 mm (d x š x v) ; Další specifikace viz Kniha vnitřního vybavení - Kniha - prvků - Nábytek a příslušenství","ks",2,20000]
["2B.VV_N_011","Police do skladu tvaru \"L\" (výška 2000 mm)","Police do skladu tvaru \"L\" s pěti police včetně montážního materiálu. Police jsou výškově přestavitelné v rastru 138 mm. Šedý policový regál je rychle smontovatelný bez spojovacího materiálu. Police se jednoduchým způsobem nasadí na sloupky. Možnost spojování do polí a řad vedle sebe i za sebou pro zvýšení celkové tuhosti. Konstrukce je povrchově upravena práškovým lakem šedé barvy. Nohy jsou vybaveny plastovými patkami pro ochranu podlahové krytiny.",null,"1810/1610 x 600 x 2000 mm (d x š x v)"," ; Další specifikace viz Kniha vnitřního vybavení - Kniha - prvků - Nábytek a příslušenství","Police do skladu tvaru \"L\" (výška 2000 mm); Popis:Police do skladu tvaru \"L\" s pěti police včetně montážního materiálu. Police jsou výškově přestavitelné v rastru 138 mm. Šedý policový regál je rychle smontovatelný bez spojovacího materiálu. Police se jednoduchým způsobem nasadí na sloupky. Možnost spojování do polí a řad vedle sebe i za sebou pro zvýšení celkové tuhosti. Konstrukce je povrchově upravena práškovým lakem šedé barvy. Nohy jsou vybaveny plastovými patkami pro ochranu podlahové krytiny.; Materiál:; Rozměry:1810/1610 x 600 x 2000 mm (d x š x v) ; Další specifikace viz Kniha vnitřního vybavení - Kniha - prvků - Nábytek a příslušenství","ks",1,18100]
["2B.VV_N_012","Kovová garnyž na záclony (délka 1450 mm)","Kovová garnyž na záclony včetně montážního materiálu. Tyč garnyže o púrůměru 16 mm. Skládá se z galvanicky pokovený tyče, dvou koncovek, dvou konzol na zeď a žabky s kroužky.",null,"délka 1450 mm"," ; Další specifikace viz Kniha vnitřního vybavení - Kniha - prvků - Nábytek a příslušenství","Kovová garnyž na záclony (délka 1450 mm); Popis:Kovová garnyž na záclony včetně montážního materiálu. Tyč garnyže o púrůměru 16 mm. Skládá se z galvanicky pokovený tyče, dvou koncovek, dvou konzol na zeď a žabky s kroužky.; Materiál:; Rozměry:délka 1450 mm ; Další specifikace viz Kniha vnitřního vybavení - Kniha - prvků - Nábytek a příslušenství","ks",10,{"$f":"946*1.2","v":1135.2}]
["2B.VV_N_013","Kovová garnyž na záclony (délka 1950 mm)","Kovová garnyž na záclony včetně montážního materiálu. Tyč garnyže o púrůměru 16 mm. Skládá se z galvanicky pokovený tyče, dvou koncovek, dvou konzol na zeď a žabky s kroužky.",null,"délka 1950 mm"," ; Další specifikace viz Kniha vnitřního vybavení - Kniha - prvků - Nábytek a příslušenství","Kovová garnyž na záclony (délka 1950 mm); Popis:Kovová garnyž na záclony včetně montážního materiálu. Tyč garnyže o púrůměru 16 mm. Skládá se z galvanicky pokovený tyče, dvou koncovek, dvou konzol na zeď a žabky s kroužky.; Materiál:; Rozměry:délka 1950 mm ; Další specifikace viz Kniha vnitřního vybavení - Kniha - prvků - Nábytek a příslušenství","ks",2,{"$f":"1272*1.2","v":1526.3999999999999}]
["2B.VV_N_014","Termoport","Termoport pro uskladnění pokrmů určených pro přepravu. Termoport je nevyhřívaný, čelní plnění s nasazovacími dvířky. Uzavírání pomocí záklopných uzávěrů zapuštěných do čelních stěnkorpusu, vnitřní prostor umožňuje uložení 12 párů vylisovaných drážek se svislou roztečí 39 mm k zasouvání gastro nádob, praktických držák popisovacích karet a ergonomická madla s neklouzavými plastovými úchyty.  Materiál polypropylen, polyamid a chromniklová ocel. Hmotnost 14 kg.",null,"630 x 425 x 660 mm"," ; Další specifikace viz Kniha vnitřního vybavení - Kniha - prvků - Nábytek a příslušenství","Termoport; Popis:Termoport pro uskladnění pokrmů určených pro přepravu. Termoport je nevyhřívaný, čelní plnění s nasazovacími dvířky. Uzavírání pomocí záklopných uzávěrů zapuštěných do čelních stěnkorpusu, vnitřní prostor umožňuje uložení 12 párů vylisovaných drážek se svislou roztečí 39 mm k zasouvání gastro nádob, praktických držák popisovacích karet a ergonomická madla s neklouzavými plastovými úchyty.  Materiál polypropylen, polyamid a chromniklová ocel. Hmotnost 14 kg.; Materiál:; Rozměry:630 x 425 x 660 mm ; Další specifikace viz Kniha vnitřního vybavení - Kniha - prvků - Nábytek a příslušenství","ks",1,{"$f":"16081","v":16081}]
["2B.VV_N_015","Nástěnná police s konzolemi","Nástěnná police s konzolemi kotvené do zdi včetně kotvení. Materiál laminátová MDF deska, barva světle hnědá. Police z desky tl. 25 mm, opatřena ABS hranou tl. 2 mm. Nosnost 80 kg. Konzole dřevěné v barvě světle hnědé.",null,"1000 x 300 x 20 mm (d x š x v)"," ; Další specifikace viz Kniha vnitřního vybavení - Kniha - prvků - Nábytek a příslušenství","Nástěnná police s konzolemi; Popis:Nástěnná police s konzolemi kotvené do zdi včetně kotvení. Materiál laminátová MDF deska, barva světle hnědá. Police z desky tl. 25 mm, opatřena ABS hranou tl. 2 mm. Nosnost 80 kg. Konzole dřevěné v barvě světle hnědé.; Materiál:; Rozměry:1000 x 300 x 20 mm (d x š x v) ; Další specifikace viz Kniha vnitřního vybavení - Kniha - prvků - Nábytek a příslušenství","ks",1,{"$f":"530*1.2","v":636}]
["2B.VV_N_016","Sklopná madla k WC","Sklopná madla k WC včetně montážníh materiálu. Madla jsou z nerezi. Nosnost 120 kg.",null,"délka madla 813 mm"," ; Další specifikace viz Kniha vnitřního vybavení - Kniha - prvků - Nábytek a příslušenství","Sklopná madla k WC; Popis:Sklopná madla k WC včetně montážníh materiálu. Madla jsou z nerezi. Nosnost 120 kg.; Materiál:; Rozměry:délka madla 813 mm ; Další specifikace viz Kniha vnitřního vybavení - Kniha - prvků - Nábytek a příslušenství","ks",2,{"$f":"2488","v":2488}]
["2B.VV_N_017","Trezor pro personál","Trezor s elektronickým zámkem. Materiál ocel, korpus 1,5 mm, dveře 4 mm, povrchová úprava práškovaným lakem v barvě šedé. Možné upevnit na zeď. Provoz trezeru je za pomoci 4 běžných baterií (1,5 V).",null,"350 x 250 x 250 mm (d x š x v)"," ; Další specifikace viz Kniha vnitřního vybavení - Kniha - prvků - Nábytek a příslušenství","Trezor pro personál; Popis:Trezor s elektronickým zámkem. Materiál ocel, korpus 1,5 mm, dveře 4 mm, povrchová úprava práškovaným lakem v barvě šedé. Možné upevnit na zeď. Provoz trezeru je za pomoci 4 běžných baterií (1,5 V).; Materiál:; Rozměry:350 x 250 x 250 mm (d x š x v) ; Další specifikace viz Kniha vnitřního vybavení - Kniha - prvků - Nábytek a příslušenství","ks",1,{"$f":"1259","v":1259}]
["VV_E","Prvky vnitřního vybevení - Elektro a příslušenství"]
["2B.VV_E_001","Myčka vestavěná","Kapacita myčky 13 sad nádobí, 2 úložné koše, spotřeba vody 11 l, AQUA STOP proti přetečení, 2 ostřikovací ramena, 4 programy: Eco, Intenzivní, Normální, Oplachování, mycí teploty: 40-70°C, energetická třída A+, účinnost mytí A, účinnost sušení A, hlučnost 49 dB(A), spotřeba energie: 1,04 kWh.",null,"595 x 570 x 820 mm"," ; Další specifikace viz Kniha vnitřního vybavení - Kniha - prvků - Elektro a příslušenství",{"$f":"CONCATENATE(B35,$C$1,C35,$D$1,D35,$E$1,E35,F35)","v":"Myčka vestavěná; Popis:Kapacita myčky 13 sad nádobí, 2 úložné koše, spotřeba vody 11 l, AQUA STOP proti přetečení, 2 ostřikovací ramena, 4 programy: Eco, Intenzivní, Normální, Oplachování, mycí teploty: 40-70°C, energetická třída A+, účinnost mytí A, účinnost sušení A, hlučnost 49 dB(A), spotřeba energie: 1,04 kWh.; Materiál:; Rozměry:595 x 570 x 820 mm ; Další specifikace viz Kniha vnitřního vybavení - Kniha - prvků - Elektro a příslušenství"},"ks",1,15000]
["2B.VV_E_002","Varná deska vestavěná","Sklokeramická varná deska, 4 highlight varné zóny, dotykové ovládání, 9 stupňů výkonu, kontrolky provozu a zbytkového tepla, dětská pojistka, bez rámečku - rovné hrany.",null,"590 x 520 x 46 mm"," ; Další specifikace viz Kniha vnitřního vybavení - Kniha - prvků - Elektro a příslušenství","Varná deska vestavěná; Popis:Sklokeramická varná deska, 4 highlight varné zóny, dotykové ovládání, 9 stupňů výkonu, kontrolky provozu a zbytkového tepla, dětská pojistka, bez rámečku - rovné hrany.; Materiál:; Rozměry:590 x 520 x 46 mm ; Další specifikace viz Kniha vnitřního vybavení - Kniha - prvků - Elektro a příslušenství","ks",1,12000]
["2B.VV_E_003","TV","Chytrá televize s operačním systémem, pevné síťové připojení (min 1x RJ45), DLNA klient pro přehrávání streamů ze serveru, obrazovka LCD s LED podsvícením, velikost min 42, rozlišení FullHD (1920 x 1080 bodů), Hotelový režim, televizní tuner pro příjem pozemního vysílání DVBT a DVBT2 certifikovaný pro ČR. Kompatabilní s držákem VESA.",null," - - -",null,"TV; Popis:Chytrá televize s operačním systémem, pevné síťové připojení (min 1x RJ45), DLNA klient pro přehrávání streamů ze serveru, obrazovka LCD s LED podsvícením, velikost min 42, rozlišení FullHD (1920 x 1080 bodů), Hotelový režim, televizní tuner pro příjem pozemního vysílání DVBT a DVBT2 certifikovaný pro ČR. Kompatabilní s držákem VESA.; Materiál:; Rozměry: - - -","ks",1,15000]
["2B.VV_E_004","Varná konvice","Standardní varná konvice, objem 1,7 l, vyjímatelný a omyvatelný filtr pro zachycení nečistot a usazenin, uskladnění síťového kabelu v podstavci, topné dno z nerezové oceli se zakrytou topnou spirálou,snadné otevírání víka stisknutím tlačítka v horní části rukojeti, bezpečnostní zajištění víčka v uzavřené poloze, trojnásobné bezpečnostní jištění: - Ochrana proti přehřátí při zapnutí bez vody , a Automatické vypnutí při sejmutí z podstavce - Automatické vypnutí po dosažení bodu varu Středový 360° konektor, přepínač zapnuto/vypnuto s podsvětlením.",null," - - -",null,"Varná konvice; Popis:Standardní varná konvice, objem 1,7 l, vyjímatelný a omyvatelný filtr pro zachycení nečistot a usazenin, uskladnění síťového kabelu v podstavci, topné dno z nerezové oceli se zakrytou topnou spirálou,snadné otevírání víka stisknutím tlačítka v horní části rukojeti, bezpečnostní zajištění víčka v uzavřené poloze, trojnásobné bezpečnostní jištění: - Ochrana proti přehřátí při zapnutí bez vody , a Automatické vypnutí při sejmutí z podstavce - Automatické vypnutí po dosažení bodu varu Středový 360° konektor, přepínač zapnuto/vypnuto s podsvětlením.; Materiál:; Rozměry: - - -","ks",1,640]
["2B.VV_E_005","Vestavěná trouba","Multifunkční horkovzdušná elektrická trouba objem 60l. Samostatná trouba s pravým horkým vzduchem v energetické třídě A, funkce rozmrazování, displej s digitálním časovačem - nastavení minutky, denního času, konce pečení a doby pečení, možnost péci na 2 úrovních najednou, uvnitř trouby vysoce lesklý smalt pro snadné čištění, nerezové provedení.",null,"594 x 540 x 589 mm"," ; Další specifikace viz Kniha vnitřního vybavení - Kniha - prvků - Elektro a příslušenství","Vestavěná trouba; Popis:Multifunkční horkovzdušná elektrická trouba objem 60l. Samostatná trouba s pravým horkým vzduchem v energetické třídě A, funkce rozmrazování, displej s digitálním časovačem - nastavení minutky, denního času, konce pečení a doby pečení, možnost péci na 2 úrovních najednou, uvnitř trouby vysoce lesklý smalt pro snadné čištění, nerezové provedení.; Materiál:; Rozměry:594 x 540 x 589 mm ; Další specifikace viz Kniha vnitřního vybavení - Kniha - prvků - Elektro a příslušenství","ks",1,13000]
["2B.VV_E_006","Tyčový mixér","Tyčový mixér k mixování, drcení, míchání. Tyčový mixér z nerezové oceli, 5 rychlostních stupňů. Příkon: 700 W/230 V. Celková délka mixéru: 410 mm. Hmotnost: 1,05 kg. Součástí: 1 metla, 1 nádoba (800 ml), 2 speciální nádoby s mixovacími noži (500 ml + 1250 ml), 1 víko pro obě nádoby, 2 protiskluzové podložky, 1 nástěnný držák.",null," - - -"," ; Další specifikace viz Kniha vnitřního vybavení - Kniha - prvků - Elektro a příslušenství","Tyčový mixér; Popis:Tyčový mixér k mixování, drcení, míchání. Tyčový mixér z nerezové oceli, 5 rychlostních stupňů. Příkon: 700 W/230 V. Celková délka mixéru: 410 mm. Hmotnost: 1,05 kg. Součástí: 1 metla, 1 nádoba (800 ml), 2 speciální nádoby s mixovacími noži (500 ml + 1250 ml), 1 víko pro obě nádoby, 2 protiskluzové podložky, 1 nástěnný držák.; Materiál:; Rozměry: - - - ; Další specifikace viz Kniha vnitřního vybavení - Kniha - prvků - Elektro a příslušenství","ks",1,1700]
["2B.VV_E_007","Notebook","Notebook, 15,4 “ LCD, 8 GB RAM, 500 GB HDD, procesor i3 a vyšší, Windows 10 Pro, MS Office 2016 Home and Bussines CZ.",null," - - -"," ; Další specifikace viz Kniha vnitřního vybavení - Kniha - prvků - Elektro a příslušenství","Notebook; Popis:Notebook, 15,4 “ LCD, 8 GB RAM, 500 GB HDD, procesor i3 a vyšší, Windows 10 Pro, MS Office 2016 Home and Bussines CZ.; Materiál:; Rozměry: - - - ; Další specifikace viz Kniha vnitřního vybavení - Kniha - prvků - Elektro a příslušenství","ks",1,33590]
["2B.VV_E_008","Tiskárna na A4","Malá tiskárna - Funkce: černobílý laserový tisk, kopírování, skenování, fax, Formát: A4, rozlišení tisku: 1200dpi, ovládání: dotykový barevný grafický displej, velikost paměti: 256 MB, rychlost tisku: 38 Str./min., doba tisku první strany: 5,7s, oboustranný tisk: automatický , vstupní zásobník: 250 listů, víceúčelový zásobník: 100 listů, výstupní zásobník: 150 listů, gramáž média: 60 – 175 g/m2, rozlišení kopírování: 600x600dpi, zoom kopírování: 25 – 400%, rozlišení skenování: 1200dpi, podavač skeneru: oboustranný 50 listů, oboustranné jednoprůchodové skenování fumkce skeneru: skenování do e-mailu, do síťové složky, do USB, připojení: USB 2.0, Ethernet 10/100/1000T, hostitelský USB port, jazyky tiskárny: PCL 5, HP PCL 6, emulace Postscript úrovně 3, přímý tisk PDF (v1.7), URF, PCLM, PWG.",null," - - -"," ; Další specifikace viz Kniha vnitřního vybavení - Kniha - prvků - Elektro a příslušenství","Tiskárna na A4; Popis:Malá tiskárna - Funkce: černobílý laserový tisk, kopírování, skenování, fax, Formát: A4, rozlišení tisku: 1200dpi, ovládání: dotykový barevný grafický displej, velikost paměti: 256 MB, rychlost tisku: 38 Str./min., doba tisku první strany: 5,7s, oboustranný tisk: automatický , vstupní zásobník: 250 listů, víceúčelový zásobník: 100 listů, výstupní zásobník: 150 listů, gramáž média: 60 – 175 g/m2, rozlišení kopírování: 600x600dpi, zoom kopírování: 25 – 400%, rozlišení skenování: 1200dpi, podavač skeneru: oboustranný 50 listů, oboustranné jednoprůchodové skenování fumkce skeneru: skenování do e-mailu, do síťové složky, do USB, připojení: USB 2.0, Ethernet 10/100/1000T, hostitelský USB port, jazyky tiskárny: PCL 5, HP PCL 6, emulace Postscript úrovně 3, přímý tisk PDF (v1.7), URF, PCLM, PWG.; Materiál:; Rozměry: - - - ; Další specifikace viz Kniha vnitřního vybavení - Kniha - prvků - Elektro a příslušenství","ks",1,5000]

{"sheet":"DNE","index":6,"n_rows":47,"n_cols":10,"rows_kept":47,"cut":false,"hidden":true,"merged":[]}
["3AD.1.1","Architektonicko-stavební řešení","; Popis:","; Materiál:","; Rozměry:"]
["10_VB","Výrobky"]
["KP","Klempířské prvky","Sloupec1","Sloupec2","Sloupec3","Sloupec4","Sloupec5","Sloupec6","Sloupec7","Sloupec8"]
["P1-1.01","Okenní parapet","Oplechování parapetu oken včetně doplňkového a montážního materiálu.","Ocelový pozinkovaný plech, tl. 0,6 mm, exteriérový nátěr v odstínu RAL 7016","r.š. 330 mm"," ; Další specifikace viz Kniha klempířských prvků",{"$f":"CONCATENATE(B4,$C$1,C4,$D$1,D4,$E$1,E4,F4)","v":"Okenní parapet; Popis:Oplechování parapetu oken včetně doplňkového a montážního materiálu.; Materiál:Ocelový pozinkovaný plech, tl. 0,6 mm, exteriérový nátěr v odstínu RAL 7016; Rozměry:r.š. 330 mm ; Další specifikace viz Kniha klempířských prvků"},"m",14.7,474]
["P1-1.02","Oplechování atiky","Oplechování atiky, včetně doplňkového a montážního materiálu.","Ocelový pozinkovaný plech, tl. 0,6 mm, exteriérový nátěr v odstínu RAL 7016","r.š. 860 mm"," ; Další specifikace viz Kniha klempířských prvků","Oplechování atiky; Popis:Oplechování atiky, včetně doplňkového a montážního materiálu.; Materiál:Ocelový pozinkovaný plech, tl. 0,6 mm, exteriérový nátěr v odstínu RAL 7016; Rozměry:r.š. 860 mm ; Další specifikace viz Kniha klempířských prvků","m",13.7,1480]
["P1-1.03","Oplechování atiky","Oplechování atiky, včetně doplňkového a montážního materiálu.","Ocelový pozinkovaný plech, tl. 0,6 mm, exteriérový nátěr v odstínu RAL 7016","r.š. 720 mm"," ; Další specifikace viz Kniha klempířských prvků","Oplechování atiky; Popis:Oplechování atiky, včetně doplňkového a montážního materiálu.; Materiál:Ocelový pozinkovaný plech, tl. 0,6 mm, exteriérový nátěr v odstínu RAL 7016; Rozměry:r.š. 720 mm ; Další specifikace viz Kniha klempířských prvků","m",14.1,1100]
["P1-1.04","Boční oplechování","Boční oplechování, včetně doplňkového a montážního materiálu.","Ocelový pozinkovaný plech, tl. 0,6 mm, exteriérový nátěr v odstínu RAL 7016","r.š. 435 mm"," ; Další specifikace viz Kniha klempířských prvků","Boční oplechování; Popis:Boční oplechování, včetně doplňkového a montážního materiálu.; Materiál:Ocelový pozinkovaný plech, tl. 0,6 mm, exteriérový nátěr v odstínu RAL 7016; Rozměry:r.š. 435 mm ; Další specifikace viz Kniha klempířských prvků","m",5.5,860]
["P1-1.05","Dešťový žlab","Dešťový žlab, včetně doplňkového a montážního materiálu.","Ocelový pozinkovaný plech, tl. 0,6 mm, exteriérový nátěr v odstínu RAL 7016","průměr 300 mm"," ; Další specifikace viz Kniha klempířských prvků","Dešťový žlab; Popis:Dešťový žlab, včetně doplňkového a montážního materiálu.; Materiál:Ocelový pozinkovaný plech, tl. 0,6 mm, exteriérový nátěr v odstínu RAL 7016; Rozměry:průměr 300 mm ; Další specifikace viz Kniha klempířských prvků","m",32.1,725]
["P1-1.06","Dešťový svod","Dešťový svod, včetně doplňkového a montážního materiálu.","Ocelový pozinkovaný plech, tl. 0,6 mm, exteriérový nátěr v odstínu RAL 7016","průměr 120 mm"," ; Další specifikace viz Kniha klempířských prvků","Dešťový svod; Popis:Dešťový svod, včetně doplňkového a montážního materiálu.; Materiál:Ocelový pozinkovaný plech, tl. 0,6 mm, exteriérový nátěr v odstínu RAL 7016; Rozměry:průměr 120 mm ; Další specifikace viz Kniha klempířských prvků","m",14.1,919]
["KP","Zámečnické prvky"]
["Z1-1.01","Drátěné poplastované pletivo","Oplocení z dratěného poplastovaného pletiva se sloupkami a obrubníkem. Velikost ok pletiva 55 x 55 mm. Nosné sloupky z švorové trubky 48 mm o síle stěny 1,5 mm. Sloupky po 2,5 m, opěry plotu na začátku, na konci na každém rohu a po každých 25 m. Základová patka se provádí pod každým nosným sloupkem do nezámrzné hloubky, velikost pakty 300 x 300 mm. Obrubník je uložen do rýhy s maltovým ložem. Výška obrubníku je 200 mm, je částečně zapuštěn do terénu.","Poplastované plepletivo a sloupky, barva jehlová zeleň RAL 6005, obrubník: beton","výška 1,8 m"," ; Další specifikace viz Kniha zámečnických prvků",{"$f":"CONCATENATE(B11,$C$1,C11,$D$1,D11,$E$1,E11,F11)","v":"Drátěné poplastované pletivo; Popis:Oplocení z dratěného poplastovaného pletiva se sloupkami a obrubníkem. Velikost ok pletiva 55 x 55 mm. Nosné sloupky z švorové trubky 48 mm o síle stěny 1,5 mm. Sloupky po 2,5 m, opěry plotu na začátku, na konci na každém rohu a po každých 25 m. Základová patka se provádí pod každým nosným sloupkem do nezámrzné hloubky, velikost pakty 300 x 300 mm. Obrubník je uložen do rýhy s maltovým ložem. Výška obrubníku je 200 mm, je částečně zapuštěn do terénu.; Materiál:Poplastované plepletivo a sloupky, barva jehlová zeleň RAL 6005, obrubník: beton; Rozměry:výška 1,8 m ; Další specifikace viz Kniha zámečnických prvků"},"m",145.80000000000001,1197]
["TP","Truhlářské prvky"]
["T1-1.01","Oddělující lehká dřevěná příčka","Oddělující lehká dřevěná příčka, rošt ze smrkových doblovaných hranolů 40 x 40 mm spojené konstrukčními vruty se zápustnou hlavou, opláštěné laminátovou MDF deskou, vzor světlého dřeva s méně výraznou kresbou. Hranoly kotveny do stěny a stropu. Součástí příčky jsou uzamykatelné dveře o rozměru 1600 x 1970 mm, obložková polodrážková zárubeň materiál MDF, vložkový zámek + klika.","rošt: smrkové hranoly, opláštění a dveře: MDF deska, zámek a klika: broušený nerez","2500 x 60 x 2300 mm (d x hl x v)"," ; Další specifikace viz Kniha truhlářských prvků",{"$f":"CONCATENATE(B13,$C$1,C13,$D$1,D13,$E$1,E13,F13)","v":"Oddělující lehká dřevěná příčka; Popis:Oddělující lehká dřevěná příčka, rošt ze smrkových doblovaných hranolů 40 x 40 mm spojené konstrukčními vruty se zápustnou hlavou, opláštěné laminátovou MDF deskou, vzor světlého dřeva s méně výraznou kresbou. Hranoly kotveny do stěny a stropu. Součástí příčky jsou uzamykatelné dveře o rozměru 1600 x 1970 mm, obložková polodrážková zárubeň materiál MDF, vložkový zámek + klika.; Materiál:rošt: smrkové hranoly, opláštění a dveře: MDF deska, zámek a klika: broušený nerez; Rozměry:2500 x 60 x 2300 mm (d x hl x v) ; Další specifikace viz Kniha truhlářských prvků"},"ks",1,23000]
["T1-1.02","Kuchyňská linka tvaru U","Kuchyňská linka tvaru U, sokl 80 mm, korpus z lamino desky tl. 18 mm, hrana z ABS tl. 2 mm. Horní i spodní skříňky plné, pracovní deska z laminátové desky tl. 38 mm, nerezový dřez s odkapávačem. Kování linky je kovové. Součástí kuchyňské linky je dřez s odkapávačem, varná deska se čtyřmi plotýnkami, trouba, lednička, mrazák a myčka. Spotřebiče energetiské třídy min. A přesně specifikovány vnitřního vybavení. Horní i spodní část je opatřená krycím panelem š. 50 mm.","Korpus z lamina, pracovní deska z laminátové desky","viz. obrazová příloha","  ; SPOTŘEBIČE OCENIT V KAPITOLE_Prvky vnitřního vybevení - Elektro a příslušenství ; Další specifikace viz Kniha truhlářských prvků",{"$f":"CONCATENATE(B14,$C$1,C14,$D$1,D14,$E$1,E14,F14)","v":"Kuchyňská linka tvaru U; Popis:Kuchyňská linka tvaru U, sokl 80 mm, korpus z lamino desky tl. 18 mm, hrana z ABS tl. 2 mm. Horní i spodní skříňky plné, pracovní deska z laminátové desky tl. 38 mm, nerezový dřez s odkapávačem. Kování linky je kovové. Součástí kuchyňské linky je dřez s odkapávačem, varná deska se čtyřmi plotýnkami, trouba, lednička, mrazák a myčka. Spotřebiče energetiské třídy min. A přesně specifikovány vnitřního vybavení. Horní i spodní část je opatřená krycím panelem š. 50 mm.; Materiál:Korpus z lamina, pracovní deska z laminátové desky; Rozměry:viz. obrazová příloha  ; SPOTŘEBIČE OCENIT V KAPITOLE_Prvky vnitřního vybevení - Elektro a příslušenství ; Další specifikace viz Kniha truhlářských prvků"},"ks",1,231600]
["OP","Ostatní prvky"]
["X1-1.01","Venkovní rolety","Venkovní hliníková roleta pro regulaci přirozeného osvětlení a zachycení slunečních paprsků s bočními vodícími lištami. Horní ocelový válcovaný profil upravený pozinkování o rozměru 58 x 56 mm zakrytý krycím plechem. Lamely hliníkové o šířce 80 mm s navíjecími mechanismy, textilními žebříčky a vytahovacími páskami. Boční vodící lišty o rozměru 20 x 20 mm v barvě stříbrná elox. Ovládání elektrické.","hliník, barva stříbrný elox"," - - -"," ; Další specifikace viz Kniha ostatních prvků",{"$f":"CONCATENATE(B16,$C$1,C16,$D$1,D16,$E$1,E16,F16)","v":"Venkovní rolety; Popis:Venkovní hliníková roleta pro regulaci přirozeného osvětlení a zachycení slunečních paprsků s bočními vodícími lištami. Horní ocelový válcovaný profil upravený pozinkování o rozměru 58 x 56 mm zakrytý krycím plechem. Lamely hliníkové o šířce 80 mm s navíjecími mechanismy, textilními žebříčky a vytahovacími páskami. Boční vodící lišty o rozměru 20 x 20 mm v barvě stříbrná elox. Ovládání elektrické.; Materiál:hliník, barva stříbrný elox; Rozměry: - - - ; Další specifikace viz Kniha ostatních prvků"},"ks",6]
["X1-1.02","Stahovací schody zateplené s požární odolností","Stahovací schody zateplené s protipožární vložkou (EW 15 DP3). Schody jsou opatřeny brzdícím mechanismem proti prudkému otevření. Víko je sendvočové složeno z dřevěného rámu vyplněný izolačním materiálem opláštěný pozinkovaným plechem. Pohledová čast je lakovaná v bílé barvě a kryta ochrannou fólií.","víko: dřevěný rám vyplněný izolantem opláštěný pozinkovaným plechem, pohledová část lakovaná, barva bílá, schody: kovové","600 x 800 mm (š x d)"," ; Další specifikace viz Kniha ostatních prvků",{"$f":"CONCATENATE(B17,$C$1,C17,$D$1,D17,$E$1,E17,F17)","v":"Stahovací schody zateplené s požární odolností; Popis:Stahovací schody zateplené s protipožární vložkou (EW 15 DP3). Schody jsou opatřeny brzdícím mechanismem proti prudkému otevření. Víko je sendvočové složeno z dřevěného rámu vyplněný izolačním materiálem opláštěný pozinkovaným plechem. Pohledová čast je lakovaná v bílé barvě a kryta ochrannou fólií.; Materiál:víko: dřevěný rám vyplněný izolantem opláštěný pozinkovaným plechem, pohledová část lakovaná, barva bílá, schody: kovové; Rozměry:600 x 800 mm (š x d) ; Další specifikace viz Kniha ostatních prvků"},"ks",1,{"$f":"14720*1.2","v":17664}]
["VV_N","Prvky vnitřního vybevení - Nábytek a příslušenství"]
["3B.VV_N_001","Čalouněné křeslo ušák","Čalouněné křeslo ušák je tvořen z vlnonce, 2 cm kokosové vrstvy a 5 cm široké PUR pěny a čalouněná potahovou látkou v barvě šedé. Hmotnost křesla 23 kg. Doplňové rozměry křesla: hloubka 720 mm, výška sedu 470 mm, hloubka sedu 520 mm, šířka sedu 520 mm a výška opěrka 670 mm.",null,"560 x 720 x 1080 mm (d x š x v)"," ; Další specifikace viz Kniha vnitřního vybavení - Kniha - prvků - Nábytek a příslušenství",{"$f":"CONCATENATE(B19,$C$1,C19,$D$1,D19,$E$1,E19,F19)","v":"Čalouněné křeslo ušák; Popis:Čalouněné křeslo ušák je tvořen z vlnonce, 2 cm kokosové vrstvy a 5 cm široké PUR pěny a čalouněná potahovou látkou v barvě šedé. Hmotnost křesla 23 kg. Doplňové rozměry křesla: hloubka 720 mm, výška sedu 470 mm, hloubka sedu 520 mm, šířka sedu 520 mm a výška opěrka 670 mm.; Materiál:; Rozměry:560 x 720 x 1080 mm (d x š x v) ; Další specifikace viz Kniha vnitřního vybavení - Kniha - prvků - Nábytek a příslušenství"},"ks",6,8736]
["3B.VV_N_002","Předsíňová stěna s věšáky","Předsíňová stěna s kovovými háčky se dvěmi úchytkami a policí, kotvená do stěny včetně montážního materiálu. Korpus a police z MDF desky, barva světle hnědá, tl. 20 mm. Hrany optařeny ABS hranou tl. 1,5 mm. Háček (5 ks) se dvěmi úchytkami kotvená na desku věšáku včetně kotvení. Materiál nerezová ocel.",null,"věšák: 660 x 240 x 1520 mm (d x š x v), háček: 70 x 30 x 47 mm (d x š x v)"," ; Další specifikace viz Kniha vnitřního vybavení - Kniha - prvků - Nábytek a příslušenství","Předsíňová stěna s věšáky; Popis:Předsíňová stěna s kovovými háčky se dvěmi úchytkami a policí, kotvená do stěny včetně montážního materiálu. Korpus a police z MDF desky, barva světle hnědá, tl. 20 mm. Hrany optařeny ABS hranou tl. 1,5 mm. Háček (5 ks) se dvěmi úchytkami kotvená na desku věšáku včetně kotvení. Materiál nerezová ocel.; Materiál:; Rozměry:věšák: 660 x 240 x 1520 mm (d x š x v), háček: 70 x 30 x 47 mm (d x š x v) ; Další specifikace viz Kniha vnitřního vybavení - Kniha - prvků - Nábytek a příslušenství","ks",1,{"$f":"1427*1.2","v":1712.3999999999999}]
["3B.VV_N_003","Nástěné zrcadlo do předsíně (rozměr 1000 x 900 mm)","Nástěné pravoúhlé zrcadlo k montáži na stěnu včetně kotvení. Materiál sklo s bezpečnostní fólií se zabroušenými hranami.",null,"1000 x 900 mm (š x v)"," ; Další specifikace viz Kniha vnitřního vybavení - Kniha - prvků - Nábytek a příslušenství","Nástěné zrcadlo do předsíně (rozměr 1000 x 900 mm); Popis:Nástěné pravoúhlé zrcadlo k montáži na stěnu včetně kotvení. Materiál sklo s bezpečnostní fólií se zabroušenými hranami.; Materiál:; Rozměry:1000 x 900 mm (š x v) ; Další specifikace viz Kniha vnitřního vybavení - Kniha - prvků - Nábytek a příslušenství","ks",1,{"$f":"1000*0.9*1.2","v":1080}]
["3B.VV_N_004","Vestavěná skříň policová plná s dveřmi rozdělenými na dvě části (výška 2000 mm)","Skříň dvoudvéřová. Vybavená 5 ks variabilních polic. Materiál laminovaná MDF deska, barva světle hnědá. Dno i půda z desky tl. 25 mm, z přední strany ABS hrana tl. 2 mm. Ostatní pohlednové prvky opatřeny ABS hranou tl. 1 mm. Boky korpusu z desky tl. 18 mm. Záda z desky tl. 8 mm. Police z desky tl. 25 mm, nosnost 80 kg s variabilním polohovatelností. Police a desky opatřeny hranou ABS tl. 2 mm. Dodávka včetvě rektifikačních nožiček.",null,"1400 x 400 x 2000 mm (d x š x v)"," ; Další specifikace viz Kniha vnitřního vybavení - Kniha - prvků - Nábytek a příslušenství","Vestavěná skříň policová plná s dveřmi rozdělenými na dvě části (výška 2000 mm); Popis:Skříň dvoudvéřová. Vybavená 5 ks variabilních polic. Materiál laminovaná MDF deska, barva světle hnědá. Dno i půda z desky tl. 25 mm, z přední strany ABS hrana tl. 2 mm. Ostatní pohlednové prvky opatřeny ABS hranou tl. 1 mm. Boky korpusu z desky tl. 18 mm. Záda z desky tl. 8 mm. Police z desky tl. 25 mm, nosnost 80 kg s variabilním polohovatelností. Police a desky opatřeny hranou ABS tl. 2 mm. Dodávka včetvě rektifikačních nožiček.; Materiál:; Rozměry:1400 x 400 x 2000 mm (d x š x v) ; Další specifikace viz Kniha vnitřního vybavení - Kniha - prvků - Nábytek a příslušenství","ks",1,21000]
["3B.VV_N_005","Skříňka do koupelny (výška 700 mm)","Skřínka se čtyřmi zásuvkami do koupleny a nožičkami. Materiál laminátová MDF deska, barva bílá. Dno i půda z desky tl. 25 mm, z přední strany ABS hrana tl. 2 mm. Ostatní pohlednové prvky opatřeny ABS hranou tl. 1 mm. Boky korpusu z desky tl. 18 mm. Záda z desky tl. 8 mm. Police z desky tl. 25 mm, nosnost 50 kg. Police a desky opatřeny hranou ABS tl. 2 mm. Dodávka včetvě kovových nožiček a úchytek k zásuvkám.",null,"400 x 400 x 700 mm (d x š x v)"," ; Další specifikace viz Kniha vnitřního vybavení - Kniha - prvků - Nábytek a příslušenství","Skříňka do koupelny (výška 700 mm); Popis:Skřínka se čtyřmi zásuvkami do koupleny a nožičkami. Materiál laminátová MDF deska, barva bílá. Dno i půda z desky tl. 25 mm, z přední strany ABS hrana tl. 2 mm. Ostatní pohlednové prvky opatřeny ABS hranou tl. 1 mm. Boky korpusu z desky tl. 18 mm. Záda z desky tl. 8 mm. Police z desky tl. 25 mm, nosnost 50 kg. Police a desky opatřeny hranou ABS tl. 2 mm. Dodávka včetvě kovových nožiček a úchytek k zásuvkám.; Materiál:; Rozměry:400 x 400 x 700 mm (d x š x v) ; Další specifikace viz Kniha vnitřního vybavení - Kniha - prvků - Nábytek a příslušenství","ks",1,{"$f":"3990*1.2","v":4788}]
["3B.VV_N_006","Sklopné zrcadlo pro bezbariérové WC","Sklopné nerezové zrcadlo na toalety pro tělesně postižené včetně kotvení. Kotveno pomocí montážní lišty. Naklánění zrcadla je ovládané pomocí páky na stěně pod umyvadlem. Materiál sklo s bezpečnostní fólií se zabroušenými hranami a rám a páka z nerezy.",null,"600 x 400 mm (š x v)"," ; Další specifikace viz Kniha vnitřního vybavení - Kniha - prvků - Nábytek a příslušenství","Sklopné zrcadlo pro bezbariérové WC; Popis:Sklopné nerezové zrcadlo na toalety pro tělesně postižené včetně kotvení. Kotveno pomocí montážní lišty. Naklánění zrcadla je ovládané pomocí páky na stěně pod umyvadlem. Materiál sklo s bezpečnostní fólií se zabroušenými hranami a rám a páka z nerezy.; Materiál:; Rozměry:600 x 400 mm (š x v) ; Další specifikace viz Kniha vnitřního vybavení - Kniha - prvků - Nábytek a příslušenství","ks",1,3630]
["3B.VV_N_007","Sklopné sedátko do sprchy s madlem","Sklopné sedátko do sprchy včetně montážního materiálu. Nosná konstrukce z nerezové oceli, sedátkou z odolného plastu  jedohuše udržovatlené. Maximální nosnost 200 kg.",null,"440 x 470 mm (d x š)"," ; Další specifikace viz Kniha vnitřního vybavení - Kniha - prvků - Nábytek a příslušenství","Sklopné sedátko do sprchy s madlem; Popis:Sklopné sedátko do sprchy včetně montážního materiálu. Nosná konstrukce z nerezové oceli, sedátkou z odolného plastu  jedohuše udržovatlené. Maximální nosnost 200 kg.; Materiál:; Rozměry:440 x 470 mm (d x š) ; Další specifikace viz Kniha vnitřního vybavení - Kniha - prvků - Nábytek a příslušenství","ks",1,{"$f":"3567*1.2","v":4280.3999999999996}]
["3B.VV_N_008","Police do skladu (výška 2000 mm)","Police do skladu s pěti policemi včetně montážního materiálu. Police jsou výškově přestavitelné v rastru 138 mm. Šedý policový regál je rychle smontovatelný bez spojovacího materiálu. Police se jednoduchým způsobem nasadí na sloupky. Možnost spojování do polí a řad vedle sebe i za sebou pro zvýšení celkové tuhosti. Konstrukce je povrchově upravena práškovým lakem šedé barvy. Nohy jsou vybaveny plastovými patkami pro ochranu podlahové krytiny.",null,"2000 x 600 x 2000 mm (d x š x v)"," ; Další specifikace viz Kniha vnitřního vybavení - Kniha - prvků - Nábytek a příslušenství","Police do skladu (výška 2000 mm); Popis:Police do skladu s pěti policemi včetně montážního materiálu. Police jsou výškově přestavitelné v rastru 138 mm. Šedý policový regál je rychle smontovatelný bez spojovacího materiálu. Police se jednoduchým způsobem nasadí na sloupky. Možnost spojování do polí a řad vedle sebe i za sebou pro zvýšení celkové tuhosti. Konstrukce je povrchově upravena práškovým lakem šedé barvy. Nohy jsou vybaveny plastovými patkami pro ochranu podlahové krytiny.; Materiál:; Rozměry:2000 x 600 x 2000 mm (d x š x v) ; Další specifikace viz Kniha vnitřního vybavení - Kniha - prvků - Nábytek a příslušenství","ks",2,20000]
["3B.VV_N_009","Police do skladu tvaru \"L\" (výška 2000 mm)","Police do skladu tvaru \"L\" s pěti police včetně montážního materiálu. Police jsou výškově přestavitelné v rastru 138 mm. Šedý policový regál je rychle smontovatelný bez spojovacího materiálu. Police se jednoduchým způsobem nasadí na sloupky. Možnost spojování do polí a řad vedle sebe i za sebou pro zvýšení celkové tuhosti. Konstrukce je povrchově upravena práškovým lakem šedé barvy. Nohy jsou vybaveny plastovými patkami pro ochranu podlahové krytiny.",null,"1810/1610 x 600 x 2000 mm (d x š x v)"," ; Další specifikace viz Kniha vnitřního vybavení - Kniha - prvků - Nábytek a příslušenství","Police do skladu tvaru \"L\" (výška 2000 mm); Popis:Police do skladu tvaru \"L\" s pěti police včetně montážního materiálu. Police jsou výškově přestavitelné v rastru 138 mm. Šedý policový regál je rychle smontovatelný bez spojovacího materiálu. Police se jednoduchým způsobem nasadí na sloupky. Možnost spojování do polí a řad vedle sebe i za sebou pro zvýšení celkové tuhosti. Konstrukce je povrchově upravena práškovým lakem šedé barvy. Nohy jsou vybaveny plastovými patkami pro ochranu podlahové krytiny.; Materiál:; Rozměry:1810/1610 x 600 x 2000 mm (d x š x v) ; Další specifikace viz Kniha vnitřního vybavení - Kniha - prvků - Nábytek a příslušenství","ks",1,18100]
["3B.VV_N_010","Kovová garnyž na záclony (délka 1450 mm)","Kovová garnyž na záclony včetně montážního materiálu. Tyč garnyže o púrůměru 16 mm. Skládá se z galvanicky pokovený tyče, dvou koncovek, dvou konzol na zeď a žabky s kroužky.",null,"délka 1450 mm"," ; Další specifikace viz Kniha vnitřního vybavení - Kniha - prvků - Nábytek a příslušenství","Kovová garnyž na záclony (délka 1450 mm); Popis:Kovová garnyž na záclony včetně montážního materiálu. Tyč garnyže o púrůměru 16 mm. Skládá se z galvanicky pokovený tyče, dvou koncovek, dvou konzol na zeď a žabky s kroužky.; Materiál:; Rozměry:délka 1450 mm ; Další specifikace viz Kniha vnitřního vybavení - Kniha - prvků - Nábytek a příslušenství","ks",10,{"$f":"946*1.2","v":1135.2}]
["3B.VV_N_011","Kovová garnyž na záclony (délka 1950 mm)","Kovová garnyž na záclony včetně montážního materiálu. Tyč garnyže o púrůměru 16 mm. Skládá se z galvanicky pokovený tyče, dvou koncovek, dvou konzol na zeď a žabky s kroužky.",null,"délka 1950 mm"," ; Další specifikace viz Kniha vnitřního vybavení - Kniha - prvků - Nábytek a příslušenství","Kovová garnyž na záclony (délka 1950 mm); Popis:Kovová garnyž na záclony včetně montážního materiálu. Tyč garnyže o púrůměru 16 mm. Skládá se z galvanicky pokovený tyče, dvou koncovek, dvou konzol na zeď a žabky s kroužky.; Materiál:; Rozměry:délka 1950 mm ; Další specifikace viz Kniha vnitřního vybavení - Kniha - prvků - Nábytek a příslušenství","ks",2,{"$f":"1272*1.2","v":1526.3999999999999}]
["3B.VV_N_012","Sada kuchyňského nádobí","Sada kuchyňského nádobí obsahuje hrnec o průměru 16 cm s obsahem 2,1 l, hrnec o průměru 20 cm s obsahem 3,6 l, hrnec o průměru 24 cm s obsahem 5,7 l, keramická pánev, pekáč, tři nože, nůž na pečivo, čtyři vařečky, dvě naběračky, cedník, dvě škrabky, tři prkénka na maso, pečivo, zelenivu a ovoce, struhadlo, dvanáct hlubokých talířů, mělkých, dezertních a misek, tři mísy, dvanáct skleniček a hrnků, dvě sady příborů.",null," - - -"," ; Další specifikace viz Kniha vnitřního vybavení - Kniha - prvků - Nábytek a příslušenství","Sada kuchyňského nádobí; Popis:Sada kuchyňského nádobí obsahuje hrnec o průměru 16 cm s obsahem 2,1 l, hrnec o průměru 20 cm s obsahem 3,6 l, hrnec o průměru 24 cm s obsahem 5,7 l, keramická pánev, pekáč, tři nože, nůž na pečivo, čtyři vařečky, dvě naběračky, cedník, dvě škrabky, tři prkénka na maso, pečivo, zelenivu a ovoce, struhadlo, dvanáct hlubokých talířů, mělkých, dezertních a misek, tři mísy, dvanáct skleniček a hrnků, dvě sady příborů.; Materiál:; Rozměry: - - - ; Další specifikace viz Kniha vnitřního vybavení - Kniha - prvků - Nábytek a příslušenství","ks",1,13000]
["3B.VV_N_013","Termoport","Termoport pro uskladnění pokrmů určených pro přepravu. Termoport je nevyhřívaný, čelní plnění s nasazovacími dvířky. Uzavírání pomocí záklopných uzávěrů zapuštěných do čelních stěnkorpusu, vnitřní prostor umožňuje uložení 12 párů vylisovaných drážek se svislou roztečí 39 mm k zasouvání gastro nádob, praktických držák popisovacích karet a ergonomická madla s neklouzavými plastovými úchyty.  Materiál polypropylen, polyamid a chromniklová ocel. Hmotnost 14 kg.",null,"630 x 425 x 660 mm"," ; Další specifikace viz Kniha vnitřního vybavení - Kniha - prvků - Nábytek a příslušenství","Termoport; Popis:Termoport pro uskladnění pokrmů určených pro přepravu. Termoport je nevyhřívaný, čelní plnění s nasazovacími dvířky. Uzavírání pomocí záklopných uzávěrů zapuštěných do čelních stěnkorpusu, vnitřní prostor umožňuje uložení 12 párů vylisovaných drážek se svislou roztečí 39 mm k zasouvání gastro nádob, praktických držák popisovacích karet a ergonomická madla s neklouzavými plastovými úchyty.  Materiál polypropylen, polyamid a chromniklová ocel. Hmotnost 14 kg.; Materiál:; Rozměry:630 x 425 x 660 mm ; Další specifikace viz Kniha vnitřního vybavení - Kniha - prvků - Nábytek a příslušenství","ks",1,{"$f":"16081","v":16081}]
["3B.VV_N_014","Nástěnná police s konzolemi","Nástěnná police s konzolemi kotvené do zdi včetně kotvení. Materiál laminátová MDF deska, barva světle hnědá. Police z desky tl. 25 mm, opatřena ABS hranou tl. 2 mm. Nosnost 80 kg. Konzole dřevěné v barvě světle hnědé.",null,"1000 x 300 x 20 mm (d x š x v)"," ; Další specifikace viz Kniha vnitřního vybavení - Kniha - prvků - Nábytek a příslušenství","Nástěnná police s konzolemi; Popis:Nástěnná police s konzolemi kotvené do zdi včetně kotvení. Materiál laminátová MDF deska, barva světle hnědá. Police z desky tl. 25 mm, opatřena ABS hranou tl. 2 mm. Nosnost 80 kg. Konzole dřevěné v barvě světle hnědé.; Materiál:; Rozměry:1000 x 300 x 20 mm (d x š x v) ; Další specifikace viz Kniha vnitřního vybavení - Kniha - prvků - Nábytek a příslušenství","ks",1,{"$f":"530*1.2","v":636}]
["3B.VV_N_015","Sklopná vana","Nastavitelná vana s digitálním panelem, kontrolou teploty vody, desinfekčním programem a perličkovými tryskami. Technické parametry vnitřní délka 1850 mm, vnitřní šířka 550 mm, hloubka 420 mm, nosnost 160 kg, vzduchová masáž, 12 trysek, napájení 230 V.",null,"2090 x 820 x 635 - 1035 mm (d x š x v)"," ; Další specifikace viz Kniha vnitřního vybavení - Kniha - prvků - Nábytek a příslušenství","Sklopná vana; Popis:Nastavitelná vana s digitálním panelem, kontrolou teploty vody, desinfekčním programem a perličkovými tryskami. Technické parametry vnitřní délka 1850 mm, vnitřní šířka 550 mm, hloubka 420 mm, nosnost 160 kg, vzduchová masáž, 12 trysek, napájení 230 V.; Materiál:; Rozměry:2090 x 820 x 635 - 1035 mm (d x š x v) ; Další specifikace viz Kniha vnitřního vybavení - Kniha - prvků - Nábytek a příslušenství","ks",1,200000]
["3B.VV_N_016","Sklopná madla k WC","Sklopná madla k WC včetně montážníh materiálu. Madla jsou z nerezi. Nosnost 120 kg.",null,"délka madla 813 mm"," ; Další specifikace viz Kniha vnitřního vybavení - Kniha - prvků - Nábytek a příslušenství","Sklopná madla k WC; Popis:Sklopná madla k WC včetně montážníh materiálu. Madla jsou z nerezi. Nosnost 120 kg.; Materiál:; Rozměry:délka madla 813 mm ; Další specifikace viz Kniha vnitřního vybavení - Kniha - prvků - Nábytek a příslušenství","ks",2,{"$f":"2488","v":2488}]
["3B.VV_N_017","Trezor pro personál","Trezor s elektronickým zámkem. Materiál ocel, korpus 1,5 mm, dveře 4 mm, povrchová úprava práškovaným lakem v barvě šedé. Možné upevnit na zeď. Provoz trezeru je za pomoci 4 běžných baterií (1,5 V).",null,"350 x 250 x 250 mm (d x š x v)"," ; Další specifikace viz Kniha vnitřního vybavení - Kniha - prvků - Nábytek a příslušenství","Trezor pro personál; Popis:Trezor s elektronickým zámkem. Materiál ocel, korpus 1,5 mm, dveře 4 mm, povrchová úprava práškovaným lakem v barvě šedé. Možné upevnit na zeď. Provoz trezeru je za pomoci 4 běžných baterií (1,5 V).; Materiál:; Rozměry:350 x 250 x 250 mm (d x š x v) ; Další specifikace viz Kniha vnitřního vybavení - Kniha - prvků - Nábytek a příslušenství","ks",1,{"$f":"1259","v":1259}]
["VV_E","Prvky vnitřního vybevení - Elektro a příslušenství"]
["3B.VV_E_001","Myčka vestavěná","Kapacita myčky 13 sad nádobí, 2 úložné koše, spotřeba vody 11 l, AQUA STOP proti přetečení, 2 ostřikovací ramena, 4 programy: Eco, Intenzivní, Normální, Oplachování, mycí teploty: 40-70°C, energetická třída A+, účinnost mytí A, účinnost sušení A, hlučnost 49 dB(A), spotřeba energie: 1,04 kWh.",null,"595 x 570 x 820 mm"," ; Další specifikace viz Kniha vnitřního vybavení - Kniha - prvků - Elektro a příslušenství",{"$f":"CONCATENATE(B37,$C$1,C37,$D$1,D37,$E$1,E37,F37)","v":"Myčka vestavěná; Popis:Kapacita myčky 13 sad nádobí, 2 úložné koše, spotřeba vody 11 l, AQUA STOP proti přetečení, 2 ostřikovací ramena, 4 programy: Eco, Intenzivní, Normální, Oplachování, mycí teploty: 40-70°C, energetická třída A+, účinnost mytí A, účinnost sušení A, hlučnost 49 dB(A), spotřeba energie: 1,04 kWh.; Materiál:; Rozměry:595 x 570 x 820 mm ; Další specifikace viz Kniha vnitřního vybavení - Kniha - prvků - Elektro a příslušenství"},"ks",1,15000]
["3B.VV_E_002","Varná deska vestavěná","Sklokeramická varná deska, 4 highlight varné zóny, dotykové ovládání, 9 stupňů výkonu, kontrolky provozu a zbytkového tepla, dětská pojistka, bez rámečku - rovné hrany.",null,"590 x 520 x 46 mm"," ; Další specifikace viz Kniha vnitřního vybavení - Kniha - prvků - Elektro a příslušenství","Varná deska vestavěná; Popis:Sklokeramická varná deska, 4 highlight varné zóny, dotykové ovládání, 9 stupňů výkonu, kontrolky provozu a zbytkového tepla, dětská pojistka, bez rámečku - rovné hrany.; Materiál:; Rozměry:590 x 520 x 46 mm ; Další specifikace viz Kniha vnitřního vybavení - Kniha - prvků - Elektro a příslušenství","ks",1,12000]
["3B.VV_E_003","Sušička na 8 kg prádla","Sušička, min. 8kg prádla, kondenzační s tepelným čerpadlem, min. třída A, invertorový motor.",null,"600 x 600 x 900 mm"," ; Další specifikace viz Kniha vnitřního vybavení - Kniha - prvků - Elektro a příslušenství","Sušička na 8 kg prádla; Popis:Sušička, min. 8kg prádla, kondenzační s tepelným čerpadlem, min. třída A, invertorový motor.; Materiál:; Rozměry:600 x 600 x 900 mm ; Další specifikace viz Kniha vnitřního vybavení - Kniha - prvků - Elektro a příslušenství","ks",1,15000]
["3B.VV_E_004","Varná konvice","Standardní varná konvice, objem 1,7 l, vyjímatelný a omyvatelný filtr pro zachycení nečistot a usazenin, uskladnění síťového kabelu v podstavci, topné dno z nerezové oceli se zakrytou topnou spirálou,snadné otevírání víka stisknutím tlačítka v horní části rukojeti, bezpečnostní zajištění víčka v uzavřené poloze, trojnásobné bezpečnostní jištění: - Ochrana proti přehřátí při zapnutí bez vody , a Automatické vypnutí při sejmutí z podstavce - Automatické vypnutí po dosažení bodu varu Středový 360° konektor, přepínač zapnuto/vypnuto s podsvětlením.",null," - - -"," ; Další specifikace viz Kniha vnitřního vybavení - Kniha - prvků - Elektro a příslušenství","Varná konvice; Popis:Standardní varná konvice, objem 1,7 l, vyjímatelný a omyvatelný filtr pro zachycení nečistot a usazenin, uskladnění síťového kabelu v podstavci, topné dno z nerezové oceli se zakrytou topnou spirálou,snadné otevírání víka stisknutím tlačítka v horní části rukojeti, bezpečnostní zajištění víčka v uzavřené poloze, trojnásobné bezpečnostní jištění: - Ochrana proti přehřátí při zapnutí bez vody , a Automatické vypnutí při sejmutí z podstavce - Automatické vypnutí po dosažení bodu varu Středový 360° konektor, přepínač zapnuto/vypnuto s podsvětlením.; Materiál:; Rozměry: - - - ; Další specifikace viz Kniha vnitřního vybavení - Kniha - prvků - Elektro a příslušenství","ks",1,640]
["3B.VV_E_005","Vestavěná trouba","Multifunkční horkovzdušná elektrická trouba objem 60l. Samostatná trouba s pravým horkým vzduchem v energetické třídě A, funkce rozmrazování, displej s digitálním časovačem - nastavení minutky, denního času, konce pečení a doby pečení, možnost péci na 2 úrovních najednou, uvnitř trouby vysoce lesklý smalt pro snadné čištění, nerezové provedení.",null,"594 x 540 x 589 mm"," ; Další specifikace viz Kniha vnitřního vybavení - Kniha - prvků - Elektro a příslušenství","Vestavěná trouba; Popis:Multifunkční horkovzdušná elektrická trouba objem 60l. Samostatná trouba s pravým horkým vzduchem v energetické třídě A, funkce rozmrazování, displej s digitálním časovačem - nastavení minutky, denního času, konce pečení a doby pečení, možnost péci na 2 úrovních najednou, uvnitř trouby vysoce lesklý smalt pro snadné čištění, nerezové provedení.; Materiál:; Rozměry:594 x 540 x 589 mm ; Další specifikace viz Kniha vnitřního vybavení - Kniha - prvků - Elektro a příslušenství","ks",1,13000]
["3B.VV_E_006","Elektronicky polohovatelná postel","Elektricky ovládané lůžko s dřevěným obložením, 4 dílnou ložnou plochou, postranicemi, zabraňující pádu z lůžka, výškové nastavení (od 38 do 86 cm). Nastavení výšky lůžka a náklonu jednotlivých dílů ložné plochy se provádí pomocí ovladače. Pasivní (pěnovou) antidekubitní matraci – působí preventivně proti vzniku dekubitů (proleženin). Je vyrobená z polyuretanové pěny se sníženou hořlavostí. Jádro je profilované s Flex-efektem pro dobré rozložení váhy pacienta. Má vyztužené okraje. Snímatelný potah vyrobený vysoko frekvenčním svařováním. Aktivní matraci – pro prevenci proleženin 2. stupně. Aktivní antidekubitní matrace se používaná v kombinaci s běžnou matrací. Interval výměny vzduchu 10 min. Nastavitelný tlak v matraci podle váhy pacienta, volba dynamického/statického režimu, signalizace nízkého tlaku. CPR ventil, zvukový alarm výpadku napájení. Hrazdu a rukojeť. Nosnost do 160 kg.",null,"103 x 207 x 40-80 mm"," ; Další specifikace viz Kniha vnitřního vybavení - Kniha - prvků - Elektro a příslušenství","Elektronicky polohovatelná postel; Popis:Elektricky ovládané lůžko s dřevěným obložením, 4 dílnou ložnou plochou, postranicemi, zabraňující pádu z lůžka, výškové nastavení (od 38 do 86 cm). Nastavení výšky lůžka a náklonu jednotlivých dílů ložné plochy se provádí pomocí ovladače. Pasivní (pěnovou) antidekubitní matraci – působí preventivně proti vzniku dekubitů (proleženin). Je vyrobená z polyuretanové pěny se sníženou hořlavostí. Jádro je profilované s Flex-efektem pro dobré rozložení váhy pacienta. Má vyztužené okraje. Snímatelný potah vyrobený vysoko frekvenčním svařováním. Aktivní matraci – pro prevenci proleženin 2. stupně. Aktivní antidekubitní matrace se používaná v kombinaci s běžnou matrací. Interval výměny vzduchu 10 min. Nastavitelný tlak v matraci podle váhy pacienta, volba dynamického/statického režimu, signalizace nízkého tlaku. CPR ventil, zvukový alarm výpadku napájení. Hrazdu a rukojeť. Nosnost do 160 kg.; Materiál:; Rozměry:103 x 207 x 40-80 mm ; Další specifikace viz Kniha vnitřního vybavení - Kniha - prvků - Elektro a příslušenství","ks",1,35000]
["3B.VV_E_007","Notebook","Notebook, 15,4 “ LCD, 8 GB RAM, 500 GB HDD, procesor i3 a vyšší, Windows 10 Pro, MS Office 2016 Home and Bussines CZ.",null," - - -"," ; Další specifikace viz Kniha vnitřního vybavení - Kniha - prvků - Elektro a příslušenství","Notebook; Popis:Notebook, 15,4 “ LCD, 8 GB RAM, 500 GB HDD, procesor i3 a vyšší, Windows 10 Pro, MS Office 2016 Home and Bussines CZ.; Materiál:; Rozměry: - - - ; Další specifikace viz Kniha vnitřního vybavení - Kniha - prvků - Elektro a příslušenství","ks",1,33590]
["3B.VV_E_008","Tiskárna na A4","Malá tiskárna - Funkce: černobílý laserový tisk, kopírování, skenování, fax, Formát: A4, rozlišení tisku: 1200dpi, ovládání: dotykový barevný grafický displej, velikost paměti: 256 MB, rychlost tisku: 38 Str./min., doba tisku první strany: 5,7s, oboustranný tisk: automatický , vstupní zásobník: 250 listů, víceúčelový zásobník: 100 listů, výstupní zásobník: 150 listů, gramáž média: 60 – 175 g/m2, rozlišení kopírování: 600x600dpi, zoom kopírování: 25 – 400%, rozlišení skenování: 1200dpi, podavač skeneru: oboustranný 50 listů, oboustranné jednoprůchodové skenování fumkce skeneru: skenování do e-mailu, do síťové složky, do USB, připojení: USB 2.0, Ethernet 10/100/1000T, hostitelský USB port, jazyky tiskárny: PCL 5, HP PCL 6, emulace Postscript úrovně 3, přímý tisk PDF (v1.7), URF, PCLM, PWG.",null," - - -"," ; Další specifikace viz Kniha vnitřního vybavení - Kniha - prvků - Elektro a příslušenství","Tiskárna na A4; Popis:Malá tiskárna - Funkce: černobílý laserový tisk, kopírování, skenování, fax, Formát: A4, rozlišení tisku: 1200dpi, ovládání: dotykový barevný grafický displej, velikost paměti: 256 MB, rychlost tisku: 38 Str./min., doba tisku první strany: 5,7s, oboustranný tisk: automatický , vstupní zásobník: 250 listů, víceúčelový zásobník: 100 listů, výstupní zásobník: 150 listů, gramáž média: 60 – 175 g/m2, rozlišení kopírování: 600x600dpi, zoom kopírování: 25 – 400%, rozlišení skenování: 1200dpi, podavač skeneru: oboustranný 50 listů, oboustranné jednoprůchodové skenování fumkce skeneru: skenování do e-mailu, do síťové složky, do USB, připojení: USB 2.0, Ethernet 10/100/1000T, hostitelský USB port, jazyky tiskárny: PCL 5, HP PCL 6, emulace Postscript úrovně 3, přímý tisk PDF (v1.7), URF, PCLM, PWG.; Materiál:; Rozměry: - - - ; Další specifikace viz Kniha vnitřního vybavení - Kniha - prvků - Elektro a příslušenství","ks",1,5000]
["VV_VEN","Prvky vnitřního vybevení - Venkovní vybavení"]
["3B.VV_VEN_001","Venkovní pergola k sezení vybavená židlemi a stolem","Venkovní dřevěná pergola k sezení vybavená šesti židlemi a stolem. Kovový stůl a židle s opěrkou a područkami. Sloupky pergoly jsou průřezu 120 x 120 mm, vzdálenost sloupků je 2,0 m, pod každým sloupkem je proveden betonový základ s patkou sloupku z galvanického zinku, základy jsou provedeny v nezámrzné hloubce. Trvar střechy je sedlový, krokve průžezu 60 x 140 mm, podélné prvky průřezu 100 x 140 mm. Na střeše je provedeno bednění a laťování se skládanou betonovou střešní krytinou. V přístřešku je podlaha z betonové dlažby. Betonová dlažba je uložena na kladecí vrstu tl. 40 mm - kamenná drť 4-8mm, podkladní nosnou vrstvu tl. 150 mm - kamená drť 8-16 mm a zemní pláň. Klempířské prvky jsou provedeny z pozinkovaného plechu.",null,"5000 x 5000 x 3300 mm (d x š x v)"," ; Další specifikace viz Kniha vnitřního vybavení - Kniha - prvků - Venkovní vybavení",{"$f":"CONCATENATE(B46,$C$1,C46,$D$1,D46,$E$1,E46,F46)","v":"Venkovní pergola k sezení vybavená židlemi a stolem; Popis:Venkovní dřevěná pergola k sezení vybavená šesti židlemi a stolem. Kovový stůl a židle s opěrkou a područkami. Sloupky pergoly jsou průřezu 120 x 120 mm, vzdálenost sloupků je 2,0 m, pod každým sloupkem je proveden betonový základ s patkou sloupku z galvanického zinku, základy jsou provedeny v nezámrzné hloubce. Trvar střechy je sedlový, krokve průžezu 60 x 140 mm, podélné prvky průřezu 100 x 140 mm. Na střeše je provedeno bednění a laťování se skládanou betonovou střešní krytinou. V přístřešku je podlaha z betonové dlažby. Betonová dlažba je uložena na kladecí vrstu tl. 40 mm - kamenná drť 4-8mm, podkladní nosnou vrstvu tl. 150 mm - kamená drť 8-16 mm a zemní pláň. Klempířské prvky jsou provedeny z pozinkovaného plechu.; Materiál:; Rozměry:5000 x 5000 x 3300 mm (d x š x v) ; Další specifikace viz Kniha vnitřního vybavení - Kniha - prvků - Venkovní vybavení"},"ks",1,55000]
["3B.VV_VEN_002","Zahradní domek","Zhradní domek je určený k uskladnění zhradního nábytku a nářadí. Zahradní domek je proveden na základvou desku (štěrk tl. 150 mm a beton tl. 15 mm). Zahradní domek je proveden ze sloupků o průřezu 120 x 120 mm (sloupky jsou kotveny k základvé desce za pomocí pataky sloupku z galvanického zinku) a opláštěné smrkovými palubkami tl. 28 mm. Trvar střechy je sedlový, krokve průžezu 60 x 140 mm, podélné prvky průřezu 100 x 140 mm. Na střeše je provedeno bednění a laťování se skládanou betonovou střešní krytinou. Podlaha betonová. Klempířské prvky jsou provedeny z pozinkovaného plechu.",null,"4000 x 3000 x 2400 mm (d x š x v)"," ; Další specifikace viz Kniha vnitřního vybavení - Kniha - prvků - Venkovní vybavení",{"$f":"CONCATENATE(B47,$C$1,C47,$D$1,D47,$E$1,E47,F47)","v":"Zahradní domek; Popis:Zhradní domek je určený k uskladnění zhradního nábytku a nářadí. Zahradní domek je proveden na základvou desku (štěrk tl. 150 mm a beton tl. 15 mm). Zahradní domek je proveden ze sloupků o průřezu 120 x 120 mm (sloupky jsou kotveny k základvé desce za pomocí pataky sloupku z galvanického zinku) a opláštěné smrkovými palubkami tl. 28 mm. Trvar střechy je sedlový, krokve průžezu 60 x 140 mm, podélné prvky průřezu 100 x 140 mm. Na střeše je provedeno bednění a laťování se skládanou betonovou střešní krytinou. Podlaha betonová. Klempířské prvky jsou provedeny z pozinkovaného plechu.; Materiál:; Rozměry:4000 x 3000 x 2400 mm (d x š x v) ; Další specifikace viz Kniha vnitřního vybavení - Kniha - prvků - Venkovní vybavení"},"ks",1,27800]

{"sheet":"STAN","index":7,"n_rows":60,"n_cols":14,"rows_kept":60,"cut":false,"hidden":true,"merged":[]}
["4.FD.1.1","Architektonicko-stavební řešení","; Popis:","; Materiál:","; Rozměry:"]
["10_VB","Výrobky"]
["KP","Klempířské prvky"]
[null,"Okenní parapet","Oplechování parapetu oken včetně doplňkového a montážního materiálu","Ocelový pozinkovaný plech, tl. 0,6 mm, exteriérový nátěr v odstínu RAL 8017","r.š. 250 mm"," ; Další specifikace viz Kniha klempířských prvků",{"$f":"CONCATENATE(B4,$C$1,C4,$E$1,E4,F4)","v":"Okenní parapet; Popis:Oplechování parapetu oken včetně doplňkového a montážního materiálu; Rozměry:r.š. 250 mm ; Další specifikace viz Kniha klempířských prvků"},"m",30.1,327]
[null,"Nátěr stávajícího svodů","Stávající ocelový pozinkovaný svod opatřeny novým nátěrem","exteriérový nátěr v odstínu RAL 8017","průměr 120 mm, délka 16,1 m"," ; Další specifikace viz Kniha klempířských prvků","Nátěr stávajícího svodů; Popis:Stávající ocelový pozinkovaný svod opatřeny novým nátěrem; Rozměry:průměr 120 mm, délka 16,1 m ; Další specifikace viz Kniha klempířských prvků","m2",6.07,362.64,null,{"$f":"72.9+47.8+6.2+8.14+57.2+69.4+101","v":362.64}]
[null,"Nátěr stávajících žlabů","Stávající ocelový pozinkovaný žlab opatřeny novým nátěrem","exteriérový nátěr v odstínu RAL 8017","průměr 300 mm, délka 42,4 m"," ; Další specifikace viz Kniha klempířských prvků","Nátěr stávajících žlabů; Popis:Stávající ocelový pozinkovaný žlab opatřeny novým nátěrem; Rozměry:průměr 300 mm, délka 42,4 m ; Další specifikace viz Kniha klempířských prvků","m2",39.960999999999999,362.64]
[null,"Nátěr stávající oplechované římsy","Stávající ocelová pozinkovaná oplechovaná římsa opatřená novým nátěrem","exteriérový nátěr v odstínu RAL 8017","délka 3,0 m"," ; Další specifikace viz Kniha klempířských prvků","Nátěr stávající oplechované římsy; Popis:Stávající ocelová pozinkovaná oplechovaná římsa opatřená novým nátěrem; Rozměry:délka 3,0 m ; Další specifikace viz Kniha klempířských prvků","m",3,{"$f":"362.64*0.5","v":181.32}]
[null,"Nátěr stávajícího bočního oplechování","Stávající ocelové pozinkované boční oplechování opatřené novým nátěrem","exteriérový nátěr v odstínu RAL 8017","délka 9,5 m"," ; Další specifikace viz Kniha klempířských prvků","Nátěr stávajícího bočního oplechování; Popis:Stávající ocelové pozinkované boční oplechování opatřené novým nátěrem; Rozměry:délka 9,5 m ; Další specifikace viz Kniha klempířských prvků","m",9.5,{"$f":"362.64*0.3","v":108.79199999999999}]
[null,"Parapet u venkovních dveří","Oplechování parapetu u venkovních dveří včetně doplňkového a montážního materiálu","Ocelový pozinkovaný plech, tl. 0,6 mm, exteriérový nátěr v odstínu RAL 8017","r.š. 290 mm"," ; Další specifikace viz Kniha klempířských prvků","Parapet u venkovních dveří; Popis:Oplechování parapetu u venkovních dveří včetně doplňkového a montážního materiálu; Rozměry:r.š. 290 mm ; Další specifikace viz Kniha klempířských prvků","m",0.94,355.5]
["KP","Zámečnické prvky"]
[null,"Kovové madlo ke schodišti s dřevěným madlem","Kotvící lišta pro madlo 10 x 40 mm, kotveno do stěny 20 x 20 mm, osová vzdálenost kotvícího prvku je cca 950 mm, odsazení od počátku cca 50 mm. Materiál nerezová ocel, povrchová úprava kartáčovaná nerez. Dřevěné madlo 50 x 40 mm blíže specifikováno v truhlářských prvků.","Nerezová ocel, povrchová úprava kartáčovaná nerez","délka 4,2 m, výška 900 mm"," ; Další specifikace viz Kniha klempířských prvků",{"$f":"CONCATENATE(B11,$C$1,C11,$E$1,E11,F11)","v":"Kovové madlo ke schodišti s dřevěným madlem; Popis:Kotvící lišta pro madlo 10 x 40 mm, kotveno do stěny 20 x 20 mm, osová vzdálenost kotvícího prvku je cca 950 mm, odsazení od počátku cca 50 mm. Materiál nerezová ocel, povrchová úprava kartáčovaná nerez. Dřevěné madlo 50 x 40 mm blíže specifikováno v truhlářských prvků.; Rozměry:délka 4,2 m, výška 900 mm ; Další specifikace viz Kniha klempířských prvků"},"ks",1,629.20000000000005,null,{"$f":"5*125.84","v":629.20000000000005},null,"https://www.umakov.cz/uchyt-madla/d-70340/?utm_content=A%252F0111-000&utm_medium=Google+N%25C3%25A1kupy&utm_source=cpc&utm_term=%25C3%259Achyt+madla&gclid=EAIaIQobChMIi8iD2Yrw1QIVgzgbCh07DgtyEAQYASABEgJZcvD_BwE"]
[null,"Kovové madlo ke schodišti s dřevěným madlem","Kotvící lišta pro madlo 10 x 40 mm, kotveno do stěny 20 x 20 mm, osová vzdálenost kotvícího prvku je cca 700 mm, odsazení od počátku cca 50 mm. Materiál nerezová ocel, povrchová úprava kartáčovaná nerez. Dřevěné madlo 50 x 40 mm blíže specifikováno v truhlářských prvků.","Nerezová ocel, povrchová úprava kartáčovaná nerez","délka 2,21 m, výška 900 mm"," ; Další specifikace viz Kniha klempířských prvků",{"$f":"CONCATENATE(B12,$C$1,C12,$E$1,E12,F12)","v":"Kovové madlo ke schodišti s dřevěným madlem; Popis:Kotvící lišta pro madlo 10 x 40 mm, kotveno do stěny 20 x 20 mm, osová vzdálenost kotvícího prvku je cca 700 mm, odsazení od počátku cca 50 mm. Materiál nerezová ocel, povrchová úprava kartáčovaná nerez. Dřevěné madlo 50 x 40 mm blíže specifikováno v truhlářských prvků.; Rozměry:délka 2,21 m, výška 900 mm ; Další specifikace viz Kniha klempířských prvků"},"ks",1,5662.8,null,{"$f":"45*125.84","v":5662.8}]
[null,"Natření sloupků stávajícího přístřešku","Stávající ocelové sloupky opatřeny novým nátěrem.","exteriérový nátěr v odstínu RAL 8017","2700 mm (d)"," ; Další specifikace viz Kniha klempířských prvků",{"$f":"CONCATENATE(B13,$C$1,C13,$E$1,E13,F13)","v":"Natření sloupků stávajícího přístřešku; Popis:Stávající ocelové sloupky opatřeny novým nátěrem.; Rozměry:2700 mm (d) ; Další specifikace viz Kniha klempířských prvků"},"ks",3,513,null,null,null,{"$f":"95.6+45.2+3.56+38.8+85.8+112","v":380.96000000000004}]
[null,"Natření sloupků stávajícího přístřešku","Stávající ocelový sloupek opatřený novým nátěrem.","exteriérový nátěr v odstínu RAL 8018","2600 mm (d)\n"," ; Další specifikace viz Kniha klempířských prvků",{"$f":"CONCATENATE(B14,$C$1,C14,$E$1,E14,F14)","v":"Natření sloupků stávajícího přístřešku; Popis:Stávající ocelový sloupek opatřený novým nátěrem.; Rozměry:2600 mm (d)\n ; Další specifikace viz Kniha klempířských prvků"},"ks",1,494,null,null,null,"cena za m2"]
["TP","Truhlářské prvky"]
[null,"Nátěr stávajícího dřevěného zábradlí","Nátěr stávajícího dřevěného zábradlí bezbarvým lakem","bezbarvý lak","délka 4,28 m"," ; Další specifikace viz Kniha truhlářských prvků",{"$f":"CONCATENATE(B16,$C$1,C16,$E$1,E16,F16)","v":"Nátěr stávajícího dřevěného zábradlí; Popis:Nátěr stávajícího dřevěného zábradlí bezbarvým lakem; Rozměry:délka 4,28 m ; Další specifikace viz Kniha truhlářských prvků"},"ks",1,438.7,null,null,{"$f":"117+4.54+83.6","v":205.14},"cena za m2"]
[null,"Kuchyňská linka","Kuchyňská linka, sokl 80 mm, korpus z lamino desky tl. 18 mm, hrana z ABS tl. 2 mm. Spodní skříňky plné, pracovní deska z laminátové desky tl. 38 mm, nerezový dřez s odkapávačem. Kování linky je kovové. Součástí kuchyňské linky je dřez s odkapávačem a spotřebiče energetické třídy min. A přesně specifikovány v Knize vnitřního vybavení. Kuchyňská linka je opatřená krycím panelem š. 50 mm","Korpus z lamina, pracovní deska z laminátové desky","viz. obrazová příloha","  ; SPOTŘEBIČE OCENIT V KAPITOLE_Prvky vnitřního vybevení - Elektro a příslušenství ; Další specifikace viz Kniha truhlářských prvků","Kuchyňská linka; Popis:Kuchyňská linka, sokl 80 mm, korpus z lamino desky tl. 18 mm, hrana z ABS tl. 2 mm. Spodní skříňky plné, pracovní deska z laminátové desky tl. 38 mm, nerezový dřez s odkapávačem. Kování linky je kovové. Součástí kuchyňské linky je dřez s odkapávačem a spotřebiče energetické třídy min. A přesně specifikovány v Knize vnitřního vybavení. Kuchyňská linka je opatřená krycím panelem š. 50 mm; Rozměry:viz. obrazová příloha  ; SPOTŘEBIČE OCENIT V KAPITOLE_Prvky vnitřního vybevení - Elektro a příslušenství ; Další specifikace viz Kniha truhlářských prvků","ks",1,131962]
[null,"Kuchyňská linka","Kuchyňská linka, sokl 80 mm, korpus z lamino desky tl. 18 mm, hrana z ABS tl. 2 mm. Spodní skříňky plné, pracovní deska z laminátové desky tl. 38 mm, nerezový dřez s odkapávačem. Kování linky je kovové. Součástí kuchyňské linky je dřez s odkapávačem a spotřebiče energetické třídy min. A přesně specifikovány v Knize vnitřního vybavení. Kuchyňská linka je opatřená krycím panelem š. 50 mm","Laminátová dřevotřísková deska, veškeré doplňky nerezové","1860 x 30 x 2000 mm, 930 x 30 x 2000 mm (d x š x v)","  ; SPOTŘEBIČE OCENIT V KAPITOLE_Prvky vnitřního vybevení - Elektro a příslušenství ; Další specifikace viz Kniha truhlářských prvků","Kuchyňská linka; Popis:Kuchyňská linka, sokl 80 mm, korpus z lamino desky tl. 18 mm, hrana z ABS tl. 2 mm. Spodní skříňky plné, pracovní deska z laminátové desky tl. 38 mm, nerezový dřez s odkapávačem. Kování linky je kovové. Součástí kuchyňské linky je dřez s odkapávačem a spotřebiče energetické třídy min. A přesně specifikovány v Knize vnitřního vybavení. Kuchyňská linka je opatřená krycím panelem š. 50 mm; Rozměry:1860 x 30 x 2000 mm, 930 x 30 x 2000 mm (d x š x v)  ; SPOTŘEBIČE OCENIT V KAPITOLE_Prvky vnitřního vybevení - Elektro a příslušenství ; Další specifikace viz Kniha truhlářských prvků","ks",1,{"$f":"28167*(1.86+0.93)","v":78585.930000000008}]
[null,"Kuchyňská linka","Kuchyňská linka, sokl 80 mm, korpus z lamino desky tl. 18 mm, hrana z ABS tl. 2 mm. Spodní skříňky plné, pracovní deska z laminátové desky tl. 38 mm, nerezový dřez s odkapávačem. Kování linky je kovové. Součástí kuchyňské linky je dřez s odkapávačem a spotřebiče energetické třídy min. A přesně specifikovány v Knize vnitřního vybavení. Kuchyňská linka je opatřená krycím panelem š. 50 mm","Laminátová dřevotřísková deska, veškeré doplňky nerezové","1720 x 30 x 2000 mm (d x š x v)","  ; SPOTŘEBIČE OCENIT V KAPITOLE_Prvky vnitřního vybevení - Elektro a příslušenství ; Další specifikace viz Kniha truhlářských prvků","Kuchyňská linka; Popis:Kuchyňská linka, sokl 80 mm, korpus z lamino desky tl. 18 mm, hrana z ABS tl. 2 mm. Spodní skříňky plné, pracovní deska z laminátové desky tl. 38 mm, nerezový dřez s odkapávačem. Kování linky je kovové. Součástí kuchyňské linky je dřez s odkapávačem a spotřebiče energetické třídy min. A přesně specifikovány v Knize vnitřního vybavení. Kuchyňská linka je opatřená krycím panelem š. 50 mm; Rozměry:1720 x 30 x 2000 mm (d x š x v)  ; SPOTŘEBIČE OCENIT V KAPITOLE_Prvky vnitřního vybevení - Elektro a příslušenství ; Další specifikace viz Kniha truhlářských prvků","ks",1,{"$f":"28167*(1.72)","v":48447.24}]
[null,"Dřevěné madlo ke schodišti","Dřevěné dubové madlo 50 x 40 mm kotveno ke kotvící liště 10 x 40 mm","dubové madlo opatřené bezbarvým lakem","délka 4,2 mm"," ; Další specifikace viz Kniha truhlářských prvků","Dřevěné madlo ke schodišti; Popis:Dřevěné dubové madlo 50 x 40 mm kotveno ke kotvící liště 10 x 40 mm; Rozměry:délka 4,2 mm ; Další specifikace viz Kniha truhlářských prvků","ks",1,6854]
[null,"Dřevěné madlo ke schodišti","Dřevěné dubové madlo 50 x 40 mm kotveno ke kotvící liště 10 x 40 mm","dubové madlo opatřené bezbarvým lakem\n","délka 2,21 mm"," ; Další specifikace viz Kniha truhlářských prvků","Dřevěné madlo ke schodišti; Popis:Dřevěné dubové madlo 50 x 40 mm kotveno ke kotvící liště 10 x 40 mm; Rozměry:délka 2,21 mm ; Další specifikace viz Kniha truhlářských prvků","ks",1,3606]
["OP","Ostatní prvky"]
[null,"Koupelnová pevná zástěna","Pevná kouplenová zástěna včetně montážního materiálu. Materiál čiré tvrzené sklo, rám z pochromovaného hliníkového profilu, tl. rámu 35 mm.","Záves a kroužky: PVC, tyč: chrom","900 x 1900 mm (d x v)"," ; Další specifikace viz Kniha ostatních prvků",{"$f":"CONCATENATE(B23,$C$1,C23,$E$1,E23,F23)","v":"Koupelnová pevná zástěna; Popis:Pevná kouplenová zástěna včetně montážního materiálu. Materiál čiré tvrzené sklo, rám z pochromovaného hliníkového profilu, tl. rámu 35 mm.; Rozměry:900 x 1900 mm (d x v) ; Další specifikace viz Kniha ostatních prvků"},"ks",1,7630]
[null,"Sprchový závěs z PVC","Sprchový závěs z PVC v bílé barvě s texturou, kroužky a tyčí. Závěs je zevěšen na tyč za pomoci plastových kroužků. Závěs nepropouští vodu a je možné ho prát na 40°C.","Záves a kroužky: PVC, tyč: chrom","1400 x 2860 mm (d x v)"," ; Další specifikace viz Kniha ostatních prvků",{"$f":"CONCATENATE(B24,$C$1,C24,$E$1,E24,F24)","v":"Sprchový závěs z PVC; Popis:Sprchový závěs z PVC v bílé barvě s texturou, kroužky a tyčí. Závěs je zevěšen na tyč za pomoci plastových kroužků. Závěs nepropouští vodu a je možné ho prát na 40°C.; Rozměry:1400 x 2860 mm (d x v) ; Další specifikace viz Kniha ostatních prvků"},"ks",1,1000]
[null,"Sprchový závěs z PVC","Sprchový závěs z PVC v bílé barvě s texturou, kroužky a tyčí. Závěs je zevěšen na tyč za pomoci plastových kroužků. Závěs nepropouští vodu a je možné ho prát na 40°C.","Záves a kroužky: PVC, tyč: chrom","1600 x 2860 mm (d x v)"," ; Další specifikace viz Kniha ostatních prvků",{"$f":"CONCATENATE(B25,$C$1,C25,$E$1,E25,F25)","v":"Sprchový závěs z PVC; Popis:Sprchový závěs z PVC v bílé barvě s texturou, kroužky a tyčí. Závěs je zevěšen na tyč za pomoci plastových kroužků. Závěs nepropouští vodu a je možné ho prát na 40°C.; Rozměry:1600 x 2860 mm (d x v) ; Další specifikace viz Kniha ostatních prvků"},"ks",1,1200]
[null,"Sprchový závěs z PVC","Sprchový závěs z PVC v bílé barvě s texturou, kroužky a tyčí. Závěs je zevěšen na tyč za pomoci plastových kroužků. Závěs nepropouští vodu a je možné ho prát na 40°C.","Záves a kroužky: PVC, tyč: chrom","1000 x 1900 mm (d x v)"," ; Další specifikace viz Kniha ostatních prvků",{"$f":"CONCATENATE(B26,$C$1,C26,$E$1,E26,F26)","v":"Sprchový závěs z PVC; Popis:Sprchový závěs z PVC v bílé barvě s texturou, kroužky a tyčí. Závěs je zevěšen na tyč za pomoci plastových kroužků. Závěs nepropouští vodu a je možné ho prát na 40°C.; Rozměry:1000 x 1900 mm (d x v) ; Další specifikace viz Kniha ostatních prvků"},"ks",1,8000]
[]
["VV_N","Prvky vnitřního vybevení - Nábytek a příslušenství"]
[1,"Čalouněné křeslo ušák","Čalouněné křeslo ušák je tvořen z vlnonce, 2 cm kokosové vrstvy a 5 cm široké PUR pěny a čalouněná potahovou látkou v barvě šedé. Hmotnost křesla 23 kg. Doplňové rozměry křesla: hloubka 720 mm, výška sedu 470 mm, hloubka sedu 520 mm, šířka sedu 520 mm a výška opěrka 670 mm.",null,"560 x 720 x 1080 mm (d x š x v)"," ; Další specifikace viz Kniha vnitřního vybavení - Kniha - prvků - Nábytek a příslušenství",{"$f":"CONCATENATE(B29,$C$1,C29,$E$1,E29,F29)","v":"Čalouněné křeslo ušák; Popis:Čalouněné křeslo ušák je tvořen z vlnonce, 2 cm kokosové vrstvy a 5 cm široké PUR pěny a čalouněná potahovou látkou v barvě šedé. Hmotnost křesla 23 kg. Doplňové rozměry křesla: hloubka 720 mm, výška sedu 470 mm, hloubka sedu 520 mm, šířka sedu 520 mm a výška opěrka 670 mm.; Rozměry:560 x 720 x 1080 mm (d x š x v) ; Další specifikace viz Kniha vnitřního vybavení - Kniha - prvků - Nábytek a příslušenství"},"ks",5,8736]
[2,"Konferenční stolek","Obdelníkový konferenční stolek se čtyřmi nohami jednou otevřenou zásuvkou. Materiál laminátová MDF deska. Deska tl. 20 mm, opatřená ABS hranou tl. 2 mm, barva světle hnědá. Nohy stolku čtvercové ze dřeva, barva světle hnědá.",null,"1000 x 800 x 430 mm (d x š x v)"," ; Další specifikace viz Kniha vnitřního vybavení - Kniha - prvků - Nábytek a příslušenství","Konferenční stolek; Popis:Obdelníkový konferenční stolek se čtyřmi nohami jednou otevřenou zásuvkou. Materiál laminátová MDF deska. Deska tl. 20 mm, opatřená ABS hranou tl. 2 mm, barva světle hnědá. Nohy stolku čtvercové ze dřeva, barva světle hnědá.; Rozměry:1000 x 800 x 430 mm (d x š x v) ; Další specifikace viz Kniha vnitřního vybavení - Kniha - prvků - Nábytek a příslušenství","ks",2,3500]
[3,"TV stolek s policemi","Televizní stolek s šesti policemi pod deskou. Materiál laminátová MDF deska, barva světle hnědá. Horní deska a nohy a police z desky tl. 20 mm. Horní deska opatřená ABS hranou tl. 2 mm, ostatní pohledové prvky opatřené ABS hranou tl. 1,5 mm. Záda z desky tl. 8 mm",null,"2200 x 400 x 400 mm (d x š x v)"," ; Další specifikace viz Kniha vnitřního vybavení - Kniha - prvků - Nábytek a příslušenství","TV stolek s policemi; Popis:Televizní stolek s šesti policemi pod deskou. Materiál laminátová MDF deska, barva světle hnědá. Horní deska a nohy a police z desky tl. 20 mm. Horní deska opatřená ABS hranou tl. 2 mm, ostatní pohledové prvky opatřené ABS hranou tl. 1,5 mm. Záda z desky tl. 8 mm; Rozměry:2200 x 400 x 400 mm (d x š x v) ; Další specifikace viz Kniha vnitřního vybavení - Kniha - prvků - Nábytek a příslušenství","ks",2,2600,null,"cena 4300 za délku 3,7 m"]
[4,"Předsíňová stěna s věšáky","Předsíňová stěna s kovovými háčky se dvěmi úchytkami a policí, kotvená do stěny včetně montážního materiálu. Korpus a police z MDF desky, barva světle hnědá, tl. 20 mm. Hrany optařeny ABS hranou tl. 1,5 mm. Háček (5 ks) se dvěmi úchytkami kotvená na desku věšáku včetně kotvení. Materiál nerezová ocel.",null,"věšák: 660 x 240 x 1520 mm (d x š x v), háček: 70 x 30 x 47 mm (d x š x v)"," ; Další specifikace viz Kniha vnitřního vybavení - Kniha - prvků - Nábytek a příslušenství","Předsíňová stěna s věšáky; Popis:Předsíňová stěna s kovovými háčky se dvěmi úchytkami a policí, kotvená do stěny včetně montážního materiálu. Korpus a police z MDF desky, barva světle hnědá, tl. 20 mm. Hrany optařeny ABS hranou tl. 1,5 mm. Háček (5 ks) se dvěmi úchytkami kotvená na desku věšáku včetně kotvení. Materiál nerezová ocel.; Rozměry:věšák: 660 x 240 x 1520 mm (d x š x v), háček: 70 x 30 x 47 mm (d x š x v) ; Další specifikace viz Kniha vnitřního vybavení - Kniha - prvků - Nábytek a příslušenství","ks",2,{"$f":"1427*1.2","v":1712.3999999999999}]
[5,"Nástěné zrcadlo do předsíně (rozměr 1000 x 900 mm)","Nástěné pravoúhlé zrcadlo k montáži na stěnu včetně kotvení. Materiál sklo s bezpečnostní fólií se zabroušenými hranami.",null,"1000 x 900 mm (š x v)"," ; Další specifikace viz Kniha vnitřního vybavení - Kniha - prvků - Nábytek a příslušenství","Nástěné zrcadlo do předsíně (rozměr 1000 x 900 mm); Popis:Nástěné pravoúhlé zrcadlo k montáži na stěnu včetně kotvení. Materiál sklo s bezpečnostní fólií se zabroušenými hranami.; Rozměry:1000 x 900 mm (š x v) ; Další specifikace viz Kniha vnitřního vybavení - Kniha - prvků - Nábytek a příslušenství","ks",3,{"$f":"1000*0.9*1.2","v":1080}]
[6,"Botník s variabilními policemi a lavicí","Botník s variabilními policemi a lavicí. Botník je členěn na 6 polic pro uložení bot. Materiál laminovaná MDF deska, barva světle hnědá. Dno i půda z desky tl. 25 mm, z přední strany ABS hrana tl. 2 mm. Ostatní pohlednové prvky opatřeny ABS hranou tl. 1 mm. Boky korpusu z desky tl. 25 mm. Záda z desky tl. 10 mm. Police z desky tl. 20 mm  s variabilním polohovatelností. Police a desky opatřeny hranou ABS tl. 2 mm. Dodávka včetvě rektifikačních nožiček. Sedák čalouněný potahvou látkou v barvě šedé.",null,"1000 x 400 x 480 mm (d x š x v)"," ; Další specifikace viz Kniha vnitřního vybavení - Kniha - prvků - Nábytek a příslušenství","Botník s variabilními policemi a lavicí; Popis:Botník s variabilními policemi a lavicí. Botník je členěn na 6 polic pro uložení bot. Materiál laminovaná MDF deska, barva světle hnědá. Dno i půda z desky tl. 25 mm, z přední strany ABS hrana tl. 2 mm. Ostatní pohlednové prvky opatřeny ABS hranou tl. 1 mm. Boky korpusu z desky tl. 25 mm. Záda z desky tl. 10 mm. Police z desky tl. 20 mm  s variabilním polohovatelností. Police a desky opatřeny hranou ABS tl. 2 mm. Dodávka včetvě rektifikačních nožiček. Sedák čalouněný potahvou látkou v barvě šedé.; Rozměry:1000 x 400 x 480 mm (d x š x v) ; Další specifikace viz Kniha vnitřního vybavení - Kniha - prvků - Nábytek a příslušenství","ks",3,{"$f":"3090*1.2","v":3708}]
[7,"Vestavěná skříň policová plná s dveřmi rozdělenými na dvě části (výška 2000 mm)","Skříň dvoudvéřová. Vybavená 5 ks variabilních polic. Materiál laminovaná MDF deska, barva světle hnědá. Dno i půda z desky tl. 25 mm, z přední strany ABS hrana tl. 2 mm. Ostatní pohlednové prvky opatřeny ABS hranou tl. 1 mm. Boky korpusu z desky tl. 18 mm. Záda z desky tl. 8 mm. Police z desky tl. 25 mm, nosnost 80 kg s variabilním polohovatelností. Police a desky opatřeny hranou ABS tl. 2 mm. Dodávka včetvě rektifikačních nožiček.",null,"1200 x 400 x 2000 mm (d x š x v)"," ; Další specifikace viz Kniha vnitřního vybavení - Kniha - prvků - Nábytek a příslušenství","Vestavěná skříň policová plná s dveřmi rozdělenými na dvě části (výška 2000 mm); Popis:Skříň dvoudvéřová. Vybavená 5 ks variabilních polic. Materiál laminovaná MDF deska, barva světle hnědá. Dno i půda z desky tl. 25 mm, z přední strany ABS hrana tl. 2 mm. Ostatní pohlednové prvky opatřeny ABS hranou tl. 1 mm. Boky korpusu z desky tl. 18 mm. Záda z desky tl. 8 mm. Police z desky tl. 25 mm, nosnost 80 kg s variabilním polohovatelností. Police a desky opatřeny hranou ABS tl. 2 mm. Dodávka včetvě rektifikačních nožiček.; Rozměry:1200 x 400 x 2000 mm (d x š x v) ; Další specifikace viz Kniha vnitřního vybavení - Kniha - prvků - Nábytek a příslušenství","ks",1,18000,null,"rozměr 1400 x 400 x 2000 mm (d x š x v) stojí 21 000"]
[8,"Vestavěná skříň policová plná s dveřmi rozdělenými na dvě části (výška 2000 mm)","Skříň dvoudvéřová. Vybavená 5 ks variabilních polic. Materiál laminovaná MDF deska, barva světle hnědá. Dno i půda z desky tl. 25 mm, z přední strany ABS hrana tl. 2 mm. Ostatní pohlednové prvky opatřeny ABS hranou tl. 1 mm. Boky korpusu z desky tl. 18 mm. Záda z desky tl. 8 mm. Police z desky tl. 25 mm, nosnost 80 kg s variabilním polohovatelností. Police a desky opatřeny hranou ABS tl. 2 mm. Dodávka včetvě rektifikačních nožiček.",null,"1200 x 300 x 2000 mm (d x š x v)"," ; Další specifikace viz Kniha vnitřního vybavení - Kniha - prvků - Nábytek a příslušenství","Vestavěná skříň policová plná s dveřmi rozdělenými na dvě části (výška 2000 mm); Popis:Skříň dvoudvéřová. Vybavená 5 ks variabilních polic. Materiál laminovaná MDF deska, barva světle hnědá. Dno i půda z desky tl. 25 mm, z přední strany ABS hrana tl. 2 mm. Ostatní pohlednové prvky opatřeny ABS hranou tl. 1 mm. Boky korpusu z desky tl. 18 mm. Záda z desky tl. 8 mm. Police z desky tl. 25 mm, nosnost 80 kg s variabilním polohovatelností. Police a desky opatřeny hranou ABS tl. 2 mm. Dodávka včetvě rektifikačních nožiček.; Rozměry:1200 x 300 x 2000 mm (d x š x v) ; Další specifikace viz Kniha vnitřního vybavení - Kniha - prvků - Nábytek a příslušenství","ks",1,13500,null,"rozměr 1400 x 400 x 2000 mm (d x š x v) stojí 21 000"]
[9,"Vestavěná skříň policová plná s dveřmi rozdělenými na dvě části (výška 2000 mm)","Skříň dvoudvéřová. Vybavená 5 ks variabilních polic. Materiál laminovaná MDF deska, barva světle hnědá. Dno i půda z desky tl. 25 mm, z přední strany ABS hrana tl. 2 mm. Ostatní pohlednové prvky opatřeny ABS hranou tl. 1 mm. Boky korpusu z desky tl. 18 mm. Záda z desky tl. 8 mm. Police z desky tl. 25 mm, nosnost 80 kg s variabilním polohovatelností. Police a desky opatřeny hranou ABS tl. 2 mm. Dodávka včetvě rektifikačních nožiček.",null,"1790 x 375 x 2000 mm (d x š x v)"," ; Další specifikace viz Kniha vnitřního vybavení - Kniha - prvků - Nábytek a příslušenství","Vestavěná skříň policová plná s dveřmi rozdělenými na dvě části (výška 2000 mm); Popis:Skříň dvoudvéřová. Vybavená 5 ks variabilních polic. Materiál laminovaná MDF deska, barva světle hnědá. Dno i půda z desky tl. 25 mm, z přední strany ABS hrana tl. 2 mm. Ostatní pohlednové prvky opatřeny ABS hranou tl. 1 mm. Boky korpusu z desky tl. 18 mm. Záda z desky tl. 8 mm. Police z desky tl. 25 mm, nosnost 80 kg s variabilním polohovatelností. Police a desky opatřeny hranou ABS tl. 2 mm. Dodávka včetvě rektifikačních nožiček.; Rozměry:1790 x 375 x 2000 mm (d x š x v) ; Další specifikace viz Kniha vnitřního vybavení - Kniha - prvků - Nábytek a příslušenství","ks",1,25200,null,"rozměr 1400 x 400 x 2000 mm (d x š x v) stojí 21 000"]
[10,"Zrcadlo do koupelny (rozměr 600 x 900 mm)","Nástěné pravoúhlé zrcadlo k montáži na stěnu včetně kotvení. Materiál sklo s bezpečnostní fólií se zabroušenými hranami.",null,"Zrcadlo do koupelny (rozměr 600 x 900 mm)"," ; Další specifikace viz Kniha vnitřního vybavení - Kniha - prvků - Nábytek a příslušenství","Zrcadlo do koupelny (rozměr 600 x 900 mm); Popis:Nástěné pravoúhlé zrcadlo k montáži na stěnu včetně kotvení. Materiál sklo s bezpečnostní fólií se zabroušenými hranami.; Rozměry:Zrcadlo do koupelny (rozměr 600 x 900 mm) ; Další specifikace viz Kniha vnitřního vybavení - Kniha - prvků - Nábytek a příslušenství","ks",3,650]
[11,"Sklopné sedátko do sprchy","Sklopné sedátko do sprchy včetně montážního materiálu. Nosná konstrukce z nerezové oceli, sedátkou z odolného plastu  jedohuše udržovatlené. Maximální nosnost 200 kg.",null,"440 x 470 mm (d x š)"," ; Další specifikace viz Kniha vnitřního vybavení - Kniha - prvků - Nábytek a příslušenství","Sklopné sedátko do sprchy; Popis:Sklopné sedátko do sprchy včetně montážního materiálu. Nosná konstrukce z nerezové oceli, sedátkou z odolného plastu  jedohuše udržovatlené. Maximální nosnost 200 kg.; Rozměry:440 x 470 mm (d x š) ; Další specifikace viz Kniha vnitřního vybavení - Kniha - prvků - Nábytek a příslušenství","ks",3,{"$f":"3567*1.2","v":4280.3999999999996}]
[12,"Police do skladu (výška 2000 mm)","Police do skladu s pěti policemi včetně montážního materiálu. Police jsou výškově přestavitelné v rastru 138 mm. Šedý policový regál je rychle smontovatelný bez spojovacího materiálu. Police se jednoduchým způsobem nasadí na sloupky. Možnost spojování do polí a řad vedle sebe i za sebou pro zvýšení celkové tuhosti. Konstrukce je povrchově upravena práškovým lakem šedé barvy. Nohy jsou vybaveny plastovými patkami pro ochranu podlahové krytiny.",null,"2000 x 600 x 2000 mm (d x š x v)"," ; Další specifikace viz Kniha vnitřního vybavení - Kniha - prvků - Nábytek a příslušenství","Police do skladu (výška 2000 mm); Popis:Police do skladu s pěti policemi včetně montážního materiálu. Police jsou výškově přestavitelné v rastru 138 mm. Šedý policový regál je rychle smontovatelný bez spojovacího materiálu. Police se jednoduchým způsobem nasadí na sloupky. Možnost spojování do polí a řad vedle sebe i za sebou pro zvýšení celkové tuhosti. Konstrukce je povrchově upravena práškovým lakem šedé barvy. Nohy jsou vybaveny plastovými patkami pro ochranu podlahové krytiny.; Rozměry:2000 x 600 x 2000 mm (d x š x v) ; Další specifikace viz Kniha vnitřního vybavení - Kniha - prvků - Nábytek a příslušenství","ks",3,20000]
[13,"Kovová garnyž na záclony (délka 1970 mm)","Kovová garnyž na záclony včetně montážního materiálu. Tyč garnyže o púrůměru 16 mm. Skládá se z galvanicky pokovený tyče, dvou koncovek, dvou konzol na zeď a žabky s kroužky.",null,"délka 1970 mm"," ; Další specifikace viz Kniha vnitřního vybavení - Kniha - prvků - Nábytek a příslušenství","Kovová garnyž na záclony (délka 1970 mm); Popis:Kovová garnyž na záclony včetně montážního materiálu. Tyč garnyže o púrůměru 16 mm. Skládá se z galvanicky pokovený tyče, dvou koncovek, dvou konzol na zeď a žabky s kroužky.; Rozměry:délka 1970 mm ; Další specifikace viz Kniha vnitřního vybavení - Kniha - prvků - Nábytek a příslušenství","ks",5,{"$f":"1.97*782","v":1540.54},null,"cena 1526,4"," za délku 1950 m"]
[14,"Kovová garnyž na záclony (délka 1550 mm)","Kovová garnyž na záclony včetně montážního materiálu. Tyč garnyže o púrůměru 16 mm. Skládá se z galvanicky pokovený tyče, dvou koncovek, dvou konzol na zeď a žabky s kroužky.",null,"délka 1550 mm"," ; Další specifikace viz Kniha vnitřního vybavení - Kniha - prvků - Nábytek a příslušenství","Kovová garnyž na záclony (délka 1550 mm); Popis:Kovová garnyž na záclony včetně montážního materiálu. Tyč garnyže o púrůměru 16 mm. Skládá se z galvanicky pokovený tyče, dvou koncovek, dvou konzol na zeď a žabky s kroužky.; Rozměry:délka 1550 mm ; Další specifikace viz Kniha vnitřního vybavení - Kniha - prvků - Nábytek a příslušenství","ks",8,{"$f":"1.55*782","v":1212.1000000000001}]
[15,"Kovová garnyž na záclony (délka 1990 mm)","Kovová garnyž na záclony včetně montážního materiálu. Tyč garnyže o púrůměru 16 mm. Skládá se z galvanicky pokovený tyče, dvou koncovek, dvou konzol na zeď a žabky s kroužky.",null,"délka 1990 mm"," ; Další specifikace viz Kniha vnitřního vybavení - Kniha - prvků - Nábytek a příslušenství","Kovová garnyž na záclony (délka 1990 mm); Popis:Kovová garnyž na záclony včetně montážního materiálu. Tyč garnyže o púrůměru 16 mm. Skládá se z galvanicky pokovený tyče, dvou koncovek, dvou konzol na zeď a žabky s kroužky.; Rozměry:délka 1990 mm ; Další specifikace viz Kniha vnitřního vybavení - Kniha - prvků - Nábytek a příslušenství","ks",3,{"$f":"1.99*782","v":1556.18}]
[16,"Kovová garnyž na záclony (délka 2470 mm)","Kovová garnyž na záclony včetně montážního materiálu. Tyč garnyže o púrůměru 16 mm. Skládá se z galvanicky pokovený tyče, dvou koncovek, dvou konzol na zeď a žabky s kroužky.",null,"délka 2470 mm"," ; Další specifikace viz Kniha vnitřního vybavení - Kniha - prvků - Nábytek a příslušenství","Kovová garnyž na záclony (délka 2470 mm); Popis:Kovová garnyž na záclony včetně montážního materiálu. Tyč garnyže o púrůměru 16 mm. Skládá se z galvanicky pokovený tyče, dvou koncovek, dvou konzol na zeď a žabky s kroužky.; Rozměry:délka 2470 mm ; Další specifikace viz Kniha vnitřního vybavení - Kniha - prvků - Nábytek a příslušenství","ks",1,{"$f":"2.47*782","v":1931.5400000000002}]
[17,"Kovová garnyž na záclony (délka 610 mm)","Kovová garnyž na záclony včetně montážního materiálu. Tyč garnyže o púrůměru 16 mm. Skládá se z galvanicky pokovený tyče, dvou koncovek, dvou konzol na zeď a žabky s kroužky.",null,"délka 610 mm"," ; Další specifikace viz Kniha vnitřního vybavení - Kniha - prvků - Nábytek a příslušenství","Kovová garnyž na záclony (délka 610 mm); Popis:Kovová garnyž na záclony včetně montážního materiálu. Tyč garnyže o púrůměru 16 mm. Skládá se z galvanicky pokovený tyče, dvou koncovek, dvou konzol na zeď a žabky s kroužky.; Rozměry:délka 610 mm ; Další specifikace viz Kniha vnitřního vybavení - Kniha - prvků - Nábytek a příslušenství","ks",3,{"$f":"0.61*782","v":477.02}]
[18,"Nástěnná police s konzolemi","Nástěnná police s konzolemi kotvené do zdi včetně kotvení. Materiál laminátová MDF deska, barva světle hnědá. Police z desky tl. 25 mm, opatřena ABS hranou tl. 2 mm. Nosnost 80 kg. Konzole dřevěné v barvě světle hnědé.",null,"1000 x 300 x 20 mm (d x š x v)"," ; Další specifikace viz Kniha vnitřního vybavení - Kniha - prvků - Nábytek a příslušenství","Nástěnná police s konzolemi; Popis:Nástěnná police s konzolemi kotvené do zdi včetně kotvení. Materiál laminátová MDF deska, barva světle hnědá. Police z desky tl. 25 mm, opatřena ABS hranou tl. 2 mm. Nosnost 80 kg. Konzole dřevěné v barvě světle hnědé.; Rozměry:1000 x 300 x 20 mm (d x š x v) ; Další specifikace viz Kniha vnitřního vybavení - Kniha - prvků - Nábytek a příslušenství","ks",1,{"$f":"530*1.2","v":636}]
[19,"Trezor pro personál","Trezor s elektronickým zámkem. Materiál ocel, korpus 1,5 mm, dveře 4 mm, povrchová úprava práškovaným lakem v barvě šedé. Možné upevnit na zeď. Provoz trezeru je za pomoci 4 běžných baterií (1,5 V).",null,"350 x 250 x 250 mm (d x š x v)"," ; Další specifikace viz Kniha vnitřního vybavení - Kniha - prvků - Nábytek a příslušenství","Trezor pro personál; Popis:Trezor s elektronickým zámkem. Materiál ocel, korpus 1,5 mm, dveře 4 mm, povrchová úprava práškovaným lakem v barvě šedé. Možné upevnit na zeď. Provoz trezeru je za pomoci 4 běžných baterií (1,5 V).; Rozměry:350 x 250 x 250 mm (d x š x v) ; Další specifikace viz Kniha vnitřního vybavení - Kniha - prvků - Nábytek a příslušenství","ks",1,{"$f":"1259","v":1259}]
[26,"Sada kuchyňského nádobí","Sada kuchyňského nádobí obsahuje hrnec o průměru 16 cm s obsahem 2,1 l, hrnec o průměru 20 cm s obsahem 3,6 l, hrnec o průměru 24 cm s obsahem 5,7 l, keramická pánev, pekáč, tři nože, nůž na pečivo, čtyři vařečky, dvě naběračky, cedník, dvě škrabky, tři prkénka na maso, pečivo, zelenivu a ovoce, struhadlo, dvanáct hlubokých talířů, mělkých, dezertních a misek, tři mísy, dvanáct skleniček a hrnků, dvě sady příborů.",null," - - -"," ; Další specifikace viz Kniha vnitřního vybavení - Kniha - prvků - Nábytek a příslušenství","Sada kuchyňského nádobí; Popis:Sada kuchyňského nádobí obsahuje hrnec o průměru 16 cm s obsahem 2,1 l, hrnec o průměru 20 cm s obsahem 3,6 l, hrnec o průměru 24 cm s obsahem 5,7 l, keramická pánev, pekáč, tři nože, nůž na pečivo, čtyři vařečky, dvě naběračky, cedník, dvě škrabky, tři prkénka na maso, pečivo, zelenivu a ovoce, struhadlo, dvanáct hlubokých talířů, mělkých, dezertních a misek, tři mísy, dvanáct skleniček a hrnků, dvě sady příborů.; Rozměry: - - - ; Další specifikace viz Kniha vnitřního vybavení - Kniha - prvků - Nábytek a příslušenství","ks",3,13000]
["VV_E","Prvky vnitřního vybevení - Elektro a příslušenství"]
[20,"Chladnička s mrazákem","Volně stojící kombinovaná chladnička s mrazničkou dole, energetická třída A++, objem chladničky 112 l, objem mrazničky 48 l, klimatická třída ST, N, LED osvětlení, automatické odmrazování chladničky, manuální odmrazování mrazničky, LED osvětlení, možnost otočení otevírání dveří, 2 nastavitelné nožičky.",null,"566 x 500 x 1430 mm (d x š x v)"," ; Další specifikace viz Kniha vnitřního vybavení - Kniha - prvků - Elektro a příslušenství",{"$f":"CONCATENATE(B50,$C$1,C50,$E$1,E50,F50)","v":"Chladnička s mrazákem; Popis:Volně stojící kombinovaná chladnička s mrazničkou dole, energetická třída A++, objem chladničky 112 l, objem mrazničky 48 l, klimatická třída ST, N, LED osvětlení, automatické odmrazování chladničky, manuální odmrazování mrazničky, LED osvětlení, možnost otočení otevírání dveří, 2 nastavitelné nožičky.; Rozměry:566 x 500 x 1430 mm (d x š x v) ; Další specifikace viz Kniha vnitřního vybavení - Kniha - prvků - Elektro a příslušenství"},"ks",2,15000]
[21,"Myčka vestavěná","Kapacita myčky 13 sad nádobí, 2 úložné koše, spotřeba vody 11 l, AQUA STOP proti přetečení, 2 ostřikovací ramena, 4 programy: Eco, Intenzivní, Normální, Oplachování, mycí teploty: 40-70°C, energetická třída A+, účinnost mytí A, účinnost sušení A, hlučnost 49 dB(A), spotřeba energie: 1,04 kWh.",null,"595 x 570 x 820 mm"," ; Další specifikace viz Kniha vnitřního vybavení - Kniha - prvků - Elektro a příslušenství","Myčka vestavěná; Popis:Kapacita myčky 13 sad nádobí, 2 úložné koše, spotřeba vody 11 l, AQUA STOP proti přetečení, 2 ostřikovací ramena, 4 programy: Eco, Intenzivní, Normální, Oplachování, mycí teploty: 40-70°C, energetická třída A+, účinnost mytí A, účinnost sušení A, hlučnost 49 dB(A), spotřeba energie: 1,04 kWh.; Rozměry:595 x 570 x 820 mm ; Další specifikace viz Kniha vnitřního vybavení - Kniha - prvků - Elektro a příslušenství","ks",3,15000]
[22,"Varná deska vestavěná","Sklokeramická varná deska, 4 highlight varné zóny, dotykové ovládání, 9 stupňů výkonu, kontrolky provozu a zbytkového tepla, dětská pojistka, bez rámečku - rovné hrany.",null,"590 x 520 x 46 mm"," ; Další specifikace viz Kniha vnitřního vybavení - Kniha - prvků - Elektro a příslušenství","Varná deska vestavěná; Popis:Sklokeramická varná deska, 4 highlight varné zóny, dotykové ovládání, 9 stupňů výkonu, kontrolky provozu a zbytkového tepla, dětská pojistka, bez rámečku - rovné hrany.; Rozměry:590 x 520 x 46 mm ; Další specifikace viz Kniha vnitřního vybavení - Kniha - prvků - Elektro a příslušenství","ks",3,12000]
[23,"Pračka na 10 kg prádla","Pračka, min. 10 kg prádůa, invertorový motor energetická třída A+++, počet otáček min. 1200 ot./min.",null,"700 x 700 x 900 mm"," ; Další specifikace viz Kniha vnitřního vybavení - Kniha - prvků - Elektro a příslušenství","Pračka na 10 kg prádla; Popis:Pračka, min. 10 kg prádůa, invertorový motor energetická třída A+++, počet otáček min. 1200 ot./min.; Rozměry:700 x 700 x 900 mm ; Další specifikace viz Kniha vnitřního vybavení - Kniha - prvků - Elektro a příslušenství","ks",1,12000]
[24,"Sušička na 8 kg prádla","Sušička, min. 8kg prádla, kondenzační s tepelným čerpadlem, min. třída A, invertorový motor.",null,"600 x 600 x 900 mm"," ; Další specifikace viz Kniha vnitřního vybavení - Kniha - prvků - Elektro a příslušenství","Sušička na 8 kg prádla; Popis:Sušička, min. 8kg prádla, kondenzační s tepelným čerpadlem, min. třída A, invertorový motor.; Rozměry:600 x 600 x 900 mm ; Další specifikace viz Kniha vnitřního vybavení - Kniha - prvků - Elektro a příslušenství","ks",3,15000]
[25,"Tyčový mixér","Tyčový mixér k mixování, drcení, míchání. Tyčový mixér z nerezové oceli, 5 rychlostních stupňů. Příkon: 700 W/230 V. Celková délka mixéru: 410 mm. Hmotnost: 1,05 kg. Součástí: 1 metla, 1 nádoba (800 ml), 2 speciální nádoby s mixovacími noži (500 ml + 1250 ml), 1 víko pro obě nádoby, 2 protiskluzové podložky, 1 nástěnný držák.",null," - - -"," ; Další specifikace viz Kniha vnitřního vybavení - Kniha - prvků - Elektro a příslušenství","Tyčový mixér; Popis:Tyčový mixér k mixování, drcení, míchání. Tyčový mixér z nerezové oceli, 5 rychlostních stupňů. Příkon: 700 W/230 V. Celková délka mixéru: 410 mm. Hmotnost: 1,05 kg. Součástí: 1 metla, 1 nádoba (800 ml), 2 speciální nádoby s mixovacími noži (500 ml + 1250 ml), 1 víko pro obě nádoby, 2 protiskluzové podložky, 1 nástěnný držák.; Rozměry: - - - ; Další specifikace viz Kniha vnitřního vybavení - Kniha - prvků - Elektro a příslušenství","ks",3,1700]
[27,"Vestavěná trouba","Multifunkční horkovzdušná elektrická trouba objem 60l. Samostatná trouba s pravým horkým vzduchem v energetické třídě A, funkce rozmrazování, displej s digitálním časovačem - nastavení minutky, denního času, konce pečení a doby pečení, možnost péci na 2 úrovních najednou, uvnitř trouby vysoce lesklý smalt pro snadné čištění, nerezové provedení.",null,"594 x 540 x 589 mm"," ; Další specifikace viz Kniha vnitřního vybavení - Kniha - prvků - Elektro a příslušenství","Vestavěná trouba; Popis:Multifunkční horkovzdušná elektrická trouba objem 60l. Samostatná trouba s pravým horkým vzduchem v energetické třídě A, funkce rozmrazování, displej s digitálním časovačem - nastavení minutky, denního času, konce pečení a doby pečení, možnost péci na 2 úrovních najednou, uvnitř trouby vysoce lesklý smalt pro snadné čištění, nerezové provedení.; Rozměry:594 x 540 x 589 mm ; Další specifikace viz Kniha vnitřního vybavení - Kniha - prvků - Elektro a příslušenství","ks",3,13000]
[28,"Varná konvice","Standardní varná konvice, objem 1,7 l, vyjímatelný a omyvatelný filtr pro zachycení nečistot a usazenin, uskladnění síťového kabelu v podstavci, topné dno z nerezové oceli se zakrytou topnou spirálou,snadné otevírání víka stisknutím tlačítka v horní části rukojeti, bezpečnostní zajištění víčka v uzavřené poloze, trojnásobné bezpečnostní jištění: - Ochrana proti přehřátí při zapnutí bez vody , a Automatické vypnutí při sejmutí z podstavce - Automatické vypnutí po dosažení bodu varu Středový 360° konektor, přepínač zapnuto/vypnuto s podsvětlením.",null," - - -"," ; Další specifikace viz Kniha vnitřního vybavení - Kniha - prvků - Elektro a příslušenství","Varná konvice; Popis:Standardní varná konvice, objem 1,7 l, vyjímatelný a omyvatelný filtr pro zachycení nečistot a usazenin, uskladnění síťového kabelu v podstavci, topné dno z nerezové oceli se zakrytou topnou spirálou,snadné otevírání víka stisknutím tlačítka v horní části rukojeti, bezpečnostní zajištění víčka v uzavřené poloze, trojnásobné bezpečnostní jištění: - Ochrana proti přehřátí při zapnutí bez vody , a Automatické vypnutí při sejmutí z podstavce - Automatické vypnutí po dosažení bodu varu Středový 360° konektor, přepínač zapnuto/vypnuto s podsvětlením.; Rozměry: - - - ; Další specifikace viz Kniha vnitřního vybavení - Kniha - prvků - Elektro a příslušenství","ks",3,640]
[29,"TV","Chytrá televize s operačním systémem, pevné síťové připojení (min 1x RJ45), DLNA klient pro přehrávání streamů ze serveru, obrazovka LCD s LED podsvícením, velikost min 42, rozlišení FullHD (1920 x 1080 bodů), Hotelový režim, televizní tuner pro příjem pozemního vysílání DVBT a DVBT2 certifikovaný pro ČR. Kompatabilní s držákem VESA.",null," - - -",null,"TV; Popis:Chytrá televize s operačním systémem, pevné síťové připojení (min 1x RJ45), DLNA klient pro přehrávání streamů ze serveru, obrazovka LCD s LED podsvícením, velikost min 42, rozlišení FullHD (1920 x 1080 bodů), Hotelový režim, televizní tuner pro příjem pozemního vysílání DVBT a DVBT2 certifikovaný pro ČR. Kompatabilní s držákem VESA.; Rozměry: - - -","ks",2,15000]
[30,"Notebook","Notebook, 15,4 “ LCD, 8 GB RAM, 500 GB HDD, procesor i3 a vyšší, Windows 10 Pro, MS Office 2016 Home and Bussines CZ.",null," - - -"," ; Další specifikace viz Kniha vnitřního vybavení - Kniha - prvků - Elektro a příslušenství","Notebook; Popis:Notebook, 15,4 “ LCD, 8 GB RAM, 500 GB HDD, procesor i3 a vyšší, Windows 10 Pro, MS Office 2016 Home and Bussines CZ.; Rozměry: - - - ; Další specifikace viz Kniha vnitřního vybavení - Kniha - prvků - Elektro a příslušenství","ks",1,33590]
[31,"Tiskárna na A4","Malá tiskárna - Funkce: černobílý laserový tisk, kopírování, skenování, fax, Formát: A4, rozlišení tisku: 1200dpi, ovládání: dotykový barevný grafický displej, velikost paměti: 256 MB, rychlost tisku: 38 Str./min., doba tisku první strany: 5,7s, oboustranný tisk: automatický , vstupní zásobník: 250 listů, víceúčelový zásobník: 100 listů, výstupní zásobník: 150 listů, gramáž média: 60 – 175 g/m2, rozlišení kopírování: 600x600dpi, zoom kopírování: 25 – 400%, rozlišení skenování: 1200dpi, podavač skeneru: oboustranný 50 listů, oboustranné jednoprůchodové skenování fumkce skeneru: skenování do e-mailu, do síťové složky, do USB, připojení: USB 2.0, Ethernet 10/100/1000T, hostitelský USB port, jazyky tiskárny: PCL 5, HP PCL 6, emulace Postscript úrovně 3, přímý tisk PDF (v1.7), URF, PCLM, PWG.",null," - - -"," ; Další specifikace viz Kniha vnitřního vybavení - Kniha - prvků - Elektro a příslušenství","Tiskárna na A4; Popis:Malá tiskárna - Funkce: černobílý laserový tisk, kopírování, skenování, fax, Formát: A4, rozlišení tisku: 1200dpi, ovládání: dotykový barevný grafický displej, velikost paměti: 256 MB, rychlost tisku: 38 Str./min., doba tisku první strany: 5,7s, oboustranný tisk: automatický , vstupní zásobník: 250 listů, víceúčelový zásobník: 100 listů, výstupní zásobník: 150 listů, gramáž média: 60 – 175 g/m2, rozlišení kopírování: 600x600dpi, zoom kopírování: 25 – 400%, rozlišení skenování: 1200dpi, podavač skeneru: oboustranný 50 listů, oboustranné jednoprůchodové skenování fumkce skeneru: skenování do e-mailu, do síťové složky, do USB, připojení: USB 2.0, Ethernet 10/100/1000T, hostitelský USB port, jazyky tiskárny: PCL 5, HP PCL 6, emulace Postscript úrovně 3, přímý tisk PDF (v1.7), URF, PCLM, PWG.; Rozměry: - - - ; Další specifikace viz Kniha vnitřního vybavení - Kniha - prvků - Elektro a příslušenství","ks",1,5000]